Workbook

Sheet Resumo
A1: Ministério da Integração e do Desenvolvimento Regional
A2: Companhia de Desenvolvimento dos Vales do São Francisco e do Parnaíba
A4: PLANILHA RESUMO
A5: OBRA: | B5: Execução de Manutenção e Recuperação nas Barragens de Várzea dos Ramos, Quixaba, Monte Alegre, São José da Tapera, Batatas, Riacho Pequeno e Queixada, localizadas no estado De Pernambuco. | E5: BDI (serv.): | F5: ='BDI serv'!D23 -> 0.2312 | G5: Bancos de dados:
A6: LOCAL: | B6: BARRAGENS DE PERNAMBUCO | E6: BDI (forn.): | F6: ='BDI forn'!D23 -> 0.1469 | G6: 05/25 - SINAPI | H6: SETOP-01/2025
A7: DATA BASE: | B7: 2025-06-01 | C7: Encargos sociais - Horistas: | F7: ='Encargos Sociais'!E49 -> 1.1384 | G7: 04/25 - ORSE | H7: EMBASA-01/25
A8: PRAZO: | B8: 480 dias | C8: Encargos sociais - Mensalista: | F8: ='Encargos Sociais'!F49 -> 0.7011 | G8: 06/25 - SBC | H8: SEDOP-02/25
E9: Desconto: | F9: 0 | G9: JAN/2025 - SICRO3 | H9: SCO-05/25
A10: ITEM | B10: DESCRIÇÃO | C10: UNID. | D10: QUANT. | E10: CUSTO UNITÁRIO | F10: PREÇO UNITÁRIO | G10: PREÇO TOTAL
A12: 1 | B12: BARRAGENS PERNAMBUCO | G12: =SUM(G13:G19) -> 5531151.58
A13: 1.1 | B13: Várzea dos Ramos | C13: unid. | D13: 1 | E13: ='Várzea dos Ramos'!I72 -> 842484.83 | F13: ='Várzea dos Ramos'!I74 -> 1037146.58 | G13: =D13*F13 -> 1037146.58
A14: 1.2 | B14: Quixaba | C14: unid. | D14: 1 | E14: =Quixaba!I79 -> 601373.56 | F14: =Quixaba!I81 -> 740310.1 | G14: =D14*F14 -> 740310.1
A15: 1.3 | B15: Monte Alegre | C15: unid. | D15: 1 | E15: ='Monte Alegre'!I89 -> 521634.52 | F15: ='Monte Alegre'!I91 -> 642070.52 | G15: 642070.52
A16: 1.4 | B16: São José da Tapera | C16: unid. | D16: 1 | E16: ='São José da Tapera'!I72 -> 561424.13 | F16: ='São José da Tapera'!I74 -> 691158.27 | G16: 691158.27
A17: 1.5 | B17: Batatas | C17: unid. | D17: 1 | E17: =Batatas!I91 -> 493848.27 | F17: =Batatas!I93 -> 607874.36 | G17: 607874.36
A18: 1.6 | B18: Riacho Pequeno | C18: unid. | D18: 1 | E18: ='Riacho Pequeno'!I82 -> 725713.14 | F18: ='Riacho Pequeno'!I84 -> 893344.21 | G18: 893344.21
A19: 1.7 | B19: Queixada | C19: unid. | D19: 1 | E19: =Queixada!I78 -> 746711.1352 | F19: =Queixada!I80 -> 919247.54 | G19: 919247.54
B21: TOTAL (Custo): | G21: =TRUNC(SUMPRODUCT(D12:D20,E12:E20),2) -> 4493189.58
B22: BDI e Encargos Sociais: | G22: =G23-G21 -> 1037962
B23: TOTAL GERAL COM BDI: | G23: =TRUNC(SUMPRODUCT(D12:D20,F12:F20),2) -> 5531151.58

Sheet Várzea dos Ramos
A1: Ministério da Integração e do Desenvolvimento Regional
A2: Companhia de Desenvolvimento dos Vales do São Francisco e do Parnaíba
A4: PLANILHA ORÇAMENTÁRIA - ORÇAMENTO NÃO DESONERADO
A5: OBRA: | B5: =Resumo!B5 -> Execução de Manutenção e Recuperação nas Barragens de Várzea dos Ramos, Quixaba, Monte Alegre, São José da Tapera, Batatas, Riacho Pequeno e Queixada, localizadas no estado De Pernambuco. | G5: BDI (serv.): | H5: ='BDI serv'!D23 -> 0.2312 | I5: Bancos de dados:
A6: LOCAL: | B6: =Resumo!B6 -> BARRAGENS DE PERNAMBUCO | G6: BDI (forn.): | H6: ='BDI forn'!D23 -> 0.1469 | I6: =Resumo!G6 -> 05/25 - SINAPI | J6: =Resumo!H6 -> SETOP-01/2025
A7: DATA BASE: | B7: =Resumo!B7 -> 2025-06-01 | E7: Encargos sociais - Horistas: | H7: ='Encargos Sociais'!E49 -> 1.1384 | I7: =Resumo!G7 -> 04/25 - ORSE | J7: =Resumo!H7 -> EMBASA-01/25
A8: PRAZO: | B8: 120 dias | E8: Encargos sociais - Mensalista: | H8: ='Encargos Sociais'!F49 -> 0.7011 | I8: =Resumo!G8 -> 06/25 - SBC | J8: =Resumo!H8 -> SEDOP-02/25
B9: =Resumo!B13 -> Várzea dos Ramos | G9: Desconto: | H9: 0 | I9: =Resumo!G9 -> JAN/2025 - SICRO3 | J9: =Resumo!H9 -> SCO-05/25
A10: ITEM | B10: REFERÊNCIA | D10: DESCRIÇÃO | E10: UNID. | F10: QUANT. | G10: CUSTO UNITÁRIO | H10: PREÇO UNITÁRIO | I10: PREÇO TOTAL
B11: FONTE | C11: CÓDIGO
A12: 1 | D12: ADMINISTRAÇÃO DA OBRA | I12: =SUM(I13) -> 137201.96
A13: 1.1 | D13: Administração da Obra | I13: =SUM(I14:I14) -> 137201.96
A14: 1.1.1 | B14: PRÓPRIA | C14: CPU.01 | D14: Administração Local | E14: mês | F14: 4 | G14: =CPU!G10 -> 27859.4 | H14: =TRUNC(G14*(1+$H$5),2) -> 34300.49 | I14: =TRUNC(F14*H14,2) -> 137201.96
A16: 2 | D16: SERVIÇOS PRELIMINARES | I16: =SUM(I17,I19,I21) -> 32243.02
A17: 2.1 | D17: Mobilização e desmobilização | I17: =SUM(I18) -> 5168.59
A18: 2.1.1 | B18: PRÓPRIA | C18: CPU.02 | D18: Mobilização e desmobilização de instalação do canteiro | E18: un | F18: 1 | G18: =CPU!G19 -> 4198.014144 | H18: =TRUNC(G18*(1+$H$5),2) -> 5168.59 | I18: =TRUNC(F18*H18,2) -> 5168.59
A19: 2.2 | D19: Canteiro de obras | I19: =SUM(I20) -> 25921.89
A20: 2.2.1 | B20: PRÓPRIA | C20: CPU.03 | D20: Execução de canteiro de obras, inclusive, limpeza, refeitório, sanitários e central de formas | E20: m2 | F20: 28.5 | G20: =CPU!G29 -> 738.7466393 | H20: =TRUNC(G20*(1+$H$5),2) -> 909.54 | I20: =TRUNC(F20*H20,2) -> 25921.89
A21: 2.3 | D21: Sinalização | I21: =SUM(I22:I22) -> 1152.54
A22: 2.3.1 | B22: SINAPI | C22: 103689 | D22: FORNECIMENTO E INSTALAÇÃO DE PLACA DE OBRA COM CHAPA GALVANIZADA E ESTRUTURA DE MADEIRA. AF_03/2022_PS | E22: M2 | F22: 2 | G22: =VLOOKUP(C22,'Comp_Sinapi PE_Sem-Desoneracao'!$B$11:$E$9733,4,0) -> 468.06 | H22: =TRUNC(G22*(1+$H$5),2) -> 576.27 | I22: =TRUNC(F22*H22,2) -> 1152.54 | J22: ca
A24: 3 | D24: CORTE DA VEGETAÇÃO E REMOÇÃO DAS RAIZES | I24: =SUM(I25) -> 237665.3
A25: 3.1 | D25: Remoção da vegetação | I25: =SUM(I26:I27) -> 237665.3
A26: 3.1.1 | B26: PRÓPRIA | C26: CPU.04 | D26: Limpeza de vegetação | E26: m2 | F26: 21924.7 | G26: =CPU!G40 -> 7.970814634 | H26: =TRUNC(G26*(1+$H$5),2) -> 9.81 | I26: =TRUNC(F26*H26,2) -> 215081.3
A27: 3.1.2 | B27: PRÓPRIA | C27: CPU.05 | D27: Corte de tronco e remoção de raiz | E27: un | F27: 40 | G27: =CPU!G50 -> 458.5808984 | H27: =TRUNC(G27*(1+$H$5),2) -> 564.6 | I27: =TRUNC(F27*H27,2) -> 22584
A29: 4 | D29: RECUPERAÇÃO DO MACIÇO | I29: =SUM(I30,I32) -> 48214.8
A30: 4.1 | D30: Recomposição das Erosões (erosões locais nas ombreiras e taludes), trincas e buracos | I30: =SUM(I31:I31) -> 47940.8
A31: 4.1.1 | B31: PRÓPRIA | C31: CPU.13 | D31: Recomposição das erosões, inclusive, regularização da superfície e reaterro | E31: m3 | F31: 83 | G31: =CPU!G143 -> 469.1425876 | H31: =TRUNC(G31*(1+$H$5),2) -> 577.6 | I31: =TRUNC(F31*H31,2) -> 47940.8
A32: 4.2 | D32: Injeção de nata de cimento em buracos | I32: =SUM(I33:I33) -> 274
A33: 4.2.1 | B33: PRÓPRIA | C33: CPU.26 | D33: Injeção de nata de cimento em buracos | E33: m3 | F33: 0.2 | G33: =CPU!G264 -> 1112.735881 | H33: =TRUNC(G33*(1+$H$5),2) -> 1370 | I33: =TRUNC(F33*H33,2) -> 274
A35: 5 | D35: REGULARIZAÇÃO E PAVIMENTAÇÃO DA CRISTA | I35: =SUM(I36,I38,I40) -> 182521.2
A36: 5.1 | D36: Regularização da Crista | I36: =SUM(I37:I37) -> 4480.48
A37: 5.1.1 | B37: PRÓPRIA | C37: CPU.14 | D37: Regularização e compactação da crista | E37: m2 | F37: 1366 | G37: =CPU!G161 -> 2.671375893 | H37: =TRUNC(G37*(1+$H$5),2) -> 3.28 | I37: =TRUNC(F37*H37,2) -> 4480.48
A38: 5.2 | D38: Instalação de meio-fio e sarjeta | I38: =SUM(I39:I39) -> 90018.22
A39: 5.2.1 | B39: PRÓPRIA | C39: CPU.20 | D39: =(VLOOKUP(C39,CPU!B7:C357,2,0)) -> Guia (meio-fio) e sarjeta e conjudados de concreto, moldada In Loco, 45cm base (15 cm Base da Guia +30 cm Base da Sarjeta) x 22 cm Altura | E39: m | F39: 842 | G39: =CPU!G218 -> 86.83558394 | H39: =TRUNC(G39*(1+$H$5),2) -> 106.91 | I39: =TRUNC(F39*H39,2) -> 90018.22
A40: 5.3 | D40: Pavimentação da Crista | I40: =SUM(I41:I41) -> 88022.5
A41: 5.3.1 | B41: PRÓPRIA | C41: CPU.15 | D41: Execução de Revestimento com BGTC | E41: m3 | F41: 137 | G41: =CPU!G170 -> 521.8490854 | H41: =TRUNC(G41*(1+$H$5),2) -> 642.5 | I41: =TRUNC(F41*H41,2) -> 88022.5
A43: 6 | D43: MANUTENÇÃO NO TALUDE DE MONTANTE | I43: =SUM(I44) -> 236950.49
A44: 6.1 | D44: Enrocamento com pedra de mão para proteção do talude | I44: =SUM(I45:I45) -> 236950.49
A45: 6.1.1 | B45: PRÓPRIA | C45: CPU.07 | D45: Enrocamento c/ pedra de mão c/ fornecimento e assentamento | E45: m3 | F45: 413 | G45: =CPU!G63 -> 465.9959793 | H45: =TRUNC(G45*(1+$H$5),2) -> 573.73 | I45: =TRUNC(F45*H45,2) -> 236950.49
A47: 7 | D47: DRENAGEM SUPERFICIAL DO TALUDE DE JUSANTE | I47: =SUM(I48,I50) -> 28167.1
A48: 7.1 | D48: Canaleta para descida d'água | I48: =SUM(I49:I49) -> 25779.6
A49: 7.1.1 | B49: PRÓPRIA | C49: CPU.08 | D49: Canaleta meia cana de concreto (D=30cm) - Fornecimento e instalação | E49: m | F49: 140 | G49: =CPU!G79 -> 149.5661046 | H49: =TRUNC(G49*(1+$H$5),2) -> 184.14 | I49: =TRUNC(F49*H49,2) -> 25779.6
A50: 7.2 | D50: Entrada para descida d'água | I50: =SUM(I51:I51) -> 2387.5
A51: 7.2.1 | B51: PRÓPRIA | C51: CPU.09 | D51: Entrada para descida d'água | E51: un | F51: 10 | G51: =CPU!G94 -> 193.9202431 | H51: =TRUNC(G51*(1+$H$5),2) -> 238.75 | I51: =TRUNC(F51*H51,2) -> 2387.5
A53: 8 | D53: PROTEÇÃO SUPERFICIAL DO TALUDE DE JUSANTE | I53: =SUM(I54) -> 104890.5
A54: 8.1 | D54: Proteção vegetal | I54: =SUM(I55:I55) -> 104890.5
A55: 8.1.1 | B55: PRÓPRIA | C55: CPU.10 | D55: Plantio de vegetação para proteção de talude com hidrossemeadura, inclusive adubação e transporte | E55: m2 | F55: 5850 | G55: =CPU!G104 -> 14.56336002 | H55: =TRUNC(G55*(1+$H$5),2) -> 17.93 | I55: =TRUNC(F55*H55,2) -> 104890.5
A57: 9 | D57: SERVIÇOS COMPLEMENTARES | I57: =SUM(I58,I60) -> 5498.28
A58: 9.1 | D58: Instalação de placas de aviso | I58: =SUM(I59:I59) -> 2305.08
A59: 9.1.1 | B59: SINAPI | C59: 103689 | D59: FORNECIMENTO E INSTALAÇÃO DE PLACA DE OBRA COM CHAPA GALVANIZADA E ESTRUTURA DE MADEIRA. AF_03/2022_PS | E59: M2 | F59: 4 | G59: =VLOOKUP(C59,'Comp_Sinapi PE_Sem-Desoneracao'!$B$11:$E$9733,4,0) -> 468.06 | H59: =TRUNC(G59*(1+$H$5),2) -> 576.27 | I59: =TRUNC(F59*H59,2) -> 2305.08 | J59: ca
A60: 9.2 | D60: Régua Linimétrica Padrão “ANA”, Aço Carbono - 2 X 70 X 1000 mm (Fornecimento e Instalação) | I60: =SUM(I61:I61) -> 3193.2
A61: 9.2.1 | B61: PRÓPRIA | C61: CPU.18 | D61: Régua Linimétrica Padrão “ANA”, Aço Carbono - 2 X 70 X 1000 mm (Fornecimento e Instalação) | E61: un | F61: 6 | G61: =CPU!G196 -> 432.2683222 | H61: =TRUNC(G61*(1+$H$5),2) -> 532.2 | I61: =TRUNC(F61*H61,2) -> 3193.2
A63: 10 | D63: PROJETO "AS IS" | I63: =SUM(I64) -> 20014.83
A64: 10.1 | D64: Levantamento topógrafico e "AS IS" | I64: =SUM(I65:I66) -> 20014.83
A65: 10.1.1 | B65: ORSE | C65: 9346 | D65: Levantamento topográfico planimétrico cadastral | E65: m2 | F65: =F26 -> 21924.7 | G65: 0.35 | H65: =TRUNC(G65*(1+$H$5),2) -> 0.43 | I65: =TRUNC(F65*H65,2) -> 9427.62
A66: 10.1.2 | B66: PRÓPRIA | C66: CPU.25 | D66: Projeto Geométrico | E66: un | F66: 1 | G66: =CPU!G255 -> 8599.1 | H66: =TRUNC(G66*(1+$H$5),2) -> 10587.21 | I66: =TRUNC(F66*H66,2) -> 10587.21
A68: 11 | D68: FISCALIZAÇÃO E ACOMPANHAMENTO | I68: =SUM(I69) -> 3779.1
A69: 11.1 | D69: Disponibilidade de velículo para apoio a fiscalização | I69: =SUM(I70:I70) -> 3779.1
A70: 11.1.1 | B70: PRÓPRIA | C70: CPU.30 | D70: =(VLOOKUP(C70,CPU!B38:C388,2,0)) -> Disponibilidade de veículo para apoio a fiscalização, inclusive combustível | E70: =(VLOOKUP(C70,CPU!B37:D483,3,0)) -> un | F70: =F14+2 -> 6 | G70: =CPU!G273 -> 511.5749292 | H70: =TRUNC(G70*(1+$H$5),2) -> 629.85 | I70: =TRUNC(F70*H70,2) -> 3779.1
D72: TOTAL (Custo): | I72: =TRUNC(SUMPRODUCT(F13:F71,G13:G71),2) -> 842484.83
D73: BDI e Encargos Sociais: | I73: =I74-I72 -> 194661.75
D74: TOTAL GERAL COM BDI: | I74: =SUM(I12,I16,I24,I29,I35,I43,I47,I53,I57,I63,I68) -> 1037146.58 | L74: =TRUNC(SUMPRODUCT(F13:F71,H13:H71),2) -> 1037146.58

Sheet Quixaba
A1: Ministério da Integração e do Desenvolvimento Regional
A2: Companhia de Desenvolvimento dos Vales do São Francisco e do Parnaíba
A4: PLANILHA ORÇAMENTÁRIA - ORÇAMENTO NÃO DESONERADO
A5: OBRA: | B5: =Resumo!B5 -> Execução de Manutenção e Recuperação nas Barragens de Várzea dos Ramos, Quixaba, Monte Alegre, São José da Tapera, Batatas, Riacho Pequeno e Queixada, localizadas no estado De Pernambuco. | G5: BDI (serv.): | H5: ='BDI serv'!D23 -> 0.2312 | I5: Bancos de dados:
A6: LOCAL: | B6: =Resumo!B6 -> BARRAGENS DE PERNAMBUCO | G6: BDI (forn.): | H6: ='BDI forn'!D23 -> 0.1469 | I6: =Resumo!G6 -> 05/25 - SINAPI | J6: =Resumo!H6 -> SETOP-01/2025
A7: DATA BASE: | B7: =Resumo!B7 -> 2025-06-01 | E7: Encargos sociais - Horistas: | H7: ='Encargos Sociais'!E49 -> 1.1384 | I7: =Resumo!G7 -> 04/25 - ORSE | J7: =Resumo!H7 -> EMBASA-01/25
A8: PRAZO: | B8: 120 dias | E8: Encargos sociais - Mensalista: | H8: ='Encargos Sociais'!F49 -> 0.7011 | I8: =Resumo!G8 -> 06/25 - SBC | J8: =Resumo!H8 -> SEDOP-02/25
B9: =Resumo!B14 -> Quixaba | G9: Desconto: | H9: 0 | I9: =Resumo!G9 -> JAN/2025 - SICRO3 | J9: =Resumo!H9 -> SCO-05/25
A10: ITEM | B10: REFERÊNCIA | D10: DESCRIÇÃO | E10: UNID. | F10: QUANT. | G10: CUSTO UNITÁRIO | H10: PREÇO UNITÁRIO | I10: PREÇO TOTAL
B11: FONTE | C11: CÓDIGO
A12: 1 | D12: ADMINISTRAÇÃO DA OBRA | I12: =SUM(I13) -> 137201.96
A13: 1.1 | D13: Administração da Obra | I13: =SUM(I14:I14) -> 137201.96
A14: 1.1.1 | B14: PRÓPRIA | C14: CPU.01 | D14: Administração Local | E14: mês | F14: 4 | G14: =CPU!G10 -> 27859.4 | H14: =TRUNC(G14*(1+$H$5),2) -> 34300.49 | I14: =TRUNC(F14*H14,2) -> 137201.96
A16: 2 | D16: SERVIÇOS PRELIMINARES | I16: =SUM(I17,I19,I21) -> 32243.02
A17: 2.1 | D17: Mobilização e desmobilização | I17: =SUM(I18) -> 5168.59
A18: 2.1.1 | B18: PRÓPRIA | C18: CPU.02 | D18: Mobilização e desmobilização de instalação do canteiro | E18: un | F18: 1 | G18: =CPU!G19 -> 4198.014144 | H18: =TRUNC(G18*(1+$H$5),2) -> 5168.59 | I18: =TRUNC(F18*H18,2) -> 5168.59
A19: 2.2 | D19: Canteiro de obras | I19: =SUM(I20) -> 25921.89
A20: 2.2.1 | B20: PRÓPRIA | C20: CPU.03 | D20: Execução de canteiro de obras, inclusive, limpeza, refeitório, sanitários e central de formas | E20: m2 | F20: 28.5 | G20: =CPU!G29 -> 738.7466393 | H20: =TRUNC(G20*(1+$H$5),2) -> 909.54 | I20: =TRUNC(F20*H20,2) -> 25921.89
A21: 2.3 | D21: Sinalização | I21: =SUM(I22:I22) -> 1152.54
A22: 2.3.1 | B22: SINAPI | C22: 103689 | D22: FORNECIMENTO E INSTALAÇÃO DE PLACA DE OBRA COM CHAPA GALVANIZADA E ESTRUTURA DE MADEIRA. AF_03/2022_PS | E22: M2 | F22: 2 | G22: =VLOOKUP(C22,'Comp_Sinapi PE_Sem-Desoneracao'!$B$11:$E$9733,4,0) -> 468.06 | H22: =TRUNC(G22*(1+$H$5),2) -> 576.27 | I22: =TRUNC(F22*H22,2) -> 1152.54 | J22: ca
A24: 3 | D24: CORTE DA VEGETAÇÃO E REMOÇÃO DAS RAIZES | I24: =SUM(I25) -> 210765.89
A25: 3.1 | D25: Remoção da vegetação | I25: =SUM(I26:I27) -> 210765.89
A26: 3.1.1 | B26: PRÓPRIA | C26: CPU.04 | D26: Limpeza de vegetação | E26: m2 | F26: 19182.66 | G26: =CPU!G40 -> 7.970814634 | H26: =TRUNC(G26*(1+$H$5),2) -> 9.81 | I26: =TRUNC(F26*H26,2) -> 188181.89
A27: 3.1.2 | B27: PRÓPRIA | C27: CPU.05 | D27: Corte de tronco e remoção de raiz | E27: un | F27: 40 | G27: =CPU!G50 -> 458.5808984 | H27: =TRUNC(G27*(1+$H$5),2) -> 564.6 | I27: =TRUNC(F27*H27,2) -> 22584
A29: 4 | D29: RECUPERAÇÃO DO MACIÇO | I29: =SUM(I30,I32) -> 110018
A30: 4.1 | D30: Recomposição das Erosões (erosões locais nas ombreiras e taludes), trincas e buracos | I30: =SUM(I31:I31) -> 109744
A31: 4.1.1 | B31: PRÓPRIA | C31: CPU.13 | D31: Recomposição das erosões, inclusive, regularização da superfície e reaterro | E31: m3 | F31: 190 | G31: =CPU!G143 -> 469.1425876 | H31: =TRUNC(G31*(1+$H$5),2) -> 577.6 | I31: =TRUNC(F31*H31,2) -> 109744
A32: 4.2 | D32: Injeção de nata de cimento em buracos | I32: =SUM(I33:I33) -> 274
A33: 4.2.1 | B33: PRÓPRIA | C33: CPU.26 | D33: Injeção de nata de cimento em buracos | E33: m3 | F33: 0.2 | G33: =CPU!G264 -> 1112.735881 | H33: =TRUNC(G33*(1+$H$5),2) -> 1370 | I33: =TRUNC(F33*H33,2) -> 274
A35: 5 | D35: RESTAURAÇÃO DA CRISTA | I35: =SUM(I36,I38,I40,I42) -> 99525.94
A36: 5.1 | D36: Demolição de guias e sarjetas | I36: =SUM(I37:I37) -> 11748
A37: 5.1.1 | B37: PRÓPRIA | C37: CPU.19 | D37: Demolição de guias e sarjetas | E37: m | F37: 300 | G37: =CPU!G209 -> 31.81123749 | H37: =TRUNC(G37*(1+$H$5),2) -> 39.16 | I37: =TRUNC(F37*H37,2) -> 11748
A38: 5.1 | D38: Regularização da Crista | I38: =SUM(I39:I39) -> 2387.84
A39: 5.1.1 | B39: PRÓPRIA | C39: CPU.14 | D39: Regularização e compactação da crista | E39: m2 | F39: 728 | G39: =CPU!G161 -> 2.671375893 | H39: =TRUNC(G39*(1+$H$5),2) -> 3.28 | I39: =TRUNC(F39*H39,2) -> 2387.84
A40: 5.2 | D40: Instalação de drenagem e meio-fio da Crista | I40: =SUM(I41:I41) -> 38487.6
A41: 5.2.1 | B41: PRÓPRIA | C41: CPU.20 | D41: =(VLOOKUP(C41,CPU!B9:C359,2,0)) -> Guia (meio-fio) e sarjeta e conjudados de concreto, moldada In Loco, 45cm base (15 cm Base da Guia +30 cm Base da Sarjeta) x 22 cm Altura | E41: m | F41: 360 | G41: =CPU!G218 -> 86.83558394 | H41: =TRUNC(G41*(1+$H$5),2) -> 106.91 | I41: =TRUNC(F41*H41,2) -> 38487.6
A42: 5.3 | D42: Pavimentação da Crista | I42: =SUM(I43:I43) -> 46902.5
A43: 5.3.1 | B43: PRÓPRIA | C43: CPU.15 | D43: Execução de Revestimento com BGTC | E43: m3 | F43: 73 | G43: =CPU!G170 -> 521.8490854 | H43: =TRUNC(G43*(1+$H$5),2) -> 642.5 | I43: =TRUNC(F43*H43,2) -> 46902.5
A45: 6 | D45: MANUTENÇÃO NO TALUDE DE MONTANTE | I45: =SUM(I46) -> 50488.24
A46: 6.1 | D46: Enrocamento com pedra de mão para proteção do talude | I46: =SUM(I47:I47) -> 50488.24
A47: 6.1.1 | B47: PRÓPRIA | C47: CPU.07 | D47: Enrocamento c/ pedra de mão c/ fornecimento e assentamento | E47: m3 | F47: 88 | G47: =CPU!G63 -> 465.9959793 | H47: =TRUNC(G47*(1+$H$5),2) -> 573.73 | I47: =TRUNC(F47*H47,2) -> 50488.24
A49: 7 | D49: DRENAGEM SUPERFICIAL DO TALUDE DE JUSANTE | I49: =SUM(I50,I52) -> 18005.1
A50: 7.1 | D50: Canaleta para descida d'água | I50: =SUM(I51:I51) -> 16572.6
A51: 7.1.1 | B51: PRÓPRIA | C51: CPU.08 | D51: Canaleta meia cana de concreto (D=30cm) - Fornecimento e instalação | E51: m | F51: 90 | G51: =CPU!G79 -> 149.5661046 | H51: =TRUNC(G51*(1+$H$5),2) -> 184.14 | I51: =TRUNC(F51*H51,2) -> 16572.6
A52: 7.2 | D52: Entrada para descida d'água | I52: =SUM(I53:I53) -> 1432.5
A53: 7.2.1 | B53: PRÓPRIA | C53: CPU.09 | D53: Entrada para descida d'água | E53: un | F53: 6 | G53: =CPU!G94 -> 193.9202431 | H53: =TRUNC(G53*(1+$H$5),2) -> 238.75 | I53: =TRUNC(F53*H53,2) -> 1432.5
A55: 8 | D55: PROTEÇÃO SUPERFICIAL DO TALUDE DE JUSANTE | I55: =SUM(I56) -> 36039.3
A56: 8.1 | D56: Proteção vegetal | I56: =SUM(I57:I57) -> 36039.3
A57: 8.1.1 | B57: PRÓPRIA | C57: CPU.10 | D57: Plantio de vegetação para proteção de talude com hidrossemeadura, inclusive adubação e transporte | E57: m2 | F57: 2010 | G57: =CPU!G104 -> 14.56336002 | H57: =TRUNC(G57*(1+$H$5),2) -> 17.93 | I57: =TRUNC(F57*H57,2) -> 36039.3
A59: 9 | D59: RESTAURAÇÃO DO MURO LATERAL | I59: =SUM(I60) -> 16845.12
A60: 9.1 | D60: Restauração do muro lateral | I60: =SUM(I61:I62) -> 16845.12
A61: 9.1.1 | B61: PRÓPRIA | C61: CPU.24 | D61: Limpeza da superfície | E61: m2 | F61: 30 | G61: =CPU!G246 -> 10.06545344 | H61: =TRUNC(G61*(1+$H$5),2) -> 12.39 | I61: =TRUNC(F61*H61,2) -> 371.7
A62: 9.1.2 | B62: PRÓPRIA | C62: CPU.16 | D62: Restauração com uso de concreto | E62: m3 | F62: 6 | G62: =CPU!G183 -> 2230.003011 | H62: =TRUNC(G62*(1+$H$5),2) -> 2745.57 | I62: =TRUNC(F62*H62,2) -> 16473.42
A64: 10 | D64: SERVIÇOS COMPLEMENTARES | I64: =SUM(I65,I67) -> 6562.68
A65: 10.1 | D65: Instalação de placas de aviso | I65: =SUM(I66:I66) -> 2305.08
A66: 10.1.1 | B66: SINAPI | C66: 103689 | D66: FORNECIMENTO E INSTALAÇÃO DE PLACA DE OBRA COM CHAPA GALVANIZADA E ESTRUTURA DE MADEIRA. AF_03/2022_PS | E66: M2 | F66: 4 | G66: =VLOOKUP(C66,'Comp_Sinapi PE_Sem-Desoneracao'!$B$11:$E$9733,4,0) -> 468.06 | H66: =TRUNC(G66*(1+$H$5),2) -> 576.27 | I66: =TRUNC(F66*H66,2) -> 2305.08 | J66: ca
A67: 10.2 | D67: Régua Linimétrica Padrão “ANA”, Aço Carbono - 2 X 70 X 1000 mm (Fornecimento e Instalação) | I67: =SUM(I68:I68) -> 4257.6
A68: 10.2.1 | B68: PRÓPRIA | C68: CPU.18 | D68: Régua Linimétrica Padrão “ANA”, Aço Carbono - 2 X 70 X 1000 mm (Fornecimento e Instalação) | E68: un | F68: 8 | G68: =CPU!G196 -> 432.2683222 | H68: =TRUNC(G68*(1+$H$5),2) -> 532.2 | I68: =TRUNC(F68*H68,2) -> 4257.6
A70: 11 | D70: PROJETO "AS IS" | I70: =SUM(I71) -> 18835.75
A71: 11.1 | D71: Levantamento topógrafico e "AS IS" | I71: =SUM(I72:I73) -> 18835.75
A72: 11.1.1 | B72: ORSE | C72: 9346 | D72: Levantamento topográfico planimétrico cadastral | E72: m2 | F72: =F26 -> 19182.66 | G72: 0.35 | H72: =TRUNC(G72*(1+$H$5),2) -> 0.43 | I72: =TRUNC(F72*H72,2) -> 8248.54
A73: 11.1.2 | B73: PRÓPRIA | C73: CPU.25 | D73: Projeto Geométrico | E73: un | F73: 1 | G73: =CPU!G255 -> 8599.1 | H73: =TRUNC(G73*(1+$H$5),2) -> 10587.21 | I73: =TRUNC(F73*H73,2) -> 10587.21
A75: 12 | D75: FISCALIZAÇÃO E ACOMPANHAMENTO | I75: =SUM(I76) -> 3779.1
A76: 12.1 | D76: Disponibilidade de velículo para apoio a fiscalização | I76: =SUM(I77:I77) -> 3779.1
A77: 12.1.1 | B77: PRÓPRIA | C77: CPU.30 | D77: =(VLOOKUP(C77,CPU!B41:C391,2,0)) -> Disponibilidade de veículo para apoio a fiscalização, inclusive combustível | E77: =(VLOOKUP(C77,CPU!B40:D486,3,0)) -> un | F77: =F14+2 -> 6 | G77: =CPU!G273 -> 511.5749292 | H77: =TRUNC(G77*(1+$H$5),2) -> 629.85 | I77: =TRUNC(F77*H77,2) -> 3779.1
D79: TOTAL (Custo): | I79: =TRUNC(SUMPRODUCT(F13:F78,G13:G78),2) -> 601373.56
D80: BDI e Encargos Sociais: | I80: =I81-I79 -> 138936.54
D81: TOTAL GERAL COM BDI: | I81: =SUM(I12,I16,I24,I29,I35,I45,I49,I55,I59,I64,I70,I75) -> 740310.1 | M81: =TRUNC(SUMPRODUCT(F13:F78,H13:H78),2) -> 740310.1

Sheet Monte Alegre
A1: Ministério da Integração e do Desenvolvimento Regional
A2: Companhia de Desenvolvimento dos Vales do São Francisco e do Parnaíba
A4: PLANILHA ORÇAMENTÁRIA - ORÇAMENTO NÃO DESONERADO
A5: OBRA: | B5: =Resumo!B5 -> Execução de Manutenção e Recuperação nas Barragens de Várzea dos Ramos, Quixaba, Monte Alegre, São José da Tapera, Batatas, Riacho Pequeno e Queixada, localizadas no estado De Pernambuco. | G5: BDI (serv.): | H5: ='BDI serv'!D23 -> 0.2312 | I5: Bancos de dados:
A6: LOCAL: | B6: =Resumo!B6 -> BARRAGENS DE PERNAMBUCO | G6: BDI (forn.): | H6: ='BDI forn'!D23 -> 0.1469 | I6: =Resumo!G6 -> 05/25 - SINAPI | J6: =Resumo!H6 -> SETOP-01/2025
A7: DATA BASE: | B7: =Resumo!B7 -> 2025-06-01 | E7: Encargos sociais - Horistas: | H7: ='Encargos Sociais'!E49 -> 1.1384 | I7: =Resumo!G7 -> 04/25 - ORSE | J7: =Resumo!H7 -> EMBASA-01/25
A8: PRAZO: | B8: 120 dias | E8: Encargos sociais - Mensalista: | H8: ='Encargos Sociais'!F49 -> 0.7011 | I8: =Resumo!G8 -> 06/25 - SBC | J8: =Resumo!H8 -> SEDOP-02/25
B9: =Resumo!B15 -> Monte Alegre | G9: Desconto: | H9: 0 | I9: =Resumo!G9 -> JAN/2025 - SICRO3 | J9: =Resumo!H9 -> SCO-05/25
A10: ITEM | B10: REFERÊNCIA | D10: DESCRIÇÃO | E10: UNID. | F10: QUANT. | G10: CUSTO UNITÁRIO | H10: PREÇO UNITÁRIO | I10: PREÇO TOTAL
B11: FONTE | C11: CÓDIGO
A12: 1 | D12: ADMINISTRAÇÃO DA OBRA | I12: =SUM(I13) -> 137201.96
A13: 1.1 | D13: Administração da Obra | I13: =SUM(I14:I14) -> 137201.96
A14: 1.1.1 | B14: PRÓPRIA | C14: CPU.01 | D14: Administração Local | E14: mês | F14: 4 | G14: =CPU!G10 -> 27859.4 | H14: =TRUNC(G14*(1+$H$5),2) -> 34300.49 | I14: =TRUNC(F14*H14,2) -> 137201.96
A16: 2 | D16: SERVIÇOS PRELIMINARES | I16: =SUM(I17,I19,I21) -> 32243.02
A17: 2.1 | D17: Mobilização e desmobilização | I17: =SUM(I18) -> 5168.59
A18: 2.1.1 | B18: PRÓPRIA | C18: CPU.02 | D18: Mobilização e desmobilização de instalação do canteiro | E18: un | F18: 1 | G18: =CPU!G19 -> 4198.014144 | H18: =TRUNC(G18*(1+$H$5),2) -> 5168.59 | I18: =TRUNC(F18*H18,2) -> 5168.59
A19: 2.2 | D19: Canteiro de obras | I19: =SUM(I20) -> 25921.89
A20: 2.2.1 | B20: PRÓPRIA | C20: CPU.03 | D20: Execução de canteiro de obras, inclusive, limpeza, refeitório, sanitários e central de formas | E20: m2 | F20: 28.5 | G20: =CPU!G29 -> 738.7466393 | H20: =TRUNC(G20*(1+$H$5),2) -> 909.54 | I20: =TRUNC(F20*H20,2) -> 25921.89
A21: 2.3 | D21: Sinalização | I21: =SUM(I22:I22) -> 1152.54
A22: 2.3.1 | B22: SINAPI | C22: 103689 | D22: FORNECIMENTO E INSTALAÇÃO DE PLACA DE OBRA COM CHAPA GALVANIZADA E ESTRUTURA DE MADEIRA. AF_03/2022_PS | E22: M2 | F22: 2 | G22: =VLOOKUP(C22,'Comp_Sinapi PE_Sem-Desoneracao'!$B$11:$E$9733,4,0) -> 468.06 | H22: =TRUNC(G22*(1+$H$5),2) -> 576.27 | I22: =TRUNC(F22*H22,2) -> 1152.54 | J22: ca
A24: 3 | D24: CORTE DA VEGETAÇÃO E REMOÇÃO DAS RAIZES | I24: =SUM(I25) -> 179115.99
A25: 3.1 | D25: Remoção da vegetação | I25: =SUM(I26:I27) -> 179115.99
A26: 3.1.1 | B26: PRÓPRIA | C26: CPU.04 | D26: Limpeza de vegetação | E26: m2 | F26: 14805.3 | G26: =CPU!G40 -> 7.970814634 | H26: =TRUNC(G26*(1+$H$5),2) -> 9.81 | I26: =TRUNC(F26*H26,2) -> 145239.99
A27: 3.1.2 | B27: PRÓPRIA | C27: CPU.05 | D27: Corte de tronco e remoção de raiz | E27: un | F27: 60 | G27: =CPU!G50 -> 458.5808984 | H27: =TRUNC(G27*(1+$H$5),2) -> 564.6 | I27: =TRUNC(F27*H27,2) -> 33876
A29: 4 | D29: RECUPERAÇÃO DO MACIÇO | I29: =SUM(I30,I32) -> 75362
A30: 4.1 | D30: Recomposição das Erosões (erosões locais nas ombreiras e taludes), trincas e buracos | I30: =SUM(I31:I31) -> 75088
A31: 4.1.1 | B31: PRÓPRIA | C31: CPU.13 | D31: Recomposição das erosões, inclusive, regularização da superfície e reaterro | E31: m3 | F31: 130 | G31: =CPU!G143 -> 469.1425876 | H31: =TRUNC(G31*(1+$H$5),2) -> 577.6 | I31: =TRUNC(F31*H31,2) -> 75088
A32: 4.2 | D32: Injeção de nata de cimento em buracos | I32: =SUM(I33:I33) -> 274
A33: 4.2.1 | B33: PRÓPRIA | C33: CPU.26 | D33: Injeção de nata de cimento em buracos | E33: m3 | F33: 0.2 | G33: =CPU!G264 -> 1112.735881 | H33: =TRUNC(G33*(1+$H$5),2) -> 1370 | I33: =TRUNC(F33*H33,2) -> 274
A35: 5 | D35: REGULARIZAÇÃO E PAVIMENTAÇÃO DA CRISTA | I35: =SUM(I36,I38,I40) -> 80902.52
A36: 5.1 | D36: Regularização da Crista | I36: =SUM(I37:I37) -> 3391.52
A37: 5.1.1 | B37: PRÓPRIA | C37: CPU.14 | D37: Regularização e compactação da crista | E37: m2 | F37: 1034 | G37: =CPU!G161 -> 2.671375893 | H37: =TRUNC(G37*(1+$H$5),2) -> 3.28 | I37: =TRUNC(F37*H37,2) -> 3391.52
A38: 5.2 | D38: Instalação de meio-fio e sarjeta | I38: =SUM(I39:I39) -> 10691
A39: 5.2.1 | B39: PRÓPRIA | C39: CPU.20 | D39: =(VLOOKUP(C39,CPU!B7:C357,2,0)) -> Guia (meio-fio) e sarjeta e conjudados de concreto, moldada In Loco, 45cm base (15 cm Base da Guia +30 cm Base da Sarjeta) x 22 cm Altura | E39: m | F39: 100 | G39: =CPU!G218 -> 86.83558394 | H39: =TRUNC(G39*(1+$H$5),2) -> 106.91 | I39: =TRUNC(F39*H39,2) -> 10691
A40: 5.3 | D40: Pavimentação da Crista | I40: =SUM(I41:I41) -> 66820
A41: 5.3.1 | B41: PRÓPRIA | C41: CPU.15 | D41: Execução de Revestimento com BGTC | E41: m3 | F41: 104 | G41: =CPU!G170 -> 521.8490854 | H41: =TRUNC(G41*(1+$H$5),2) -> 642.5 | I41: =TRUNC(F41*H41,2) -> 66820
A43: 6 | D43: MANUTENÇÃO NO TALUDE DE MONTANTE | I43: =SUM(I44) -> 17785.63
A44: 6.1 | D44: Enrocamento com pedra de mão para proteção do talude | I44: =SUM(I45:I45) -> 17785.63
A45: 6.1.1 | B45: PRÓPRIA | C45: CPU.07 | D45: Enrocamento c/ pedra de mão c/ fornecimento e assentamento | E45: m3 | F45: 31 | G45: =CPU!G63 -> 465.9959793 | H45: =TRUNC(G45*(1+$H$5),2) -> 573.73 | I45: =TRUNC(F45*H45,2) -> 17785.63
A47: 7 | D47: DRENAGEM SUPERFICIAL DO TALUDE DE JUSANTE | I47: =SUM(I48,I50) -> 30615.53
A48: 7.1 | D48: Canaleta para descida d'água | I48: =SUM(I49:I49) -> 27989.28
A49: 7.1.1 | B49: PRÓPRIA | C49: CPU.08 | D49: Canaleta meia cana de concreto (D=30cm) - Fornecimento e instalação | E49: m | F49: 152 | G49: =CPU!G79 -> 149.5661046 | H49: =TRUNC(G49*(1+$H$5),2) -> 184.14 | I49: =TRUNC(F49*H49,2) -> 27989.28
A50: 7.2 | D50: Entrada para descida d'água | I50: =SUM(I51:I51) -> 2626.25
A51: 7.2.1 | B51: PRÓPRIA | C51: CPU.09 | D51: Entrada para descida d'água | E51: un | F51: 11 | G51: =CPU!G94 -> 193.9202431 | H51: =TRUNC(G51*(1+$H$5),2) -> 238.75 | I51: =TRUNC(F51*H51,2) -> 2626.25
A53: 8 | D53: PROTEÇÃO SUPERFICIAL DO TALUDE DE JUSANTE | I53: =SUM(I54) -> 37276.47
A54: 8.1 | D54: Proteção vegetal | I54: =SUM(I55:I55) -> 37276.47
A55: 8.1.1 | B55: PRÓPRIA | C55: CPU.10 | D55: Plantio de vegetação para proteção de talude com hidrossemeadura, inclusive adubação e transporte | E55: m2 | F55: 2079 | G55: =CPU!G104 -> 14.56336002 | H55: =TRUNC(G55*(1+$H$5),2) -> 17.93 | I55: =TRUNC(F55*H55,2) -> 37276.47
A57: 9 | D57: RESTAURAÇÃO DA SOLEIRA DO VERTEDOURO | I57: =SUM(I58) -> 12254.4
A58: 9.1 | D58: Restauração da soleira do vertedouro | I58: =SUM(I59:I59) -> 12254.4
A59: 9.1.2 | B59: PRÓPRIA | C59: CPU.23 | D59: Emboço ou massa única em argamassa | E59: m2 | F59: 90 | G59: =CPU!G237 -> 110.5931475 | H59: =TRUNC(G59*(1+$H$5),2) -> 136.16 | I59: =TRUNC(F59*H59,2) -> 12254.4
A61: 10 | D61: RESTAURAÇÃO DO MURO LATERAL | I61: =SUM(I62) -> 5519.1
A62: 10.1 | D62: Restauração do muro lateral | I62: =SUM(I63:I66) -> 5519.1
A63: 10.1.1 | B63: PRÓPRIA | C63: CPU.24 | D63: Limpeza da superfície | E63: m2 | F63: 22.5 | G63: =CPU!G246 -> 10.06545344 | H63: =TRUNC(G63*(1+$H$5),2) -> 12.39 | I63: =TRUNC(F63*H63,2) -> 278.77
A64: 10.1.2 | B64: PRÓPRIA | C64: CPU.11 | D64: Apicoamento da superfície | E64: m2 | F64: 22.5 | G64: =CPU!G116 -> 34.72160317 | H64: =TRUNC(G64*(1+$H$5),2) -> 42.74 | I64: =TRUNC(F64*H64,2) -> 961.65
A65: 10.1.3 | B65: PRÓPRIA | C65: CPU.22 | D65: =VLOOKUP(C65,CPU!B8:C461,2,0) -> Tratamento de fissuras com injeção de adesivo estrutural à base de resina epóxi de baixa viscosidade - fornecimento e aplicação mecanizada | E65: =VLOOKUP(C65,CPU!B8:D461,3,0) -> kg | F65: 5 | G65: =CPU!G228 -> 472.0476439 | H65: =TRUNC(G65*(1+$H$5),2) -> 581.18 | I65: =TRUNC(F65*H65,2) -> 2905.9
A66: 10.1.4 | B66: PRÓPRIA | C66: CPU.16 | D66: Restauração com uso de concreto | E66: m3 | F66: 0.5 | G66: =CPU!G183 -> 2230.003011 | H66: =TRUNC(G66*(1+$H$5),2) -> 2745.57 | I66: =TRUNC(F66*H66,2) -> 1372.78
A68: 11 | D68: MANUTENÇÃO DOS EQUIPAMENTOS HIDROMECÂNICOS | I68: =SUM(I69) -> 2241.04
A69: 11.1 | D69: Troca da válvula de controle | I69: =SUM(I70:I72) -> 2241.04
A70: 11.1.1 | B70: EMBASA | C70: M049500051 | D70: REGISTRO DE GAVETA FLANGEADO, EM FOFO, DN 100 MM, S?RIE M?TRICA CHATA, CLASSE PN-10, ACIONAMENTO DIRETO POR VOLANTE DE MANOBRAS | E70: PC | F70: 1 | G70: 999.76 | H70: =TRUNC(G70*(1+$H$6),2) -> 1146.62 | I70: =TRUNC(F70*H70,2) -> 1146.62 | J70: BDI de fornecimento
A71: 11.1.2 | B71: EMBASA | C71: 25.25.62 | D71: RETIRADA DE VALVULA DE CONTROLE EM FoFo, DIAM. ATE 200 MM, INCLUSIVE JUNTAS FLANGEADAS | E71: UN | F71: 1 | G71: 539.71 | H71: =TRUNC(G71*(1+$H$5),2) -> 664.49 | I71: =TRUNC(F71*H71,2) -> 664.49
A72: 11.1.3 | B72: EMBASA | C72: 25.25.02 | D72: INSTALAÇÃO DE VALVULA DE CONTROLE EM FoFo, DIAM. ATE 200 MM, INCLUSIVE JUNTAS FLANGEADAS | E72: UN | F72: 1 | G72: 349.2 | H72: =TRUNC(G72*(1+$H$5),2) -> 429.93 | I72: =TRUNC(F72*H72,2) -> 429.93
A74: 12 | D74: SERVIÇOS COMPLEMENTARES | I74: =SUM(I75,I77) -> 10820.28
A75: 12.1 | D75: Instalação de placas de aviso | I75: =SUM(I76:I76) -> 2305.08
A76: 12.1.1 | B76: SINAPI | C76: 103689 | D76: FORNECIMENTO E INSTALAÇÃO DE PLACA DE OBRA COM CHAPA GALVANIZADA E ESTRUTURA DE MADEIRA. AF_03/2022_PS | E76: M2 | F76: 4 | G76: =VLOOKUP(C76,'Comp_Sinapi PE_Sem-Desoneracao'!$B$11:$E$9733,4,0) -> 468.06 | H76: =TRUNC(G76*(1+$H$5),2) -> 576.27 | I76: =TRUNC(F76*H76,2) -> 2305.08 | J76: ca
A77: 12.2 | D77: Régua Linimétrica Padrão “ANA”, Aço Carbono - 2 X 70 X 1000 mm (Fornecimento e Instalação) | I77: =SUM(I78:I78) -> 8515.2
A78: 12.2.1 | B78: PRÓPRIA | C78: CPU.18 | D78: Régua Linimétrica Padrão “ANA”, Aço Carbono - 2 X 70 X 1000 mm (Fornecimento e Instalação) | E78: un | F78: 16 | G78: =CPU!G196 -> 432.2683222 | H78: =TRUNC(G78*(1+$H$5),2) -> 532.2 | I78: =TRUNC(F78*H78,2) -> 8515.2
A80: 13 | D80: PROJETO "AS IS" | I80: =SUM(I81) -> 16953.48
A81: 13.1 | D81: Levantamento topógrafico e "AS IS" | I81: =SUM(I82:I83) -> 16953.48
A82: 13.1.1 | B82: ORSE | C82: 9346 | D82: Levantamento topográfico planimétrico cadastral | E82: m2 | F82: =F26 -> 14805.3 | G82: 0.35 | H82: =TRUNC(G82*(1+$H$5),2) -> 0.43 | I82: =TRUNC(F82*H82,2) -> 6366.27
A83: 13.1.2 | B83: PRÓPRIA | C83: CPU.25 | D83: Projeto Geométrico | E83: un | F83: 1 | G83: =CPU!G255 -> 8599.1 | H83: =TRUNC(G83*(1+$H$5),2) -> 10587.21 | I83: =TRUNC(F83*H83,2) -> 10587.21
A85: 14 | D85: FISCALIZAÇÃO E ACOMPANHAMENTO | I85: =SUM(I86) -> 3779.1
A86: 14.1 | D86: Disponibilidade de velículo para apoio a fiscalização | I86: =SUM(I87:I87) -> 3779.1
A87: 14.1.1 | B87: PRÓPRIA | C87: CPU.30 | D87: =(VLOOKUP(C87,CPU!B54:C404,2,0)) -> Disponibilidade de veículo para apoio a fiscalização, inclusive combustível | E87: =(VLOOKUP(C87,CPU!B53:D499,3,0)) -> un | F87: =F14+2 -> 6 | G87: =CPU!G273 -> 511.5749292 | H87: =TRUNC(G87*(1+$H$5),2) -> 629.85 | I87: =TRUNC(F87*H87,2) -> 3779.1
D89: TOTAL (Custo): | I89: =TRUNC(SUMPRODUCT(F13:F88,G13:G88),2) -> 521634.52
D90: BDI e Encargos Sociais: | I90: =I91-I89 -> 120436
D91: TOTAL GERAL COM BDI: | I91: =SUM(I12,I16,I24,I29,I35,I43,I47,I53,I57,I61,I68,I74,I80,I85) -> 642070.52 | L91: =TRUNC(SUMPRODUCT(F13:F88,H13:H88),2) -> 642070.54

Sheet São José da Tapera
A1: Ministério da Integração e do Desenvolvimento Regional
A2: Companhia de Desenvolvimento dos Vales do São Francisco e do Parnaíba
A4: PLANILHA ORÇAMENTÁRIA - ORÇAMENTO NÃO DESONERADO
A5: OBRA: | B5: =Resumo!B5 -> Execução de Manutenção e Recuperação nas Barragens de Várzea dos Ramos, Quixaba, Monte Alegre, São José da Tapera, Batatas, Riacho Pequeno e Queixada, localizadas no estado De Pernambuco. | G5: BDI (serv.): | H5: ='BDI serv'!D23 -> 0.2312 | I5: Bancos de dados:
A6: LOCAL: | B6: =Resumo!B6 -> BARRAGENS DE PERNAMBUCO | G6: BDI (forn.): | H6: ='BDI forn'!D23 -> 0.1469 | I6: =Resumo!G6 -> 05/25 - SINAPI | J6: =Resumo!H6 -> SETOP-01/2025
A7: DATA BASE: | B7: =Resumo!B7 -> 2025-06-01 | E7: Encargos sociais - Horistas: | H7: ='Encargos Sociais'!E49 -> 1.1384 | I7: =Resumo!G7 -> 04/25 - ORSE | J7: =Resumo!H7 -> EMBASA-01/25
A8: PRAZO: | B8: 120 dias | E8: Encargos sociais - Mensalista: | H8: ='Encargos Sociais'!F49 -> 0.7011 | I8: =Resumo!G8 -> 06/25 - SBC | J8: =Resumo!H8 -> SEDOP-02/25
B9: =Resumo!B16 -> São José da Tapera | G9: Desconto: | H9: 0 | I9: =Resumo!G9 -> JAN/2025 - SICRO3 | J9: =Resumo!H9 -> SCO-05/25
A10: ITEM | B10: REFERÊNCIA | D10: DESCRIÇÃO | E10: UNID. | F10: QUANT. | G10: CUSTO UNITÁRIO | H10: PREÇO UNITÁRIO | I10: PREÇO TOTAL
B11: FONTE | C11: CÓDIGO
A12: 1 | D12: ADMINISTRAÇÃO DA OBRA | I12: =SUM(I13) -> 137201.96
A13: 1.1 | D13: Administração da Obra | I13: =SUM(I14:I14) -> 137201.96
A14: 1.1.1 | B14: PRÓPRIA | C14: CPU.01 | D14: Administração Local | E14: mês | F14: 4 | G14: =CPU!G10 -> 27859.4 | H14: =TRUNC(G14*(1+$H$5),2) -> 34300.49 | I14: =TRUNC(F14*H14,2) -> 137201.96
A16: 2 | D16: SERVIÇOS PRELIMINARES | I16: =SUM(I17,I19,I21) -> 32243.02
A17: 2.1 | D17: Mobilização e desmobilização | I17: =SUM(I18) -> 5168.59
A18: 2.1.1 | B18: PRÓPRIA | C18: CPU.02 | D18: Mobilização e desmobilização de instalação do canteiro | E18: un | F18: 1 | G18: =CPU!G19 -> 4198.014144 | H18: =TRUNC(G18*(1+$H$5),2) -> 5168.59 | I18: =TRUNC(F18*H18,2) -> 5168.59
A19: 2.2 | D19: Canteiro de obras | I19: =SUM(I20) -> 25921.89
A20: 2.2.1 | B20: PRÓPRIA | C20: CPU.03 | D20: Execução de canteiro de obras, inclusive, limpeza, refeitório, sanitários e central de formas | E20: m2 | F20: 28.5 | G20: =CPU!G29 -> 738.7466393 | H20: =TRUNC(G20*(1+$H$5),2) -> 909.54 | I20: =TRUNC(F20*H20,2) -> 25921.89
A21: 2.3 | D21: Sinalização | I21: =SUM(I22:I22) -> 1152.54
A22: 2.3.1 | B22: SINAPI | C22: 103689 | D22: FORNECIMENTO E INSTALAÇÃO DE PLACA DE OBRA COM CHAPA GALVANIZADA E ESTRUTURA DE MADEIRA. AF_03/2022_PS | E22: M2 | F22: 2 | G22: =VLOOKUP(C22,'Comp_Sinapi PE_Sem-Desoneracao'!$B$11:$E$9733,4,0) -> 468.06 | H22: =TRUNC(G22*(1+$H$5),2) -> 576.27 | I22: =TRUNC(F22*H22,2) -> 1152.54 | J22: ca
A24: 3 | D24: CORTE DA VEGETAÇÃO E REMOÇÃO DAS RAIZES | I24: =SUM(I25) -> 137441.41
A25: 3.1 | D25: Remoção da vegetação | I25: =SUM(I26:I27) -> 137441.41
A26: 3.1.1 | B26: PRÓPRIA | C26: CPU.04 | D26: Limpeza de vegetação | E26: m2 | F26: 11420.43 | G26: =CPU!G40 -> 7.970814634 | H26: =TRUNC(G26*(1+$H$5),2) -> 9.81 | I26: =TRUNC(F26*H26,2) -> 112034.41
A27: 3.1.2 | B27: PRÓPRIA | C27: CPU.05 | D27: Corte de tronco e remoção de raiz | E27: un | F27: 45 | G27: =CPU!G50 -> 458.5808984 | H27: =TRUNC(G27*(1+$H$5),2) -> 564.6 | I27: =TRUNC(F27*H27,2) -> 25407
A29: 4 | D29: RECUPERAÇÃO DO MACIÇO | I29: =SUM(I30,I32) -> 119259.6
A30: 4.1 | D30: Recomposição das Erosões (erosões nas ombreiras e taludes), trincas e buracos | I30: =SUM(I31:I31) -> 118985.6
A31: 4.1.1 | B31: PRÓPRIA | C31: CPU.13 | D31: Recomposição das erosões, inclusive, regularização da superfície e reaterro | E31: m3 | F31: 206 | G31: =CPU!G143 -> 469.1425876 | H31: =TRUNC(G31*(1+$H$5),2) -> 577.6 | I31: =TRUNC(F31*H31,2) -> 118985.6
A32: 4.2 | D32: Injeção de nata de cimento em buracos | I32: =SUM(I33:I33) -> 274
A33: 4.2.1 | B33: PRÓPRIA | C33: CPU.26 | D33: Injeção de nata de cimento em buracos | E33: m3 | F33: 0.2 | G33: =CPU!G264 -> 1112.735881 | H33: =TRUNC(G33*(1+$H$5),2) -> 1370 | I33: =TRUNC(F33*H33,2) -> 274
A35: 5 | D35: REGULARIZAÇÃO E PAVIMENTAÇÃO DA CRISTA | I35: =SUM(I36,I38,I40) -> 122277.86
A36: 5.1 | D36: Regularização da Crista | I36: =SUM(I37:I37) -> 3496.48
A37: 5.1.1 | B37: PRÓPRIA | C37: CPU.14 | D37: Regularização e compactação da crista | E37: m2 | F37: 1066 | G37: =CPU!G161 -> 2.671375893 | H37: =TRUNC(G37*(1+$H$5),2) -> 3.28 | I37: =TRUNC(F37*H37,2) -> 3496.48
A38: 5.2 | D38: Instalação de meio-fio e sarjeta | I38: =SUM(I39:I39) -> 50033.88
A39: 5.2.1 | B39: PRÓPRIA | C39: CPU.20 | D39: =(VLOOKUP(C39,CPU!B7:C357,2,0)) -> Guia (meio-fio) e sarjeta e conjudados de concreto, moldada In Loco, 45cm base (15 cm Base da Guia +30 cm Base da Sarjeta) x 22 cm Altura | E39: m | F39: =468 -> 468 | G39: =CPU!G218 -> 86.83558394 | H39: =TRUNC(G39*(1+$H$5),2) -> 106.91 | I39: =TRUNC(F39*H39,2) -> 50033.88
A40: 5.3 | D40: Pavimentação da Crista | I40: =SUM(I41:I41) -> 68747.5
A41: 5.3.1 | B41: PRÓPRIA | C41: CPU.15 | D41: Execução de Revestimento com BGTC | E41: m3 | F41: 107 | G41: =CPU!G170 -> 521.8490854 | H41: =TRUNC(G41*(1+$H$5),2) -> 642.5 | I41: =TRUNC(F41*H41,2) -> 68747.5
A43: 6 | D43: MANUTENÇÃO NO TALUDE DE MONTANTE | I43: =SUM(I44) -> 60241.65
A44: 6.1 | D44: Enrocamento com pedra de mão para proteção do talude | I44: =SUM(I45:I45) -> 60241.65
A45: 6.1.1 | B45: PRÓPRIA | C45: CPU.07 | D45: Enrocamento c/ pedra de mão c/ fornecimento e assentamento | E45: m3 | F45: 105 | G45: =CPU!G63 -> 465.9959793 | H45: =TRUNC(G45*(1+$H$5),2) -> 573.73 | I45: =TRUNC(F45*H45,2) -> 60241.65
A47: 7 | D47: DRENAGEM SUPERFICIAL DO TALUDE DE JUSANTE | I47: =SUM(I48,I50) -> 28167.1
A48: 7.1 | D48: Canaleta para descida d'água | I48: =SUM(I49:I49) -> 25779.6
A49: 7.1.1 | B49: PRÓPRIA | C49: CPU.08 | D49: Canaleta meia cana de concreto (D=30cm) - Fornecimento e instalação | E49: m | F49: 140 | G49: =CPU!G79 -> 149.5661046 | H49: =TRUNC(G49*(1+$H$5),2) -> 184.14 | I49: =TRUNC(F49*H49,2) -> 25779.6
A50: 7.2 | D50: Entrada para descida d'água | I50: =SUM(I51:I51) -> 2387.5
A51: 7.2.1 | B51: PRÓPRIA | C51: CPU.09 | D51: Entrada para descida d'água | E51: un | F51: 10 | G51: =CPU!G94 -> 193.9202431 | H51: =TRUNC(G51*(1+$H$5),2) -> 238.75 | I51: =TRUNC(F51*H51,2) -> 2387.5
A53: 8 | D53: PROTEÇÃO SUPERFICIAL DO TALUDE DE JUSANTE | I53: =SUM(I54) -> 26357.1
A54: 8.1 | D54: Proteção vegetal | I54: =SUM(I55:I55) -> 26357.1
A55: 8.1.1 | B55: PRÓPRIA | C55: CPU.10 | D55: Plantio de vegetação para proteção de talude com hidrossemeadura, inclusive adubação e transporte | E55: m2 | F55: 1470 | G55: =CPU!G104 -> 14.56336002 | H55: =TRUNC(G55*(1+$H$5),2) -> 17.93 | I55: =TRUNC(F55*H55,2) -> 26357.1
A57: 9 | D57: SERVIÇOS COMPLEMENTARES | I57: =SUM(I58,I60) -> 8691.48
A58: 9.1 | D58: Instalação de placas de aviso | I58: =SUM(I59:I59) -> 2305.08
A59: 9.1.1 | B59: SINAPI | C59: 103689 | D59: FORNECIMENTO E INSTALAÇÃO DE PLACA DE OBRA COM CHAPA GALVANIZADA E ESTRUTURA DE MADEIRA. AF_03/2022_PS | E59: M2 | F59: 4 | G59: =VLOOKUP(C59,'Comp_Sinapi PE_Sem-Desoneracao'!$B$11:$E$9733,4,0) -> 468.06 | H59: =TRUNC(G59*(1+$H$5),2) -> 576.27 | I59: =TRUNC(F59*H59,2) -> 2305.08 | J59: ca
A60: 9.2 | D60: Régua Linimétrica Padrão “ANA”, Aço Carbono - 2 X 70 X 1000 mm (Fornecimento e Instalação) | I60: =SUM(I61:I61) -> 6386.4
A61: 9.2.1 | B61: PRÓPRIA | C61: CPU.18 | D61: Régua Linimétrica Padrão “ANA”, Aço Carbono - 2 X 70 X 1000 mm (Fornecimento e Instalação) | E61: un | F61: 12 | G61: =CPU!G196 -> 432.2683222 | H61: =TRUNC(G61*(1+$H$5),2) -> 532.2 | I61: =TRUNC(F61*H61,2) -> 6386.4
A63: 10 | D63: PROJETO "AS IS" | I63: =SUM(I64) -> 15497.99
A64: 10.1 | D64: Levantamento topógrafico e "AS IS" | I64: =SUM(I65:I66) -> 15497.99
A65: 10.1.1 | B65: ORSE | C65: 9346 | D65: Levantamento topográfico planimétrico cadastral | E65: m2 | F65: =F26 -> 11420.43 | G65: 0.35 | H65: =TRUNC(G65*(1+$H$5),2) -> 0.43 | I65: =TRUNC(F65*H65,2) -> 4910.78
A66: 10.1.2 | B66: PRÓPRIA | C66: CPU.25 | D66: Projeto Geométrico | E66: un | F66: 1 | G66: =CPU!G255 -> 8599.1 | H66: =TRUNC(G66*(1+$H$5),2) -> 10587.21 | I66: =TRUNC(F66*H66,2) -> 10587.21
A68: 11 | D68: FISCALIZAÇÃO E ACOMPANHAMENTO | I68: =SUM(I69) -> 3779.1
A69: 11.1 | D69: Disponibilidade de velículo para apoio a fiscalização | I69: =SUM(I70:I70) -> 3779.1
A70: 11.1.1 | B70: PRÓPRIA | C70: CPU.30 | D70: =(VLOOKUP(C70,CPU!B36:C386,2,0)) -> Disponibilidade de veículo para apoio a fiscalização, inclusive combustível | E70: =(VLOOKUP(C70,CPU!B35:D481,3,0)) -> un | F70: =F14+2 -> 6 | G70: =CPU!G273 -> 511.5749292 | H70: =TRUNC(G70*(1+$H$5),2) -> 629.85 | I70: =TRUNC(F70*H70,2) -> 3779.1
D72: TOTAL (Custo): | I72: =TRUNC(SUMPRODUCT(F13:F71,G13:G71),2) -> 561424.13
D73: BDI e Encargos Sociais: | I73: =I74-I72 -> 129734.14
D74: TOTAL GERAL COM BDI: | I74: =SUM(I12,I16,I24,I29,I35,I43,I47,I53,I57,I63,I68) -> 691158.27 | L74: =TRUNC(SUMPRODUCT(F13:F71,H13:H71),2) -> 691158.28

Sheet Batatas
A1: Ministério da Integração e do Desenvolvimento Regional
A2: Companhia de Desenvolvimento dos Vales do São Francisco e do Parnaíba
A4: PLANILHA ORÇAMENTÁRIA - ORÇAMENTO NÃO DESONERADO
A5: OBRA: | B5: =Resumo!B5 -> Execução de Manutenção e Recuperação nas Barragens de Várzea dos Ramos, Quixaba, Monte Alegre, São José da Tapera, Batatas, Riacho Pequeno e Queixada, localizadas no estado De Pernambuco. | G5: BDI (serv.): | H5: ='BDI serv'!D23 -> 0.2312 | I5: Bancos de dados:
A6: LOCAL: | B6: =Resumo!B6 -> BARRAGENS DE PERNAMBUCO | G6: BDI (forn.): | H6: ='BDI forn'!D23 -> 0.1469 | I6: =Resumo!G6 -> 05/25 - SINAPI | J6: =Resumo!H6 -> SETOP-01/2025
A7: DATA BASE: | B7: =Resumo!B7 -> 2025-06-01 | E7: Encargos sociais - Horistas: | H7: ='Encargos Sociais'!E49 -> 1.1384 | I7: =Resumo!G7 -> 04/25 - ORSE | J7: =Resumo!H7 -> EMBASA-01/25
A8: PRAZO: | B8: 120 dias | E8: Encargos sociais - Mensalista: | H8: ='Encargos Sociais'!F49 -> 0.7011 | I8: =Resumo!G8 -> 06/25 - SBC | J8: =Resumo!H8 -> SEDOP-02/25
B9: =Resumo!B17 -> Batatas | G9: Desconto: | H9: 0 | I9: =Resumo!G9 -> JAN/2025 - SICRO3 | J9: =Resumo!H9 -> SCO-05/25
A10: ITEM | B10: REFERÊNCIA | D10: DESCRIÇÃO | E10: UNID. | F10: QUANT. | G10: CUSTO UNITÁRIO | H10: PREÇO UNITÁRIO | I10: PREÇO TOTAL
B11: FONTE | C11: CÓDIGO
A12: 1 | D12: ADMINISTRAÇÃO DA OBRA | I12: =SUM(I13) -> 137201.96
A13: 1.1 | D13: Administração da Obra | I13: =SUM(I14:I14) -> 137201.96
A14: 1.1.1 | B14: PRÓPRIA | C14: CPU.01 | D14: Administração Local | E14: mês | F14: 4 | G14: =CPU!G10 -> 27859.4 | H14: =TRUNC(G14*(1+$H$5),2) -> 34300.49 | I14: =TRUNC(F14*H14,2) -> 137201.96
A16: 2 | D16: SERVIÇOS PRELIMINARES | I16: =SUM(I17,I19,I21) -> 32243.02
A17: 2.1 | D17: Mobilização e desmobilização | I17: =SUM(I18) -> 5168.59
A18: 2.1.1 | B18: PRÓPRIA | C18: CPU.02 | D18: Mobilização e desmobilização de instalação do canteiro | E18: un | F18: 1 | G18: =CPU!G19 -> 4198.014144 | H18: =TRUNC(G18*(1+$H$5),2) -> 5168.59 | I18: =TRUNC(F18*H18,2) -> 5168.59
A19: 2.2 | D19: Canteiro de obras | I19: =SUM(I20) -> 25921.89
A20: 2.2.1 | B20: PRÓPRIA | C20: CPU.03 | D20: Execução de canteiro de obras, inclusive, limpeza, refeitório, sanitários e central de formas | E20: m2 | F20: 28.5 | G20: =CPU!G29 -> 738.7466393 | H20: =TRUNC(G20*(1+$H$5),2) -> 909.54 | I20: =TRUNC(F20*H20,2) -> 25921.89
A21: 2.3 | D21: Sinalização | I21: =SUM(I22:I22) -> 1152.54
A22: 2.3.1 | B22: SINAPI | C22: 103689 | D22: FORNECIMENTO E INSTALAÇÃO DE PLACA DE OBRA COM CHAPA GALVANIZADA E ESTRUTURA DE MADEIRA. AF_03/2022_PS | E22: M2 | F22: 2 | G22: =VLOOKUP(C22,'Comp_Sinapi PE_Sem-Desoneracao'!$B$11:$E$9733,4,0) -> 468.06 | H22: =TRUNC(G22*(1+$H$5),2) -> 576.27 | I22: =TRUNC(F22*H22,2) -> 1152.54 | J22: ca
A24: 3 | D24: CORTE DA VEGETAÇÃO E REMOÇÃO DAS RAIZES | I24: =SUM(I25) -> 134621.48
A25: 3.1 | D25: Remoção da vegetação | I25: =SUM(I26:I27) -> 134621.48
A26: 3.1.1 | B26: PRÓPRIA | C26: CPU.04 | D26: Limpeza de vegetação | E26: m2 | F26: 11708.51 | G26: =CPU!G40 -> 7.970814634 | H26: =TRUNC(G26*(1+$H$5),2) -> 9.81 | I26: =TRUNC(F26*H26,2) -> 114860.48
A27: 3.1.2 | B27: PRÓPRIA | C27: CPU.05 | D27: Corte de tronco e remoção de raiz | E27: un | F27: 35 | G27: =CPU!G50 -> 458.5808984 | H27: =TRUNC(G27*(1+$H$5),2) -> 564.6 | I27: =TRUNC(F27*H27,2) -> 19761
A29: 4 | D29: RECUPERAÇÃO DO MACIÇO | I29: =SUM(I30,I32) -> 50525.2
A30: 4.1 | D30: Recomposição das Erosões (erosões nas ombreiras e taludes), trincas e buracos | I30: =SUM(I31:I31) -> 50251.2
A31: 4.1.1 | B31: PRÓPRIA | C31: CPU.13 | D31: Recomposição das erosões, inclusive, regularização da superfície e reaterro | E31: m3 | F31: 87 | G31: =CPU!G143 -> 469.1425876 | H31: =TRUNC(G31*(1+$H$5),2) -> 577.6 | I31: =TRUNC(F31*H31,2) -> 50251.2
A32: 4.2 | D32: Injeção de nata de cimento em buracos | I32: =SUM(I33:I33) -> 274
A33: 4.2.1 | B33: PRÓPRIA | C33: CPU.26 | D33: Injeção de nata de cimento em buracos | E33: m3 | F33: 0.2 | G33: =CPU!G264 -> 1112.735881 | H33: =TRUNC(G33*(1+$H$5),2) -> 1370 | I33: =TRUNC(F33*H33,2) -> 274
A35: 5 | D35: REGULARIZAÇÃO E PAVIMENTAÇÃO DA CRISTA | I35: =SUM(I36,I39,I41) -> 92448.06
A36: 5.1 | D36: Limpeza e Regularização da Crista | I36: =SUM(I37:I38) -> 11746.4
A37: 5.1.1 | B37: PRÓPRIA | C37: CPU.19 | D37: Demolição de guias e sarjetas | E37: m | F37: 226 | G37: =CPU!G209 -> 31.81123749 | H37: =TRUNC(G37*(1+$H$5),2) -> 39.16 | I37: =TRUNC(F37*H37,2) -> 8850.16
A38: 5.1.2 | B38: PRÓPRIA | C38: CPU.14 | D38: Regularização e compactação da crista | E38: m2 | F38: 883 | G38: =CPU!G161 -> 2.671375893 | H38: =TRUNC(G38*(1+$H$5),2) -> 3.28 | I38: =TRUNC(F38*H38,2) -> 2896.24
A39: 5.2 | D39: Instalação de drenagem e meio-fio da Crista | I39: =SUM(I40:I40) -> 24161.66
A40: 5.2.1 | B40: PRÓPRIA | C40: CPU.20 | D40: =(VLOOKUP(C40,CPU!B8:C358,2,0)) -> Guia (meio-fio) e sarjeta e conjudados de concreto, moldada In Loco, 45cm base (15 cm Base da Guia +30 cm Base da Sarjeta) x 22 cm Altura | E40: m | F40: 226 | G40: =CPU!G218 -> 86.83558394 | H40: =TRUNC(G40*(1+$H$5),2) -> 106.91 | I40: =TRUNC(F40*H40,2) -> 24161.66
A41: 5.3 | D41: Pavimentação da Crista | I41: =SUM(I42:I42) -> 56540
A42: 5.3.1 | B42: PRÓPRIA | C42: CPU.15 | D42: Execução de Revestimento com BGTC | E42: m3 | F42: 88 | G42: =CPU!G170 -> 521.8490854 | H42: =TRUNC(G42*(1+$H$5),2) -> 642.5 | I42: =TRUNC(F42*H42,2) -> 56540
A44: 6 | D44: MANUTENÇÃO NO TALUDE DE MONTANTE | I44: =SUM(I45) -> 47619.59
A45: 6.1 | D45: Enrocamento com pedra de mão para proteção do talude | I45: =SUM(I46:I46) -> 47619.59
A46: 6.1.1 | B46: PRÓPRIA | C46: CPU.07 | D46: Enrocamento c/ pedra de mão c/ fornecimento e assentamento | E46: m3 | F46: 83 | G46: =CPU!G63 -> 465.9959793 | H46: =TRUNC(G46*(1+$H$5),2) -> 573.73 | I46: =TRUNC(F46*H46,2) -> 47619.59
A48: 7 | D48: DRENAGEM SUPERFICIAL DO TALUDE DE JUSANTE | I48: =SUM(I49,I51) -> 25643.75
A49: 7.1 | D49: Canaleta para descida d'água | I49: =SUM(I50:I50) -> 23017.5
A50: 7.1.1 | B50: PRÓPRIA | C50: CPU.08 | D50: Canaleta meia cana de concreto (D=30cm) - Fornecimento e instalação | E50: m | F50: 125 | G50: =CPU!G79 -> 149.5661046 | H50: =TRUNC(G50*(1+$H$5),2) -> 184.14 | I50: =TRUNC(F50*H50,2) -> 23017.5
A51: 7.2 | D51: Entrada para descida d'água | I51: =SUM(I52:I52) -> 2626.25
A52: 7.2.1 | B52: PRÓPRIA | C52: CPU.09 | D52: Entrada para descida d'água | E52: un | F52: 11 | G52: =CPU!G94 -> 193.9202431 | H52: =TRUNC(G52*(1+$H$5),2) -> 238.75 | I52: =TRUNC(F52*H52,2) -> 2626.25
A54: 8 | D54: PROTEÇÃO SUPERFICIAL DO TALUDE DE JUSANTE | I54: =SUM(I55) -> 28060.45
A55: 8.1 | D55: Proteção vegetal | I55: =SUM(I56:I56) -> 28060.45
A56: 8.1.1 | B56: PRÓPRIA | C56: CPU.10 | D56: Plantio de vegetação para proteção de talude com hidrossemeadura, inclusive adubação e transporte | E56: m2 | F56: 1565 | G56: =CPU!G104 -> 14.56336002 | H56: =TRUNC(G56*(1+$H$5),2) -> 17.93 | I56: =TRUNC(F56*H56,2) -> 28060.45
A58: 9 | D58: RESTAURAÇÃO DO MURO LATERAL | I58: =SUM(I59) -> 24886.45
A59: 9.1 | D59: Restauração do muro lateral | I59: =SUM(I60:I62) -> 24886.45
A60: 9.1.1 | B60: PRÓPRIA | C60: CPU.24 | D60: Limpeza da superfície | E60: m2 | F60: 53 | G60: =CPU!G246 -> 10.06545344 | H60: =TRUNC(G60*(1+$H$5),2) -> 12.39 | I60: =TRUNC(F60*H60,2) -> 656.67
A61: 9.1.2 | B61: PRÓPRIA | C61: CPU.11 | D61: Apicoamento da superfície | E61: m2 | F61: 53 | G61: =CPU!G116 -> 34.72160317 | H61: =TRUNC(G61*(1+$H$5),2) -> 42.74 | I61: =TRUNC(F61*H61,2) -> 2265.22
A62: 9.1.3 | B62: PRÓPRIA | C62: CPU.16 | D62: Restauração com uso de concreto | E62: m3 | F62: 8 | G62: =CPU!G183 -> 2230.003011 | H62: =TRUNC(G62*(1+$H$5),2) -> 2745.57 | I62: =TRUNC(F62*H62,2) -> 21964.56
A64: 10 | D64: RESTAURAÇÃO DA SOLEIRA DO VERTEDOURO | I64: =SUM(I65) -> 6419.72
A65: 10.1 | D65: Restauração da soleira do vertedouro | I65: =SUM(I66:I68) -> 6419.72
A66: 10.1.1 | B66: PRÓPRIA | C66: CPU.24 | D66: Limpeza da superfície | E66: m2 | F66: 35 | G66: =CPU!G246 -> 10.06545344 | H66: =TRUNC(G66*(1+$H$5),2) -> 12.39 | I66: =TRUNC(F66*H66,2) -> 433.65
A67: 10.1.2 | B67: PRÓPRIA | C67: CPU.22 | D67: Tratamento de fissuras com injeção de adesivo estrutural à base de resina epóxi de baixa viscosidade - fornecimento e aplicação mecanizada | E67: kg | F67: 2.1 | G67: =CPU!G228 -> 472.0476439 | H67: =TRUNC(G67*(1+$H$5),2) -> 581.18 | I67: =TRUNC(F67*H67,2) -> 1220.47
A68: 10.1.3 | B68: PRÓPRIA | C68: CPU.23 | D68: Emboço ou massa única em argamassa | E68: m2 | F68: 35 | G68: =CPU!G237 -> 110.5931475 | H68: =TRUNC(G68*(1+$H$5),2) -> 136.16 | I68: =TRUNC(F68*H68,2) -> 4765.6
A70: 11 | D70: MANUTENÇÃO DOS EQUIPAMENTOS HIDROMECÂNICOS | I70: =SUM(I71) -> 2241.04
A71: 11.1 | D71: Troca da válvula de controle | I71: =SUM(I72:I74) -> 2241.04
A72: 11.1.1 | B72: EMBASA | C72: M049500051 | D72: REGISTRO DE GAVETA FLANGEADO, EM FOFO, DN 100 MM, S?RIE M?TRICA CHATA, CLASSE PN-10, ACIONAMENTO DIRETO POR VOLANTE DE MANOBRAS | E72: PC | F72: 1 | G72: 999.76 | H72: =TRUNC(G72*(1+$H$6),2) -> 1146.62 | I72: =TRUNC(F72*H72,2) -> 1146.62 | J72: BDI de fornecimento
A73: 11.1.2 | B73: EMBASA | C73: 25.25.62 | D73: RETIRADA DE VALVULA DE CONTROLE EM FoFo, DIAM. ATE 200 MM, INCLUSIVE JUNTAS FLANGEADAS | E73: UN | F73: 1 | G73: 539.71 | H73: =TRUNC(G73*(1+$H$5),2) -> 664.49 | I73: =TRUNC(F73*H73,2) -> 664.49
A74: 11.1.3 | B74: EMBASA | C74: 25.25.02 | D74: INSTALAÇÃO DE VALVULA DE CONTROLE EM FoFo, DIAM. ATE 200 MM, INCLUSIVE JUNTAS FLANGEADAS | E74: UN | F74: 1 | G74: 349.2 | H74: =TRUNC(G74*(1+$H$5),2) -> 429.93 | I74: =TRUNC(F74*H74,2) -> 429.93
A76: 12 | D76: SERVIÇOS COMPLEMENTARES | I76: =SUM(I77,I79) -> 6562.68
A77: 12.1 | D77: Instalação de placas de aviso | I77: =SUM(I78:I78) -> 2305.08
A78: 12.1.1 | B78: SINAPI | C78: 103689 | D78: FORNECIMENTO E INSTALAÇÃO DE PLACA DE OBRA COM CHAPA GALVANIZADA E ESTRUTURA DE MADEIRA. AF_03/2022_PS | E78: M2 | F78: 4 | G78: =VLOOKUP(C78,'Comp_Sinapi PE_Sem-Desoneracao'!$B$11:$E$9733,4,0) -> 468.06 | H78: =TRUNC(G78*(1+$H$5),2) -> 576.27 | I78: =TRUNC(F78*H78,2) -> 2305.08 | J78: ca
A79: 12.2 | D79: Régua Linimétrica Padrão “ANA”, Aço Carbono - 2 X 70 X 1000 mm (Fornecimento e Instalação) | I79: =SUM(I80:I80) -> 4257.6
A80: 12.2.1 | B80: PRÓPRIA | C80: CPU.18 | D80: Régua Linimétrica Padrão “ANA”, Aço Carbono - 2 X 70 X 1000 mm (Fornecimento e Instalação) | E80: un | F80: 8 | G80: =CPU!G196 -> 432.2683222 | H80: =TRUNC(G80*(1+$H$5),2) -> 532.2 | I80: =TRUNC(F80*H80,2) -> 4257.6 | J80: ca
A82: 13 | D82: PROJETO "AS IS" | I82: =SUM(I83) -> 15621.86
A83: 13.1 | D83: Levantamento topógrafico e "AS IS" | I83: =SUM(I84:I85) -> 15621.86
A84: 13.1.1 | B84: ORSE | C84: 9346 | D84: Levantamento topográfico planimétrico cadastral | E84: m2 | F84: =F26 -> 11708.51 | G84: =TRUNC((1-$H$9)*0.35,2) -> 0.35 | H84: =TRUNC(G84*(1+$H$5),2) -> 0.43 | I84: =TRUNC(F84*H84,2) -> 5034.65
A85: 13.1.2 | B85: PRÓPRIA | C85: CPU.25 | D85: Projeto Geométrico | E85: un | F85: 1 | G85: =CPU!G255 -> 8599.1 | H85: =TRUNC(G85*(1+$H$5),2) -> 10587.21 | I85: =TRUNC(F85*H85,2) -> 10587.21
A87: 14 | D87: FISCALIZAÇÃO E ACOMPANHAMENTO | I87: =SUM(I88) -> 3779.1
A88: 14.1 | D88: Disponibilidade de velículo para apoio a fiscalização | I88: =SUM(I89:I89) -> 3779.1
A89: 14.1.1 | B89: PRÓPRIA | C89: CPU.30 | D89: =(VLOOKUP(C89,CPU!B57:C407,2,0)) -> Disponibilidade de veículo para apoio a fiscalização, inclusive combustível | E89: =(VLOOKUP(C89,CPU!B56:D502,3,0)) -> un | F89: =F14+2 -> 6 | G89: =CPU!G273 -> 511.5749292 | H89: =TRUNC(G89*(1+$H$5),2) -> 629.85 | I89: =TRUNC(F89*H89,2) -> 3779.1
D91: TOTAL (Custo): | I91: =TRUNC(SUMPRODUCT(F13:F90,G13:G90),2) -> 493848.27
D92: BDI e Encargos Sociais: | I92: =I93-I91 -> 114026.09
D93: TOTAL GERAL COM BDI: | I93: =SUM(I12,I16,I24,I29,I35,I44,I48,I54,I58,I64,I70,I76,I82,I87) -> 607874.36 | L93: =TRUNC(SUMPRODUCT(F13:F90,H13:H90),2) -> 607874.38

Sheet Riacho Pequeno
A1: Ministério da Integração e do Desenvolvimento Regional
A2: Companhia de Desenvolvimento dos Vales do São Francisco e do Parnaíba
A4: PLANILHA ORÇAMENTÁRIA - ORÇAMENTO NÃO DESONERADO
A5: OBRA: | B5: =Resumo!B5 -> Execução de Manutenção e Recuperação nas Barragens de Várzea dos Ramos, Quixaba, Monte Alegre, São José da Tapera, Batatas, Riacho Pequeno e Queixada, localizadas no estado De Pernambuco. | G5: BDI (serv.): | H5: ='BDI serv'!D23 -> 0.2312 | I5: Bancos de dados:
A6: LOCAL: | B6: =Resumo!B6 -> BARRAGENS DE PERNAMBUCO | G6: BDI (forn.): | H6: ='BDI forn'!D23 -> 0.1469 | I6: =Resumo!G6 -> 05/25 - SINAPI | J6: =Resumo!H6 -> SETOP-01/2025
A7: DATA BASE: | B7: =Resumo!B7 -> 2025-06-01 | E7: Encargos sociais - Horistas: | H7: ='Encargos Sociais'!E49 -> 1.1384 | I7: =Resumo!G7 -> 04/25 - ORSE | J7: =Resumo!H7 -> EMBASA-01/25
A8: PRAZO: | B8: 120 dias | E8: Encargos sociais - Mensalista: | H8: ='Encargos Sociais'!F49 -> 0.7011 | I8: =Resumo!G8 -> 06/25 - SBC | J8: =Resumo!H8 -> SEDOP-02/25
B9: =Resumo!B18 -> Riacho Pequeno | G9: Desconto: | H9: 0 | I9: =Resumo!G9 -> JAN/2025 - SICRO3 | J9: =Resumo!H9 -> SCO-05/25
A10: ITEM | B10: REFERÊNCIA | D10: DESCRIÇÃO | E10: UNID. | F10: QUANT. | G10: CUSTO UNITÁRIO | H10: PREÇO UNITÁRIO | I10: PREÇO TOTAL
B11: FONTE | C11: CÓDIGO
A12: 1 | D12: ADMINISTRAÇÃO DA OBRA | I12: =SUM(I13) -> 137201.96
A13: 1.1 | D13: Administração da Obra | I13: =SUM(I14:I14) -> 137201.96
A14: 1.1.1 | B14: PRÓPRIA | C14: CPU.01 | D14: Administração Local | E14: mês | F14: 4 | G14: =CPU!G10 -> 27859.4 | H14: =TRUNC(G14*(1+$H$5),2) -> 34300.49 | I14: =TRUNC(F14*H14,2) -> 137201.96
A16: 2 | D16: SERVIÇOS PRELIMINARES | I16: =SUM(I17,I19,I21) -> 32243.02
A17: 2.1 | D17: Mobilização e desmobilização | I17: =SUM(I18) -> 5168.59
A18: 2.1.1 | B18: PRÓPRIA | C18: CPU.02 | D18: Mobilização e desmobilização de instalação do canteiro | E18: un | F18: 1 | G18: =CPU!G19 -> 4198.014144 | H18: =TRUNC(G18*(1+$H$5),2) -> 5168.59 | I18: =TRUNC(F18*H18,2) -> 5168.59
A19: 2.2 | D19: Canteiro de obras | I19: =SUM(I20) -> 25921.89
A20: 2.2.1 | B20: PRÓPRIA | C20: CPU.03 | D20: Execução de canteiro de obras, inclusive, limpeza, refeitório, sanitários e central de formas | E20: m2 | F20: 28.5 | G20: =CPU!G29 -> 738.7466393 | H20: =TRUNC(G20*(1+$H$5),2) -> 909.54 | I20: =TRUNC(F20*H20,2) -> 25921.89
A21: 2.3 | D21: Sinalização | I21: =SUM(I22:I22) -> 1152.54
A22: 2.3.1 | B22: SINAPI | C22: 103689 | D22: FORNECIMENTO E INSTALAÇÃO DE PLACA DE OBRA COM CHAPA GALVANIZADA E ESTRUTURA DE MADEIRA. AF_03/2022_PS | E22: M2 | F22: 2 | G22: =VLOOKUP(C22,'Comp_Sinapi PE_Sem-Desoneracao'!$B$11:$E$9733,4,0) -> 468.06 | H22: =TRUNC(G22*(1+$H$5),2) -> 576.27 | I22: =TRUNC(F22*H22,2) -> 1152.54 | J22: ca
A24: 3 | D24: CORTE DA VEGETAÇÃO E REMOÇÃO DAS RAIZES | I24: =SUM(I25) -> 306049.39
A25: 3.1 | D25: Remoção da vegetação | I25: =SUM(I26:I27) -> 306049.39
A26: 3.1.1 | B26: PRÓPRIA | C26: CPU.04 | D26: Limpeza de vegetação | E26: m2 | F26: 28320.02 | G26: =CPU!G40 -> 7.970814634 | H26: =TRUNC(G26*(1+$H$5),2) -> 9.81 | I26: =TRUNC(F26*H26,2) -> 277819.39
A27: 3.1.2 | B27: PRÓPRIA | C27: CPU.05 | D27: Corte de tronco e remoção de raiz | E27: un | F27: 50 | G27: =CPU!G50 -> 458.5808984 | H27: =TRUNC(G27*(1+$H$5),2) -> 564.6 | I27: =TRUNC(F27*H27,2) -> 28230
A29: 4 | D29: RECUPERAÇÃO DO MACIÇO | I29: =SUM(I30,I32) -> 23378
A30: 4.1 | D30: Recomposição das Erosões (erosões locais nas ombreiras e taludes), trincas e buracos | I30: =SUM(I31:I31) -> 23104
A31: 4.1.1 | B31: PRÓPRIA | C31: CPU.13 | D31: Recomposição das erosões, inclusive, regularização da superfície e reaterro | E31: m3 | F31: 40 | G31: =CPU!G143 -> 469.1425876 | H31: =TRUNC(G31*(1+$H$5),2) -> 577.6 | I31: =TRUNC(F31*H31,2) -> 23104
A32: 4.2 | D32: Injeção de nata de cimento em buracos | I32: =SUM(I33:I33) -> 274
A33: 4.2.1 | B33: PRÓPRIA | C33: CPU.26 | D33: Injeção de nata de cimento em buracos | E33: m3 | F33: 0.2 | G33: =CPU!G264 -> 1112.735881 | H33: =TRUNC(G33*(1+$H$5),2) -> 1370 | I33: =TRUNC(F33*H33,2) -> 274
A35: 5 | D35: REGULARIZAÇÃO E PAVIMENTAÇÃO DA CRISTA | I35: =SUM(I36,I38,I40) -> 221246.9
A36: 5.1 | D36: Regularização da Crista | I36: =SUM(I37:I37) -> 6576.4
A37: 5.1.1 | B37: PRÓPRIA | C37: CPU.14 | D37: Regularização e compactação da crista | E37: m2 | F37: 2005 | G37: =CPU!G161 -> 2.671375893 | H37: =TRUNC(G37*(1+$H$5),2) -> 3.28 | I37: =TRUNC(F37*H37,2) -> 6576.4
A38: 5.2 | D38: Instalação de drenagem e meio-fio da Crista | I38: =SUM(I39:I39) -> 85528
A39: 5.2.1 | B39: PRÓPRIA | C39: CPU.20 | D39: =(VLOOKUP(C39,CPU!B7:C357,2,0)) -> Guia (meio-fio) e sarjeta e conjudados de concreto, moldada In Loco, 45cm base (15 cm Base da Guia +30 cm Base da Sarjeta) x 22 cm Altura | E39: m | F39: 800 | G39: =CPU!G218 -> 86.83558394 | H39: =TRUNC(G39*(1+$H$5),2) -> 106.91 | I39: =TRUNC(F39*H39,2) -> 85528
A40: 5.3 | D40: Pavimentação da Crista | I40: =SUM(I41:I41) -> 129142.5
A41: 5.3.1 | B41: PRÓPRIA | C41: CPU.15 | D41: Execução de Revestimento com BGTC | E41: m3 | F41: 201 | G41: =CPU!G170 -> 521.8490854 | H41: =TRUNC(G41*(1+$H$5),2) -> 642.5 | I41: =TRUNC(F41*H41,2) -> 129142.5
A43: 6 | D43: MANUTENÇÃO NO TALUDE DE MONTANTE | I43: =SUM(I44) -> 21228.01
A44: 6.1 | D44: Enrocamento com pedra de mão para proteção do talude | I44: =SUM(I45:I45) -> 21228.01
A45: 6.1.1 | B45: PRÓPRIA | C45: CPU.07 | D45: Enrocamento c/ pedra de mão c/ fornecimento e assentamento | E45: m3 | F45: 37 | G45: =CPU!G63 -> 465.9959793 | H45: =TRUNC(G45*(1+$H$5),2) -> 573.73 | I45: =TRUNC(F45*H45,2) -> 21228.01
A47: 7 | D47: DRENAGEM SUPERFICIAL DO TALUDE DE JUSANTE | I47: =SUM(I48,I50) -> 28167.1
A48: 7.1 | D48: Canaleta para descida d'água | I48: =SUM(I49:I49) -> 25779.6
A49: 7.1.1 | B49: PRÓPRIA | C49: CPU.08 | D49: Canaleta meia cana de concreto (D=30cm) - Fornecimento e instalação | E49: m | F49: 140 | G49: =CPU!G79 -> 149.5661046 | H49: =TRUNC(G49*(1+$H$5),2) -> 184.14 | I49: =TRUNC(F49*H49,2) -> 25779.6
A50: 7.2 | D50: Entrada para descida d'água | I50: =SUM(I51:I51) -> 2387.5
A51: 7.2.1 | B51: PRÓPRIA | C51: CPU.09 | D51: Entrada para descida d'água | E51: un | F51: 10 | G51: =CPU!G94 -> 193.9202431 | H51: =TRUNC(G51*(1+$H$5),2) -> 238.75 | I51: =TRUNC(F51*H51,2) -> 2387.5
A53: 8 | D53: PROTEÇÃO SUPERFICIAL DO TALUDE DE JUSANTE | I53: =SUM(I54) -> 67237.5
A54: 8.1 | D54: Proteção vegetal | I54: =SUM(I55:I55) -> 67237.5
A55: 8.1.1 | B55: PRÓPRIA | C55: CPU.10 | D55: Plantio de vegetação para proteção de talude com hidrossemeadura, inclusive adubação e transporte | E55: m2 | F55: 3750 | G55: =CPU!G104 -> 14.56336002 | H55: =TRUNC(G55*(1+$H$5),2) -> 17.93 | I55: =TRUNC(F55*H55,2) -> 67237.5
A57: 9 | D57: CONTENÇÃO DO PROCESSO EROSIVO NO CANAL DE RESTITUIÇÃO | I57: =SUM(I58) -> 3662.24
A58: 9.1 | D58: Enrocamento ARCO tipo rachão reciclado cinza classe A jogado com fornecimento | I58: =SUM(I59:I59) -> 3662.24
A59: 9.1.1 | B59: PRÓPRIA | C59: CPU.12 | D59: Enrocamento ARCO tipo rachão reciclado cinza classe A jogado com fornecimento | E59: m3 | F59: 8 | G59: =CPU!G128 -> 371.816349 | H59: =TRUNC(G59*(1+$H$5),2) -> 457.78 | I59: =TRUNC(F59*H59,2) -> 3662.24
A61: 10 | D61: RESTAURAÇÃO DO MURO LATERAL | I61: =SUM(I62) -> 19823.5
A62: 10.1 | D62: Restauração do muro lateral | I62: =SUM(I63:I65) -> 19823.5
A63: 10.1.1 | B63: PRÓPRIA | C63: CPU.24 | D63: Limpeza da superfície | E63: m2 | F63: 160 | G63: =CPU!G246 -> 10.06545344 | H63: =TRUNC(G63*(1+$H$5),2) -> 12.39 | I63: =TRUNC(F63*H63,2) -> 1982.4
A64: 10.1.2 | B64: PRÓPRIA | C64: CPU.11 | D64: Apicoamento da superfície | E64: m2 | F64: 32 | G64: =CPU!G116 -> 34.72160317 | H64: =TRUNC(G64*(1+$H$5),2) -> 42.74 | I64: =TRUNC(F64*H64,2) -> 1367.68
A65: 10.1.3 | B65: PRÓPRIA | C65: CPU.16 | D65: Restauração com uso de concreto | E65: m3 | F65: 6 | G65: =CPU!G183 -> 2230.003011 | H65: =TRUNC(G65*(1+$H$5),2) -> 2745.57 | I65: =TRUNC(F65*H65,2) -> 16473.42
A67: 11 | D67: SERVIÇOS COMPLEMENTARES | I67: =SUM(I68,I70) -> 6562.68
A68: 11.1 | D68: Instalação de placas de aviso | I68: =SUM(I69:I69) -> 2305.08
A69: 11.1.1 | B69: SINAPI | C69: 103689 | D69: FORNECIMENTO E INSTALAÇÃO DE PLACA DE OBRA COM CHAPA GALVANIZADA E ESTRUTURA DE MADEIRA. AF_03/2022_PS | E69: M2 | F69: 4 | G69: =VLOOKUP(C69,'Comp_Sinapi PE_Sem-Desoneracao'!$B$11:$E$9733,4,0) -> 468.06 | H69: =TRUNC(G69*(1+$H$5),2) -> 576.27 | I69: =TRUNC(F69*H69,2) -> 2305.08 | J69: ca
A70: 11.2 | D70: Régua Linimétrica Padrão “ANA”, Aço Carbono - 2 X 70 X 1000 mm (Fornecimento e Instalação) | I70: =SUM(I71:I71) -> 4257.6
A71: 10.2.1 | B71: PRÓPRIA | C71: CPU.18 | D71: Régua Linimétrica Padrão “ANA”, Aço Carbono - 2 X 70 X 1000 mm (Fornecimento e Instalação) | E71: un | F71: 8 | G71: =CPU!G196 -> 432.2683222 | H71: =TRUNC(G71*(1+$H$5),2) -> 532.2 | I71: =TRUNC(F71*H71,2) -> 4257.6
A73: 12 | D73: PROJETO "AS IS" | I73: =SUM(I74) -> 22764.81
A74: 12.1 | D74: Levantamento topógrafico e "AS IS" | I74: =SUM(I75:I76) -> 22764.81
A75: 12.1.1 | B75: ORSE | C75: 9346 | D75: Levantamento topográfico planimétrico cadastral | E75: m2 | F75: =F26 -> 28320.02 | G75: =TRUNC((1-$H$9)*0.35,2) -> 0.35 | H75: =TRUNC(G75*(1+$H$5),2) -> 0.43 | I75: =TRUNC(F75*H75,2) -> 12177.6
A76: 11.1.2 | B76: PRÓPRIA | C76: CPU.25 | D76: Projeto Geométrico | E76: un | F76: 1 | G76: =CPU!G255 -> 8599.1 | H76: =TRUNC(G76*(1+$H$5),2) -> 10587.21 | I76: =TRUNC(F76*H76,2) -> 10587.21
A78: 13 | D78: FISCALIZAÇÃO E ACOMPANHAMENTO | I78: =SUM(I79) -> 3779.1
A79: 13.1 | D79: Disponibilidade de velículo para apoio a fiscalização | I79: =SUM(I80:I80) -> 3779.1
A80: 13.1.1 | B80: PRÓPRIA | C80: CPU.30 | D80: =(VLOOKUP(C80,CPU!B40:C390,2,0)) -> Disponibilidade de veículo para apoio a fiscalização, inclusive combustível | E80: =(VLOOKUP(C80,CPU!B39:D485,3,0)) -> un | F80: =F14+2 -> 6 | G80: =CPU!G273 -> 511.5749292 | H80: =TRUNC(G80*(1+$H$5),2) -> 629.85 | I80: =TRUNC(F80*H80,2) -> 3779.1
D82: TOTAL (Custo): | I82: =TRUNC(SUMPRODUCT(F13:F81,G13:G81),2) -> 725713.14
D83: BDI e Encargos Sociais: | I83: =I84-I82 -> 167631.07
D84: TOTAL GERAL COM BDI: | I84: =SUM(I78,I73,I67,I57,I53,I47,I43,I35,I29,I24,I16,I61,I12) -> 893344.21 | L84: =TRUNC(SUMPRODUCT(F13:F81,H13:H81),2) -> 893344.22

Sheet Queixada
A1: Ministério da Integração e do Desenvolvimento Regional
A2: Companhia de Desenvolvimento dos Vales do São Francisco e do Parnaíba
A4: PLANILHA ORÇAMENTÁRIA - ORÇAMENTO NÃO DESONERADO
A5: OBRA: | B5: =Resumo!B5 -> Execução de Manutenção e Recuperação nas Barragens de Várzea dos Ramos, Quixaba, Monte Alegre, São José da Tapera, Batatas, Riacho Pequeno e Queixada, localizadas no estado De Pernambuco. | G5: BDI (serv.): | H5: ='BDI serv'!D23 -> 0.2312 | I5: Bancos de dados:
A6: LOCAL: | B6: =Resumo!B6 -> BARRAGENS DE PERNAMBUCO | G6: BDI (forn.): | H6: ='BDI forn'!D23 -> 0.1469 | I6: =Resumo!G6 -> 05/25 - SINAPI | J6: =Resumo!H6 -> SETOP-01/2025
A7: DATA BASE: | B7: =Resumo!B7 -> 2025-06-01 | E7: Encargos sociais - Horistas: | H7: ='Encargos Sociais'!E49 -> 1.1384 | I7: =Resumo!G7 -> 04/25 - ORSE | J7: =Resumo!H7 -> EMBASA-01/25
A8: PRAZO: | B8: 120 dias | E8: Encargos sociais - Mensalista: | H8: ='Encargos Sociais'!F49 -> 0.7011 | I8: =Resumo!G8 -> 06/25 - SBC | J8: =Resumo!H8 -> SEDOP-02/25
B9: =Resumo!B19 -> Queixada | G9: Desconto: | H9: 0 | I9: =Resumo!G9 -> JAN/2025 - SICRO3 | J9: =Resumo!H9 -> SCO-05/25
A10: ITEM | B10: REFERÊNCIA | D10: DESCRIÇÃO | E10: UNID. | F10: QUANT. | G10: CUSTO UNITÁRIO | H10: PREÇO UNITÁRIO | I10: PREÇO TOTAL
B11: FONTE | C11: CÓDIGO
A12: 1 | D12: ADMINISTRAÇÃO DA OBRA | I12: =SUM(I13) -> 137201.96
A13: 1.1 | D13: Administração da Obra | I13: =SUM(I14:I14) -> 137201.96
A14: 1.1.1 | B14: PRÓPRIA | C14: CPU.01 | D14: Administração Local | E14: mês | F14: 4 | G14: =CPU!G10 -> 27859.4 | H14: =TRUNC(G14*(1+$H$5),2) -> 34300.49 | I14: =TRUNC(F14*H14,2) -> 137201.96
A16: 2 | D16: SERVIÇOS PRELIMINARES | I16: =SUM(I17,I19,I21) -> 32243.02
A17: 2.1 | D17: Mobilização e desmobilização | I17: =SUM(I18) -> 5168.59
A18: 2.1.1 | B18: PRÓPRIA | C18: CPU.02 | D18: Mobilização e desmobilização de instalação do canteiro | E18: un | F18: 1 | G18: =CPU!G19 -> 4198.014144 | H18: =TRUNC(G18*(1+$H$5),2) -> 5168.59 | I18: =TRUNC(F18*H18,2) -> 5168.59
A19: 2.2 | D19: Canteiro de obras | I19: =SUM(I20) -> 25921.89
A20: 2.2.1 | B20: PRÓPRIA | C20: CPU.03 | D20: Execução de canteiro de obras, inclusive, limpeza, refeitório, sanitários e central de formas | E20: m2 | F20: 28.5 | G20: =CPU!G29 -> 738.7466393 | H20: =TRUNC(G20*(1+$H$5),2) -> 909.54 | I20: =TRUNC(F20*H20,2) -> 25921.89
A21: 2.3 | D21: Sinalização | I21: =SUM(I22:I22) -> 1152.54
A22: 2.3.1 | B22: SINAPI | C22: 103689 | D22: FORNECIMENTO E INSTALAÇÃO DE PLACA DE OBRA COM CHAPA GALVANIZADA E ESTRUTURA DE MADEIRA. AF_03/2022_PS | E22: M2 | F22: 2 | G22: =VLOOKUP(C22,'Comp_Sinapi PE_Sem-Desoneracao'!$B$11:$E$9733,4,0) -> 468.06 | H22: =TRUNC(G22*(1+$H$5),2) -> 576.27 | I22: =TRUNC(F22*H22,2) -> 1152.54 | J22: ca
A24: 3 | D24: CORTE DA VEGETAÇÃO E REMOÇÃO DAS RAIZES | I24: =SUM(I25) -> 212052.52
A25: 3.1 | D25: Remoção da vegetação | I25: =SUM(I26:I27) -> 212052.52
A26: 3.1.1 | B26: PRÓPRIA | C26: CPU.04 | D26: Limpeza de vegetação | E26: m2 | F26: 18738.28 | G26: =CPU!G40 -> 7.970814634 | H26: =TRUNC(G26*(1+$H$5),2) -> 9.81 | I26: =TRUNC(F26*H26,2) -> 183822.52
A27: 3.1.2 | B27: PRÓPRIA | C27: CPU.05 | D27: Corte de tronco e remoção de raiz | E27: un | F27: 50 | G27: =CPU!G50 -> 458.5808984 | H27: =TRUNC(G27*(1+$H$5),2) -> 564.6 | I27: =TRUNC(F27*H27,2) -> 28230
A29: 4 | D29: RECUPERAÇÃO DO MACIÇO | I29: =SUM(I30,I32) -> 86914
A30: 4.1 | D30: Recomposição das Erosões (erosões locais nas ombreiras e taludes), trincas e buracos | I30: =SUM(I31:I31) -> 86640
A31: 4.1.1 | B31: PRÓPRIA | C31: CPU.13 | D31: Recomposição das erosões, inclusive, regularização da superfície e reaterro | E31: m3 | F31: 150 | G31: =CPU!G143 -> 469.1425876 | H31: =TRUNC(G31*(1+$H$5),2) -> 577.6 | I31: =TRUNC(F31*H31,2) -> 86640
A32: 4.2 | D32: Injeção de nata de cimento em buracos | I32: =SUM(I33:I33) -> 274
A33: 4.2.1 | B33: PRÓPRIA | C33: CPU.26 | D33: Injeção de nata de cimento em buracos | E33: m3 | F33: 0.2 | G33: =CPU!G264 -> 1112.735881 | H33: =TRUNC(G33*(1+$H$5),2) -> 1370 | I33: =TRUNC(F33*H33,2) -> 274
A35: 5 | D35: REGULARIZAÇÃO E PAVIMENTAÇÃO DA CRISTA | I35: =SUM(I36,I38,I40) -> 152045.8
A36: 5.1 | D36: Regularização da Crista | I36: =SUM(I37:I37) -> 3542.4
A37: 5.1.1 | B37: PRÓPRIA | C37: CPU.14 | D37: Regularização e compactação da crista | E37: m2 | F37: 1080 | G37: =CPU!G161 -> 2.671375893 | H37: =TRUNC(G37*(1+$H$5),2) -> 3.28 | I37: =TRUNC(F37*H37,2) -> 3542.4
A38: 5.2 | D38: Instalação de drenagem e meio-fio da Crista | I38: =SUM(I39:I39) -> 79113.4
A39: 5.2.1 | B39: PRÓPRIA | C39: CPU.20 | D39: =(VLOOKUP(C39,CPU!B7:C357,2,0)) -> Guia (meio-fio) e sarjeta e conjudados de concreto, moldada In Loco, 45cm base (15 cm Base da Guia +30 cm Base da Sarjeta) x 22 cm Altura | E39: m | F39: 740 | G39: =CPU!G218 -> 86.83558394 | H39: =TRUNC(G39*(1+$H$5),2) -> 106.91 | I39: =TRUNC(F39*H39,2) -> 79113.4
A40: 5.3 | D40: Pavimentação da Crista | I40: =SUM(I41:I41) -> 69390
A41: 5.3.1 | B41: PRÓPRIA | C41: CPU.15 | D41: Execução de Revestimento com BGTC | E41: m3 | F41: 108 | G41: =CPU!G170 -> 521.8490854 | H41: =TRUNC(G41*(1+$H$5),2) -> 642.5 | I41: =TRUNC(F41*H41,2) -> 69390
A43: 6 | D43: MANUTENÇÃO NO TALUDE DE MONTANTE | I43: =SUM(I44) -> 148022.34
A44: 6.1 | D44: Enrocamento com pedra de mão para proteção do talude | I44: =SUM(I45:I45) -> 148022.34
A45: 6.1.1 | B45: PRÓPRIA | C45: CPU.07 | D45: Enrocamento c/ pedra de mão c/ fornecimento e assentamento | E45: m3 | F45: 258 | G45: =CPU!G63 -> 465.9959793 | H45: =TRUNC(G45*(1+$H$5),2) -> 573.73 | I45: =TRUNC(F45*H45,2) -> 148022.34
A47: 7 | D47: DRENAGEM SUPERFICIAL DO TALUDE DE JUSANTE | I47: =SUM(I48,I50) -> 18005.1
A48: 7.1 | D48: Canaleta para descida d'água | I48: =SUM(I49:I49) -> 16572.6
A49: 7.1.1 | B49: PRÓPRIA | C49: CPU.08 | D49: Canaleta meia cana de concreto (D=30cm) - Fornecimento e instalação | E49: m | F49: 90 | G49: =CPU!G79 -> 149.5661046 | H49: =TRUNC(G49*(1+$H$5),2) -> 184.14 | I49: =TRUNC(F49*H49,2) -> 16572.6
A50: 7.2 | D50: Entrada para descida d'água | I50: =SUM(I51:I51) -> 1432.5
A51: 7.2.1 | B51: PRÓPRIA | C51: CPU.09 | D51: Entrada para descida d'água | E51: un | F51: 6 | G51: =CPU!G94 -> 193.9202431 | H51: =TRUNC(G51*(1+$H$5),2) -> 238.75 | I51: =TRUNC(F51*H51,2) -> 1432.5
A53: 8 | D53: PROTEÇÃO SUPERFICIAL DO TALUDE DE JUSANTE | I53: =SUM(I54) -> 101376.22
A54: 8.1 | D54: Proteção vegetal | I54: =SUM(I55:I55) -> 101376.22
A55: 8.1.1 | B55: PRÓPRIA | C55: CPU.10 | D55: Plantio de vegetação para proteção de talude com hidrossemeadura, inclusive adubação e transporte | E55: m2 | F55: 5654 | G55: =CPU!G104 -> 14.56336002 | H55: =TRUNC(G55*(1+$H$5),2) -> 17.93 | I55: =TRUNC(F55*H55,2) -> 101376.22
A57: 9 | D57: RESTAURAÇÃO DA SOLEIRA DO VERTEDOURO | I57: =SUM(I58) -> 1335.73
A58: 9.1 | D58: Restauração da soleira do vertedouro | I58: =SUM(I59:I61) -> 1335.73
A59: 9.1.1 | B59: PRÓPRIA | C59: CPU.24 | D59: Limpeza da superfície | E59: m2 | F59: 22.5 | G59: =CPU!G246 -> 10.06545344 | H59: =TRUNC(G59*(1+$H$5),2) -> 12.39 | I59: =TRUNC(F59*H59,2) -> 278.77
A60: 9.1.2 | B60: PRÓPRIA | C60: CPU.11 | D60: Apicoamento da superfície | E60: m2 | F60: 22.5 | G60: =CPU!G116 -> 34.72160317 | H60: =TRUNC(G60*(1+$H$5),2) -> 42.74 | I60: =TRUNC(F60*H60,2) -> 961.65
A61: 9.1.3 | B61: PRÓPRIA | C61: CPU.23 | D61: Restauração com uso de concreto | E61: m3 | F61: 0.7 | G61: =CPU!G237 -> 110.5931475 | H61: =TRUNC(G61*(1+$H$5),2) -> 136.16 | I61: =TRUNC(F61*H61,2) -> 95.31
A63: 10 | D63: SERVIÇOS COMPLEMENTARES | I63: =SUM(I64,I66) -> 7627.08
A64: 10.1 | D64: Instalação de placas de aviso | I64: =SUM(I65:I65) -> 2305.08
A65: 10.1.1 | B65: SINAPI | C65: 103689 | D65: FORNECIMENTO E INSTALAÇÃO DE PLACA DE OBRA COM CHAPA GALVANIZADA E ESTRUTURA DE MADEIRA. AF_03/2022_PS | E65: M2 | F65: 4 | G65: =VLOOKUP(C65,'Comp_Sinapi PE_Sem-Desoneracao'!$B$11:$E$9733,4,0) -> 468.06 | H65: =TRUNC(G65*(1+$H$5),2) -> 576.27 | I65: =TRUNC(F65*H65,2) -> 2305.08 | J65: ca
A66: 10.2 | D66: Régua Linimétrica Padrão “ANA”, Aço Carbono - 2 X 70 X 1000 mm (Fornecimento e Instalação) | I66: =SUM(I67:I67) -> 5322
A67: 10.2.1 | B67: PRÓPRIA | C67: CPU.18 | D67: Régua Linimétrica Padrão “ANA”, Aço Carbono - 2 X 70 X 1000 mm (Fornecimento e Instalação) | E67: un | F67: 10 | G67: =CPU!G196 -> 432.2683222 | H67: =TRUNC(G67*(1+$H$5),2) -> 532.2 | I67: =TRUNC(F67*H67,2) -> 5322 | J67: ca
A69: 11 | D69: PROJETO "AS IS" | I69: =SUM(I70) -> 18644.67
A70: 11.1 | D70: Levantamento topógrafico e "AS IS" | I70: =SUM(I71:I72) -> 18644.67
A71: 11.1.1 | B71: ORSE | C71: 9346 | D71: Levantamento topográfico planimétrico cadastral | E71: m2 | F71: =F26 -> 18738.28 | G71: =TRUNC((1-$H$9)*0.35,2) -> 0.35 | H71: =TRUNC(G71*(1+$H$5),2) -> 0.43 | I71: =TRUNC(F71*H71,2) -> 8057.46
A72: 11.1.2 | B72: PRÓPRIA | C72: CPU.25 | D72: Projeto Geométrico | E72: un | F72: 1 | G72: =CPU!G255 -> 8599.1 | H72: =TRUNC(G72*(1+$H$5),2) -> 10587.21 | I72: =TRUNC(F72*H72,2) -> 10587.21
A74: 12 | D74: FISCALIZAÇÃO E ACOMPANHAMENTO | I74: =SUM(I75) -> 3779.1
A75: 12.1 | D75: Disponibilidade de velículo para apoio a fiscalização | I75: =SUM(I76:I76) -> 3779.1
A76: 12.1.1 | B76: PRÓPRIA | C76: CPU.30 | D76: =(VLOOKUP(C76,CPU!B44:C394,2,0)) -> Disponibilidade de veículo para apoio a fiscalização, inclusive combustível | E76: =(VLOOKUP(C76,CPU!B43:D489,3,0)) -> un | F76: =F14+2 -> 6 | G76: =CPU!G273 -> 511.5749292 | H76: =TRUNC(G76*(1+$H$5),2) -> 629.85 | I76: =TRUNC(F76*H76,2) -> 3779.1
D78: TOTAL (Custo): | I78: =SUMPRODUCT(F13:F77,G13:G77) -> 746711.1352
D79: BDI e Encargos Sociais: | I79: =I80-I78 -> 172536.4048
D80: TOTAL GERAL COM BDI: | I80: =SUM(I74,I69,I63,I57,I53,I47,I43,I35,I29,I24,I16,I12) -> 919247.54 | L80: =SUMPRODUCT(F13:F77,H13:H77) -> 919247.5542

Sheet CPU
A1: Ministério da Integração e do Desenvolvimento Regional
A2: Companhia de Desenvolvimento dos Vales do São Francisco e do Parnaíba
A4: COMPOSIÇÕES DE PREÇOS UNITÁRIOS - ORÇAMENTO NÃO DESONERADO
A5: =Resumo!A5 -> OBRA: | B5: =Resumo!B5 -> Execução de Manutenção e Recuperação nas Barragens de Várzea dos Ramos, Quixaba, Monte Alegre, São José da Tapera, Batatas, Riacho Pequeno e Queixada, localizadas no estado De Pernambuco.
A6: =Resumo!A6 -> LOCAL: | B6: =Resumo!B6 -> BARRAGENS DE PERNAMBUCO
A7: =Resumo!A7 -> DATA BASE: | B7: =Resumo!B7 -> 2025-06-01
A9: REFERÊNCIA | B9: CÓDIGO | C9: DESCRIÇÃO | D9: UNIDADE | E9: ÍNDICE | F9: CUSTO UNITÁRIO | G9: CUSTO TOTAL
B10: CPU.01 | C10: Administração Local | D10: mês | E10: 1 | G10: =SUM(G14,G13,G12,G11) -> 27859.4 | H10: S | I10: COMENTÁRIOS
A11: =B10 -> CPU.01 | C11: MATERIAL | G11: 0 | H11: ss
A12: =B10 -> CPU.01 | C12: EQUIPAMENTOS | G12: 0 | H12: ss
A13: =B10 -> CPU.01 | C13: SERVIÇOS | G13: 0 | H13: ss
A14: =B10 -> CPU.01 | C14: MÃO DE OBRA | G14: =SUM(G15:G17) -> 27859.4 | H14: mdo
A15: SINAPI | B15: 90778 | C15: Engenheiro Civil De Obra Pleno Com Encargos Complementares | D15: H | E15: =1.5*5*4 -> 30 | F15: =VLOOKUP(B15,'Comp_Sinapi PE_Sem-Desoneracao'!$B$11:$E$9733,4,0) -> 135.86 | G15: =E15*F15 -> 4075.8 | H15: ca
A16: SINAPI | B16: 93572 | C16: Encarregado Geral De Obras Com Encargos Complementares | D16: MES | E16: 0.8 | F16: =VLOOKUP(B16,'Comp_Sinapi PE_Sem-Desoneracao'!$B$11:$E$9733,4,0) -> 6345.55 | G16: =E16*F16 -> 5076.44 | H16: ca
A17: EMBASA | B17: 74.13.43 | C17: VIGIA - AN | D17: MES | E17: 4 | F17: 4676.79 | G17: =E17*F17 -> 18707.16 | H17: ca | I17: considerando 4 vigias intercalando em dupla na jornada de 12/36
B19: CPU.02 | C19: Mobilização e desmobilização de instalação do canteiro | D19: un | E19: 1 | G19: =SUM(G27,G26,G21,G20) -> 4198.014144 | H19: S | I19: mobilização e desmobilização de Petrolina a barragem | M19: 2 dias
A20: =B19 -> CPU.02 | C20: MATERIAL | G20: 0 | H20: ss
A21: =B19 -> CPU.02 | C21: EQUIPAMENTOS | G21: =SUM(G22:G25) -> 4198.014144 | H21: ss
A22: PRÓPRIA | B22: CODE | C22: Veículo tipo pick-up, cabine dupla - 2.0 16V 4x4 diesel Aut. | D22: dia | E22: 2 | F22: ='CPU-VEICULO_PickUp'!C11 -> 511.5749292 | G22: =E22*F22 -> 1023.149858 | H22: ca
A23: SINAPI | B23: 100946 | C23: Transporte Com Caminhão Carroceria 9T, Em Via Urbana Em Revestimento Primário (Unidade: Txkm). Af_07/2020 | D23: TXKM | E23: ='Memorial de cálculo'!H18 -> 108.4285714 | F23: =VLOOKUP(B23,'Comp_Sinapi PE_Sem-Desoneracao'!$B$11:$E$9733,4,0) -> 2.44 | G23: =E23*F23 -> 264.5657143 | H23: ca | I23: considerando 5 toneladas de carga
A24: SINAPI | B24: 100947 | C24: Transporte Com Caminhão Carroceria 9T, Em Via Urbana Pavimentada, Dmt Até 30Km (Unidade: Txkm). Af_07/2020 | D24: TXKM | E24: ='Memorial de cálculo'!H21 -> 300 | F24: =VLOOKUP(B24,'Comp_Sinapi PE_Sem-Desoneracao'!$B$11:$E$9733,4,0) -> 2.25 | G24: =E24*F24 -> 675 | H24: ca
A25: SINAPI | B25: 100948 | C25: Transporte Com Caminhão Carroceria 9T, Em Via Urbana Pavimentada, Adicional Para Dmt Excedente A 30 Km (Unidade: Txkm). Af_07/2020 | D25: TXKM | E25: ='Memorial de cálculo'!H24 -> 2511.571429 | F25: =VLOOKUP(B25,'Comp_Sinapi PE_Sem-Desoneracao'!$B$11:$E$9733,4,0) -> 0.89 | G25: =E25*F25 -> 2235.298571 | H25: ca
A26: =B19 -> CPU.02 | C26: SERVIÇOS | G26: 0 | H26: ss
A27: =B19 -> CPU.02 | C27: MÃO DE OBRA | G27: 0 | H27: mdo
B29: CPU.03 | C29: Execução de canteiro de obras, inclusive, limpeza, refeitório, sanitários e central de formas | D29: m2 | E29: 1 | G29: =SUM(G38,G32,G31,G30) -> 738.7466393 | H29: S
A30: =B29 -> CPU.03 | C30: MATERIAL | G30: 0 | H30: ss
A31: =B29 -> CPU.03 | C31: EQUIPAMENTOS | G31: 0 | H31: ss
A32: =B29 -> CPU.03 | C32: SERVIÇOS | G32: =SUM(G33:G37) -> 738.7466393 | H32: ss
A33: SINAPI | B33: 98524 | C33: Limpeza Manual De Vegetação Em Terreno Com Enxada. Af_03/2024 | D33: M2 | E33: 1 | F33: =VLOOKUP(B33,'Comp_Sinapi PE_Sem-Desoneracao'!$B$11:$E$9733,4,0) -> 5.13 | G33: =E33*F33 -> 5.13 | H33: ca
A34: PRÓPRIA | B34: 93210-ADAPTADO | C34: EXECUÇÃO DE REFEITÓRIO EM CANTEIRO DE OBRA EM CHAPA DE MADEIRA COMPENSADA, NÃO INCLUSO MOBILIÁRIO E EQUIPAMENTOS. AF_02/2016 | D34: m2 | E34: ='Memorial de cálculo'!H29/'Memorial de cálculo'!H28 -> 0.2631578947 | F34: ='COMPOSICÕES MODIFICADAS'!D154 -> 599.503077 | G34: =E34*F34 -> 157.7639676 | H34: ca
A35: PRÓPRIA | B35: 93212-ADAPTADO | C35: EXECUÇÃO DE SANITÁRIO E VESTIÁRIO EM CANTEIRO DE OBRA EM CHAPA DE MADEIRA COMPENSADA, NÃO INCLUSO MOBILIÁRIO. AF_02/2016 | D35: m2 | E35: ='Memorial de cálculo'!H30/'Memorial de cálculo'!H28 -> 0.3157894737 | F35: ='COMPOSICÕES MODIFICADAS'!D9 -> 974.76 | G35: 307.8189474 | H35: ca
A36: PRÓPRIA | B36: 93583-ADAPTADO | C36: EXECUÇÃO DE CENTRAL DE FÔRMAS, PRODUÇÃO DE ARGAMASSA OU CONCRETO EM CANTEIRO DE OBRA, NÃO INCLUSO MOBILIÁRIO E EQUIPAMENTOS. AF_04/2016 | D36: m2 | E36: ='Memorial de cálculo'!H31/'Memorial de cálculo'!H28 -> 0.4210526316 | F36: ='COMPOSICÕES MODIFICADAS'!D114 -> 571.86 | G36: 240.7831579 | H36: ca
A37: PRÓPRIA | B37: CODE | C37: HOSPEDAGEM | D37: un | E37: ='Memorial de cálculo'!D33*'Memorial de cálculo'!H33 -> 0.1394375 | F37: ='CPU HOSPEDAGEM'!C19 -> 195.4321212 | G37: 27.2505664 | H37: ca
A38: =B29 -> CPU.03 | C38: MÃO DE OBRA | G38: 0 | H38: mdo
B40: CPU.04 | C40: Limpeza de vegetação | D40: m2 | E40: 1 | G40: =SUM(G48,G43,G42,G41) -> 7.970814634 | H40: S | J40: =G40*14000 -> 111591.4049
A41: =B40 -> CPU.04 | C41: MATERIAL | G41: 0 | H41: ss
A42: =B40 -> CPU.04 | C42: EQUIPAMENTOS | G42: 0 | H42: ss
A43: =B40 -> CPU.04 | C43: SERVIÇOS | G43: =SUM(G44:G47) -> 7.970814634 | H43: ss
A44: SINAPI | B44: 98524 | C44: Limpeza Manual De Vegetação Em Terreno Com Enxada. Af_03/2024 | D44: M2 | E44: 1 | F44: =VLOOKUP(B44,'Comp_Sinapi PE_Sem-Desoneracao'!$B$11:$E$9733,4,0) -> 5.13 | G44: =E44*F44 -> 5.13 | H44: ca
A45: PRÓPRIA | B45: CODE | C45: Hospedagem | D45: un | E45: ='Memorial de cálculo'!D37*'Memorial de cálculo'!H37 -> 0.0025 | F45: ='CPU HOSPEDAGEM'!C19 -> 195.4321212 | G45: =E45*F45 -> 0.488580303 | H45: ca
A46: PRÓPRIA | B46: CODE | C46: Veículo tipo pick-up, cabine dupla - 2.0 16V 4x4 diesel Aut. | D46: dia | E46: ='Memorial de cálculo'!H37 -> 0.000625 | F46: ='CPU-VEICULO_PickUp'!C11 -> 511.5749292 | G46: =E46*F46 -> 0.3197343307 | H46: ca
A47: SINAPI | B47: 93589 | C47: Transporte Com Caminhão Basculante De 10 M³, Em Via Urbana Em Revestimento Primário (Unidade: M3Xkm). Af_07/2020 | D47: M3XKM | E47: =15*0.05 -> 0.75 | F47: =VLOOKUP(B47,'Comp_Sinapi PE_Sem-Desoneracao'!$B$11:$E$9733,4,0) -> 2.71 | G47: =E47*F47 -> 2.0325 | H47: ca | I47: considerando 5 cm de altura da vegetação e 15 km para bota-fora
A48: =B40 -> CPU.04 | C48: MÃO DE OBRA | G48: 0 | H48: mdo
B50: CPU.05 | C50: Corte de tronco e remoção de raiz | D50: un | E50: 1 | G50: =SUM(G61,G53,G52,G51) -> 458.5808984 | H50: S
A51: =B50 -> CPU.05 | C51: MATERIAL | G51: 0 | H51: ss
A52: =B50 -> CPU.05 | C52: EQUIPAMENTOS | G52: 0 | H52: ss
A53: =B50 -> CPU.05 | C53: SERVIÇOS | G53: =SUM(G54:G60) -> 458.5808984 | H53: ss
A54: SINAPI | B54: 98529 | C54: Corte Raso E Recorte De Árvore Com Diâmetro De Tronco Maior Ou Igual A 0,20 M E Menor Que 0,40 M. Af_03/2024 | D54: UN | E54: 1 | F54: =VLOOKUP(B54,'Comp_Sinapi PE_Sem-Desoneracao'!$B$11:$E$9733,4,0) -> 81.17 | G54: =E54*F54 -> 81.17 | H54: ca
A55: SINAPI | B55: 98526 | C55: Remoção De Raízes Remanescentes De Tronco De Árvore Com Diâmetro Maior Ou Igual A 0,20 M E Menor Que 0,40 M. Af_03/2024 | D55: UN | E55: 1 | F55: =VLOOKUP(B55,'Comp_Sinapi PE_Sem-Desoneracao'!$B$11:$E$9733,4,0) -> 130.96 | G55: 130.96 | H55: ca
A56: SINAPI | B56: 6081 | C56: Argila Ou Barro Para Aterro/Reaterro (Com Transporte Ate 10 Km) | D56: M3 | E56: 0.5 | F56: 115 | G56: 57.5 | H56: i
A57: SINAPI | B57: 93382 | C57: Reaterro Manual De Valas, Com Compactador De Solos De Percussão. Af_08/2023 | D57: M3 | E57: 0.5 | F57: =VLOOKUP(B57,'Comp_Sinapi PE_Sem-Desoneracao'!$B$11:$E$9733,4,0) -> 27.42 | G57: 13.71 | H57: ca
A58: PRÓPRIA | B58: CODE | C58: Hospedagem | D58: un | E58: ='Memorial de cálculo'!D41*'Memorial de cálculo'!H41+'Memorial de cálculo'!D42*'Memorial de cálculo'!H42 -> 0.41525 | F58: ='CPU HOSPEDAGEM'!C19 -> 195.4321212 | G58: 81.15318833 | H58: ca
A59: PRÓPRIA | B59: CODE | C59: Veículo tipo pick-up, cabine dupla - 2.0 16V 4x4 diesel Aut. | D59: dia | E59: =LARGE('Memorial de cálculo'!H41:H42,1) -> 0.1441875 | F59: ='CPU-VEICULO_PickUp'!C11 -> 511.5749292 | G59: =E59*F59 -> 73.7627101 | H59: ca
A60: SINAPI | B60: 93589 | C60: Transporte Com Caminhão Basculante De 10 M³, Em Via Urbana Em Revestimento Primário (Unidade: M3Xkm). Af_07/2020 | D60: M3XKM | E60: =15*0.5 -> 7.5 | F60: =VLOOKUP(B60,'Comp_Sinapi PE_Sem-Desoneracao'!$B$11:$E$9733,4,0) -> 2.71 | G60: 20.325 | H60: ca
A61: =B50 -> CPU.05 | C61: MÃO DE OBRA | G61: 0 | H61: mdo
B63: CPU.07 | C63: Enrocamento c/ pedra de mão c/ fornecimento e assentamento | D63: m3 | E63: 1 | G63: =SUM(G74,G67,G66,G64) -> 465.9959793 | H63: S
A64: =B63 -> CPU.07 | C64: MATERIAL | G64: =SUM(G65) -> 124.16 | H64: ss
A65: SCO | B65: MAT095150 | C65: Pedra De Mao Ou Pedra Rachao Para Arrimo/Fundacao (Posto Pedreira/Fornecedor, Sem Frete) | D65: M3 | E65: 1 | F65: 124.16 | G65: =E65*F65 -> 124.16 | H65: i
A66: =B63 -> CPU.07 | C66: EQUIPAMENTOS | G66: 0 | H66: ss
A67: =B63 -> CPU.07 | C67: SERVIÇOS | G67: =SUM(G68:G73) -> 331.0499793 | H67: ss
A68: SINAPI | B68: 93592 | C68: Transporte Com Caminhão Basculante De 14 M³, Em Via Urbana Em Revestimento Primário (Unidade: M3Xkm). Af_07/2020 | D68: M3XKM | E68: ='Memorial de cálculo'!H8 -> 10.84285714 | F68: =VLOOKUP(B68,'Comp_Sinapi PE_Sem-Desoneracao'!$B$11:$E$9733,4,0) -> 2.32 | G68: =E68*F68 -> 25.15542857 | H68: ca
A69: SINAPI | B69: 95876 | C69: Transporte Com Caminhão Basculante De 14 M³, Em Via Urbana Pavimentada, Dmt Até 30 Km (Unidade: M3Xkm). Af_07/2020 | D69: M3XKM | E69: =30 -> 30 | F69: =VLOOKUP(B69,'Comp_Sinapi PE_Sem-Desoneracao'!$B$11:$E$9733,4,0) -> 2.11 | G69: =E69*F69 -> 63.3 | H69: ca
A70: SINAPI | B70: 93593 | C70: Transporte Com Caminhão Basculante De 14 M³, Em Via Urbana Pavimentada, Adicional Para Dmt Excedente A 30 Km (Unidade: M3Xkm). Af_07/2020 | D70: M3XKM | E70: ='Memorial de cálculo'!H7-30 -> 251.1571429 | F70: =VLOOKUP(B70,'Comp_Sinapi PE_Sem-Desoneracao'!$B$11:$E$9733,4,0) -> 0.85 | G70: =E70*F70 -> 213.4835714 | H70: ca
A71: SINAPI | B71: 100979 | C71: Carga, Manobra E Descarga De Solos E Materiais Granulares Em Caminhão Basculante 14 M³ - Carga Com Escavadeira Hidráulica (Caçamba De 1,20 M³ / 155 Hp) E Descarga Livre (Unidade: M3). Af_07/2020 | D71: M3 | E71: 1 | F71: =VLOOKUP(B71,'Comp_Sinapi PE_Sem-Desoneracao'!$B$11:$E$9733,4,0) -> 6.55 | G71: =E71*F71 -> 6.55 | H71: ca
A72: PRÓPRIA | B72: CODE | C72: Hospedagem | D72: un | E72: ='Memorial de cálculo'!D46*'Memorial de cálculo'!H46+'Memorial de cálculo'!D47*'Memorial de cálculo'!H47 -> 0.05 | F72: ='CPU HOSPEDAGEM'!C19 -> 195.4321212 | G72: =E72*F72 -> 9.771606061 | H72: ca
A73: PRÓPRIA | B73: CODE | C73: Veículo tipo pick-up, cabine dupla - 2.0 16V 4x4 diesel Aut. | D73: dia | E73: =LARGE('Memorial de cálculo'!H46:H47,1) -> 0.025 | F73: ='CPU-VEICULO_PickUp'!C11 -> 511.5749292 | G73: =E73*F73 -> 12.78937323 | H73: ca
A74: =B63 -> CPU.07 | C74: MÃO DE OBRA | G74: =SUM(G75:G76) -> 10.786 | H74: mdo
A75: SINAPI | B75: 88309 | C75: Pedreiro Com Encargos Complementares | D75: H | E75: 0.2 | F75: =VLOOKUP(B75,'Comp_Sinapi PE_Sem-Desoneracao'!$B$11:$E$9733,4,0) -> 29.85 | G75: =E75*F75 -> 5.97 | H75: ca
A76: SINAPI | B76: 88316 | C76: Servente Com Encargos Complementares | D76: H | E76: 0.2 | F76: =VLOOKUP(B76,'Comp_Sinapi PE_Sem-Desoneracao'!$B$11:$E$9733,4,0) -> 24.08 | G76: =E76*F76 -> 4.816 | H76: ca
B79: CPU.08 | C79: Canaleta meia cana de concreto (D=30cm) - Fornecimento e instalação | D79: m | E79: 1 | G79: =SUM(G91,G82,G81,G80) -> 149.5661046 | H79: S
A80: =B79 -> CPU.08 | C80: MATERIAL | G80: 0 | H80: ss
A81: =B79 -> CPU.08 | C81: EQUIPAMENTOS | G81: 0 | H81: ss
A82: =B79 -> CPU.08 | C82: SERVIÇOS | G82: =SUM(G85:G90) -> 149.5661046 | H82: ss
A83: SINAPI | B83: 93358 | C83: =PROPER(IF(H83="i",VLOOKUP(B83,'[52]Ins SINAPI PE 04-2025 Onerado'!$B$11:$F$50003,2,0),VLOOKUP(B83,'[52]Comp SINAPI PE 04-2025 Onerado'!$B$11:$C$50004,2,0))) -> Escavação Manual De Vala. Af_09/2024 | D83: =IF(H83="i",VLOOKUP(B83,'[52]Ins SINAPI PE 04-2025 Onerado'!$B$11:$F$50003,2,0),VLOOKUP(B83,'[52]Comp SINAPI PE 04-2025 Onerado'!$B$11:$H$50004,3,0)) -> M3 | E83: 0.1188 | F83: =VLOOKUP(B83,'Comp_Sinapi PE_Sem-Desoneracao'!$B$11:$E$9733,4,0) -> 95.25 | G83: =TRUNC(E83*F83,2) -> 11.31
A84: SETOP | B84: ED-51093 | C84: APILOAMENTO E REGULARIZACAO MANUAL DE FUNDO DE CAVAS | D84: M2 | E84: 0.36 | F84: 26.06 | G84: =TRUNC(E84*F84,2) -> 9.38
A85: SINAPI | B85: 102990 | C85: Canaleta Meia Cana Pré-Moldada De Concreto (D = 30 Cm) - Fornecimento E Instalação. Af_08/2021 | D85: M | E85: 1 | F85: =VLOOKUP(B85,'Comp_Sinapi PE_Sem-Desoneracao'!$B$11:$E$9733,4,0) -> 53.25 | G85: =E85*F85 -> 53.25 | H85: ca
A86: SINAPI | B86: 100946 | C86: Transporte Com Caminhão Carroceria 9T, Em Via Urbana Em Revestimento Primário (Unidade: Txkm). Af_07/2020 | D86: TXKM | E86: =0.052*'Memorial de cálculo'!H8 -> 0.5638285714 | F86: =VLOOKUP(B86,'Comp_Sinapi PE_Sem-Desoneracao'!$B$11:$E$9733,4,0) -> 2.44 | G86: 1.375741714 | H86: ca | I86: considerando 52 kg por metro de canaleta
A87: SINAPI | B87: 100947 | C87: Transporte Com Caminhão Carroceria 9T, Em Via Urbana Pavimentada, Dmt Até 30Km (Unidade: Txkm). Af_07/2020 | D87: TXKM | E87: =0.052*30 -> 1.56 | F87: =VLOOKUP(B87,'Comp_Sinapi PE_Sem-Desoneracao'!$B$11:$E$9733,4,0) -> 2.25 | G87: 3.51 | H87: ca
A88: SINAPI | B88: 100948 | C88: Transporte Com Caminhão Carroceria 9T, Em Via Urbana Pavimentada, Adicional Para Dmt Excedente A 30 Km (Unidade: Txkm). Af_07/2020 | D88: TXKM | E88: =0.052*('Memorial de cálculo'!H7-30) -> 13.06017143 | F88: =VLOOKUP(B88,'Comp_Sinapi PE_Sem-Desoneracao'!$B$11:$E$9733,4,0) -> 0.89 | G88: 11.62355257 | H88: ca
A89: PRÓPRIA | B89: CODE | C89: Hospedagem | D89: un | E89: ='Memorial de cálculo'!D51*'Memorial de cálculo'!G51+'Memorial de cálculo'!D52*'Memorial de cálculo'!H52 -> 0.31635 | F89: ='CPU HOSPEDAGEM'!C19 -> 195.4321212 | G89: 61.82495155 | H89: ca
A90: PRÓPRIA | B90: CODE | C90: Veículo tipo pick-up, cabine dupla - 2.0 16V 4x4 diesel Aut. | D90: dia | E90: =LARGE('Memorial de cálculo'!H51:H52,1) -> 0.03515 | F90: ='CPU-VEICULO_PickUp'!C11 -> 511.5749292 | G90: =E90*F90 -> 17.98185876 | H90: ca
A91: =B79 -> CPU.08 | C91: MÃO DE OBRA | G91: 0 | H91: mdo
B94: CPU.09 | C94: Entrada para descida d'água | D94: un | E94: 1 | G94: =SUM(G102,G97,G96,G95) -> 193.9202431 | H94: S
A95: =B110 | C95: MATERIAL | G95: 0 | H95: ss
A96: =B94 -> CPU.09 | C96: EQUIPAMENTOS | G96: 0 | H96: ss
A97: =B94 -> CPU.09 | C97: SERVIÇOS | G97: =SUM(G98:G101) -> 193.9202431 | H97: ss
A98: SINAPI | B98: 94964 | C98: Concreto Fck = 20Mpa, Traço 1:2,7:3 (Em Massa Seca De Cimento/ Areia Média/ Brita 1) - Preparo Mecânico Com Betoneira 400 L. Af_05/2021 | D98: M3 | E98: =2*1*0.3*0.1 -> 0.06 | F98: =VLOOKUP(B98,'Comp_Sinapi PE_Sem-Desoneracao'!$B$11:$E$9733,4,0) -> 483.17 | G98: =E98*F98 -> 28.9902 | H98: ca | I98: comprimento 1 m, altura 0,30 m e espessura 0,10 m
A99: SINAPI | B99: 92268 | C99: Fabricação De Fôrma Para Lajes, Em Chapa De Madeira Compensada Plastificada, E = 18 Mm. Af_09/2020 | D99: M2 | E99: =2*1*0.3 -> 0.6 | F99: =VLOOKUP(B99,'Comp_Sinapi PE_Sem-Desoneracao'!$B$11:$E$9733,4,0) -> 80.19 | G99: 48.114 | H99: ca | I99: comprimento 1 m, altura 0,30 m
A100: PRÓPRIA | B100: CODE | C100: Hospedagem | D100: un | E100: ='Memorial de cálculo'!D59*'Memorial de cálculo'!H59+'Memorial de cálculo'!D60*'Memorial de cálculo'!H60+'Memorial de cálculo'!D56*'Memorial de cálculo'!H56+'Memorial de cálculo'!D57*'Memorial de cálculo'!H57 -> 0.2330095 | F100: ='CPU HOSPEDAGEM'!C19 -> 195.4321212 | G100: 45.53754085 | H100: ca
A101: PRÓPRIA | B101: CODE | C101: Veículo tipo pick-up, cabine dupla - 2.0 16V 4x4 diesel Aut. | D101: dia | E101: =LARGE('Memorial de cálculo'!H56:H60,1) -> 0.1393315 | F101: ='CPU-VEICULO_PickUp'!C11 -> 511.5749292 | G101: =E101*F101 -> 71.27850224 | H101: ca
A102: =B94 -> CPU.09 | C102: MÃO DE OBRA | G102: 0 | H102: mdo
B104: CPU.10 | C104: Plantio de vegetação para proteção de talude com hidrossemeadura, inclusive adubação e transporte | D104: m2 | E104: 1 | G104: =SUM(G114,G107,G106,G105) -> 14.56336002 | H104: S
A105: =B120 | C105: MATERIAL | G105: 0 | H105: ss
A106: =B104 -> CPU.10 | C106: EQUIPAMENTOS | G106: 0 | H106: ss
A107: =B104 -> CPU.10 | C107: SERVIÇOS | G107: =SUM(G108:G113) -> 14.56336002 | H107: ss
A108: SICRO | B108: 4413905 | C108: Hidrossemeadura | D108: M2 | E108: 1 | F108: 6.51 | G108: =E108*F108 -> 6.51 | H108: ca
A109: SINAPI | B109: 100946 | C109: Transporte Com Caminhão Carroceria 9T, Em Via Urbana Em Revestimento Primário (Unidade: Txkm). Af_07/2020 | D109: TXKM | E109: ='Memorial de cálculo'!H8*0.02 -> 0.2168571429 | F109: =VLOOKUP(B109,'Comp_Sinapi PE_Sem-Desoneracao'!$B$11:$E$9733,4,0) -> 2.44 | G109: 0.5291314286 | H109: ca
A110: SINAPI | B110: 100947 | C110: Transporte Com Caminhão Carroceria 9T, Em Via Urbana Pavimentada, Dmt Até 30Km (Unidade: Txkm). Af_07/2020 | D110: TXKM | E110: =30*0.02 -> 0.6 | F110: =VLOOKUP(B110,'Comp_Sinapi PE_Sem-Desoneracao'!$B$11:$E$9733,4,0) -> 2.25 | G110: =E110*F110 -> 1.35 | H110: ca
A111: SINAPI | B111: 100948 | C111: Transporte Com Caminhão Carroceria 9T, Em Via Urbana Pavimentada, Adicional Para Dmt Excedente A 30 Km (Unidade: Txkm). Af_07/2020 | D111: TXKM | E111: =('Memorial de cálculo'!H7-30)*0.02 -> 5.023142857 | F111: =VLOOKUP(B111,'Comp_Sinapi PE_Sem-Desoneracao'!$B$11:$E$9733,4,0) -> 0.89 | G111: 4.470597143 | H111: ca
A112: PRÓPRIA | B112: CODE | C112: Hospedagem | D112: un | E112: ='Memorial de cálculo'!D64*'Memorial de cálculo'!H64 -> 0.002409638554 | F112: ='CPU HOSPEDAGEM'!C19 -> 195.4321212 | G112: 0.470920774 | H112: ca
A113: PRÓPRIA | B113: CODE | C113: Veículo tipo pick-up, cabine dupla - 2.0 16V 4x4 diesel Aut. | D113: dia | E113: =LARGE('Memorial de cálculo'!H64:H64,1) -> 0.002409638554 | F113: ='CPU-VEICULO_PickUp'!C11 -> 511.5749292 | G113: =E113*F113 -> 1.232710673 | H113: ca
A114: =B104 -> CPU.10 | C114: MÃO DE OBRA | G114: 0 | H114: mdo
B116: CPU.11 | C116: Apicoamento da superfície | D116: m2 | E116: 1 | G116: =SUM(G126,G119,G118,G117) -> 34.72160317 | H116: S
A117: =B133 | C117: MATERIAL | G117: 0 | H117: ss
A118: =B116 -> CPU.11 | C118: EQUIPAMENTOS | G118: 0 | H118: ss
A119: =B116 -> CPU.11 | C119: SERVIÇOS | G119: =SUM(G120:G125) -> 34.72160317 | H119: ss
A120: SINAPI | B120: 97631 | C120: Demolição De Argamassas, De Forma Manual, Sem Reaproveitamento. Af_09/2023 | D120: M2 | E120: =0.05*15 -> 0.75 | F120: =VLOOKUP(B120,'Comp_Sinapi PE_Sem-Desoneracao'!$B$11:$E$9733,4,0) -> 12.75 | G120: =E120*F120 -> 9.5625 | H120: ca
A121: SINAPI | B121: 93589 | C121: Transporte Com Caminhão Basculante De 10 M³, Em Via Urbana Em Revestimento Primário (Unidade: M3Xkm). Af_07/2020 | D121: M3XKM | E121: =0.05*15 -> 0.75 | F121: =VLOOKUP(B121,'Comp_Sinapi PE_Sem-Desoneracao'!$B$11:$E$9733,4,0) -> 2.71 | G121: =E121*F121 -> 2.0325 | H121: ca | J121: considerando 5 cm de entulho e 15 km para bota-fora
A122: SINAPI | B122: 95875 | C122: Transporte Com Caminhão Basculante De 10 M³, Em Via Urbana Pavimentada, Dmt Até 30 Km (Unidade: M3Xkm). Af_07/2020 | D122: M3XKM | E122: =0.05*15 -> 0.75 | F122: =VLOOKUP(B122,'Comp_Sinapi PE_Sem-Desoneracao'!$B$11:$E$9733,4,0) -> 2.49 | G122: 1.8675 | H122: ca | J122: considerando 5 cm de entulho e 15 km para bota-fora
A123: SINAPI | B123: 93590 | C123: Transporte Com Caminhão Basculante De 10 M³, Em Via Urbana Pavimentada, Adicional Para Dmt Excedente A 30 Km (Unidade: M3Xkm). Af_07/2020 | D123: M3XKM | E123: =0.05*15 -> 0.75 | F123: =VLOOKUP(B123,'Comp_Sinapi PE_Sem-Desoneracao'!$B$11:$E$9733,4,0) -> 0.98 | G123: 0.735 | H123: ca | J123: considerando 5 cm de entulho e 15 km para bota-fora
A124: PRÓPRIA | B124: CODE | C124: Hospedagem | D124: un | E124: ='Memorial de cálculo'!D68*'Memorial de cálculo'!H68+'Memorial de cálculo'!D69*'Memorial de cálculo'!H69 -> 0.0627875 | F124: ='CPU HOSPEDAGEM'!C19 -> 195.4321212 | G124: 12.27069431 | H124: ca
A125: PRÓPRIA | B125: CODE | C125: Veículo tipo pick-up, cabine dupla - 2.0 16V 4x4 diesel Aut. | D125: dia | E125: =LARGE('Memorial de cálculo'!H68:H69,1) -> 0.01613333333 | F125: ='CPU-VEICULO_PickUp'!C11 -> 511.5749292 | G125: =E125*F125 -> 8.253408857 | H125: ca
A126: =B116 -> CPU.11 | C126: MÃO DE OBRA | G126: 0 | H126: mdo
B128: CPU.12 | C128: Enrocamento ARCO tipo rachão reciclado cinza classe A jogado com fornecimento | D128: m3 | E128: 1 | G128: =SUM(G139,G132,G131,G129) -> 371.816349 | H128: S
A129: =B128 -> CPU.12 | C129: MATERIAL | G129: =SUM(G130) -> 60 | H129: ss
A130: SINAPI | B130: 40553 | C130: Agregado Reciclado, Tipo Rachao Reciclado Cinza, Classe A | D130: M3 | E130: 1 | F130: 60 | G130: =E130*F130 -> 60 | H130: i
A131: =B128 -> CPU.12 | C131: EQUIPAMENTOS | G131: 0 | H131: ss
A132: =B128 -> CPU.12 | C132: SERVIÇOS | G132: =SUM(G133:G138) -> 311.277049 | H132: ss
A133: SINAPI | B133: 93592 | C133: Transporte Com Caminhão Basculante De 14 M³, Em Via Urbana Em Revestimento Primário (Unidade: M3Xkm). Af_07/2020 | D133: M3XKM | E133: ='Memorial de cálculo'!H8 -> 10.84285714 | F133: =VLOOKUP(B133,'Comp_Sinapi PE_Sem-Desoneracao'!$B$11:$E$9733,4,0) -> 2.32 | G133: =E133*F133 -> 25.15542857 | H133: ca
A134: SINAPI | B134: 95876 | C134: Transporte Com Caminhão Basculante De 14 M³, Em Via Urbana Pavimentada, Dmt Até 30 Km (Unidade: M3Xkm). Af_07/2020 | D134: M3XKM | E134: 30 | F134: =VLOOKUP(B134,'Comp_Sinapi PE_Sem-Desoneracao'!$B$11:$E$9733,4,0) -> 2.11 | G134: =E134*F134 -> 63.3 | H134: ca
A135: SINAPI | B135: 93593 | C135: Transporte Com Caminhão Basculante De 14 M³, Em Via Urbana Pavimentada, Adicional Para Dmt Excedente A 30 Km (Unidade: M3Xkm). Af_07/2020 | D135: M3XKM | E135: ='Memorial de cálculo'!H7-30 -> 251.1571429 | F135: =VLOOKUP(B135,'Comp_Sinapi PE_Sem-Desoneracao'!$B$11:$E$9733,4,0) -> 0.85 | G135: =E135*F135 -> 213.4835714 | H135: ca
A136: SINAPI | B136: 100976 | C136: Carga, Manobra E Descarga De Solos E Materiais Granulares Em Caminhão Basculante 18 M³ - Carga Com Pá Carregadeira (Caçamba De 1,7 A 2,8 M³ / 128 Hp) E Descarga Livre (Unidade: M3). Af_07/2020 | D136: M3 | E136: 1 | F136: =VLOOKUP(B136,'Comp_Sinapi PE_Sem-Desoneracao'!$B$11:$E$9733,4,0) -> 8.21 | G136: 8.21 | H136: ca
A137: PRÓPRIA | B137: CODE | C137: Hospedagem | D137: un | E137: ='Memorial de cálculo'!D73*'Memorial de cálculo'!H73+'Memorial de cálculo'!D74*'Memorial de cálculo'!H74 -> 0.0025 | F137: ='CPU HOSPEDAGEM'!C19 -> 195.4321212 | G137: 0.488580303 | H137: ca
A138: PRÓPRIA | B138: CODE | C138: Veículo tipo pick-up, cabine dupla - 2.0 16V 4x4 diesel Aut. | D138: dia | E138: =LARGE('Memorial de cálculo'!H73:H74,1) -> 0.00125 | F138: ='CPU-VEICULO_PickUp'!C11 -> 511.5749292 | G138: =E138*F138 -> 0.6394686614 | H138: ca
A139: =B128 -> CPU.12 | C139: MÃO DE OBRA | G139: =SUM(G140:G141) -> 0.5393 | H139: mdo
A140: SINAPI | B140: 88309 | C140: Pedreiro Com Encargos Complementares | D140: H | E140: 0.01 | F140: =VLOOKUP(B140,'Comp_Sinapi PE_Sem-Desoneracao'!$B$11:$E$9733,4,0) -> 29.85 | G140: =E140*F140 -> 0.2985 | H140: ca
A141: SINAPI | B141: 88316 | C141: Servente Com Encargos Complementares | D141: H | E141: 0.01 | F141: =VLOOKUP(B141,'Comp_Sinapi PE_Sem-Desoneracao'!$B$11:$E$9733,4,0) -> 24.08 | G141: =E141*F141 -> 0.2408 | H141: ca
B143: CPU.13 | C143: Recomposição das erosões, inclusive, regularização da superfície e reaterro | D143: m3 | E143: 1 | G143: =SUM(G159,G147,G146,G144) -> 469.1425876 | H143: S
A144: =B143 -> CPU.13 | C144: MATERIAL | G144: =SUM(G145) -> 115 | H144: ss
A145: SINAPI | B145: 6081 | C145: Argila Ou Barro Para Aterro/Reaterro (Com Transporte Ate 10 Km) | D145: M3 | E145: 1 | F145: =F56 -> 115 | G145: =E145*F145 -> 115 | H145: i
A146: =B143 -> CPU.13 | C146: EQUIPAMENTOS | G146: 0 | H146: ss
A147: =B143 -> CPU.13 | C147: SERVIÇOS | G147: =SUM(G148:G158) -> 354.1425876 | H147: ss
A148: SINAPI | B148: 101230 | C148: Escavação Vertical Para Infraestrutura, Com Carga, Descarga E Transporte De Solo De 1ª Categoria, Com Escavadeira Hidráulica (Caçamba: 0,8 M³ / 111 Hp), Frota De 3 Caminhões Basculantes De 14 M³, Dmt Até 1 Km E Velocidade Média14 Km/H. Af_05/2020 | D148: M3 | E148: 0.1 | F148: =VLOOKUP(B148,'Comp_Sinapi PE_Sem-Desoneracao'!$B$11:$E$9733,4,0) -> 10.95 | G148: =E148*F148 -> 1.095 | H148: ca | I148: Preparação da superfície 10%
A149: SINAPI | B149: 93589 | C149: Transporte Com Caminhão Basculante De 10 M³, Em Via Urbana Em Revestimento Primário (Unidade: M3Xkm). Af_07/2020 | D149: M3XKM | E149: ='Memorial de cálculo'!$H$8-10 -> 0.8428571429 | F149: =VLOOKUP(B149,'Comp_Sinapi PE_Sem-Desoneracao'!$B$11:$E$9733,4,0) -> 2.71 | G149: =E149*F149 -> 2.284142857 | H149: ca | I149: Transporte da argila
A150: SINAPI | B150: 95875 | C150: Transporte Com Caminhão Basculante De 10 M³, Em Via Urbana Pavimentada, Dmt Até 30 Km (Unidade: M3Xkm). Af_07/2020 | D150: M3XKM | E150: =30 -> 30 | F150: =VLOOKUP(B150,'Comp_Sinapi PE_Sem-Desoneracao'!$B$11:$E$9733,4,0) -> 2.49 | G150: =E150*F150 -> 74.7 | H150: ca
A151: SINAPI | B151: 93590 | C151: Transporte Com Caminhão Basculante De 10 M³, Em Via Urbana Pavimentada, Adicional Para Dmt Excedente A 30 Km (Unidade: M3Xkm). Af_07/2020 | D151: M3XKM | E151: ='Memorial de cálculo'!$H$7-30 -> 251.1571429 | F151: =VLOOKUP(B151,'Comp_Sinapi PE_Sem-Desoneracao'!$B$11:$E$9733,4,0) -> 0.98 | G151: 246.134 | H151: ca
A152: SINAPI | B152: 100976 | C152: Carga, Manobra E Descarga De Solos E Materiais Granulares Em Caminhão Basculante 18 M³ - Carga Com Pá Carregadeira (Caçamba De 1,7 A 2,8 M³ / 128 Hp) E Descarga Livre (Unidade: M3). Af_07/2020 | D152: M3 | E152: 1 | F152: =VLOOKUP(B152,'Comp_Sinapi PE_Sem-Desoneracao'!$B$11:$E$9733,4,0) -> 8.21 | G152: 8.21 | H152: ca
A153: SINAPI | B153: 100951 | C153: Transporte Com Caminhão Carroceria Com Guindauto (Munck), Momento Máximo De Carga 11,7 Tm, Em Via Urbana Em Revestimento Primário (Unidade: Txkm). Af_07/2020 | D153: TXKM | E153: =(1.5*'Memorial de cálculo'!H8)/'Memorial de cálculo'!P76 -> 0.1132835821 | F153: =VLOOKUP(B153,'Comp_Sinapi PE_Sem-Desoneracao'!$B$11:$E$9733,4,0) -> 3.1 | G153: 0.3511791045 | H153: ca | I153: Tonelada da máquina | K153: 1.5
A154: SINAPI | B154: 100952 | C154: Transporte Com Caminhão Carroceria Com Guindauto (Munck), Momento Máximo De Carga 11,7 Tm, Em Via Urbana Pavimentada, Dmt Até 30Km (Unidade: Txkm). Af_07/2020 | D154: TXKM | E154: =(1.5*30)/'Memorial de cálculo'!P76 -> 0.3134328358 | F154: =VLOOKUP(B154,'Comp_Sinapi PE_Sem-Desoneracao'!$B$11:$E$9733,4,0) -> 2.85 | G154: 0.8932835821 | H154: ca | I154: Tonelada da máquina | K154: 1.5
A155: SINAPI | B155: 100953 | C155: Transporte Com Caminhão Carroceria Com Guindauto (Munck), Momento Máximo De Carga 11,7 Tm, Em Via Urbana Pavimentada, Adicional Para Dmt Excedente A 30 Km (Unidade: Txkm). Af_07/2020 | D155: TXKM | E155: =(1.5*('Memorial de cálculo'!H7-30))/'Memorial de cálculo'!P76 -> 2.624029851 | F155: =VLOOKUP(B155,'Comp_Sinapi PE_Sem-Desoneracao'!$B$11:$E$9733,4,0) -> 1.13 | G155: 2.965153731 | H155: ca | I155: Tonelada da máquina | K155: 1.5
A156: SINAPI | B156: 96385 | C156: Execução E Compactação De Corpo De Aterro De Aterro (95% De Energia Do Proctor Normal) Com Solo Predominantemente Argiloso Espessura 15 Cm - Exclusive Material, Escavação, Carga E Transporte. Af_09/2024 | D156: M3 | E156: 1 | F156: =VLOOKUP(B156,'Comp_Sinapi PE_Sem-Desoneracao'!$B$11:$E$9733,4,0) -> 11.46 | G156: 11.46 | H156: ca
A157: PRÓPRIA | B157: CT.01 | C157: Hospedagem | D157: un | E157: ='Memorial de cálculo'!D78*'Memorial de cálculo'!H78+'Memorial de cálculo'!D79*'Memorial de cálculo'!H79+'Memorial de cálculo'!D80*'Memorial de cálculo'!H80 -> 0.0153585375 | F157: ='CPU HOSPEDAGEM'!C19 -> 195.4321212 | G157: 3.001551562 | H157: ca
A158: PRÓPRIA | B158: CODE | C158: Veículo tipo pick-up, cabine dupla - 2.0 16V 4x4 diesel Aut. | D158: dia | E158: =LARGE('Memorial de cálculo'!H78:H80,1) -> 0.0059586125 | F158: ='CPU-VEICULO_PickUp'!C11 -> 511.5749292 | G158: =E158*F158 -> 3.048276768 | H158: ca
A159: =B143 -> CPU.13 | C159: MÃO DE OBRA | G159: 0 | H159: mdo
B161: CPU.14 | C161: Regularização e compactação da crista | D161: m2 | E161: 1 | G161: =SUM(G168,G164,G163,G162) -> 2.671375893 | H161: S
A162: =B161 -> CPU.14 | C162: MATERIAL | G162: 0 | H162: ss
A163: =B161 -> CPU.14 | C163: EQUIPAMENTOS | G163: 0 | H163: ss
A164: =B161 -> CPU.14 | C164: SERVIÇOS | G164: =SUM(G165:G167) -> 2.671375893 | H164: ss
A165: SINAPI | B165: 100576 | C165: Regularização E Compactação De Subleito De Solo Predominantemente Argiloso, Para Obras De Construção De Pavimentos. Af_09/2024 | D165: M2 | E165: 1 | F165: =VLOOKUP(B165,'Comp_Sinapi PE_Sem-Desoneracao'!$B$11:$E$9733,4,0) -> 1.91 | G165: =E165*F165 -> 1.91 | H165: ca
A166: PRÓPRIA | B166: CT.01 | C166: Hospedagem | D166: un | E166: ='Memorial de cálculo'!D84*'Memorial de cálculo'!H84 -> 0.0010769 | F166: ='CPU HOSPEDAGEM'!C19 -> 195.4321212 | G166: =E166*F166 -> 0.2104608513 | H166: ca
A167: PRÓPRIA | B167: CODE | C167: Veículo tipo pick-up, cabine dupla - 2.0 16V 4x4 diesel Aut. | D167: dia | E167: =LARGE('Memorial de cálculo'!H84,1) -> 0.0010769 | F167: ='CPU-VEICULO_PickUp'!C11 -> 511.5749292 | G167: =E167*F167 -> 0.5509150412 | H167: ca
A168: =B161 -> CPU.14 | C168: MÃO DE OBRA | G168: 0 | H168: mdo
B170: CPU.15 | C170: Execução de Revestimento com BGTC | D170: m3 | E170: 1 | G170: =SUM(G181,G173,G172,G171) -> 521.8490854 | H170: S
A171: =B170 -> CPU.15 | C171: MATERIAL | G171: 0 | H171: ss
A172: =B170 -> CPU.15 | C172: EQUIPAMENTOS | G172: 0 | H172: ss
A173: =B170 -> CPU.15 | C173: SERVIÇOS | G173: =SUM(G174:G180) -> 521.8490854 | H173: ss
A174: SINAPI | B174: 96397 | C174: Construção De Base E Sub-Base Para Pavimentação De Brita Graduada Simples Tratada Com Cimento, Com Espessura De 15 Cm - Exclusive Carga E Transporte. Af_09/2024 | D174: M3 | E174: 1 | F174: =VLOOKUP(B174,'Comp_Sinapi PE_Sem-Desoneracao'!$B$11:$E$9733,4,0) -> 231.67 | G174: =E174*F174 -> 231.67 | H174: ca
A175: SINAPI | B175: 93592 | C175: Transporte Com Caminhão Basculante De 14 M³, Em Via Urbana Em Revestimento Primário (Unidade: M3Xkm). Af_07/2020 | D175: M3XKM | E175: ='Memorial de cálculo'!$H$8-10 -> 0.8428571429 | F175: =VLOOKUP(B175,'Comp_Sinapi PE_Sem-Desoneracao'!$B$11:$E$9733,4,0) -> 2.32 | G175: =E175*F175 -> 1.955428571 | H175: ca
A176: SINAPI | B176: 95876 | C176: Transporte Com Caminhão Basculante De 14 M³, Em Via Urbana Pavimentada, Dmt Até 30 Km (Unidade: M3Xkm). Af_07/2020 | D176: M3XKM | E176: =30 -> 30 | F176: =VLOOKUP(B176,'Comp_Sinapi PE_Sem-Desoneracao'!$B$11:$E$9733,4,0) -> 2.11 | G176: =E176*F176 -> 63.3 | H176: ca
A177: SINAPI | B177: 93593 | C177: Transporte Com Caminhão Basculante De 14 M³, Em Via Urbana Pavimentada, Adicional Para Dmt Excedente A 30 Km (Unidade: M3Xkm). Af_07/2020 | D177: M3XKM | E177: ='Memorial de cálculo'!$H$7-30 -> 251.1571429 | F177: =VLOOKUP(B177,'Comp_Sinapi PE_Sem-Desoneracao'!$B$11:$E$9733,4,0) -> 0.85 | G177: 213.4835714 | H177: ca
A178: SINAPI | B178: 100976 | C178: Carga, Manobra E Descarga De Solos E Materiais Granulares Em Caminhão Basculante 18 M³ - Carga Com Pá Carregadeira (Caçamba De 1,7 A 2,8 M³ / 128 Hp) E Descarga Livre (Unidade: M3). Af_07/2020 | D178: M3 | E178: 1 | F178: =VLOOKUP(B178,'Comp_Sinapi PE_Sem-Desoneracao'!$B$11:$E$9733,4,0) -> 8.21 | G178: 8.21 | H178: ca
A179: PRÓPRIA | B179: CT.01 | C179: Hospedagem | D179: un | E179: ='Memorial de cálculo'!D88*'Memorial de cálculo'!H88 -> 0.004568675 | F179: ='CPU HOSPEDAGEM'!C19 -> 195.4321212 | G179: 0.8928658464 | H179: ca
A180: PRÓPRIA | B180: CODE | C180: Veículo tipo pick-up, cabine dupla - 2.0 16V 4x4 diesel Aut. | D180: dia | E180: =LARGE('Memorial de cálculo'!H88,1) -> 0.004568675 | F180: ='CPU-VEICULO_PickUp'!C11 -> 511.5749292 | G180: =E180*F180 -> 2.337219589 | H180: ca
A181: =B170 -> CPU.15 | C181: MÃO DE OBRA | G181: 0 | H181: mdo
B183: CPU.16 | C183: Restauração com uso de concreto | D183: m3 | E183: 1 | G183: =SUM(G194,G186,G185,G184) -> 2230.003011 | H183: S
A184: =B183 -> CPU.16 | C184: MATERIAL | G184: 0 | H184: ss
A185: =B183 -> CPU.16 | C185: EQUIPAMENTOS | G185: 0 | H185: ss
A186: =B183 -> CPU.16 | C186: SERVIÇOS | G186: =SUM(G187:G193) -> 2230.003011 | H186: ss
A187: SINAPI | B187: 94975 | C187: Concreto Fck = 15Mpa, Traço 1:3,4:3,5 (Em Massa Seca De Cimento/ Areia Média/ Brita 1) - Preparo Manual. Af_05/2021 | D187: M3 | E187: 1 | F187: =VLOOKUP(B187,'Comp_Sinapi PE_Sem-Desoneracao'!$B$11:$E$9733,4,0) -> 510.97 | G187: =E187*F187 -> 510.97 | H187: ca
A188: SINAPI | B188: 93589 | C188: Transporte Com Caminhão Basculante De 10 M³, Em Via Urbana Em Revestimento Primário (Unidade: M3Xkm). Af_07/2020 | D188: M3XKM | E188: ='Memorial de cálculo'!$H$8 -> 10.84285714 | F188: =VLOOKUP(B188,'Comp_Sinapi PE_Sem-Desoneracao'!$B$11:$E$9733,4,0) -> 2.71 | G188: 29.38414286 | H188: ca
A189: SINAPI | B189: 95875 | C189: Transporte Com Caminhão Basculante De 10 M³, Em Via Urbana Pavimentada, Dmt Até 30 Km (Unidade: M3Xkm). Af_07/2020 | D189: M3XKM | E189: =30 -> 30 | F189: =VLOOKUP(B189,'Comp_Sinapi PE_Sem-Desoneracao'!$B$11:$E$9733,4,0) -> 2.49 | G189: 74.7 | H189: ca
A190: SINAPI | B190: 95875 | C190: Transporte Com Caminhão Basculante De 10 M³, Em Via Urbana Pavimentada, Dmt Até 30 Km (Unidade: M3Xkm). Af_07/2020 | D190: M3XKM | E190: ='Memorial de cálculo'!$H$7-30 -> 251.1571429 | F190: =VLOOKUP(B190,'Comp_Sinapi PE_Sem-Desoneracao'!$B$11:$E$9733,4,0) -> 2.49 | G190: 625.3812857 | H190: ca
A191: SINAPI | B191: 92268 | C191: Fabricação De Fôrma Para Lajes, Em Chapa De Madeira Compensada Plastificada, E = 18 Mm. Af_09/2020 | D191: M2 | E191: 5.5 | F191: =VLOOKUP(B191,'Comp_Sinapi PE_Sem-Desoneracao'!$B$11:$E$9733,4,0) -> 80.19 | G191: 441.045 | H191: ca
A192: PRÓPRIA | B192: CODE | C192: Hospedagem | D192: un | E192: ='Memorial de cálculo'!D92*'Memorial de cálculo'!H92 -> 0.7758375 | F192: ='CPU HOSPEDAGEM'!C19 -> 195.4321212 | G192: 151.6235683 | H192: ca
A193: PRÓPRIA | B193: CODE | C193: Veículo tipo pick-up, cabine dupla - 2.0 16V 4x4 diesel Aut. | D193: dia | E193: =LARGE('Memorial de cálculo'!H92,1) -> 0.7758375 | F193: ='CPU-VEICULO_PickUp'!C11 -> 511.5749292 | G193: =E193*F193 -> 396.8990141 | H193: ca
A194: =B183 -> CPU.16 | C194: MÃO DE OBRA | G194: 0 | H194: mdo
B196: CPU.18 | C196: Régua Linimétrica Padrão “ANA”, Aço Carbono - 2 X 70 X 1000 mm (Fornecimento e Instalação) | D196: un | E196: 1 | G196: =SUM(G205,G201,G200,G197) -> 432.2683222 | H196: S
A197: =B196 -> CPU.18 | C197: MATERIAL | G197: =SUM(G198:G199) -> 201.91 | H197: ss
A198: 2025-04-09 | B198: cotação | C198: RÉGUA LINIMÉTRICA PADRÃO “ANA”, AÇO CARBONO - 2 X 70 X 1000MM | D198: un | E198: 1 | F198: =Cotação!N13 -> 138.55 | G198: =E198*F198 -> 138.55 | H198: ca
A199: SINAPI | B199: 2747 | C199: Mourao Rolico De Madeira Tratada, D = 16 A 20 Cm, H = 2,20 M, Em Eucalipto Ou Equivalente Da Regiao (Para Cerca) | D199: M | E199: 1.5 | F199: 42.24 | G199: 63.36 | H199: i
A200: =B196 -> CPU.18 | C200: EQUIPAMENTOS | G200: 0 | H200: ss
A201: =B196 -> CPU.18 | C201: SERVIÇOS | G201: =SUM(G202:G204) -> 166.0543222 | H201: ss
A202: SINAPI | B202: 94975 | C202: Concreto Fck = 15Mpa, Traço 1:3,4:3,5 (Em Massa Seca De Cimento/ Areia Média/ Brita 1) - Preparo Manual. Af_05/2021 | D202: M3 | E202: 0.01 | F202: =VLOOKUP(B202,'Comp_Sinapi PE_Sem-Desoneracao'!$B$11:$E$9733,4,0) -> 510.97 | G202: =E202*F202 -> 5.1097 | H202: ca
A203: PRÓPRIA | B203: CODE | C203: Hospedagem | D203: un | E203: ='Memorial de cálculo'!D96*'Memorial de cálculo'!H96+'Memorial de cálculo'!D97*'Memorial de cálculo'!H97 -> 0.3 | F203: ='CPU HOSPEDAGEM'!C19 -> 195.4321212 | G203: 58.62963636 | H203: ca
A204: PRÓPRIA | B204: CODE | C204: Veículo tipo pick-up, cabine dupla - 2.0 16V 4x4 diesel Aut. | D204: dia | E204: =LARGE('Memorial de cálculo'!H96:H97,1) -> 0.2 | F204: ='CPU-VEICULO_PickUp'!C11 -> 511.5749292 | G204: =E204*F204 -> 102.3149858 | H204: ca
A205: =B196 -> CPU.18 | C205: MÃO DE OBRA | G205: =SUM(G206:G207) -> 64.304 | H205: mdo
A206: SINAPI | B206: 90781 | C206: Topografo Com Encargos Complementares | D206: H | E206: 0.8 | F206: =VLOOKUP(B206,'Comp_Sinapi PE_Sem-Desoneracao'!$B$11:$E$9733,4,0) -> 32.22 | G206: =E206*F206 -> 25.776 | H206: ca
A207: SINAPI | B207: 88316 | C207: Servente Com Encargos Complementares | D207: H | E207: 1.6 | F207: =VLOOKUP(B207,'Comp_Sinapi PE_Sem-Desoneracao'!$B$11:$E$9733,4,0) -> 24.08 | G207: =E207*F207 -> 38.528 | H207: ca
B209: CPU.19 | C209: Demolição de guias e sarjetas | D209: m | E209: 1 | G209: =SUM(G216,G212,G211,G210) -> 31.81123749 | H209: S
A210: =B209 -> CPU.19 | C210: MATERIAL | G210: 0 | H210: ss
A211: =B209 -> CPU.19 | C211: EQUIPAMENTOS | G211: 0 | H211: ss
A212: =B209 -> CPU.19 | C212: SERVIÇOS | G212: =SUM(G213:G215) -> 31.81123749 | H212: ss
A213: SINAPI | B213: 104796 | C213: Demolição De Guias, Sarjetas Ou Sarjetões, De Forma Mecanizada, Sem Reaproveitamento. Af_09/2023 | D213: M | E213: 1 | F213: =VLOOKUP(B213,'Comp_Sinapi PE_Sem-Desoneracao'!$B$11:$E$9733,4,0) -> 14.38 | G213: =E213*F213 -> 14.38 | H213: ca
A214: PRÓPRIA | B214: CODE | C214: Hospedagem | D214: un | E214: ='Memorial de cálculo'!D101*'Memorial de cálculo'!H101+'Memorial de cálculo'!D102*'Memorial de cálculo'!H102 -> 0.0316375 | F214: ='CPU HOSPEDAGEM'!C19 -> 195.4321212 | G214: 6.182983735 | H214: ca
A215: PRÓPRIA | B215: CODE | C215: Veículo tipo pick-up, cabine dupla - 2.0 16V 4x4 diesel Aut. | D215: dia | E215: =LARGE('Memorial de cálculo'!H101:H102,1) -> 0.0219875 | F215: ='CPU-VEICULO_PickUp'!C11 -> 511.5749292 | G215: =E215*F215 -> 11.24825375 | H215: ca
A216: =B209 -> CPU.19 | C216: MÃO DE OBRA | G216: 0 | H216: mdo
B218: CPU.20 | C218: Guia (meio-fio) e sarjeta e conjudados de concreto, moldada In Loco, 45cm base (15 cm Base da Guia +30 cm Base da Sarjeta) x 22 cm Altura | D218: m | E218: 1 | G218: =SUM(G225,G221,G220,G219) -> 86.83558394 | H218: S
A219: =B218 -> CPU.20 | C219: MATERIAL | G219: 0 | H219: ss
A220: =B218 -> CPU.20 | C220: EQUIPAMENTOS | G220: 0 | H220: ss
A221: =B218 -> CPU.20 | C221: SERVIÇOS | G221: =SUM(G222:G224) -> 86.83558394 | H221: ss
... 50 more rows

Sheet COMPOSICÕES MODIFICADAS
A3: Código | D3: 93212 ADAPTADO
A4: Descrição | D4: EXECUÇÃO DE SANITÁRIO E VESTIÁRIO EM CANTEIRO DE OBRA EM CHAPA DE MADEIRA COMPENSADA, NÃO INCLUSO MOBILIÁRIO. AF_02/2016
A5: Data | D5: ='[52]Ins SINAPI PE 04-2025 Onerado'!B4 -> 10/06/2025
A6: Estado | D6: Pernambuco
A7: Tipo | D7: CANT - CANTEIRO DE OBRAS
A8: Unidade | D8: m²
A9: Valor sem Desoneração | D9: =SUM(I12,I16,I20:I54,I58:I61,I65:I78,I85:I105) -> 974.76
A11: Natureza | B11: Fonte | C11: codigo | D11: Descrição | E11: Tipo | F11: Unidade | G11: Valor sem Desoneração | H11: Coeficiente | I11: Preço sem Desoneração
A12: C | B12: SINAPI | C12: 89173 | D12: (COMPOSIÇÃO REPRESENTATIVA) DO SERVIÇO DE EMBOÇO/MASSA ÚNICA, APLICADO MANUALMENTE, TRAÇO 1:2:8, EM BETONEIRA DE 400L, PAREDES INTERNAS, COM EXECUÇÃO DE TALISCAS, EDIFICAÇÃO HABITACIONAL UNIFAMILIAR (CASAS) E EDIFICAÇÃO PÚBLICA PADRÃO. AF_12/2014 - ADAPTADO | E12: REVE - REVESTIMENTO E TRATAMENTO DE SUPERFÍCIES | F12: m² | G12: =SUM(I13:I15) -> 41.26 | H12: 0.7679 | I12: =ROUND(G12*H12,2) -> 31.68
A13: C | B13: SINAPI | C13: 87531 | D13: =VLOOKUP(C13,'[53]COMPOSIÇÃO SEM DESONERAÇÃO'!$B$11:$F$9696,2,FALSE) -> EMBOÇO, EM ARGAMASSA TRAÇO 1:2:8, PREPARO MECÂNICO, APLICADO MANUALMENTE EM PAREDES INTERNAS DE AMBIENTES COM ÁREA ENTRE 5M² E 10M², E = 17,5MM, COM TALISCAS. AF_03/2024 | E13: REVE - REVESTIMENTO E TRATAMENTO DE SUPERFÍCIES | F13: m² | G13: =VLOOKUP(C13,'Comp_Sinapi PE_Sem-Desoneracao'!B:E,4,FALSE) -> 39.75 | H13: 0.154 | I13: =ROUND(G13*H13,2) -> 6.12
A14: C | B14: SINAPI | C14: 87527 | D14: =VLOOKUP(C14,'[53]COMPOSIÇÃO SEM DESONERAÇÃO'!$B$11:$F$9696,2,FALSE) -> EMBOÇO, EM ARGAMASSA TRAÇO 1:2:8, PREPARO MECÂNICO, APLICADO MANUALMENTE EM PAREDES INTERNAS DE AMBIENTES COM ÁREA MENOR QUE 5M², E =17,5MM, COM TALISCAS. AF_03/2024 | E14: REVE - REVESTIMENTO E TRATAMENTO DE SUPERFÍCIES | F14: m² | G14: =VLOOKUP(C14,'Comp_Sinapi PE_Sem-Desoneracao'!B:E,4,FALSE) -> 44.4 | H14: 0.1121 | I14: =ROUND(G14*H14,2) -> 4.98
A15: C | B15: SINAPI | C15: 87529 | D15: =VLOOKUP(C15,'[53]COMPOSIÇÃO SEM DESONERAÇÃO'!$B$11:$F$9696,2,FALSE) -> MASSA ÚNICA, EM ARGAMASSA TRAÇO 1:2:8, PREPARO MECÂNICO, APLICADA MANUALMENTE EM PAREDES INTERNAS DE AMBIENTES COM ÁREA ENTRE 5M² E 10M², E = 17,5MM, COM TALISCAS. AF_03/2024 | E15: REVE - REVESTIMENTO E TRATAMENTO DE SUPERFÍCIES | F15: m² | G15: =VLOOKUP(C15,'Comp_Sinapi PE_Sem-Desoneracao'!B:E,4,FALSE) -> 41.1 | H15: 0.7339 | I15: 30.16
A16: C | B16: SINAPI | C16: 89171 | D16: (COMPOSIÇÃO REPRESENTATIVA) DO SERVIÇO DE REVESTIMENTO CERÂMICO PARA PISO COM PLACAS TIPO ESMALTADA EXTRA DE DIMENSÕES 35X35 CM, PARA EDIFICAÇÃO HABITACIONAL UNIFAMILIAR (CASA) E EDIFICAÇÃO PÚBLICA PADRÃO. AF_11/2014 - ADAPTADO | E16: PISO - PISOS | F16: m² | G16: =SUM(I17:I19) -> 59.65 | H16: 0.4628 | I16: 27.61
A17: C | B17: SINAPI | C17: 87247 | D17: =VLOOKUP(C17,'[53]COMPOSIÇÃO SEM DESONERAÇÃO'!$B$11:$F$9696,2,FALSE) -> REVESTIMENTO CERÂMICO PARA PISO COM PLACAS TIPO ESMALTADA DE DIMENSÕES 35X35 CM APLICADA EM AMBIENTES DE ÁREA ENTRE 5 M2 E 10 M2. AF_02/2023_PE | E17: PISO - PISOS | F17: m² | G17: =VLOOKUP(C17,'Comp_Sinapi PE_Sem-Desoneracao'!B:E,4,FALSE) -> 64.01 | H17: 0.3365 | I17: =ROUND(G17*H17,2) -> 21.54
A18: C | B18: SINAPI | C18: 87248 | D18: =VLOOKUP(C18,'[53]COMPOSIÇÃO SEM DESONERAÇÃO'!$B$11:$F$9696,2,FALSE) -> REVESTIMENTO CERÂMICO PARA PISO COM PLACAS TIPO ESMALTADA DE DIMENSÕES 35X35 CM APLICADA EM AMBIENTES DE ÁREA MAIOR QUE 10 M2. AF_02/2023_PE | E18: PISO - PISOS | F18: m² | G18: =VLOOKUP(C18,'Comp_Sinapi PE_Sem-Desoneracao'!B:E,4,FALSE) -> 56.18 | H18: 0.6087 | I18: =ROUND(G18*H18,2) -> 34.2
A19: C | B19: SINAPI | C19: 87246 | D19: =VLOOKUP(C19,'[53]COMPOSIÇÃO SEM DESONERAÇÃO'!$B$11:$F$9696,2,FALSE) -> REVESTIMENTO CERÂMICO PARA PISO COM PLACAS TIPO ESMALTADA DE DIMENSÕES 35X35 CM APLICADA EM AMBIENTES DE ÁREA MENOR QUE 5 M2. AF_02/2023_PE | E19: PISO - PISOS | F19: m² | G19: =VLOOKUP(C19,'Comp_Sinapi PE_Sem-Desoneracao'!B:E,4,FALSE) -> 71.44 | H19: 0.0548 | I19: 3.91
A20: C | B20: SINAPI | C20: 101165 | D20: =VLOOKUP(C20,'[53]COMPOSIÇÃO SEM DESONERAÇÃO'!$B$11:$F$9696,2,FALSE) -> ALVENARIA DE EMBASAMENTO COM BLOCO ESTRUTURAL DE CONCRETO, DE 14X19X29CM E ARGAMASSA DE ASSENTAMENTO COM PREPARO EM BETONEIRA. AF_05/2020 | E20: FUES - FUNDAÇÕES E ESTRUTURAS | F20: m³ | G20: =VLOOKUP(C20,'Comp_Sinapi PE_Sem-Desoneracao'!B:E,4,FALSE) -> 1013.86 | H20: 0.0286 | I20: 29
A21: C | B21: SINAPI | C21: 103328 | D21: =VLOOKUP(C21,'[53]COMPOSIÇÃO SEM DESONERAÇÃO'!$B$11:$F$9696,2,FALSE) -> ALVENARIA DE VEDAÇÃO DE BLOCOS CERÂMICOS FURADOS NA HORIZONTAL DE 9X19X19 CM (ESPESSURA 9 CM) E ARGAMASSA DE ASSENTAMENTO COM PREPARO EM BETONEIRA. AF_12/2021 | E21: PARE - PAREDES/PAINEIS | F21: m² | G21: =VLOOKUP(C21,'Comp_Sinapi PE_Sem-Desoneracao'!B:E,4,FALSE) -> 93.39 | H21: 0.4675 | I21: 43.66
A22: C | B22: SINAPI | C22: 91924 | D22: =VLOOKUP(C22,'[53]COMPOSIÇÃO SEM DESONERAÇÃO'!$B$11:$F$9696,2,FALSE) -> CABO DE COBRE FLEXÍVEL ISOLADO, 1,5 MM², ANTI-CHAMA 450/750 V, PARA CIRCUITOS TERMINAIS - FORNECIMENTO E INSTALAÇÃO. AF_03/2023 | E22: INEL - INSTALAÇÃO ELÉTRICA/ELETRIFICAÇÃO E ILUMINAÇÃO EXTERNA | F22: M | G22: =VLOOKUP(C22,'Comp_Sinapi PE_Sem-Desoneracao'!B:E,4,FALSE) -> 3.17 | H22: 1.253 | I22: 3.97
A23: C | B23: SINAPI | C23: 92981 | D23: =VLOOKUP(C23,'[53]COMPOSIÇÃO SEM DESONERAÇÃO'!$B$11:$F$9696,2,FALSE) -> CABO DE COBRE FLEXÍVEL ISOLADO, 16 MM², ANTI-CHAMA 450/750 V, PARA DISTRIBUIÇÃO - FORNECIMENTO E INSTALAÇÃO. AF_10/2020 | E23: INEL - INSTALAÇÃO ELÉTRICA/ELETRIFICAÇÃO E ILUMINAÇÃO EXTERNA | F23: M | G23: =VLOOKUP(C23,'Comp_Sinapi PE_Sem-Desoneracao'!B:E,4,FALSE) -> 16.5 | H23: 0.2611 | I23: 4.31
A24: C | B24: SINAPI | C24: 91926 | D24: =VLOOKUP(C24,'[53]COMPOSIÇÃO SEM DESONERAÇÃO'!$B$11:$F$9696,2,FALSE) -> CABO DE COBRE FLEXÍVEL ISOLADO, 2,5 MM², ANTI-CHAMA 450/750 V, PARA CIRCUITOS TERMINAIS - FORNECIMENTO E INSTALAÇÃO. AF_03/2023 | E24: INEL - INSTALAÇÃO ELÉTRICA/ELETRIFICAÇÃO E ILUMINAÇÃO EXTERNA | F24: M | G24: =VLOOKUP(C24,'Comp_Sinapi PE_Sem-Desoneracao'!B:E,4,FALSE) -> 4.59 | H24: 0.4699 | I24: 2.16
A25: C | B25: SINAPI | C25: 91928 | D25: =VLOOKUP(C25,'[53]COMPOSIÇÃO SEM DESONERAÇÃO'!$B$11:$F$9696,2,FALSE) -> CABO DE COBRE FLEXÍVEL ISOLADO, 4 MM², ANTI-CHAMA 450/750 V, PARA CIRCUITOS TERMINAIS - FORNECIMENTO E INSTALAÇÃO. AF_03/2023 | E25: INEL - INSTALAÇÃO ELÉTRICA/ELETRIFICAÇÃO E ILUMINAÇÃO EXTERNA | F25: M | G25: =VLOOKUP(C25,'Comp_Sinapi PE_Sem-Desoneracao'!B:E,4,FALSE) -> 7.06 | H25: 1.0442 | I25: 7.37
A26: C | B26: SINAPI | C26: 97886 | D26: =VLOOKUP(C26,'[53]COMPOSIÇÃO SEM DESONERAÇÃO'!$B$11:$F$9696,2,FALSE) -> CAIXA ENTERRADA ELÉTRICA RETANGULAR, EM ALVENARIA COM TIJOLOS CERÂMICOS MACIÇOS, FUNDO COM BRITA, DIMENSÕES INTERNAS: 0,3X0,3X0,3 M. AF_12/2020 | E26: INEL - INSTALAÇÃO ELÉTRICA/ELETRIFICAÇÃO E ILUMINAÇÃO EXTERNA | F26: UN | G26: =VLOOKUP(C26,'Comp_Sinapi PE_Sem-Desoneracao'!B:E,4,FALSE) -> 165.48 | H26: 0.0522 | I26: 8.64
A27: C | B27: SINAPI | C27: 97906 | D27: =VLOOKUP(C27,'[53]COMPOSIÇÃO SEM DESONERAÇÃO'!$B$11:$F$9696,2,FALSE) -> CAIXA ENTERRADA HIDRÁULICA RETANGULAR, EM ALVENARIA COM BLOCOS DE CONCRETO, DIMENSÕES INTERNAS: 0,6X0,6X0,6 M PARA REDE DE ESGOTO. AF_12/2020 | E27: INHI - INSTALAÇÕES HIDROS SANITÁRIAS | F27: UN | G27: =VLOOKUP(C27,'Comp_Sinapi PE_Sem-Desoneracao'!B:E,4,FALSE) -> 461.86 | H27: 0.0348 | I27: 16.07
A28: C | B28: SINAPI | C28: 91937 | D28: =VLOOKUP(C28,'[53]COMPOSIÇÃO SEM DESONERAÇÃO'!$B$11:$F$9696,2,FALSE) -> CAIXA OCTOGONAL 3" X 3", PVC, INSTALADA EM LAJE - FORNECIMENTO E INSTALAÇÃO. AF_03/2023 | E28: INEL - INSTALAÇÃO ELÉTRICA/ELETRIFICAÇÃO E ILUMINAÇÃO EXTERNA | F28: UN | G28: =VLOOKUP(C28,'Comp_Sinapi PE_Sem-Desoneracao'!B:E,4,FALSE) -> 18.63 | H28: 0.1392 | I28: 2.59
A29: C | B29: SINAPI | C29: 87903 | D29: =VLOOKUP(C29,'[53]COMPOSIÇÃO SEM DESONERAÇÃO'!$B$11:$F$9696,2,FALSE) -> CHAPISCO APLICADO EM ALVENARIA (COM PRESENÇA DE VÃOS) E ESTRUTURAS DE CONCRETO DE FACHADA, COM ROLO PARA TEXTURA ACRÍLICA. ARGAMASSA INDUSTRIALIZADA COM PREPARO EM MISTURADOR 300 KG. AF_10/2022 | E29: REVE - REVESTIMENTO E TRATAMENTO DE SUPERFÍCIES | F29: m² | G29: =VLOOKUP(C29,'Comp_Sinapi PE_Sem-Desoneracao'!B:E,4,FALSE) -> 14.96 | H29: 0.1681 | I29: 2.51
A30: C | B30: SINAPI | C30: 87885 | D30: =VLOOKUP(C30,'[53]COMPOSIÇÃO SEM DESONERAÇÃO'!$B$11:$F$9696,2,FALSE) -> CHAPISCO APLICADO NO TETO OU EM ALVENARIA E ESTRUTURA, COM ROLO PARA TEXTURA ACRÍLICA. ARGAMASSA INDUSTRIALIZADA COM PREPARO EM MISTURADOR 300 KG. AF_10/2022 | E30: REVE - REVESTIMENTO E TRATAMENTO DE SUPERFÍCIES | F30: m² | G30: =VLOOKUP(C30,'Comp_Sinapi PE_Sem-Desoneracao'!B:E,4,FALSE) -> 12.41 | H30: 0.7679 | I30: 9.53
A31: C | B31: SINAPI | C31: 90466 | D31: =VLOOKUP(C31,'[53]COMPOSIÇÃO SEM DESONERAÇÃO'!$B$11:$F$9696,2,FALSE) -> CHUMBAMENTO LINEAR EM ALVENARIA PARA RAMAIS/DISTRIBUIÇÃO DE INSTALAÇÕES HIDRÁULICAS COM DIÂMETROS MENORES OU IGUAIS A 40 MM. AF_09/2023 | E31: INHI - INSTALAÇÕES HIDROS SANITÁRIAS | F31: M | G31: =VLOOKUP(C31,'Comp_Sinapi PE_Sem-Desoneracao'!B:E,4,FALSE) -> 16.14 | H31: 0.0722 | I31: 1.17
A32: C | B32: SINAPI | C32: 100860 | D32: =VLOOKUP(C32,'[53]COMPOSIÇÃO SEM DESONERAÇÃO'!$B$11:$F$9696,2,FALSE) -> CHUVEIRO ELÉTRICO COMUM CORPO PLÁSTICO, TIPO DUCHA - FORNECIMENTO E INSTALAÇÃO. AF_01/2020 | E32: INHI - INSTALAÇÕES HIDROS SANITÁRIAS | F32: UN | G32: =VLOOKUP(C32,'Comp_Sinapi PE_Sem-Desoneracao'!B:E,4,FALSE) -> 116.36 | H32: 0.0696 | I32: 8.1
A33: C | B33: SINAPI | C33: 95805 | D33: =VLOOKUP(C33,'[53]COMPOSIÇÃO SEM DESONERAÇÃO'!$B$11:$F$9696,2,FALSE) -> CONDULETE DE PVC, TIPO B, PARA ELETRODUTO DE PVC SOLDÁVEL DN 25 MM (3/4''), APARENTE - FORNECIMENTO E INSTALAÇÃO. AF_10/2022 | E33: INEL - INSTALAÇÃO ELÉTRICA/ELETRIFICAÇÃO E ILUMINAÇÃO EXTERNA | F33: UN | G33: =VLOOKUP(C33,'Comp_Sinapi PE_Sem-Desoneracao'!B:E,4,FALSE) -> 28.79 | H33: 0.0174 | I33: 0.5
A34: C | B34: SINAPI | C34: 95811 | D34: =VLOOKUP(C34,'[53]COMPOSIÇÃO SEM DESONERAÇÃO'!$B$11:$F$9696,2,FALSE) -> CONDULETE DE PVC, TIPO LB, PARA ELETRODUTO DE PVC SOLDÁVEL DN 25 MM (3/4''), APARENTE - FORNECIMENTO E INSTALAÇÃO. AF_10/2022 | E34: INEL - INSTALAÇÃO ELÉTRICA/ELETRIFICAÇÃO E ILUMINAÇÃO EXTERNA | F34: UN | G34: =VLOOKUP(C34,'Comp_Sinapi PE_Sem-Desoneracao'!B:E,4,FALSE) -> 24.93 | H34: 0.0522 | I34: 1.3
A35: C | B35: SINAPI | C35: 91911 | D35: =VLOOKUP(C35,'[53]COMPOSIÇÃO SEM DESONERAÇÃO'!$B$11:$F$9696,2,FALSE) -> CURVA 90 GRAUS PARA ELETRODUTO, PVC, ROSCÁVEL, DN 20 MM (1/2"), PARA CIRCUITOS TERMINAIS, INSTALADA EM PAREDE - FORNECIMENTO E INSTALAÇÃO. AF_03/2023 | E35: INEL - INSTALAÇÃO ELÉTRICA/ELETRIFICAÇÃO E ILUMINAÇÃO EXTERNA | F35: UN | G35: =VLOOKUP(C35,'Comp_Sinapi PE_Sem-Desoneracao'!B:E,4,FALSE) -> 19.16 | H35: 0.0696 | I35: 1.33
A36: C | B36: SINAPI | C36: 91890 | D36: =VLOOKUP(C36,'[53]COMPOSIÇÃO SEM DESONERAÇÃO'!$B$11:$F$9696,2,FALSE) -> CURVA 90 GRAUS PARA ELETRODUTO, PVC, ROSCÁVEL, DN 25 MM (3/4"), PARA CIRCUITOS TERMINAIS, INSTALADA EM FORRO - FORNECIMENTO E INSTALAÇÃO. AF_03/2023 | E36: INEL - INSTALAÇÃO ELÉTRICA/ELETRIFICAÇÃO E ILUMINAÇÃO EXTERNA | F36: UN | G36: =VLOOKUP(C36,'Comp_Sinapi PE_Sem-Desoneracao'!B:E,4,FALSE) -> 15.52 | H36: 0.0174 | I36: 0.27
A37: C | B37: SINAPI | C37: 89748 | D37: =VLOOKUP(C37,'[53]COMPOSIÇÃO SEM DESONERAÇÃO'!$B$11:$F$9696,2,FALSE) -> CURVA CURTA 90 GRAUS, PVC, SERIE NORMAL, ESGOTO PREDIAL, DN 100 MM, JUNTA ELÁSTICA, FORNECIDO E INSTALADO EM RAMAL DE DESCARGA OU RAMAL DE ESGOTO SANITÁRIO. AF_08/2022 | E37: INHI - INSTALAÇÕES HIDROS SANITÁRIAS | F37: UN | G37: =VLOOKUP(C37,'Comp_Sinapi PE_Sem-Desoneracao'!B:E,4,FALSE) -> 41.95 | H37: 0.0522 | I37: 2.19
A38: C | B38: SINAPI | C38: 101891 | D38: =VLOOKUP(C38,'[53]COMPOSIÇÃO SEM DESONERAÇÃO'!$B$11:$F$9696,2,FALSE) -> DISJUNTOR MONOPOLAR TIPO NEMA, CORRENTE NOMINAL DE 35 ATÉ 50A - FORNECIMENTO E INSTALAÇÃO. AF_10/2020 | E38: INEL - INSTALAÇÃO ELÉTRICA/ELETRIFICAÇÃO E ILUMINAÇÃO EXTERNA | F38: UN | G38: =VLOOKUP(C38,'Comp_Sinapi PE_Sem-Desoneracao'!B:E,4,FALSE) -> 32.92 | H38: 0.1044 | I38: 3.44
A39: C | B39: SINAPI | C39: 91862 | D39: =VLOOKUP(C39,'[53]COMPOSIÇÃO SEM DESONERAÇÃO'!$B$11:$F$9696,2,FALSE) -> ELETRODUTO RÍGIDO ROSCÁVEL, PVC, DN 20 MM (1/2"), PARA CIRCUITOS TERMINAIS, INSTALADO EM FORRO - FORNECIMENTO E INSTALAÇÃO. AF_03/2023 | E39: INEL - INSTALAÇÃO ELÉTRICA/ELETRIFICAÇÃO E ILUMINAÇÃO EXTERNA | F39: M | G39: =VLOOKUP(C39,'Comp_Sinapi PE_Sem-Desoneracao'!B:E,4,FALSE) -> 10.25 | H39: 0.3307 | I39: 3.39
A40: C | B40: SINAPI | C40: 91870 | D40: =VLOOKUP(C40,'[53]COMPOSIÇÃO SEM DESONERAÇÃO'!$B$11:$F$9696,2,FALSE) -> ELETRODUTO RÍGIDO ROSCÁVEL, PVC, DN 20 MM (1/2"), PARA CIRCUITOS TERMINAIS, INSTALADO EM PAREDE - FORNECIMENTO E INSTALAÇÃO. AF_03/2023 | E40: INEL - INSTALAÇÃO ELÉTRICA/ELETRIFICAÇÃO E ILUMINAÇÃO EXTERNA | F40: M | G40: =VLOOKUP(C40,'Comp_Sinapi PE_Sem-Desoneracao'!B:E,4,FALSE) -> 13.48 | H40: 0.1566 | I40: 2.11
A41: C | B41: SINAPI | C41: 91863 | D41: =VLOOKUP(C41,'[53]COMPOSIÇÃO SEM DESONERAÇÃO'!$B$11:$F$9696,2,FALSE) -> ELETRODUTO RÍGIDO ROSCÁVEL, PVC, DN 25 MM (3/4"), PARA CIRCUITOS TERMINAIS, INSTALADO EM FORRO - FORNECIMENTO E INSTALAÇÃO. AF_03/2023 | E41: INEL - INSTALAÇÃO ELÉTRICA/ELETRIFICAÇÃO E ILUMINAÇÃO EXTERNA | F41: M | G41: =VLOOKUP(C41,'Comp_Sinapi PE_Sem-Desoneracao'!B:E,4,FALSE) -> 12.1 | H41: 0.1305 | I41: 1.58
A42: C | B42: SINAPI | C42: 91871 | D42: =VLOOKUP(C42,'[53]COMPOSIÇÃO SEM DESONERAÇÃO'!$B$11:$F$9696,2,FALSE) -> ELETRODUTO RÍGIDO ROSCÁVEL, PVC, DN 25 MM (3/4"), PARA CIRCUITOS TERMINAIS, INSTALADO EM PAREDE - FORNECIMENTO E INSTALAÇÃO. AF_03/2023 | E42: INEL - INSTALAÇÃO ELÉTRICA/ELETRIFICAÇÃO E ILUMINAÇÃO EXTERNA | F42: M | G42: =VLOOKUP(C42,'Comp_Sinapi PE_Sem-Desoneracao'!B:E,4,FALSE) -> 15.34 | H42: 0.0261 | I42: 0.4
A43: C | B43: SINAPI | C43: 87777 | D43: =VLOOKUP(C43,'[53]COMPOSIÇÃO SEM DESONERAÇÃO'!$B$11:$F$9696,2,FALSE) -> EMBOÇO OU MASSA ÚNICA EM ARGAMASSA TRAÇO 1:2:8, PREPARO MANUAL, APLICADA MANUALMENTE EM PANOS DE FACHADA COM PRESENÇA DE VÃOS, ESPESSURA DE 25 MM. AF_08/2022 | E43: REVE - REVESTIMENTO E TRATAMENTO DE SUPERFÍCIES | F43: m² | G43: =VLOOKUP(C43,'Comp_Sinapi PE_Sem-Desoneracao'!B:E,4,FALSE) -> 65.74 | H43: 0.1681 | I43: 11.05
A44: C | B44: SINAPI | C44: 93358 | D44: =VLOOKUP(C44,'[53]COMPOSIÇÃO SEM DESONERAÇÃO'!$B$11:$F$9696,2,FALSE) -> ESCAVAÇÃO MANUAL DE VALA. AF_09/2024 | E44: MOVT - MOVIMENTO DE TERRA | F44: m³ | G44: =VLOOKUP(C44,'Comp_Sinapi PE_Sem-Desoneracao'!B:E,4,FALSE) -> 95.25 | H44: 0.0279 | I44: 2.66
A45: C | B45: SINAPI | C45: 91305 | D45: =VLOOKUP(C45,'[53]COMPOSIÇÃO SEM DESONERAÇÃO'!$B$11:$F$9696,2,FALSE) -> FECHADURA DE EMBUTIR PARA PORTA DE BANHEIRO, COMPLETA, ACABAMENTO PADRÃO POPULAR, INCLUSO EXECUÇÃO DE FURO - FORNECIMENTO E INSTALAÇÃO. AF_12/2019 | E45: ESQV - ESQUADRIAS/FERRAGENS/VIDROS | F45: UN | G45: =VLOOKUP(C45,'Comp_Sinapi PE_Sem-Desoneracao'!B:E,4,FALSE) -> 117.46 | H45: 0.0522 | I45: 6.13
A46: C | B46: SINAPI | C46: 91170 | D46: =VLOOKUP(C46,'[53]COMPOSIÇÃO SEM DESONERAÇÃO'!$B$11:$F$9696,2,FALSE) -> FIXAÇÃO DE TUBOS HORIZONTAIS DE PVC ÁGUA, PVC ESGOTO, PVC ÁGUA PLUVIAL, CPVC, PPR, COBRE OU AÇO, DIÂMETROS MENORES OU IGUAIS A 40 MM, COM ABRAÇADEIRA METÁLICA RÍGIDA TIPO U PERFIL 1 1/4", FIXADA EM PERFILADO EM LAJE. AF_09/2023_PS | E46: INHI - INSTALAÇÕES HIDROS SANITÁRIAS | F46: M | G46: =VLOOKUP(C46,'Comp_Sinapi PE_Sem-Desoneracao'!B:E,4,FALSE) -> 11.65 | H46: 0.4612 | I46: 5.37
A47: C | B47: SINAPI | C47: 91173 | D47: =VLOOKUP(C47,'[53]COMPOSIÇÃO SEM DESONERAÇÃO'!$B$11:$F$9696,2,FALSE) -> FIXAÇÃO DE TUBOS VERTICAIS DE PVC ÁGUA, PVC ESGOTO, PVC ÁGUA PLUVIAL, CPVC, PPR, COBRE OU AÇO, DIÂMETROS MENORES OU IGUAIS A 40 MM, COM ABRAÇADEIRA METÁLICA RÍGIDA TIPO U PERFIL 1 1/4", FIXADA EM PERFILADO EM PAREDE. AF_09/2023_PS | E47: INHI - INSTALAÇÕES HIDROS SANITÁRIAS | F47: M | G47: =VLOOKUP(C47,'Comp_Sinapi PE_Sem-Desoneracao'!B:E,4,FALSE) -> 4.34 | H47: 0.1827 | I47: 0.79
A48: C | B48: SINAPI | C48: 96985 | D48: =VLOOKUP(C48,'[53]COMPOSIÇÃO SEM DESONERAÇÃO'!$B$11:$F$9696,2,FALSE) -> HASTE DE ATERRAMENTO, DIÂMETRO 5/8", COM 3 METROS - FORNECIMENTO E INSTALAÇÃO. AF_08/2023 | E48: INEL - INSTALAÇÃO ELÉTRICA/ELETRIFICAÇÃO E ILUMINAÇÃO EXTERNA | F48: UN | G48: =VLOOKUP(C48,'Comp_Sinapi PE_Sem-Desoneracao'!B:E,4,FALSE) -> 110.16 | H48: 0.0522 | I48: 5.75
A49: C | B49: SINAPI | C49: 91959 | D49: =VLOOKUP(C49,'[53]COMPOSIÇÃO SEM DESONERAÇÃO'!$B$11:$F$9696,2,FALSE) -> INTERRUPTOR SIMPLES (2 MÓDULOS), 10A/250V, INCLUINDO SUPORTE E PLACA - FORNECIMENTO E INSTALAÇÃO. AF_03/2023 | E49: INEL - INSTALAÇÃO ELÉTRICA/ELETRIFICAÇÃO E ILUMINAÇÃO EXTERNA | F49: UN | G49: =VLOOKUP(C49,'Comp_Sinapi PE_Sem-Desoneracao'!B:E,4,FALSE) -> 46.64 | H49: 0.0174 | I49: 0.81
A50: C | B50: SINAPI | C50: 91967 | D50: =VLOOKUP(C50,'[53]COMPOSIÇÃO SEM DESONERAÇÃO'!$B$11:$F$9696,2,FALSE) -> INTERRUPTOR SIMPLES (3 MÓDULOS), 10A/250V, INCLUINDO SUPORTE E PLACA - FORNECIMENTO E INSTALAÇÃO. AF_03/2023 | E50: INEL - INSTALAÇÃO ELÉTRICA/ELETRIFICAÇÃO E ILUMINAÇÃO EXTERNA | F50: UN | G50: =VLOOKUP(C50,'Comp_Sinapi PE_Sem-Desoneracao'!B:E,4,FALSE) -> 62.59 | H50: 0.0174 | I50: 1.09
A51: C | B51: SINAPI | C51: 94559 | D51: =VLOOKUP(C51,'[53]COMPOSIÇÃO SEM DESONERAÇÃO'!$B$11:$F$9696,2,FALSE) -> JANELA DE AÇO TIPO BASCULANTE, PARA VIDROS (VIDROS NÃO INCLUSOS), BATENTE/ REQUADRO INCLUSO (6,5 A 14 CM), DIMENSÕES 60X60 CM, COM COM PINTURA ANTICORROSIVA, SEM ACABAMENTO, COM FERRAGENS, FIXAÇÃO COM ARGAMASSA, EXCLUSIVE CONTRAMARCO - FORNECIMENTO E INSTALAÇÃO. AF_11/2024 | E51: ESQV - ESQUADRIAS/FERRAGENS/VIDROS | F51: m² | G51: =VLOOKUP(C51,'Comp_Sinapi PE_Sem-Desoneracao'!B:E,4,FALSE) -> 747.91 | H51: 0.0905 | I51: 67.69
A52: C | B52: SINAPI | C52: 89724 | D52: =VLOOKUP(C52,'[53]COMPOSIÇÃO SEM DESONERAÇÃO'!$B$11:$F$9696,2,FALSE) -> JOELHO 90 GRAUS, PVC, SERIE NORMAL, ESGOTO PREDIAL, DN 40 MM, JUNTA SOLDÁVEL, FORNECIDO E INSTALADO EM RAMAL DE DESCARGA OU RAMAL DE ESGOTO SANITÁRIO. AF_08/2022 | E52: INHI - INSTALAÇÕES HIDROS SANITÁRIAS | F52: UN | G52: =VLOOKUP(C52,'Comp_Sinapi PE_Sem-Desoneracao'!B:E,4,FALSE) -> 10.45 | H52: 0.174 | I52: 1.82
A53: C | B53: SINAPI | C53: 89731 | D53: =VLOOKUP(C53,'[53]COMPOSIÇÃO SEM DESONERAÇÃO'!$B$11:$F$9696,2,FALSE) -> JOELHO 90 GRAUS, PVC, SERIE NORMAL, ESGOTO PREDIAL, DN 50 MM, JUNTA ELÁSTICA, FORNECIDO E INSTALADO EM RAMAL DE DESCARGA OU RAMAL DE ESGOTO SANITÁRIO. AF_08/2022 | E53: INHI - INSTALAÇÕES HIDROS SANITÁRIAS | F53: UN | G53: =VLOOKUP(C53,'Comp_Sinapi PE_Sem-Desoneracao'!B:E,4,FALSE) -> 15.74 | H53: 0.0174 | I53: 0.27
A54: C | B54: SINAPI | C54: 89970 | D54: KIT DE REGISTRO DE PRESSÃO BRUTO DE LATÃO ¾", INCLUSIVE CONEXÕES, ROSCÁVEL, INSTALADO EM RAMAL DE ÁGUA FRIA - FORNECIMENTO E INSTALAÇÃO. AF_12/2014 | E54: INHI - INSTALAÇÕES HIDROS SANITÁRIAS | F54: UN | G54: =SUM(I55:I57) -> 52.44 | H54: 0.0696 | I54: 3.65
A55: C | B55: SINAPI | C55: 89383 | D55: =VLOOKUP(C55,'[53]COMPOSIÇÃO SEM DESONERAÇÃO'!$B$11:$F$9696,2,FALSE) -> ADAPTADOR CURTO COM BOLSA E ROSCA PARA REGISTRO, PVC, SOLDÁVEL, DN 25MM X 3/4, INSTALADO EM RAMAL OU SUB-RAMAL DE ÁGUA - FORNECIMENTO E INSTALAÇÃO. AF_06/2022 | E55: INHI - INSTALAÇÕES HIDROS SANITÁRIAS | F55: UN | G55: =VLOOKUP(C55,'Comp_Sinapi PE_Sem-Desoneracao'!B:E,4,FALSE) -> 6.89 | H55: 1 | I55: =ROUND(G55*H55,2) -> 6.89
A56: C | B56: SINAPI | C56: 89385 | D56: =VLOOKUP(C56,'[53]COMPOSIÇÃO SEM DESONERAÇÃO'!$B$11:$F$9696,2,FALSE) -> LUVA SOLDÁVEL E COM ROSCA, PVC, SOLDÁVEL, DN 25MM X 3/4, INSTALADO EM RAMAL OU SUB-RAMAL DE ÁGUA - FORNECIMENTO E INSTALAÇÃO. AF_06/2022 | E56: INHI - INSTALAÇÕES HIDROS SANITÁRIAS | F56: UN | G56: =VLOOKUP(C56,'Comp_Sinapi PE_Sem-Desoneracao'!B:E,4,FALSE) -> 7.5 | H56: 1 | I56: =ROUND(G56*H56,2) -> 7.5
A57: C | B57: SINAPI | C57: 89351 | D57: =VLOOKUP(C57,'[53]COMPOSIÇÃO SEM DESONERAÇÃO'!$B$11:$F$9696,2,FALSE) -> REGISTRO DE PRESSÃO BRUTO, LATÃO, ROSCÁVEL, 3/4'' - FORNECIMENTO E INSTALAÇÃO. AF_08/2021 | E57: INHI - INSTALAÇÕES HIDROS SANITÁRIAS | F57: UN | G57: =VLOOKUP(C57,'Comp_Sinapi PE_Sem-Desoneracao'!B:E,4,FALSE) -> 38.05 | H57: 1 | I57: 38.05
A58: C | B58: SINAPI | C58: 95240 | D58: =VLOOKUP(C58,'[53]COMPOSIÇÃO SEM DESONERAÇÃO'!$B$11:$F$9696,2,FALSE) -> LASTRO DE CONCRETO MAGRO, APLICADO EM PISOS, LAJES SOBRE SOLO OU RADIERS, ESPESSURA DE 3 CM. AF_01/2024 | E58: FUES - FUNDAÇÕES E ESTRUTURAS | F58: m² | G58: =VLOOKUP(C58,'Comp_Sinapi PE_Sem-Desoneracao'!B:E,4,FALSE) -> 19.61 | H58: 0.0064 | I58: 0.13
A59: C | B59: SINAPI | C59: 95241 | D59: =VLOOKUP(C59,'[53]COMPOSIÇÃO SEM DESONERAÇÃO'!$B$11:$F$9696,2,FALSE) -> LASTRO DE CONCRETO MAGRO, APLICADO EM PISOS, LAJES SOBRE SOLO OU RADIERS, ESPESSURA DE 5 CM. AF_01/2024 | E59: FUES - FUNDAÇÕES E ESTRUTURAS | F59: m² | G59: =VLOOKUP(C59,'Comp_Sinapi PE_Sem-Desoneracao'!B:E,4,FALSE) -> 37.66 | H59: 1.3328 | I59: 50.19
A60: C | B60: SINAPI | C60: 86943 | D60: =VLOOKUP(C60,'[53]COMPOSIÇÃO SEM DESONERAÇÃO'!$B$11:$F$9696,2,FALSE) -> LAVATÓRIO LOUÇA BRANCA SUSPENSO, 29,5 X 39CM OU EQUIVALENTE, PADRÃO POPULAR, INCLUSO SIFÃO FLEXÍVEL EM PVC, VÁLVULA E ENGATE FLEXÍVEL 30CM EM PLÁSTICO E TORNEIRA CROMADA DE MESA, PADRÃO POPULAR - FORNECIMENTO E INSTALAÇÃO. AF_01/2020 | E60: INHI - INSTALAÇÕES HIDROS SANITÁRIAS | F60: UN | G60: =VLOOKUP(C60,'Comp_Sinapi PE_Sem-Desoneracao'!B:E,4,FALSE) -> 275.13 | H60: 0.0522 | I60: 14.36
A61: C | B61: SINAPI | C61: 97586 | D61: LUMINÁRIA TIPO CALHA, DE SOBREPOR, COM 2 LÂMPADAS TUBULARES FLUORESCENTES DE 36 W, COM REATOR DE PARTIDA RÁPIDA - FORNECIMENTO E INSTALAÇÃO. AF_02/2020 | E61: INEL - INSTALAÇÃO ELÉTRICA/ELETRIFICAÇÃO E ILUMINAÇÃO EXTERNA | F61: UN | G61: =SUM(I62:I64) -> 222.74 | H61: 0.1392 | I61: 31.01
A62: C | B62: SINAPI | C62: 88247 | D62: =VLOOKUP(C62,'[53]COMPOSIÇÃO SEM DESONERAÇÃO'!$B$11:$F$9696,2,FALSE) -> AUXILIAR DE ELETRICISTA COM ENCARGOS COMPLEMENTARES | E62: SEDI - SERVIÇOS DIVERSOS | F62: H | G62: =VLOOKUP(C62,'Comp_Sinapi PE_Sem-Desoneracao'!B:E,4,FALSE) -> 25.53 | H62: 0.1727 | I62: =ROUND(G62*H62,2) -> 4.41
A63: C | B63: SINAPI | C63: 88264 | D63: =VLOOKUP(C63,'[53]COMPOSIÇÃO SEM DESONERAÇÃO'!$B$11:$F$9696,2,FALSE) -> ELETRICISTA COM ENCARGOS COMPLEMENTARES | E63: SEDI - SERVIÇOS DIVERSOS | F63: H | G63: =VLOOKUP(C63,'Comp_Sinapi PE_Sem-Desoneracao'!B:E,4,FALSE) -> 30.24 | H63: 0.4144 | I63: =ROUND(G63*H63,2) -> 12.53
A64: I | B64: SINAPI | C64: 3780 | D64: =VLOOKUP(C64,'[53]INSUMO SEM DESONERAÇÃO'!$B$11:$F$4847,2,FALSE) -> LUMINARIA DE SOBREPOR EM CHAPA DE ACO PARA 1 LAMPADA FLUORESCENTE DE *36* W, ALETADA, COMPLETA (LAMPADA E REATOR INCLUSOS) | E64: Material | F64: UN | G64: 102.9 | H64: 2 | I64: =ROUND(G64*H64,2) -> 205.8 | J64: *Está sem PROCV
A65: C | B65: SINAPI | C65: 91882 | D65: =VLOOKUP(C65,'[53]COMPOSIÇÃO SEM DESONERAÇÃO'!$B$11:$F$9696,2,FALSE) -> LUVA PARA ELETRODUTO, PVC, ROSCÁVEL, DN 20 MM (1/2"), PARA CIRCUITOS TERMINAIS, INSTALADA EM PAREDE - FORNECIMENTO E INSTALAÇÃO. AF_03/2023 | E65: INEL - INSTALAÇÃO ELÉTRICA/ELETRIFICAÇÃO E ILUMINAÇÃO EXTERNA | F65: UN | G65: =VLOOKUP(C65,'Comp_Sinapi PE_Sem-Desoneracao'!B:E,4,FALSE) -> 11.28 | H65: 0.0348 | I65: 0.39
A66: C | B66: SINAPI | C66: 91875 | D66: =VLOOKUP(C66,'[53]COMPOSIÇÃO SEM DESONERAÇÃO'!$B$11:$F$9696,2,FALSE) -> LUVA PARA ELETRODUTO, PVC, ROSCÁVEL, DN 25 MM (3/4"), PARA CIRCUITOS TERMINAIS, INSTALADA EM FORRO - FORNECIMENTO E INSTALAÇÃO. AF_03/2023 | E66: INEL - INSTALAÇÃO ELÉTRICA/ELETRIFICAÇÃO E ILUMINAÇÃO EXTERNA | F66: UN | G66: =VLOOKUP(C66,'Comp_Sinapi PE_Sem-Desoneracao'!B:E,4,FALSE) -> 9.39 | H66: 0.0348 | I66: 0.33
A67: C | B67: SINAPI | C67: 87548 | D67: =VLOOKUP(C67,'[53]COMPOSIÇÃO SEM DESONERAÇÃO'!$B$11:$F$9696,2,FALSE) -> MASSA ÚNICA, EM ARGAMASSA TRAÇO 1:2:8, PREPARO MANUAL, APLICADA MANUALMENTE EM PAREDES INTERNAS DE AMBIENTES COM ÁREA ENTRE 5M² E 10M², E = 10MM, COM TALISCAS. AF_03/2024 | E67: REVE - REVESTIMENTO E TRATAMENTO DE SUPERFÍCIES | F67: m² | G67: =VLOOKUP(C67,'Comp_Sinapi PE_Sem-Desoneracao'!B:E,4,FALSE) -> 32.42 | H67: 0.1894 | I67: 6.14
A68: C | B68: SINAPI | C68: 98445 | D68: =VLOOKUP(C68,'[53]COMPOSIÇÃO SEM DESONERAÇÃO'!$B$11:$F$9696,2,FALSE) -> PAREDE DE MADEIRA COMPENSADA PARA CONSTRUÇÃO TEMPORÁRIA EM CHAPA SIMPLES, EXTERNA, COM ÁREA LÍQUIDA MAIOR OU IGUAL A 6 M², COM VÃO. AF_03/2024 | E68: CANT - CANTEIRO DE OBRAS | F68: m² | G68: =VLOOKUP(C68,'Comp_Sinapi PE_Sem-Desoneracao'!B:E,4,FALSE) -> 116.02 | H68: 0.4081 | I68: 47.35
A69: C | B69: SINAPI | C69: 98441 | D69: =VLOOKUP(C69,'[53]COMPOSIÇÃO SEM DESONERAÇÃO'!$B$11:$F$9696,2,FALSE) -> PAREDE DE MADEIRA COMPENSADA PARA CONSTRUÇÃO TEMPORÁRIA EM CHAPA SIMPLES, EXTERNA, SEM VÃO. AF_03/2024 | E69: CANT - CANTEIRO DE OBRAS | F69: m² | G69: =VLOOKUP(C69,'Comp_Sinapi PE_Sem-Desoneracao'!B:E,4,FALSE) -> 97.87 | H69: 0.2612 | I69: 25.56
A70: C | B70: SINAPI | C70: 98446 | D70: =VLOOKUP(C70,'[53]COMPOSIÇÃO SEM DESONERAÇÃO'!$B$11:$F$9696,2,FALSE) -> PAREDE DE MADEIRA COMPENSADA PARA CONSTRUÇÃO TEMPORÁRIA EM CHAPA SIMPLES, EXTERNA, COM ÁREA LÍQUIDA MENOR QUE 6 M², COM VÃO. AF_03/2024 | E70: CANT - CANTEIRO DE OBRAS | F70: m² | G70: =VLOOKUP(C70,'Comp_Sinapi PE_Sem-Desoneracao'!B:E,4,FALSE) -> 149.23 | H70: 0.3182 | I70: 47.48
A71: C | B71: SINAPI | C71: 98441 | D71: =VLOOKUP(C71,'[53]COMPOSIÇÃO SEM DESONERAÇÃO'!$B$11:$F$9696,2,FALSE) -> PAREDE DE MADEIRA COMPENSADA PARA CONSTRUÇÃO TEMPORÁRIA EM CHAPA SIMPLES, EXTERNA, SEM VÃO. AF_03/2024 | E71: CANT - CANTEIRO DE OBRAS | F71: m² | G71: =VLOOKUP(C71,'Comp_Sinapi PE_Sem-Desoneracao'!B:E,4,FALSE) -> 97.87 | H71: 0.3007 | I71: 29.43
A72: C | B72: SINAPI | C72: 98447 | D72: =VLOOKUP(C72,'[53]COMPOSIÇÃO SEM DESONERAÇÃO'!$B$11:$F$9696,2,FALSE) -> PAREDE DE MADEIRA COMPENSADA PARA CONSTRUÇÃO TEMPORÁRIA EM CHAPA SIMPLES, INTERNA, COM ÁREA LÍQUIDA MAIOR OU IGUAL A 6 M², COM VÃO. AF_03/2024 | E72: CANT - CANTEIRO DE OBRAS | F72: m² | G72: =VLOOKUP(C72,'Comp_Sinapi PE_Sem-Desoneracao'!B:E,4,FALSE) -> 90.68 | H72: 0.1297 | I72: 11.76
A73: C | B73: SINAPI | C73: 98443 | D73: =VLOOKUP(C73,'[53]COMPOSIÇÃO SEM DESONERAÇÃO'!$B$11:$F$9696,2,FALSE) -> PAREDE DE MADEIRA COMPENSADA PARA CONSTRUÇÃO TEMPORÁRIA EM CHAPA SIMPLES, INTERNA, SEM VÃO. AF_03/2024 | E73: CANT - CANTEIRO DE OBRAS | F73: m² | G73: =VLOOKUP(C73,'Comp_Sinapi PE_Sem-Desoneracao'!B:E,4,FALSE) -> 76.01 | H73: 0.083 | I73: 6.31
A74: C | B74: SINAPI | C74: 98448 | D74: =VLOOKUP(C74,'[53]COMPOSIÇÃO SEM DESONERAÇÃO'!$B$11:$F$9696,2,FALSE) -> PAREDE DE MADEIRA COMPENSADA PARA CONSTRUÇÃO TEMPORÁRIA EM CHAPA SIMPLES, INTERNA, COM ÁREA LÍQUIDA MENOR QUE 6 M², COM VÃO. AF_03/2024 | E74: CANT - CANTEIRO DE OBRAS | F74: m² | G74: =VLOOKUP(C74,'Comp_Sinapi PE_Sem-Desoneracao'!B:E,4,FALSE) -> 117.76 | H74: 0.1011 | I74: 11.91
A75: C | B75: SINAPI | C75: 98443 | D75: =VLOOKUP(C75,'[53]COMPOSIÇÃO SEM DESONERAÇÃO'!$B$11:$F$9696,2,FALSE) -> PAREDE DE MADEIRA COMPENSADA PARA CONSTRUÇÃO TEMPORÁRIA EM CHAPA SIMPLES, INTERNA, SEM VÃO. AF_03/2024 | E75: CANT - CANTEIRO DE OBRAS | F75: m² | G75: =VLOOKUP(C75,'Comp_Sinapi PE_Sem-Desoneracao'!B:E,4,FALSE) -> 76.01 | H75: 0.0956 | I75: 7.27
A76: C | B76: SINAPI | C76: 88489 | D76: =VLOOKUP(C76,'[53]COMPOSIÇÃO SEM DESONERAÇÃO'!$B$11:$F$9696,2,FALSE) -> PINTURA LÁTEX ACRÍLICA PREMIUM, APLICAÇÃO MANUAL EM PAREDES, DUAS DEMÃOS. AF_04/2023 | E76: PINT - PINTURAS | F76: m² | G76: =VLOOKUP(C76,'Comp_Sinapi PE_Sem-Desoneracao'!B:E,4,FALSE) -> 14.91 | H76: 2.4442 | I76: =ROUND(G76*H76,2) -> 36.44
A77: C | B77: SINAPI | C77: 98679 | D77: =VLOOKUP(C77,'[53]COMPOSIÇÃO SEM DESONERAÇÃO'!$B$11:$F$9696,2,FALSE) -> PISO CIMENTADO, TRAÇO 1:3 (CIMENTO E AREIA), ACABAMENTO LISO, ESPESSURA 2,0 CM, PREPARO MECÂNICO DA ARGAMASSA. AF_09/2020 | E77: PISO - PISOS | F77: m² | G77: =VLOOKUP(C77,'Comp_Sinapi PE_Sem-Desoneracao'!B:E,4,FALSE) -> 38.16 | H77: 0.5134 | I77: 19.59
A78: C | B78: SINAPI | C78: 89957 | D78: PONTO DE CONSUMO TERMINAL DE ÁGUA FRIA (SUBRAMAL) COM TUBULAÇÃO DE PVC, DN 25 MM, INSTALADO EM RAMAL DE ÁGUA, INCLUSOS RASGO E CHUMBAMENTO EM ALVENARIA. AF_12/2014 (ADAPTADO) | E78: INHI - INSTALAÇÕES HIDROS SANITÁRIAS | F78: UN | G78: =SUM(I79:I84) -> 146.28 | H78: 0.174 | I78: 25.45
A79: C | B79: SINAPI | C79: 90466 | D79: =VLOOKUP(C79,'[53]COMPOSIÇÃO SEM DESONERAÇÃO'!$B$11:$F$9696,2,FALSE) -> CHUMBAMENTO LINEAR EM ALVENARIA PARA RAMAIS/DISTRIBUIÇÃO DE INSTALAÇÕES HIDRÁULICAS COM DIÂMETROS MENORES OU IGUAIS A 40 MM. AF_09/2023 | E79: Material | F79: M | G79: =VLOOKUP(C79,'Comp_Sinapi PE_Sem-Desoneracao'!B:E,4,FALSE) -> 16.14 | H79: 2.14 | I79: 34.54
A80: C | B80: SINAPI | C80: 89366 | D80: =VLOOKUP(C80,'[53]COMPOSIÇÃO SEM DESONERAÇÃO'!$B$11:$F$9696,2,FALSE) -> JOELHO 90 GRAUS COM BUCHA DE LATÃO, PVC, SOLDÁVEL, DN 25MM, X 3/4 INSTALADO EM RAMAL OU SUB-RAMAL DE ÁGUA - FORNECIMENTO E INSTALAÇÃO. AF_06/2022 | E80: Material | F80: UN | G80: =VLOOKUP(C80,'Comp_Sinapi PE_Sem-Desoneracao'!B:E,4,FALSE) -> 16.49 | H80: 1 | I80: 16.49
A81: C | B81: SINAPI | C81: 89362 | D81: =VLOOKUP(C81,'[53]COMPOSIÇÃO SEM DESONERAÇÃO'!$B$11:$F$9696,2,FALSE) -> JOELHO 90 GRAUS, PVC, SOLDÁVEL, DN 25MM, INSTALADO EM RAMAL OU SUB-RAMAL DE ÁGUA - FORNECIMENTO E INSTALAÇÃO. AF_06/2022 | E81: Material | F81: UN | G81: =VLOOKUP(C81,'Comp_Sinapi PE_Sem-Desoneracao'!B:E,4,FALSE) -> 9.98 | H81: 1.18 | I81: 11.78
A82: C | B82: SINAPI | C82: 90443 | D82: =VLOOKUP(C82,'[53]COMPOSIÇÃO SEM DESONERAÇÃO'!$B$11:$F$9696,2,FALSE) -> RASGO LINEAR MANUAL EM ALVENARIA, PARA RAMAIS/ DISTRIBUIÇÃO DE INSTALAÇÕES HIDRÁULICAS, DIÂMETROS MENORES OU IGUAIS A 40 MM. AF_09/2023 | E82: Material | F82: M | G82: =VLOOKUP(C82,'Comp_Sinapi PE_Sem-Desoneracao'!B:E,4,FALSE) -> 8.44 | H82: 2.14 | I82: 18.06
A83: C | B83: SINAPI | C83: 89395 | D83: =VLOOKUP(C83,'[53]COMPOSIÇÃO SEM DESONERAÇÃO'!$B$11:$F$9696,2,FALSE) -> TE, PVC, SOLDÁVEL, DN 25MM, INSTALADO EM RAMAL OU SUB-RAMAL DE ÁGUA - FORNECIMENTO E INSTALAÇÃO. AF_06/2022 | E83: Material | F83: UN | G83: =VLOOKUP(C83,'Comp_Sinapi PE_Sem-Desoneracao'!B:E,4,FALSE) -> 13.72 | H83: 0.89 | I83: 12.21
A84: C | B84: SINAPI | C84: 89356 | D84: =VLOOKUP(C84,'[53]COMPOSIÇÃO SEM DESONERAÇÃO'!$B$11:$F$9696,2,FALSE) -> TUBO, PVC, SOLDÁVEL, DE 25MM, INSTALADO EM RAMAL OU SUB-RAMAL DE ÁGUA - FORNECIMENTO E INSTALAÇÃO. AF_06/2022 | E84: Material | F84: M | G84: =VLOOKUP(C84,'Comp_Sinapi PE_Sem-Desoneracao'!B:E,4,FALSE) -> 24.86 | H84: 2.14 | I84: 53.2
A85: C | B85: SINAPI | C85: 90822 | D85: =VLOOKUP(C85,'[53]COMPOSIÇÃO SEM DESONERAÇÃO'!$B$11:$F$9696,2,FALSE) -> PORTA DE MADEIRA PARA PINTURA, SEMI-OCA (LEVE OU MÉDIA), 80X210CM, ESPESSURA DE 3,5CM, INCLUSO DOBRADIÇAS - FORNECIMENTO E INSTALAÇÃO. AF_12/2019 | E85: ESQV - ESQUADRIAS/FERRAGENS/VIDROS | F85: UN | G85: =VLOOKUP(C85,'Comp_Sinapi PE_Sem-Desoneracao'!B:E,4,FALSE) -> 344.98 | H85: 0.0348 | I85: 12.01
A86: C | B86: SINAPI | C86: 101876 | D86: =VLOOKUP(C86,'[53]COMPOSIÇÃO SEM DESONERAÇÃO'!$B$11:$F$9696,2,FALSE) -> QUADRO DE DISTRIBUIÇÃO DE ENERGIA EM PVC, DE EMBUTIR, SEM BARRAMENTO, PARA 6 DISJUNTORES - FORNECIMENTO E INSTALAÇÃO. AF_10/2020 | E86: INEL - INSTALAÇÃO ELÉTRICA/ELETRIFICAÇÃO E ILUMINAÇÃO EXTERNA | F86: UN | G86: =VLOOKUP(C86,'Comp_Sinapi PE_Sem-Desoneracao'!B:E,4,FALSE) -> 107.13 | H86: 0.0174 | I86: 1.86
A87: C | B87: SINAPI | C87: 89709 | D87: =VLOOKUP(C87,'[53]COMPOSIÇÃO SEM DESONERAÇÃO'!$B$11:$F$9696,2,FALSE) -> RALO SIFONADO, PVC, DN 100 X 40 MM, JUNTA SOLDÁVEL, FORNECIDO E INSTALADO EM RAMAL DE DESCARGA OU EM RAMAL DE ESGOTO SANITÁRIO. AF_08/2022 | E87: INHI - INSTALAÇÕES HIDROS SANITÁRIAS | F87: UN | G87: =VLOOKUP(C87,'Comp_Sinapi PE_Sem-Desoneracao'!B:E,4,FALSE) -> 18.62 | H87: 0.0696 | I87: 1.3
A88: C | B88: SINAPI | C88: 90443 | D88: =VLOOKUP(C88,'[53]COMPOSIÇÃO SEM DESONERAÇÃO'!$B$11:$F$9696,2,FALSE) -> RASGO LINEAR MANUAL EM ALVENARIA, PARA RAMAIS/ DISTRIBUIÇÃO DE INSTALAÇÕES HIDRÁULICAS, DIÂMETROS MENORES OU IGUAIS A 40 MM. AF_09/2023 | E88: INHI - INSTALAÇÕES HIDROS SANITÁRIAS | F88: M | G88: =VLOOKUP(C88,'Comp_Sinapi PE_Sem-Desoneracao'!B:E,4,FALSE) -> 8.44 | H88: 0.0722 | I88: 0.61
A89: C | B89: SINAPI | C89: 93382 | D89: =VLOOKUP(C89,'[53]COMPOSIÇÃO SEM DESONERAÇÃO'!$B$11:$F$9696,2,FALSE) -> REATERRO MANUAL DE VALAS, COM COMPACTADOR DE SOLOS DE PERCUSSÃO. AF_08/2023 | E89: MOVT - MOVIMENTO DE TERRA | F89: m³ | G89: =VLOOKUP(C89,'Comp_Sinapi PE_Sem-Desoneracao'!B:E,4,FALSE) -> 27.42 | H89: 0.0072 | I89: 0.2
A90: C | B90: SINAPI | C90: 89784 | D90: =VLOOKUP(C90,'[53]COMPOSIÇÃO SEM DESONERAÇÃO'!$B$11:$F$9696,2,FALSE) -> TE, PVC, SERIE NORMAL, ESGOTO PREDIAL, DN 50 X 50 MM, JUNTA ELÁSTICA, FORNECIDO E INSTALADO EM RAMAL DE DESCARGA OU RAMAL DE ESGOTO SANITÁRIO. AF_08/2022 | E90: INHI - INSTALAÇÕES HIDROS SANITÁRIAS | F90: UN | G90: =VLOOKUP(C90,'Comp_Sinapi PE_Sem-Desoneracao'!B:E,4,FALSE) -> 25.03 | H90: 0.0174 | I90: 0.44
A91: C | B91: SINAPI | C91: 94210 | D91: =VLOOKUP(C91,'[53]COMPOSIÇÃO SEM DESONERAÇÃO'!$B$11:$F$9696,2,FALSE) -> TELHAMENTO COM TELHA ONDULADA DE FIBROCIMENTO E = 6 MM, COM RECOBRIMENTO LATERAL DE 1 1/4 DE ONDA PARA TELHADO COM INCLINAÇÃO MÁXIMA DE 10°, COM ATÉ 2 ÁGUAS, INCLUSO IÇAMENTO. AF_07/2019 | E91: COBE - COBERTURA | F91: m² | G91: =VLOOKUP(C91,'Comp_Sinapi PE_Sem-Desoneracao'!B:E,4,FALSE) -> 59.36 | H91: 1.3566 | I91: 80.53
A92: C | B92: SINAPI | C92: 92000 | D92: =VLOOKUP(C92,'[53]COMPOSIÇÃO SEM DESONERAÇÃO'!$B$11:$F$9696,2,FALSE) -> TOMADA BAIXA DE EMBUTIR (1 MÓDULO), 2P+T 10 A, INCLUINDO SUPORTE E PLACA - FORNECIMENTO E INSTALAÇÃO. AF_03/2023 | E92: INEL - INSTALAÇÃO ELÉTRICA/ELETRIFICAÇÃO E ILUMINAÇÃO EXTERNA | F92: UN | G92: =VLOOKUP(C92,'Comp_Sinapi PE_Sem-Desoneracao'!B:E,4,FALSE) -> 32.13 | H92: 0.0348 | I92: 1.12
A93: C | B93: SINAPI | C93: 92543 | D93: =VLOOKUP(C93,'[53]COMPOSIÇÃO SEM DESONERAÇÃO'!$B$11:$F$9696,2,FALSE) -> TRAMA DE MADEIRA COMPOSTA POR TERÇAS PARA TELHADOS DE ATÉ 2 ÁGUAS PARA TELHA ONDULADA DE FIBROCIMENTO, METÁLICA, PLÁSTICA OU TERMOACÚSTICA, INCLUSO TRANSPORTE VERTICAL. AF_07/2019 | E93: COBE - COBERTURA | F93: m² | G93: =VLOOKUP(C93,'Comp_Sinapi PE_Sem-Desoneracao'!B:E,4,FALSE) -> 25.33 | H93: 1.3566 | I93: 34.36
A94: C | B94: SINAPI | C94: 89714 | D94: =VLOOKUP(C94,'[53]COMPOSIÇÃO SEM DESONERAÇÃO'!$B$11:$F$9696,2,FALSE) -> TUBO PVC, SERIE NORMAL, ESGOTO PREDIAL, DN 100 MM, FORNECIDO E INSTALADO EM RAMAL DE DESCARGA OU RAMAL DE ESGOTO SANITÁRIO. AF_08/2022 | E94: INHI - INSTALAÇÕES HIDROS SANITÁRIAS | F94: M | G94: =VLOOKUP(C94,'Comp_Sinapi PE_Sem-Desoneracao'!B:E,4,FALSE) -> 37.98 | H94: 0.047 | I94: 1.79
A95: C | B95: SINAPI | C95: 89711 | D95: =VLOOKUP(C95,'[53]COMPOSIÇÃO SEM DESONERAÇÃO'!$B$11:$F$9696,2,FALSE) -> TUBO PVC, SERIE NORMAL, ESGOTO PREDIAL, DN 40 MM, FORNECIDO E INSTALADO EM RAMAL DE DESCARGA OU RAMAL DE ESGOTO SANITÁRIO. AF_08/2022 | E95: INHI - INSTALAÇÕES HIDROS SANITÁRIAS | F95: M | G95: =VLOOKUP(C95,'Comp_Sinapi PE_Sem-Desoneracao'!B:E,4,FALSE) -> 21.9 | H95: 0.1631 | I95: 3.57
A96: C | B96: SINAPI | C96: 89712 | D96: =VLOOKUP(C96,'[53]COMPOSIÇÃO SEM DESONERAÇÃO'!$B$11:$F$9696,2,FALSE) -> TUBO PVC, SERIE NORMAL, ESGOTO PREDIAL, DN 50 MM, FORNECIDO E INSTALADO EM RAMAL DE DESCARGA OU RAMAL DE ESGOTO SANITÁRIO. AF_08/2022 | E96: INHI - INSTALAÇÕES HIDROS SANITÁRIAS | F96: M | G96: =VLOOKUP(C96,'Comp_Sinapi PE_Sem-Desoneracao'!B:E,4,FALSE) -> 27.25 | H96: 0.2235 | I96: 6.09
A97: C | B97: SINAPI | C97: 86888 | D97: =VLOOKUP(C97,'[53]COMPOSIÇÃO SEM DESONERAÇÃO'!$B$11:$F$9696,2,FALSE) -> VASO SANITÁRIO SIFONADO COM CAIXA ACOPLADA LOUÇA BRANCA - FORNECIMENTO E INSTALAÇÃO. AF_01/2020 | E97: INHI - INSTALAÇÕES HIDROS SANITÁRIAS | F97: UN | G97: =VLOOKUP(C97,'Comp_Sinapi PE_Sem-Desoneracao'!B:E,4,FALSE) -> 502.85 | H97: 0.0522 | I97: 26.25
A98: I | B98: SINAPI | C98: 11712 | D98: =VLOOKUP(C98,'[53]INSUMO SEM DESONERAÇÃO'!$B$11:$F$4847,2,FALSE) -> CAIXA SIFONADA, PVC, 150 X 150 X 50 MM, COM GRELHA QUADRADA, BRANCA (NBR 5688) | E98: Material | F98: UN | G98: =VLOOKUP(C98,'Ins SINAPI PE_Sem_Desoneracao'!B:F,5,FALSE) -> 32.9 | H98: 0.0348 | I98: 1.14
A99: I | B99: SINAPI | C99: 3080 | D99: =VLOOKUP(C99,'[53]INSUMO SEM DESONERAÇÃO'!$B$11:$F$4847,2,FALSE) -> FECHADURA ESPELHO PARA PORTA EXTERNA, EM ACO INOX (MAQUINA, TESTA E CONTRA-TESTA) E EM ZAMAC (MACANETA, LINGUETA E TRINCOS) COM ACABAMENTO CROMADO, MAQUINA DE 40 MM, INCLUINDO CHAVE TIPO CILINDRO | E99: Material | F99: CJ | G99: =VLOOKUP(C99,'Ins SINAPI PE_Sem_Desoneracao'!B:F,5,FALSE) -> 77.2 | H99: 0.0348 | I99: 2.69
A100: I | B100: SINAPI | C100: 11587 | D100: =VLOOKUP(C100,'[53]INSUMO SEM DESONERAÇÃO'!$B$11:$F$4847,2,FALSE) -> FORRO DE PVC LISO, BRANCO, REGUA DE 10 CM, ESPESSURA APROXIMADA DE 8 MM (COM COLOCACAO / SEM ESTRUTURA METALICA) | E100: Material | F100: m² | G100: =VLOOKUP(C100,'Ins SINAPI PE_Sem_Desoneracao'!B:F,5,FALSE) -> 81.72 | H100: 0.9762 | I100: 79.78
A101: I | B101: SINAPI | C101: 3659 | D101: =VLOOKUP(C101,'[53]INSUMO SEM DESONERAÇÃO'!$B$11:$F$4847,2,FALSE) -> JUNCAO SIMPLES DE REDUCAO, PVC, DN 100 X 50 MM, SERIE NORMAL PARA ESGOTO PREDIAL | E101: Material | F101: UN | G101: =VLOOKUP(C101,'Ins SINAPI PE_Sem_Desoneracao'!B:F,5,FALSE) -> 16.78 | H101: 0.0174 | I101: 0.29
A102: I | B102: SINAPI | C102: 3670 | D102: =VLOOKUP(C102,'[53]INSUMO SEM DESONERAÇÃO'!$B$11:$F$4847,2,FALSE) -> JUNCAO SIMPLES, PVC, 45 GRAUS, DN 100 X 100 MM, SERIE NORMAL PARA ESGOTO PREDIAL | E102: Material | F102: UN | G102: =VLOOKUP(C102,'Ins SINAPI PE_Sem_Desoneracao'!B:F,5,FALSE) -> 21.55 | H102: 0.0348 | I102: 0.75
A103: I | B103: SINAPI | C103: 11697 | D103: =VLOOKUP(C103,'[53]INSUMO SEM DESONERAÇÃO'!$B$11:$F$4847,2,FALSE) -> MICTORIO COLETIVO ACO INOX (AISI 304), E = 0,8 MM, DE *100 X 40 X 30* CM (C X A X P) | E103: Material | F103: UN | G103: =VLOOKUP(C103,'Ins SINAPI PE_Sem_Desoneracao'!B:F,5,FALSE) -> 766.12 | H103: 0.0174 | I103: 13.33
A104: I | B104: SINAPI | C104: 43777 | D104: =VLOOKUP(C104,'[53]INSUMO SEM DESONERAÇÃO'!$B$11:$F$4847,2,FALSE) -> PORTA DE MADEIRA, FOLHA LEVE (NBR 15930), DE 600 X 2100 MM, E = 35 MM, NUCLEO COLMEIA, CAPA LISA EM HDF, ACABAMENTO MELAMINICO EM PADRAO MADEIRA | E104: Material | F104: UN | G104: =VLOOKUP(C104,'Ins SINAPI PE_Sem_Desoneracao'!B:F,5,FALSE) -> 179.89 | H104: 0.0447618 | I104: 8.05
A105: I | B105: SINAPI | C105: 21112 | D105: =VLOOKUP(C105,'[53]INSUMO SEM DESONERAÇÃO'!$B$11:$F$4847,2,FALSE) -> VALVULA DE DESCARGA EM METAL CROMADO PARA MICTORIO COM ACIONAMENTO POR PRESSAO E FECHAMENTO AUTOMATICO | E105: Material | F105: UN | G105: =VLOOKUP(C105,'Ins SINAPI PE_Sem_Desoneracao'!B:F,5,FALSE) -> 318.49 | H105: 0.0174 | I105: 5.54
A108: Código | D108: 93583 ADAPTADO
A109: Descrição | D109: EXECUÇÃO DE CENTRAL DE FÔRMAS, PRODUÇÃO DE ARGAMASSA OU CONCRETO EM CANTEIRO DE OBRA, NÃO INCLUSO MOBILIÁRIO E EQUIPAMENTOS. AF_04/2016
A110: Data | D110: 2024-04-01
A111: Estado | D111: Pernambuco
A112: Tipo | D112: CANT - CANTEIRO DE OBRAS
A113: Unidade | D113: m²
A114: Valor sem Desoneração | D114: =SUM(I117:I131,I135:I145) -> 571.86
A116: Natureza | B116: Fonte | C116: codigo | D116: Descrição | E116: Tipo | F116: Unidade | G116: Valor sem Desoneração | H116: Coeficiente | I116: Valor sem Desoneração
A117: C | B117: SINAPI | C117: 91924 | D117: =VLOOKUP(C117,'[53]COMPOSIÇÃO SEM DESONERAÇÃO'!$B$11:$E$9696,2,FALSE) -> CABO DE COBRE FLEXÍVEL ISOLADO, 1,5 MM², ANTI-CHAMA 450/750 V, PARA CIRCUITOS TERMINAIS - FORNECIMENTO E INSTALAÇÃO. AF_03/2023 | E117: INEL - INSTALAÇÃO ELÉTRICA/ELETRIFICAÇÃO E ILUMINAÇÃO EXTERNA | F117: M | G117: =VLOOKUP(C117,'Comp_Sinapi PE_Sem-Desoneracao'!B:E,4,FALSE) -> 3.17 | H117: 1.0821 | I117: =ROUND(G117*H117,2) -> 3.43
A118: C | B118: SINAPI | C118: 92981 | D118: =VLOOKUP(C118,'[53]COMPOSIÇÃO SEM DESONERAÇÃO'!$B$11:$E$9696,2,FALSE) -> CABO DE COBRE FLEXÍVEL ISOLADO, 16 MM², ANTI-CHAMA 450/750 V, PARA DISTRIBUIÇÃO - FORNECIMENTO E INSTALAÇÃO. AF_10/2020 | E118: INEL - INSTALAÇÃO ELÉTRICA/ELETRIFICAÇÃO E ILUMINAÇÃO EXTERNA | F118: M | G118: =VLOOKUP(C118,'Comp_Sinapi PE_Sem-Desoneracao'!B:E,4,FALSE) -> 16.5 | H118: 2.0821 | I118: 34.35
A119: C | B119: SINAPI | C119: 91926 | D119: =VLOOKUP(C119,'[53]COMPOSIÇÃO SEM DESONERAÇÃO'!$B$11:$E$9696,2,FALSE) -> CABO DE COBRE FLEXÍVEL ISOLADO, 2,5 MM², ANTI-CHAMA 450/750 V, PARA CIRCUITOS TERMINAIS - FORNECIMENTO E INSTALAÇÃO. AF_03/2023 | E119: INEL - INSTALAÇÃO ELÉTRICA/ELETRIFICAÇÃO E ILUMINAÇÃO EXTERNA | F119: M | G119: =VLOOKUP(C119,'Comp_Sinapi PE_Sem-Desoneracao'!B:E,4,FALSE) -> 4.59 | H119: 2,087 | I119: 9.58
A120: C | B120: SINAPI | C120: 97886 | D120: =VLOOKUP(C120,'[53]COMPOSIÇÃO SEM DESONERAÇÃO'!$B$11:$E$9696,2,FALSE) -> CAIXA ENTERRADA ELÉTRICA RETANGULAR, EM ALVENARIA COM TIJOLOS CERÂMICOS MACIÇOS, FUNDO COM BRITA, DIMENSÕES INTERNAS: 0,3X0,3X0,3 M. AF_12/2020 | E120: INEL - INSTALAÇÃO ELÉTRICA/ELETRIFICAÇÃO E ILUMINAÇÃO EXTERNA | F120: UN | G120: =VLOOKUP(C120,'Comp_Sinapi PE_Sem-Desoneracao'!B:E,4,FALSE) -> 165.48 | H120: 0,0966 | I120: 15.99
A121: C | B121: SINAPI | C121: 95805 | D121: =VLOOKUP(C121,'[53]COMPOSIÇÃO SEM DESONERAÇÃO'!$B$11:$E$9696,2,FALSE) -> CONDULETE DE PVC, TIPO B, PARA ELETRODUTO DE PVC SOLDÁVEL DN 25 MM (3/4''), APARENTE - FORNECIMENTO E INSTALAÇÃO. AF_10/2022 | E121: INEL - INSTALAÇÃO ELÉTRICA/ELETRIFICAÇÃO E ILUMINAÇÃO EXTERNA | F121: UN | G121: =VLOOKUP(C121,'Comp_Sinapi PE_Sem-Desoneracao'!B:E,4,FALSE) -> 28.79 | H121: 0,3865 | I121: 11.13
A122: C | B122: SINAPI | C122: 101891 | D122: =VLOOKUP(C122,'[53]COMPOSIÇÃO SEM DESONERAÇÃO'!$B$11:$E$9696,2,FALSE) -> DISJUNTOR MONOPOLAR TIPO NEMA, CORRENTE NOMINAL DE 35 ATÉ 50A - FORNECIMENTO E INSTALAÇÃO. AF_10/2020 | E122: INEL - INSTALAÇÃO ELÉTRICA/ELETRIFICAÇÃO E ILUMINAÇÃO EXTERNA | F122: UN | G122: =VLOOKUP(C122,'Comp_Sinapi PE_Sem-Desoneracao'!B:E,4,FALSE) -> 32.92 | H122: 0,2899 | I122: 9.54
A123: C | B123: SINAPI | C123: 91862 | D123: =VLOOKUP(C123,'[53]COMPOSIÇÃO SEM DESONERAÇÃO'!$B$11:$E$9696,2,FALSE) -> ELETRODUTO RÍGIDO ROSCÁVEL, PVC, DN 20 MM (1/2"), PARA CIRCUITOS TERMINAIS, INSTALADO EM FORRO - FORNECIMENTO E INSTALAÇÃO. AF_03/2023 | E123: INEL - INSTALAÇÃO ELÉTRICA/ELETRIFICAÇÃO E ILUMINAÇÃO EXTERNA | F123: M | G123: =VLOOKUP(C123,'Comp_Sinapi PE_Sem-Desoneracao'!B:E,4,FALSE) -> 10.25 | H123: 0,4251 | I123: 4.36
A124: C | B124: SINAPI | C124: 91870 | D124: =VLOOKUP(C124,'[53]COMPOSIÇÃO SEM DESONERAÇÃO'!$B$11:$E$9696,2,FALSE) -> ELETRODUTO RÍGIDO ROSCÁVEL, PVC, DN 20 MM (1/2"), PARA CIRCUITOS TERMINAIS, INSTALADO EM PAREDE - FORNECIMENTO E INSTALAÇÃO. AF_03/2023 | E124: INEL - INSTALAÇÃO ELÉTRICA/ELETRIFICAÇÃO E ILUMINAÇÃO EXTERNA | F124: M | G124: =VLOOKUP(C124,'Comp_Sinapi PE_Sem-Desoneracao'!B:E,4,FALSE) -> 13.48 | H124: 0,4638 | I124: 6.25
A125: C | B125: SINAPI | C125: 93358 | D125: =VLOOKUP(C125,'[53]COMPOSIÇÃO SEM DESONERAÇÃO'!$B$11:$E$9696,2,FALSE) -> ESCAVAÇÃO MANUAL DE VALA. AF_09/2024 | E125: MOVT - MOVIMENTO DE TERRA | F125: m³ | G125: =VLOOKUP(C125,'Comp_Sinapi PE_Sem-Desoneracao'!B:E,4,FALSE) -> 95.25 | H125: 0,0078 | I125: 0.74
A126: C | B126: SINAPI | C126: 91170 | D126: =VLOOKUP(C126,'[53]COMPOSIÇÃO SEM DESONERAÇÃO'!$B$11:$E$9696,2,FALSE) -> FIXAÇÃO DE TUBOS HORIZONTAIS DE PVC ÁGUA, PVC ESGOTO, PVC ÁGUA PLUVIAL, CPVC, PPR, COBRE OU AÇO, DIÂMETROS MENORES OU IGUAIS A 40 MM, COM ABRAÇADEIRA METÁLICA RÍGIDA TIPO U PERFIL 1 1/4", FIXADA EM PERFILADO EM LAJE. AF_09/2023_PS | E126: INHI - INSTALAÇÕES HIDROS SANITÁRIAS | F126: M | G126: =VLOOKUP(C126,'Comp_Sinapi PE_Sem-Desoneracao'!B:E,4,FALSE) -> 11.65 | H126: 0,4251 | I126: 4.95
A127: C | B127: SINAPI | C127: 91173 | D127: =VLOOKUP(C127,'[53]COMPOSIÇÃO SEM DESONERAÇÃO'!$B$11:$E$9696,2,FALSE) -> FIXAÇÃO DE TUBOS VERTICAIS DE PVC ÁGUA, PVC ESGOTO, PVC ÁGUA PLUVIAL, CPVC, PPR, COBRE OU AÇO, DIÂMETROS MENORES OU IGUAIS A 40 MM, COM ABRAÇADEIRA METÁLICA RÍGIDA TIPO U PERFIL 1 1/4", FIXADA EM PERFILADO EM PAREDE. AF_09/2023_PS | E127: INHI - INSTALAÇÕES HIDROS SANITÁRIAS | F127: M | G127: =VLOOKUP(C127,'Comp_Sinapi PE_Sem-Desoneracao'!B:E,4,FALSE) -> 4.34 | H127: 0,4638 | I127: 2.01
A128: C | B128: SINAPI | C128: 96985 | D128: =VLOOKUP(C128,'[53]COMPOSIÇÃO SEM DESONERAÇÃO'!$B$11:$E$9696,2,FALSE) -> HASTE DE ATERRAMENTO, DIÂMETRO 5/8", COM 3 METROS - FORNECIMENTO E INSTALAÇÃO. AF_08/2023 | E128: INEL - INSTALAÇÃO ELÉTRICA/ELETRIFICAÇÃO E ILUMINAÇÃO EXTERNA | F128: UN | G128: =VLOOKUP(C128,'Comp_Sinapi PE_Sem-Desoneracao'!B:E,4,FALSE) -> 110.16 | H128: 0,0966 | I128: 10.64
A129: C | B129: SINAPI | C129: 92023 | D129: =VLOOKUP(C129,'[53]COMPOSIÇÃO SEM DESONERAÇÃO'!$B$11:$E$9696,2,FALSE) -> INTERRUPTOR SIMPLES (1 MÓDULO) COM 1 TOMADA DE EMBUTIR 2P+T 10 A, INCLUINDO SUPORTE E PLACA - FORNECIMENTO E INSTALAÇÃO. AF_03/2023 | E129: INEL - INSTALAÇÃO ELÉTRICA/ELETRIFICAÇÃO E ILUMINAÇÃO EXTERNA | F129: UN | G129: =VLOOKUP(C129,'Comp_Sinapi PE_Sem-Desoneracao'!B:E,4,FALSE) -> 52.21 | H129: 0,0966 | I129: 5.04
A130: C | B130: SINAPI | C130: 95241 | D130: =VLOOKUP(C130,'[53]COMPOSIÇÃO SEM DESONERAÇÃO'!$B$11:$E$9696,2,FALSE) -> LASTRO DE CONCRETO MAGRO, APLICADO EM PISOS, LAJES SOBRE SOLO OU RADIERS, ESPESSURA DE 5 CM. AF_01/2024 | E130: FUES - FUNDAÇÕES E ESTRUTURAS | F130: m² | G130: =VLOOKUP(C130,'Comp_Sinapi PE_Sem-Desoneracao'!B:E,4,FALSE) -> 37.66 | H130: 1,9256 | I130: 72.52
A131: C | B131: SINAPI | C131: 97586 | D131: LUMINÁRIA TIPO CALHA, DE SOBREPOR, COM 2 LÂMPADAS TUBULARES FLUORESCENTES DE 36 W, COM REATOR DE PARTIDA RÁPIDA - FORNECIMENTO E INSTALAÇÃO. AF_02/2020 | E131: INEL - INSTALAÇÃO ELÉTRICA/ELETRIFICAÇÃO E ILUMINAÇÃO EXTERNA | F131: UN | G131: =SUM(I132:I134) -> 222.74 | H131: 0.1392 | I131: 31.01
A132: C | B132: SINAPI | C132: 88247 | D132: =VLOOKUP(C132,'[53]COMPOSIÇÃO SEM DESONERAÇÃO'!$B$11:$F$9696,2,FALSE) -> AUXILIAR DE ELETRICISTA COM ENCARGOS COMPLEMENTARES | E132: SEDI - SERVIÇOS DIVERSOS | F132: H | G132: =VLOOKUP(C132,'Comp_Sinapi PE_Sem-Desoneracao'!B:E,4,FALSE) -> 25.53 | H132: 0.1727 | I132: =ROUND(G132*H132,2) -> 4.41
A133: C | B133: SINAPI | C133: 88264 | D133: =VLOOKUP(C133,'[53]COMPOSIÇÃO SEM DESONERAÇÃO'!$B$11:$F$9696,2,FALSE) -> ELETRICISTA COM ENCARGOS COMPLEMENTARES | E133: SEDI - SERVIÇOS DIVERSOS | F133: H | G133: =VLOOKUP(C133,'Comp_Sinapi PE_Sem-Desoneracao'!B:E,4,FALSE) -> 30.24 | H133: 0.4144 | I133: =ROUND(G133*H133,2) -> 12.53
A134: C | B134: SINAPI | C134: 3780 | D134: =VLOOKUP(C134,'[53]INSUMO SEM DESONERAÇÃO'!$B$11:$F$4847,2,FALSE) -> LUMINARIA DE SOBREPOR EM CHAPA DE ACO PARA 1 LAMPADA FLUORESCENTE DE *36* W, ALETADA, COMPLETA (LAMPADA E REATOR INCLUSOS) | E134: Material | F134: UN | G134: 102.9 | H134: 2 | I134: =ROUND(G134*H134,2) -> 205.8 | J134: *Está sem PROCV
A135: C | B135: SINAPI | C135: 98445 | D135: =VLOOKUP(C135,'[53]COMPOSIÇÃO SEM DESONERAÇÃO'!$B$11:$E$9696,2,FALSE) -> PAREDE DE MADEIRA COMPENSADA PARA CONSTRUÇÃO TEMPORÁRIA EM CHAPA SIMPLES, EXTERNA, COM ÁREA LÍQUIDA MAIOR OU IGUAL A 6 M², COM VÃO. AF_03/2024 | E135: CANT - CANTEIRO DE OBRAS | F135: m² | G135: =VLOOKUP(C135,'Comp_Sinapi PE_Sem-Desoneracao'!B:E,4,FALSE) -> 116.02 | H135: 0,1508 | I135: 28.43
A136: C | B136: SINAPI | C136: 98441 | D136: =VLOOKUP(C136,'[53]COMPOSIÇÃO SEM DESONERAÇÃO'!$B$11:$E$9696,2,FALSE) -> PAREDE DE MADEIRA COMPENSADA PARA CONSTRUÇÃO TEMPORÁRIA EM CHAPA SIMPLES, EXTERNA, SEM VÃO. AF_03/2024 | E136: CANT - CANTEIRO DE OBRAS | F136: m² | G136: =VLOOKUP(C136,'Comp_Sinapi PE_Sem-Desoneracao'!B:E,4,FALSE) -> 97.87 | H136: 0,0966 | I136: 15.02
A137: C | B137: SINAPI | C137: 98446 | D137: =VLOOKUP(C137,'[53]COMPOSIÇÃO SEM DESONERAÇÃO'!$B$11:$E$9696,2,FALSE) -> PAREDE DE MADEIRA COMPENSADA PARA CONSTRUÇÃO TEMPORÁRIA EM CHAPA SIMPLES, EXTERNA, COM ÁREA LÍQUIDA MENOR QUE 6 M², COM VÃO. AF_03/2024 | E137: CANT - CANTEIRO DE OBRAS | F137: m² | G137: =VLOOKUP(C137,'Comp_Sinapi PE_Sem-Desoneracao'!B:E,4,FALSE) -> 149.23 | H137: 0,1176 | I137: 28.54
A138: C | B138: SINAPI | C138: 98441 | D138: =VLOOKUP(C138,'[53]COMPOSIÇÃO SEM DESONERAÇÃO'!$B$11:$F$9696,2,FALSE) -> PAREDE DE MADEIRA COMPENSADA PARA CONSTRUÇÃO TEMPORÁRIA EM CHAPA SIMPLES, EXTERNA, SEM VÃO. AF_03/2024 | E138: CANT - CANTEIRO DE OBRAS | F138: m² | G138: =VLOOKUP(C138,'Comp_Sinapi PE_Sem-Desoneracao'!B:E,4,FALSE) -> 97.87 | H138: 0.3007 | I138: =ROUND(G138*H138,2) -> 29.43
A139: C | B139: SINAPI | C139: 88489 | D139: =VLOOKUP(C139,'[53]COMPOSIÇÃO SEM DESONERAÇÃO'!$B$11:$E$9696,2,FALSE) -> PINTURA LÁTEX ACRÍLICA PREMIUM, APLICAÇÃO MANUAL EM PAREDES, DUAS DEMÃOS. AF_04/2023 | E139: PINT - PINTURAS | F139: m² | G139: =VLOOKUP(C139,'Comp_Sinapi PE_Sem-Desoneracao'!B:E,4,FALSE) -> 14.91 | H139: 0,4761 | I139: 6.35
A140: C | B140: SINAPI | C140: 101876 | D140: =VLOOKUP(C140,'[53]COMPOSIÇÃO SEM DESONERAÇÃO'!$B$11:$E$9696,2,FALSE) -> QUADRO DE DISTRIBUIÇÃO DE ENERGIA EM PVC, DE EMBUTIR, SEM BARRAMENTO, PARA 6 DISJUNTORES - FORNECIMENTO E INSTALAÇÃO. AF_10/2020 | E140: INEL - INSTALAÇÃO ELÉTRICA/ELETRIFICAÇÃO E ILUMINAÇÃO EXTERNA | F140: UN | G140: =VLOOKUP(C140,'Comp_Sinapi PE_Sem-Desoneracao'!B:E,4,FALSE) -> 107.13 | H140: 0,0966 | I140: 10.05
A141: C | B141: SINAPI | C141: 94210 | D141: =VLOOKUP(C141,'[53]COMPOSIÇÃO SEM DESONERAÇÃO'!$B$11:$E$9696,2,FALSE) -> TELHAMENTO COM TELHA ONDULADA DE FIBROCIMENTO E = 6 MM, COM RECOBRIMENTO LATERAL DE 1 1/4 DE ONDA PARA TELHADO COM INCLINAÇÃO MÁXIMA DE 10°, COM ATÉ 2 ÁGUAS, INCLUSO IÇAMENTO. AF_07/2019 | E141: COBE - COBERTURA | F141: m² | G141: =VLOOKUP(C141,'Comp_Sinapi PE_Sem-Desoneracao'!B:E,4,FALSE) -> 59.36 | H141: 1,9256 | I141: 125
A142: C | B142: SINAPI | C142: 92008 | D142: =VLOOKUP(C142,'[53]COMPOSIÇÃO SEM DESONERAÇÃO'!$B$11:$E$9696,2,FALSE) -> TOMADA BAIXA DE EMBUTIR (2 MÓDULOS), 2P+T 10 A, INCLUINDO SUPORTE E PLACA - FORNECIMENTO E INSTALAÇÃO. AF_03/2023 | E142: INEL - INSTALAÇÃO ELÉTRICA/ELETRIFICAÇÃO E ILUMINAÇÃO EXTERNA | F142: UN | G142: =VLOOKUP(C142,'Comp_Sinapi PE_Sem-Desoneracao'!B:E,4,FALSE) -> 49.48 | H142: 0,2899 | I142: 13.41
A143: C | B143: SINAPI | C143: 92543 | D143: =VLOOKUP(C143,'[53]COMPOSIÇÃO SEM DESONERAÇÃO'!$B$11:$E$9696,2,FALSE) -> TRAMA DE MADEIRA COMPOSTA POR TERÇAS PARA TELHADOS DE ATÉ 2 ÁGUAS PARA TELHA ONDULADA DE FIBROCIMENTO, METÁLICA, PLÁSTICA OU TERMOACÚSTICA, INCLUSO TRANSPORTE VERTICAL. AF_07/2019 | E143: COBE - COBERTURA | F143: m² | G143: =VLOOKUP(C143,'Comp_Sinapi PE_Sem-Desoneracao'!B:E,4,FALSE) -> 25.33 | H143: 1,9256 | I143: 49.21
A144: I | B144: SINAPI | C144: 10886 | D144: =VLOOKUP(C144,'[53]INSUMO SEM DESONERAÇÃO'!$B$11:$F$4847,2,FALSE) -> EXTINTOR DE INCENDIO PORTATIL COM CARGA DE AGUA PRESSURIZADA DE 10 L, CLASSE A | E144: Material | F144: UN | G144: =VLOOKUP(C144,'Ins SINAPI PE_Sem_Desoneracao'!B:F,5,FALSE) -> 245 | H144: 0,0966 | I144: 22.82
A145: I | B145: SINAPI | C145: 10891 | D145: =VLOOKUP(C145,'[53]INSUMO SEM DESONERAÇÃO'!$B$11:$F$4847,2,FALSE) -> EXTINTOR DE INCENDIO PORTATIL COM CARGA DE PO QUIMICO SECO (PQS) DE 4 KG, CLASSE BC | E145: Material | F145: UN | G145: =VLOOKUP(C145,'Ins SINAPI PE_Sem_Desoneracao'!B:F,5,FALSE) -> 236.92 | H145: 0,0966 | I145: 22.06
A148: Código | D148: 93210 ADAPTADO
A149: Descrição | D149: EXECUÇÃO DE REFEITÓRIO EM CANTEIRO DE OBRA EM CHAPA DE MADEIRA COMPENSADA, NÃO INCLUSO MOBILIÁRIO E EQUIPAMENTOS. AF_02/2016
A150: Data | D150: 2024-04-01
A151: Estado | D151: Pernambuco
A152: Tipo | D152: CANT - CANTEIRO DE OBRAS
A153: Unidade | D153: m²
A154: Valor sem Desoneração | D154: =SUM(I157:I179,I183:I188,I195:I208) -> 599.503077
A156: Natureza | B156: Fonte | C156: codigo | D156: Descrição | E156: Tipo | F156: Unidade | G156: Valor sem Desoneração | H156: Coeficiente | I156: Valor sem Desoneração
A157: C | B157: SINAPI | C157: 101165 | D157: =VLOOKUP(C157,'[54]SINAPI COMPOSIÇÕES'!$B$11:$F$9696,2,0) -> ALVENARIA DE EMBASAMENTO COM BLOCO ESTRUTURAL DE CONCRETO, DE 14X19X29CM E ARGAMASSA DE ASSENTAMENTO COM PREPARO EM BETONEIRA. AF_05/2020 | E157: FUES - FUNDAÇÕES E ESTRUTURAS | F157: m³ | G157: =VLOOKUP(C157,'Comp_Sinapi PE_Sem-Desoneracao'!B:E,4,FALSE) -> 1013.86 | H157: 0.04 | I157: =G157*H157 -> 40.5544
A158: C | B158: SINAPI | C158: 86934 | D158: =VLOOKUP(C158,'[54]SINAPI COMPOSIÇÕES'!$B$11:$F$9696,2,0) -> BANCADA DE MÁRMORE SINTÉTICO 120 X 60CM, COM CUBA INTEGRADA, INCLUSO SIFÃO TIPO FLEXÍVEL EM PVC, VÁLVULA EM PLÁSTICO CROMADO TIPO AMERICANA E TORNEIRA CROMADA LONGA, DE PAREDE, PADRÃO POPULAR - FORNECIMENTO E INSTALAÇÃO. AF_01/2020 | E158: INHI - INSTALAÇÕES HIDROS SANITÁRIAS | F158: UN | G158: =VLOOKUP(C158,'Comp_Sinapi PE_Sem-Desoneracao'!B:E,4,FALSE) -> 457.09 | H158: 0.0268 | I158: =G158*H158 -> 12.250012
A159: C | B159: SINAPI | C159: 91924 | D159: =VLOOKUP(C159,'[54]SINAPI COMPOSIÇÕES'!$B$11:$F$9696,2,0) -> CABO DE COBRE FLEXÍVEL ISOLADO, 1,5 MM², ANTI-CHAMA 450/750 V, PARA CIRCUITOS TERMINAIS - FORNECIMENTO E INSTALAÇÃO. AF_03/2023 | E159: INEL - INSTALAÇÃO ELÉTRICA/ELETRIFICAÇÃO E ILUMINAÇÃO EXTERNA | F159: M | G159: =VLOOKUP(C159,'Comp_Sinapi PE_Sem-Desoneracao'!B:E,4,FALSE) -> 3.17 | H159: 0.8591 | I159: 2.723347
A160: C | B160: SINAPI | C160: 91926 | D160: =VLOOKUP(C160,'[54]SINAPI COMPOSIÇÕES'!$B$11:$F$9696,2,0) -> CABO DE COBRE FLEXÍVEL ISOLADO, 2,5 MM², ANTI-CHAMA 450/750 V, PARA CIRCUITOS TERMINAIS - FORNECIMENTO E INSTALAÇÃO. AF_03/2023 | E160: INEL - INSTALAÇÃO ELÉTRICA/ELETRIFICAÇÃO E ILUMINAÇÃO EXTERNA | F160: M | G160: =VLOOKUP(C160,'Comp_Sinapi PE_Sem-Desoneracao'!B:E,4,FALSE) -> 4.59 | H160: 2.5503 | I160: 11.705877
A161: C | B161: SINAPI | C161: 98102 | D161: =VLOOKUP(C161,'[54]SINAPI COMPOSIÇÕES'!$B$11:$F$9696,2,0) -> CAIXA DE GORDURA SIMPLES, CIRCULAR, EM CONCRETO PRÉ-MOLDADO, DIÂMETRO INTERNO = 0,4 M, ALTURA INTERNA = 0,4 M. AF_12/2020 | E161: INHI - INSTALAÇÕES HIDROS SANITÁRIAS | F161: UN | G161: =VLOOKUP(C161,'Comp_Sinapi PE_Sem-Desoneracao'!B:E,4,FALSE) -> 145.95 | H161: 0.0268 | I161: 3.91146
A162: C | B162: SINAPI | C162: 97906 | D162: =VLOOKUP(C162,'[54]SINAPI COMPOSIÇÕES'!$B$11:$F$9696,2,0) -> CAIXA ENTERRADA HIDRÁULICA RETANGULAR, EM ALVENARIA COM BLOCOS DE CONCRETO, DIMENSÕES INTERNAS: 0,6X0,6X0,6 M PARA REDE DE ESGOTO. AF_12/2020 | E162: INHI - INSTALAÇÕES HIDROS SANITÁRIAS | F162: UN | G162: =VLOOKUP(C162,'Comp_Sinapi PE_Sem-Desoneracao'!B:E,4,FALSE) -> 461.86 | H162: 0.0268 | I162: 12.377848
A163: C | B163: SINAPI | C163: 91937 | D163: =VLOOKUP(C163,'[54]SINAPI COMPOSIÇÕES'!$B$11:$F$9696,2,0) -> CAIXA OCTOGONAL 3" X 3", PVC, INSTALADA EM LAJE - FORNECIMENTO E INSTALAÇÃO. AF_03/2023 | E163: INEL - INSTALAÇÃO ELÉTRICA/ELETRIFICAÇÃO E ILUMINAÇÃO EXTERNA | F163: UN | G163: =VLOOKUP(C163,'Comp_Sinapi PE_Sem-Desoneracao'!B:E,4,FALSE) -> 18.63 | H163: 0.1611 | I163: 3.001293
A164: C | B164: SINAPI | C164: 88262 | D164: =VLOOKUP(C164,'[54]SINAPI COMPOSIÇÕES'!$B$11:$F$9696,2,0) -> CARPINTEIRO DE FORMAS COM ENCARGOS COMPLEMENTARES | E164: SEDI - SERVIÇOS DIVERSOS | F164: H | G164: =VLOOKUP(C164,'Comp_Sinapi PE_Sem-Desoneracao'!B:E,4,FALSE) -> 29.41 | H164: 1.1155 | I164: 32.806855
A165: C | B165: SINAPI | C165: 95805 | D165: =VLOOKUP(C165,'[54]SINAPI COMPOSIÇÕES'!$B$11:$F$9696,2,0) -> CONDULETE DE PVC, TIPO B, PARA ELETRODUTO DE PVC SOLDÁVEL DN 25 MM (3/4''), APARENTE - FORNECIMENTO E INSTALAÇÃO. AF_10/2022 | E165: INEL - INSTALAÇÃO ELÉTRICA/ELETRIFICAÇÃO E ILUMINAÇÃO EXTERNA | F165: UN | G165: =VLOOKUP(C165,'Comp_Sinapi PE_Sem-Desoneracao'!B:E,4,FALSE) -> 28.79 | H165: 0.1879 | I165: 5.409641
A166: C | B166: SINAPI | C166: 95811 | D166: =VLOOKUP(C166,'[54]SINAPI COMPOSIÇÕES'!$B$11:$F$9696,2,0) -> CONDULETE DE PVC, TIPO LB, PARA ELETRODUTO DE PVC SOLDÁVEL DN 25 MM (3/4''), APARENTE - FORNECIMENTO E INSTALAÇÃO. AF_10/2022 | E166: INEL - INSTALAÇÃO ELÉTRICA/ELETRIFICAÇÃO E ILUMINAÇÃO EXTERNA | F166: UN | G166: =VLOOKUP(C166,'Comp_Sinapi PE_Sem-Desoneracao'!B:E,4,FALSE) -> 24.93 | H166: 0.0268 | I166: 0.668124
A167: C | B167: SINAPI | C167: 91911 | D167: =VLOOKUP(C167,'[54]SINAPI COMPOSIÇÕES'!$B$11:$F$9696,2,0) -> CURVA 90 GRAUS PARA ELETRODUTO, PVC, ROSCÁVEL, DN 20 MM (1/2"), PARA CIRCUITOS TERMINAIS, INSTALADA EM PAREDE - FORNECIMENTO E INSTALAÇÃO. AF_03/2023 | E167: INEL - INSTALAÇÃO ELÉTRICA/ELETRIFICAÇÃO E ILUMINAÇÃO EXTERNA | F167: UN | G167: =VLOOKUP(C167,'Comp_Sinapi PE_Sem-Desoneracao'!B:E,4,FALSE) -> 19.16 | H167: 0.1074 | I167: 2.057784
A168: C | B168: SINAPI | C168: 101891 | D168: =VLOOKUP(C168,'[54]SINAPI COMPOSIÇÕES'!$B$11:$F$9696,2,0) -> DISJUNTOR MONOPOLAR TIPO NEMA, CORRENTE NOMINAL DE 35 ATÉ 50A - FORNECIMENTO E INSTALAÇÃO. AF_10/2020 | E168: INEL - INSTALAÇÃO ELÉTRICA/ELETRIFICAÇÃO E ILUMINAÇÃO EXTERNA | F168: UN | G168: =VLOOKUP(C168,'Comp_Sinapi PE_Sem-Desoneracao'!B:E,4,FALSE) -> 32.92 | H168: 0.1074 | I168: 3.535608
A169: C | B169: SINAPI | C169: 91862 | D169: =VLOOKUP(C169,'[54]SINAPI COMPOSIÇÕES'!$B$11:$F$9696,2,0) -> ELETRODUTO RÍGIDO ROSCÁVEL, PVC, DN 20 MM (1/2"), PARA CIRCUITOS TERMINAIS, INSTALADO EM FORRO - FORNECIMENTO E INSTALAÇÃO. AF_03/2023 | E169: INEL - INSTALAÇÃO ELÉTRICA/ELETRIFICAÇÃO E ILUMINAÇÃO EXTERNA | F169: M | G169: =VLOOKUP(C169,'Comp_Sinapi PE_Sem-Desoneracao'!B:E,4,FALSE) -> 10.25 | H169: 0.3221 | I169: 3.301525
A170: C | B170: SINAPI | C170: 91870 | D170: =VLOOKUP(C170,'[54]SINAPI COMPOSIÇÕES'!$B$11:$F$9696,2,0) -> ELETRODUTO RÍGIDO ROSCÁVEL, PVC, DN 20 MM (1/2"), PARA CIRCUITOS TERMINAIS, INSTALADO EM PAREDE - FORNECIMENTO E INSTALAÇÃO. AF_03/2023 | E170: INEL - INSTALAÇÃO ELÉTRICA/ELETRIFICAÇÃO E ILUMINAÇÃO EXTERNA | F170: M | G170: =VLOOKUP(C170,'Comp_Sinapi PE_Sem-Desoneracao'!B:E,4,FALSE) -> 13.48 | H170: 0.5369 | I170: 7.237412
A171: C | B171: SINAPI | C171: 93358 | D171: =VLOOKUP(C171,'[54]SINAPI COMPOSIÇÕES'!$B$11:$F$9696,2,0) -> ESCAVAÇÃO MANUAL DE VALA. AF_09/2024 | E171: MOVT - MOVIMENTO DE TERRA | F171: m³ | G171: =VLOOKUP(C171,'Comp_Sinapi PE_Sem-Desoneracao'!B:E,4,FALSE) -> 95.25 | H171: 0.039 | I171: 3.71475
A172: C | B172: SINAPI | C172: 91170 | D172: =VLOOKUP(C172,'[54]SINAPI COMPOSIÇÕES'!$B$11:$F$9696,2,0) -> FIXAÇÃO DE TUBOS HORIZONTAIS DE PVC ÁGUA, PVC ESGOTO, PVC ÁGUA PLUVIAL, CPVC, PPR, COBRE OU AÇO, DIÂMETROS MENORES OU IGUAIS A 40 MM, COM ABRAÇADEIRA METÁLICA RÍGIDA TIPO U PERFIL 1 1/4", FIXADA EM PERFILADO EM LAJE. AF_09/2023_PS | E172: INHI - INSTALAÇÕES HIDROS SANITÁRIAS | F172: M | G172: =VLOOKUP(C172,'Comp_Sinapi PE_Sem-Desoneracao'!B:E,4,FALSE) -> 11.65 | H172: 0.3221 | I172: 3.752465
A173: C | B173: SINAPI | C173: 91173 | D173: =VLOOKUP(C173,'[54]SINAPI COMPOSIÇÕES'!$B$11:$F$9696,2,0) -> FIXAÇÃO DE TUBOS VERTICAIS DE PVC ÁGUA, PVC ESGOTO, PVC ÁGUA PLUVIAL, CPVC, PPR, COBRE OU AÇO, DIÂMETROS MENORES OU IGUAIS A 40 MM, COM ABRAÇADEIRA METÁLICA RÍGIDA TIPO U PERFIL 1 1/4", FIXADA EM PERFILADO EM PAREDE. AF_09/2023_PS | E173: INHI - INSTALAÇÕES HIDROS SANITÁRIAS | F173: M | G173: =VLOOKUP(C173,'Comp_Sinapi PE_Sem-Desoneracao'!B:E,4,FALSE) -> 4.34 | H173: 0.5369 | I173: 2.330146
A174: C | B174: SINAPI | C174: 92023 | D174: =VLOOKUP(C174,'[54]SINAPI COMPOSIÇÕES'!$B$11:$F$9696,2,0) -> INTERRUPTOR SIMPLES (1 MÓDULO) COM 1 TOMADA DE EMBUTIR 2P+T 10 A, INCLUINDO SUPORTE E PLACA - FORNECIMENTO E INSTALAÇÃO. AF_03/2023 | E174: INEL - INSTALAÇÃO ELÉTRICA/ELETRIFICAÇÃO E ILUMINAÇÃO EXTERNA | F174: UN | G174: =VLOOKUP(C174,'Comp_Sinapi PE_Sem-Desoneracao'!B:E,4,FALSE) -> 52.21 | H174: 0.0268 | I174: 1.399228
A175: C | B175: SINAPI | C175: 89724 | D175: =VLOOKUP(C175,'[54]SINAPI COMPOSIÇÕES'!$B$11:$F$9696,2,0) -> JOELHO 90 GRAUS, PVC, SERIE NORMAL, ESGOTO PREDIAL, DN 40 MM, JUNTA SOLDÁVEL, FORNECIDO E INSTALADO EM RAMAL DE DESCARGA OU RAMAL DE ESGOTO SANITÁRIO. AF_08/2022 | E175: INHI - INSTALAÇÕES HIDROS SANITÁRIAS | F175: UN | G175: =VLOOKUP(C175,'Comp_Sinapi PE_Sem-Desoneracao'!B:E,4,FALSE) -> 10.45 | H175: 0.0537 | I175: 0.561165
A176: C | B176: SINAPI | C176: 95240 | D176: =VLOOKUP(C176,'[54]SINAPI COMPOSIÇÕES'!$B$11:$F$9696,2,0) -> LASTRO DE CONCRETO MAGRO, APLICADO EM PISOS, LAJES SOBRE SOLO OU RADIERS, ESPESSURA DE 3 CM. AF_01/2024 | E176: FUES - FUNDAÇÕES E ESTRUTURAS | F176: m² | G176: =VLOOKUP(C176,'Comp_Sinapi PE_Sem-Desoneracao'!B:E,4,FALSE) -> 19.61 | H176: 0.009 | I176: 0.17649
A177: C | B177: SINAPI | C177: 95241 | D177: =VLOOKUP(C177,'[54]SINAPI COMPOSIÇÕES'!$B$11:$F$9696,2,0) -> LASTRO DE CONCRETO MAGRO, APLICADO EM PISOS, LAJES SOBRE SOLO OU RADIERS, ESPESSURA DE 5 CM. AF_01/2024 | E177: FUES - FUNDAÇÕES E ESTRUTURAS | F177: m² | G177: =VLOOKUP(C177,'Comp_Sinapi PE_Sem-Desoneracao'!B:E,4,FALSE) -> 37.66 | H177: 1.451 | I177: 54.64466
A178: C | B178: SINAPI | C178: 86943 | D178: =VLOOKUP(C178,'[54]SINAPI COMPOSIÇÕES'!$B$11:$F$9696,2,0) -> LAVATÓRIO LOUÇA BRANCA SUSPENSO, 29,5 X 39CM OU EQUIVALENTE, PADRÃO POPULAR, INCLUSO SIFÃO FLEXÍVEL EM PVC, VÁLVULA E ENGATE FLEXÍVEL 30CM EM PLÁSTICO E TORNEIRA CROMADA DE MESA, PADRÃO POPULAR - FORNECIMENTO E INSTALAÇÃO. AF_01/2020 | E178: INHI - INSTALAÇÕES HIDROS SANITÁRIAS | F178: UN | G178: =VLOOKUP(C178,'Comp_Sinapi PE_Sem-Desoneracao'!B:E,4,FALSE) -> 275.13 | H178: 0.0268 | I178: 7.373484
A179: C | B179: SINAPI | C179: 97586 | D179: LUMINÁRIA TIPO CALHA, DE SOBREPOR, COM 2 LÂMPADAS TUBULARES FLUORESCENTES DE 36 W, COM REATOR DE PARTIDA RÁPIDA - FORNECIMENTO E INSTALAÇÃO. AF_02/2020 ADAPTADA | E179: INEL - INSTALAÇÃO ELÉTRICA/ELETRIFICAÇÃO E ILUMINAÇÃO EXTERNA | F179: UN | G179: =SUM(I180:I182) -> 119.840487 | H179: 0.1611 | I179: 19.30630246
A180: C | B180: SINAPI | C180: 88247 | D180: =VLOOKUP(C180,'[54]SINAPI COMPOSIÇÕES'!$B$11:$F$9696,2,0) -> AUXILIAR DE ELETRICISTA COM ENCARGOS COMPLEMENTARES | E180: SEDI - SERVIÇOS DIVERSOS | F180: H | G180: =VLOOKUP(C180,'Comp_Sinapi PE_Sem-Desoneracao'!B:E,4,FALSE) -> 25.53 | H180: 0.1727 | I180: 4.409031
A181: C | B181: SINAPI | C181: 88264 | D181: =VLOOKUP(C181,'[54]SINAPI COMPOSIÇÕES'!$B$11:$F$9696,2,0) -> ELETRICISTA COM ENCARGOS COMPLEMENTARES | E181: SEDI - SERVIÇOS DIVERSOS | F181: H | G181: =VLOOKUP(C181,'Comp_Sinapi PE_Sem-Desoneracao'!B:E,4,FALSE) -> 30.24 | H181: 0.4144 | I181: 12.531456
A182: C | B182: SINAPI | C182: 3780 | D182: =VLOOKUP(C182,'[54]SINAPI INSUMOS'!$B$11:$F$4847,2,0) -> LUMINARIA DE SOBREPOR EM CHAPA DE ACO PARA 1 LAMPADA FLUORESCENTE DE *36* W, ALETADA, COMPLETA (LAMPADA E REATOR INCLUSOS) | E182: Material | F182: UN | G182: 102.9 | H182: 1 | I182: 102.9 | J182: *Está sem PROCV
A183: C | B183: SINAPI | C183: 98445 | D183: =VLOOKUP(C183,'[54]SINAPI COMPOSIÇÕES'!$B$11:$F$9696,2,0) -> PAREDE DE MADEIRA COMPENSADA PARA CONSTRUÇÃO TEMPORÁRIA EM CHAPA SIMPLES, EXTERNA, COM ÁREA LÍQUIDA MAIOR OU IGUAL A 6 M², COM VÃO. AF_03/2024 | E183: CANT - CANTEIRO DE OBRAS | F183: m² | G183: =VLOOKUP(C183,'Comp_Sinapi PE_Sem-Desoneracao'!B:E,4,FALSE) -> 116.02 | H183: 0.2264 | I183: 26.266928
A184: C | B184: SINAPI | C184: 98441 | D184: =VLOOKUP(C184,'[54]SINAPI COMPOSIÇÕES'!$B$11:$F$9696,2,0) -> PAREDE DE MADEIRA COMPENSADA PARA CONSTRUÇÃO TEMPORÁRIA EM CHAPA SIMPLES, EXTERNA, SEM VÃO. AF_03/2024 | E184: CANT - CANTEIRO DE OBRAS | F184: m² | G184: =VLOOKUP(C184,'Comp_Sinapi PE_Sem-Desoneracao'!B:E,4,FALSE) -> 97.87 | H184: 0.1449 | I184: 14.181363
A185: C | B185: SINAPI | C185: 98446 | D185: =VLOOKUP(C185,'[54]SINAPI COMPOSIÇÕES'!$B$11:$F$9696,2,0) -> PAREDE DE MADEIRA COMPENSADA PARA CONSTRUÇÃO TEMPORÁRIA EM CHAPA SIMPLES, EXTERNA, COM ÁREA LÍQUIDA MENOR QUE 6 M², COM VÃO. AF_03/2024 | E185: CANT - CANTEIRO DE OBRAS | F185: m² | G185: =VLOOKUP(C185,'Comp_Sinapi PE_Sem-Desoneracao'!B:E,4,FALSE) -> 149.23 | H185: 0.1765 | I185: 26.339095
A186: C | B186: SINAPI | C186: 98441 | D186: =VLOOKUP(C186,'[54]SINAPI COMPOSIÇÕES'!$B$11:$F$9696,2,0) -> PAREDE DE MADEIRA COMPENSADA PARA CONSTRUÇÃO TEMPORÁRIA EM CHAPA SIMPLES, EXTERNA, SEM VÃO. AF_03/2024 | E186: CANT - CANTEIRO DE OBRAS | F186: m² | G186: =VLOOKUP(C186,'Comp_Sinapi PE_Sem-Desoneracao'!B:E,4,FALSE) -> 97.87 | H186: 0.1668 | I186: 16.324716
A187: C | B187: SINAPI | C187: 88489 | D187: =VLOOKUP(C187,'[54]SINAPI COMPOSIÇÕES'!$B$11:$F$9696,2,0) -> PINTURA LÁTEX ACRÍLICA PREMIUM, APLICAÇÃO MANUAL EM PAREDES, DUAS DEMÃOS. AF_04/2023 | E187: PINT - PINTURAS | F187: m² | G187: =VLOOKUP(C187,'Comp_Sinapi PE_Sem-Desoneracao'!B:E,4,FALSE) -> 14.91 | H187: 1.4293 | I187: 21.310863
A188: C | B188: SINAPI | C188: 89957 | D188: PONTO DE CONSUMO TERMINAL DE ÁGUA FRIA (SUBRAMAL) COM TUBULAÇÃO DE PVC, DN 25 MM, INSTALADO EM RAMAL DE ÁGUA, INCLUSOS RASGO E CHUMBAMENTO EM ALVENARIA. AF_12/2014 ATUALIZADA | E188: INHI - INSTALAÇÕES HIDROS SANITÁRIAS | F188: UN | G188: =SUM(I189:I194) -> 146.2788 | H188: 0.0537 | I188: 7.85517156
A189: C | B189: SINAPI | C189: 90466 | D189: =VLOOKUP(C189,'[54]SINAPI COMPOSIÇÕES'!$B$11:$F$9696,2,0) -> CHUMBAMENTO LINEAR EM ALVENARIA PARA RAMAIS/DISTRIBUIÇÃO DE INSTALAÇÕES HIDRÁULICAS COM DIÂMETROS MENORES OU IGUAIS A 40 MM. AF_09/2023 | E189: INHI - INSTALAÇÕES HIDROS SANITÁRIAS | F189: M | G189: =VLOOKUP(C189,'Comp_Sinapi PE_Sem-Desoneracao'!B:E,4,FALSE) -> 16.14 | H189: 2.14 | I189: 34.5396
A190: C | B190: SINAPI | C190: 89366 | D190: =VLOOKUP(C190,'[54]SINAPI COMPOSIÇÕES'!$B$11:$F$9696,2,0) -> JOELHO 90 GRAUS COM BUCHA DE LATÃO, PVC, SOLDÁVEL, DN 25MM, X 3/4 INSTALADO EM RAMAL OU SUB-RAMAL DE ÁGUA - FORNECIMENTO E INSTALAÇÃO. AF_06/2022 | E190: INHI - INSTALAÇÕES HIDROS SANITÁRIAS | F190: UN | G190: =VLOOKUP(C190,'Comp_Sinapi PE_Sem-Desoneracao'!B:E,4,FALSE) -> 16.49 | H190: 1 | I190: 16.49
A191: C | B191: SINAPI | C191: 89362 | D191: =VLOOKUP(C191,'[54]SINAPI COMPOSIÇÕES'!$B$11:$F$9696,2,0) -> JOELHO 90 GRAUS, PVC, SOLDÁVEL, DN 25MM, INSTALADO EM RAMAL OU SUB-RAMAL DE ÁGUA - FORNECIMENTO E INSTALAÇÃO. AF_06/2022 | E191: INHI - INSTALAÇÕES HIDROS SANITÁRIAS | F191: UN | G191: =VLOOKUP(C191,'Comp_Sinapi PE_Sem-Desoneracao'!B:E,4,FALSE) -> 9.98 | H191: 1.18 | I191: 11.7764
A192: C | B192: SINAPI | C192: 90443 | D192: =VLOOKUP(C192,'[54]SINAPI COMPOSIÇÕES'!$B$11:$F$9696,2,0) -> RASGO LINEAR MANUAL EM ALVENARIA, PARA RAMAIS/ DISTRIBUIÇÃO DE INSTALAÇÕES HIDRÁULICAS, DIÂMETROS MENORES OU IGUAIS A 40 MM. AF_09/2023 | E192: INHI - INSTALAÇÕES HIDROS SANITÁRIAS | F192: M | G192: =VLOOKUP(C192,'Comp_Sinapi PE_Sem-Desoneracao'!B:E,4,FALSE) -> 8.44 | H192: 2.14 | I192: 18.0616
A193: C | B193: SINAPI | C193: 89395 | D193: =VLOOKUP(C193,'[54]SINAPI COMPOSIÇÕES'!$B$11:$F$9696,2,0) -> TE, PVC, SOLDÁVEL, DN 25MM, INSTALADO EM RAMAL OU SUB-RAMAL DE ÁGUA - FORNECIMENTO E INSTALAÇÃO. AF_06/2022 | E193: INHI - INSTALAÇÕES HIDROS SANITÁRIAS | F193: UN | G193: =VLOOKUP(C193,'Comp_Sinapi PE_Sem-Desoneracao'!B:E,4,FALSE) -> 13.72 | H193: 0.89 | I193: 12.2108
A194: C | B194: SINAPI | C194: 89356 | D194: =VLOOKUP(C194,'[54]SINAPI COMPOSIÇÕES'!$B$11:$F$9696,2,0) -> TUBO, PVC, SOLDÁVEL, DE 25MM, INSTALADO EM RAMAL OU SUB-RAMAL DE ÁGUA - FORNECIMENTO E INSTALAÇÃO. AF_06/2022 | E194: INHI - INSTALAÇÕES HIDROS SANITÁRIAS | F194: M | G194: =VLOOKUP(C194,'Comp_Sinapi PE_Sem-Desoneracao'!B:E,4,FALSE) -> 24.86 | H194: 2.14 | I194: 53.2004
A195: C | B195: SINAPI | C195: 90822 | D195: =VLOOKUP(C195,'[54]SINAPI COMPOSIÇÕES'!$B$11:$F$9696,2,0) -> PORTA DE MADEIRA PARA PINTURA, SEMI-OCA (LEVE OU MÉDIA), 80X210CM, ESPESSURA DE 3,5CM, INCLUSO DOBRADIÇAS - FORNECIMENTO E INSTALAÇÃO. AF_12/2019 | E195: ESQV - ESQUADRIAS/FERRAGENS/VIDROS | F195: UN | G195: =VLOOKUP(C195,'Comp_Sinapi PE_Sem-Desoneracao'!B:E,4,FALSE) -> 344.98 | H195: 0.0268 | I195: 9.245464
A196: C | B196: SINAPI | C196: 101876 | D196: =VLOOKUP(C196,'[54]SINAPI COMPOSIÇÕES'!$B$11:$F$9696,2,0) -> QUADRO DE DISTRIBUIÇÃO DE ENERGIA EM PVC, DE EMBUTIR, SEM BARRAMENTO, PARA 6 DISJUNTORES - FORNECIMENTO E INSTALAÇÃO. AF_10/2020 | E196: INEL - INSTALAÇÃO ELÉTRICA/ELETRIFICAÇÃO E ILUMINAÇÃO EXTERNA | F196: UN | G196: =VLOOKUP(C196,'Comp_Sinapi PE_Sem-Desoneracao'!B:E,4,FALSE) -> 107.13 | H196: 0.0268 | I196: 2.871084
A197: C | B197: SINAPI | C197: 93382 | D197: =VLOOKUP(C197,'[54]SINAPI COMPOSIÇÕES'!$B$11:$F$9696,2,0) -> REATERRO MANUAL DE VALAS, COM COMPACTADOR DE SOLOS DE PERCUSSÃO. AF_08/2023 | E197: MOVT - MOVIMENTO DE TERRA | F197: m³ | G197: =VLOOKUP(C197,'Comp_Sinapi PE_Sem-Desoneracao'!B:E,4,FALSE) -> 27.42 | H197: 0.01 | I197: 0.2742
A198: C | B198: SINAPI | C198: 94210 | D198: =VLOOKUP(C198,'[54]SINAPI COMPOSIÇÕES'!$B$11:$F$9696,2,0) -> TELHAMENTO COM TELHA ONDULADA DE FIBROCIMENTO E = 6 MM, COM RECOBRIMENTO LATERAL DE 1 1/4 DE ONDA PARA TELHADO COM INCLINAÇÃO MÁXIMA DE 10°, COM ATÉ 2 ÁGUAS, INCLUSO IÇAMENTO. AF_07/2019 | E198: COBE - COBERTURA | F198: m² | G198: =VLOOKUP(C198,'Comp_Sinapi PE_Sem-Desoneracao'!B:E,4,FALSE) -> 59.36 | H198: 1.451 | I198: 86.13136
A199: C | B199: SINAPI | C199: 92000 | D199: =VLOOKUP(C199,'[54]SINAPI COMPOSIÇÕES'!$B$11:$F$9696,2,0) -> TOMADA BAIXA DE EMBUTIR (1 MÓDULO), 2P+T 10 A, INCLUINDO SUPORTE E PLACA - FORNECIMENTO E INSTALAÇÃO. AF_03/2023 | E199: INEL - INSTALAÇÃO ELÉTRICA/ELETRIFICAÇÃO E ILUMINAÇÃO EXTERNA | F199: UN | G199: =VLOOKUP(C199,'Comp_Sinapi PE_Sem-Desoneracao'!B:E,4,FALSE) -> 32.13 | H199: 0.0268 | I199: 0.861084
A200: C | B200: SINAPI | C200: 92008 | D200: =VLOOKUP(C200,'[54]SINAPI COMPOSIÇÕES'!$B$11:$F$9696,2,0) -> TOMADA BAIXA DE EMBUTIR (2 MÓDULOS), 2P+T 10 A, INCLUINDO SUPORTE E PLACA - FORNECIMENTO E INSTALAÇÃO. AF_03/2023 | E200: INEL - INSTALAÇÃO ELÉTRICA/ELETRIFICAÇÃO E ILUMINAÇÃO EXTERNA | F200: UN | G200: =VLOOKUP(C200,'Comp_Sinapi PE_Sem-Desoneracao'!B:E,4,FALSE) -> 49.48 | H200: 0.1342 | I200: 6.640216
A201: C | B201: SINAPI | C201: 92543 | D201: =VLOOKUP(C201,'[54]SINAPI COMPOSIÇÕES'!$B$11:$F$9696,2,0) -> TRAMA DE MADEIRA COMPOSTA POR TERÇAS PARA TELHADOS DE ATÉ 2 ÁGUAS PARA TELHA ONDULADA DE FIBROCIMENTO, METÁLICA, PLÁSTICA OU TERMOACÚSTICA, INCLUSO TRANSPORTE VERTICAL. AF_07/2019 | E201: COBE - COBERTURA | F201: m² | G201: =VLOOKUP(C201,'Comp_Sinapi PE_Sem-Desoneracao'!B:E,4,FALSE) -> 25.33 | H201: 1.451 | I201: 36.75383
A202: C | B202: SINAPI | C202: 89714 | D202: =VLOOKUP(C202,'[54]SINAPI COMPOSIÇÕES'!$B$11:$F$9696,2,0) -> TUBO PVC, SERIE NORMAL, ESGOTO PREDIAL, DN 100 MM, FORNECIDO E INSTALADO EM RAMAL DE DESCARGA OU RAMAL DE ESGOTO SANITÁRIO. AF_08/2022 | E202: INHI - INSTALAÇÕES HIDROS SANITÁRIAS | F202: M | G202: =VLOOKUP(C202,'Comp_Sinapi PE_Sem-Desoneracao'!B:E,4,FALSE) -> 37.98 | H202: 0.1423 | I202: 5.404554
A203: C | B203: SINAPI | C203: 89711 | D203: =VLOOKUP(C203,'[54]SINAPI COMPOSIÇÕES'!$B$11:$F$9696,2,0) -> TUBO PVC, SERIE NORMAL, ESGOTO PREDIAL, DN 40 MM, FORNECIDO E INSTALADO EM RAMAL DE DESCARGA OU RAMAL DE ESGOTO SANITÁRIO. AF_08/2022 | E203: INHI - INSTALAÇÕES HIDROS SANITÁRIAS | F203: M | G203: =VLOOKUP(C203,'Comp_Sinapi PE_Sem-Desoneracao'!B:E,4,FALSE) -> 21.9 | H203: 0.0886 | I203: 1.94034
A204: C | B204: SINAPI | C204: 10886 | D204: =VLOOKUP(C204,'[54]SINAPI INSUMOS'!$B$11:$F$4847,2,0) -> EXTINTOR DE INCENDIO PORTATIL COM CARGA DE AGUA PRESSURIZADA DE 10 L, CLASSE A | E204: Material | F204: UN | G204: =VLOOKUP(C204,'Ins SINAPI PE_Sem_Desoneracao'!B:F,5,FALSE) -> 245 | H204: 0.0268 | I204: 6.566
A205: C | B205: SINAPI | C205: 10891 | D205: =VLOOKUP(C205,'[54]SINAPI INSUMOS'!$B$11:$F$4847,2,0) -> EXTINTOR DE INCENDIO PORTATIL COM CARGA DE PO QUIMICO SECO (PQS) DE 4 KG, CLASSE BC | E205: Material | F205: UN | G205: =VLOOKUP(C205,'Ins SINAPI PE_Sem_Desoneracao'!B:F,5,FALSE) -> 236.92 | H205: 0.0268 | I205: 6.349456
A206: C | B206: SINAPI | C206: 3080 | D206: =VLOOKUP(C206,'[54]SINAPI INSUMOS'!$B$11:$F$4847,2,0) -> FECHADURA ESPELHO PARA PORTA EXTERNA, EM ACO INOX (MAQUINA, TESTA E CONTRA-TESTA) E EM ZAMAC (MACANETA, LINGUETA E TRINCOS) COM ACABAMENTO CROMADO, MAQUINA DE 40 MM, INCLUINDO CHAVE TIPO CILINDRO | E206: Material | F206: CJ | G206: =VLOOKUP(C206,'Ins SINAPI PE_Sem_Desoneracao'!B:F,5,FALSE) -> 77.2 | H206: 0.0268 | I206: 2.06896
A207: C | B207: SINAPI | C207: 11587 | D207: =VLOOKUP(C207,'[54]SINAPI INSUMOS'!$B$11:$F$4847,2,0) -> FORRO DE PVC LISO, BRANCO, REGUA DE 10 CM, ESPESSURA APROXIMADA DE 8 MM (COM COLOCACAO / SEM ESTRUTURA METALICA) | E207: Material | F207: m² | G207: =VLOOKUP(C207,'Ins SINAPI PE_Sem_Desoneracao'!B:F,5,FALSE) -> 81.72 | H207: 1 | I207: 81.72
A208: C | B208: SINAPI | C208: 37525 | D208: =VLOOKUP(C208,'[54]SINAPI INSUMOS'!$B$11:$F$4847,2,0) -> TELA PLASTICA TECIDA LISTRADA BRANCA E LARANJA, TIPO GUARDA CORPO, EM POLIETILENO MONOFILADO, ROLO 1,20 X 50 M (L X C) | E208: Equipamento | F208: M | G208: =VLOOKUP(C208,'Ins SINAPI PE_Sem_Desoneracao'!B:F,5,FALSE) -> 4.38 | H208: 1.2782 | I208: 5.598516

Sheet BDI serv
A1: Ministério da Integração e do Desenvolvimento Regional
A2: Companhia de Desenvolvimento dos Vales do São Francisco e do Parnaíba
A4: COMPOSIÇÃO DE BDI - SERVIÇOS - NÃO DESONERADO
A5: OBRA: | B5: =Resumo!B5 -> Execução de Manutenção e Recuperação nas Barragens de Várzea dos Ramos, Quixaba, Monte Alegre, São José da Tapera, Batatas, Riacho Pequeno e Queixada, localizadas no estado De Pernambuco. | D5: BDI (serv.): | E5: =D23 -> 0.2312
A6: LOCAL: | B6: =Resumo!B6 -> BARRAGENS DE PERNAMBUCO | D6: BDI (forn.): | E6: ='BDI forn'!E6 -> 0.1469
A7: DATA BASE: | B7: =Resumo!B7 -> 2025-06-01
A9: ITEM | B9: DESCRIÇÃO | C9: SIGLA | D9: % APLICADO | E9: REFERÊNCIA TCU (ACÓRDÃO Nº 2622/2013)
E10: 1º QUARTIL | F10: 2º QUARTIL | G10: 3º QUARTIL
A11: 1 | B11: ADMINISTRAÇÃO CENTRAL | C11: AC | D11: =E11 -> 0.04 | E11: 0.04 | F11: 0.0552 | G11: 0.0785
A12: 2 | B12: IMPOSTOS | C12: T | D12: =SUM(D13:D16) -> 0.0665
A13: 2.1 | B13: ISS (*) | D13: 0.03 | E13: - | F13: - | G13: -
A14: 2.2 | B14: PIS | D14: 0.0065 | E14: - | F14: - | G14: -
A15: 2.3 | B15: Cofins | D15: 0.03 | E15: - | F15: - | G15: -
A16: 2.4 | B16: Contribuição previdênciária sobre a receita bruta (CPRB) | E16: - | F16: - | G16: -
A17: 3 | B17: SEGURO, GARANTIA E RISCO | D17: =SUM(D18:D20) -> 0.0227
A18: 3.1 | B18: Seguro | C18: S | D18: =E18 -> 0.0081 | E18: 0.0081 | F18: 0.0122 | G18: 0.0199
A19: 3.2 | B19: Garantia | C19: G
A20: 3.3 | B20: Risco | C20: R | D20: =E20 -> 0.0146 | E20: 0.0146 | F20: 0.0232 | G20: 0.0316
A21: 4 | B21: DESPESAS FINANCEIRAS | C21: DF | D21: =E21 -> 0.0094 | E21: 0.0094 | F21: 0.0102 | G21: 0.01363
A22: 5 | B22: LUCRO | C22: L | D22: =E22 -> 0.0714 | E22: 0.0714 | F22: 0.084 | G22: 0.1043
B23: BDI ADOTADO: | D23: =ROUND(((((1+D11+D17)*(1+D21)*(1+D22))/(1-D12))-1),4) -> 0.2312
A24: Considerações: O BDI foi calculado através da seguinte fórmula, regulamentada pelo Acórdão Nº 2622/2013 – TCU.
H173: =SUM(H174:H177) -> 0
D177: mec | F177: 2 | G177: 128

Sheet BDI forn
A1: Ministério da Integração e do Desenvolvimento Regional
A2: Companhia de Desenvolvimento dos Vales do São Francisco e do Parnaíba
A4: COMPOSIÇÃO DE BDI - FORNECIMENTO - NÃO DESONERADO
A5: ='Várzea dos Ramos'!A5 -> OBRA: | B5: =Resumo!B5 -> Execução de Manutenção e Recuperação nas Barragens de Várzea dos Ramos, Quixaba, Monte Alegre, São José da Tapera, Batatas, Riacho Pequeno e Queixada, localizadas no estado De Pernambuco. | D5: BDI (serv.): | E5: ='BDI serv'!E5 -> 0.2312
A6: ='Várzea dos Ramos'!A6 -> LOCAL: | B6: =Resumo!B6 -> BARRAGENS DE PERNAMBUCO | D6: BDI (forn.): | E6: =D23 -> 0.1469
A7: ='Várzea dos Ramos'!A7 -> DATA BASE: | B7: =Resumo!B7 -> 2025-06-01
A9: ITEM | B9: DESCRIÇÃO | C9: SIGLA | D9: % APLICADO | E9: REFERÊNCIA TCU (ACÓRDÃO Nº 2622/2013)
E10: 1º QUARTIL | F10: 2º QUARTIL | G10: 3º QUARTIL
A11: 1 | B11: ADMINISTRAÇÃO CENTRAL | C11: AC | D11: 0.03 | E11: 0.015 | F11: 0.0345 | G11: 0.0449
A12: 2 | B12: IMPOSTOS | C12: T | D12: =SUM(D13:D16) -> 0.0365
A13: 2.1 | B13: ISS (*) | E13: - | F13: - | G13: -
A14: 2.2 | B14: PIS | D14: 0.0065 | E14: - | F14: - | G14: -
A15: 2.3 | B15: Cofins | D15: 0.03 | E15: - | F15: - | G15: -
A16: 2.4 | B16: Contribuição previdênciária sobre a receita bruta (CPRB) | E16: - | F16: - | G16: -
A17: 3 | B17: SEGURO, GARANTIA E RISCO | D17: =SUM(D18:D20) -> 0.0086
A18: 3.1 | B18: Seguro | C18: S | D18: =E18 -> 0.003 | E18: 0.003 | F18: 0.0048 | G18: 0.0082
A19: 3.2 | B19: Garantia | C19: G
A20: 3.3 | B20: Risco | C20: R | D20: =E20 -> 0.0056 | E20: 0.0056 | F20: 0.0085 | G20: 0.0089
A21: 4 | B21: DESPESAS FINANCEIRAS | C21: DF | D21: =F21 -> 0.0085 | E21: 0.0085 | F21: 0.0085 | G21: 0.0111
A22: 5 | B22: LUCRO | C22: L | D22: 0.055 | E22: 0.035 | F22: 0.0511 | G22: 0.0622
B23: BDI ADOTADO: | D23: =ROUND(((((1+D11+D17)*(1+D21)*(1+D22))/(1-D12))-1),4) -> 0.1469
A24: Considerações: O BDI foi calculado através da seguinte fórmula, regulamentada pelo Acórdão Nº 2622/2013 – TCU.
H173: =SUM(H174:H177) -> 0
D177: mec | F177: 2 | G177: 128

Sheet Cronograma Geral
A1: Ministério da Integração e do Desenvolvimento Regional
A2: Companhia de Desenvolvimento dos Vales do São Francisco e do Parnaíba
A4: CRONOGRAMA FÍSICO-FINANCEIRO NÃO DESONERADO
A5: ='Várzea dos Ramos'!A5 -> OBRA: | B5: =Resumo!B5 -> Execução de Manutenção e Recuperação nas Barragens de Várzea dos Ramos, Quixaba, Monte Alegre, São José da Tapera, Batatas, Riacho Pequeno e Queixada, localizadas no estado De Pernambuco.
A6: ='Várzea dos Ramos'!A6 -> LOCAL: | B6: =Resumo!B6 -> BARRAGENS DE PERNAMBUCO
A7: ='Várzea dos Ramos'!A7 -> DATA BASE: | B7: =Resumo!B7 -> 2025-06-01
A8: ='Várzea dos Ramos'!A8 -> PRAZO: | B8: =Resumo!B8 -> 480 dias
A9: ITEM | B9: DESCRIÇÃO | C9: TOTAL POR ETAPA | D9: MESES | T9: TOTAL
D10: 1 | E10: 2 | F10: 3 | G10: 4 | H10: 5 | I10: 6 | J10: 7 | K10: 8 | L10: 9 | M10: 10 | N10: 11 | O10: 12 | P10: 13 | Q10: 14 | R10: 15 | S10: 16
A11: 1.1 | B11: =VLOOKUP(A11,Resumo!A$10:I$1007,2) -> Várzea dos Ramos | C11: =VLOOKUP(A11,Resumo!A$10:I$1007,7) -> 1037146.58 | D11: =$C11*D12 -> 307040.2723 | E11: =$C11*E12 -> 297533.0354 | F11: =$C11*F12 -> 329878.4092 | G11: =$C11*G12 -> 102694.8631 | T11: =SUM(D11:S11) -> 1037146.58 | U11: R$
C12: =C11/C11 -> 1 | D12: ='Cronograma Várzea dos Ramos'!D36 -> 0.2960432771 | E12: ='Cronograma Várzea dos Ramos'!E36 -> 0.2868765526 | F12: ='Cronograma Várzea dos Ramos'!F36 -> 0.3180634401 | G12: ='Cronograma Várzea dos Ramos'!G36 -> 0.0990167302 | T12: 1 | U12: %
A13: 1.2 | B13: =VLOOKUP(A13,Resumo!A$10:I$1007,2) -> Quixaba | C13: =VLOOKUP(A13,Resumo!A$10:I$1007,7) -> 740310.1 | D13: =$C13*D14 -> 289539.0069 | E13: =$C13*E14 -> 228452.4229 | F13: 173223.9599 | G13: 49094.71026 | T13: 740310.1 | U13: R$
C14: =C13/C13 -> 1 | D14: ='Cronograma Quixaba'!D38 -> 0.3911050341 | E14: ='Cronograma Quixaba'!E38 -> 0.3085901744 | F14: ='Cronograma Quixaba'!F38 -> 0.2339883786 | G14: ='Cronograma Quixaba'!G38 -> 0.0663164129 | T14: 1 | U14: %
A15: 1.3 | B15: =VLOOKUP(A15,Resumo!A$10:I$1007,2) -> Monte Alegre | C15: =VLOOKUP(A15,Resumo!A$10:I$1007,7) -> 642070.52 | H15: =$C15*H16 -> 258052.5102 | I15: =$C15*I16 -> 151034.0602 | J15: =$C15*J16 -> 166401.4322 | K15: =$C15*K16 -> 66582.51743 | T15: 642070.52 | U15: R$
C16: =C15/C15 -> 1 | H16: ='Cronograma Monte Alegre'!D42 -> 0.4019068034 | I16: ='Cronograma Monte Alegre'!E42 -> 0.2352297068 | J16: ='Cronograma Monte Alegre'!F42 -> 0.2591637943 | K16: ='Cronograma Monte Alegre'!G42 -> 0.1036996955 | T16: 1 | U16: %
A17: 1.4 | B17: =VLOOKUP(A17,Resumo!A$10:I$1007,2) -> São José da Tapera | C17: =VLOOKUP(A17,Resumo!A$10:I$1007,7) -> 691158.27 | H17: =$C17*H18 -> 204878.2818 | I17: =$C17*I18 -> 259800.7489 | J17: =$C17*J18 -> 178399.9897 | K17: =$C17*K18 -> 48079.24958 | T17: =SUM(D17:S17) -> 691158.27 | U17: R$
C18: =C17/C17 -> 1 | H18: ='Cronograma São José da Tapera'!D36 -> 0.2964274476 | I18: ='Cronograma São José da Tapera'!E36 -> 0.3758918329 | J18: ='Cronograma São José da Tapera'!F36 -> 0.2581174203 | K18: ='Cronograma São José da Tapera'!G36 -> 0.06956329927 | T18: 1 | U18: %
A19: 1.5 | B19: =VLOOKUP(A19,Resumo!A$10:I$1007,2) -> Batatas | C19: =VLOOKUP(A19,Resumo!A$10:I$1007,7) -> 607874.36 | L19: =$C19*L20 -> 206071.1365 | M19: =$C19*M20 -> 157107.0625 | N19: =$C19*N20 -> 190352.9805 | O19: =$C19*O20 -> 54343.18039 | T19: 607874.36 | U19: R$
C20: =C19/C19 -> 1 | L20: ='Cronograma Batatas'!D42 -> 0.3390028435 | M20: ='Cronograma Batatas'!E42 -> 0.2584531819 | N20: ='Cronograma Batatas'!F42 -> 0.3131452699 | O20: ='Cronograma Batatas'!G42 -> 0.08939870468 | T20: =SUM(D20:S20) -> 1 | U20: %
A21: 1.6 | B21: =VLOOKUP(A21,Resumo!A$10:I$1007,2) -> Riacho Pequeno | C21: =VLOOKUP(A21,Resumo!A$10:I$1007,7) -> 893344.21 | P21: =$C21*P22 -> 391701.3426 | Q21: =$C21*Q22 -> 145245.305 | R21: 220934.145 | S21: 135463.4174 | T21: 893344.21 | U21: R$
C22: =C21/C21 -> 1 | P22: ='Cronograma Riacho Pequeno'!D40 -> 0.4384663137 | Q22: ='Cronograma Riacho Pequeno'!E40 -> 0.1625860484 | R22: ='Cronograma Riacho Pequeno'!F40 -> 0.2473113303 | S22: ='Cronograma Riacho Pequeno'!G40 -> 0.1516363076 | T22: 1 | U22: %
A23: 1.7 | B23: =VLOOKUP(A23,Resumo!A$10:I$1007,2) -> Queixada | C23: =VLOOKUP(A23,Resumo!A$10:I$1007,7) -> 919247.54 | P23: =$C23*P24 -> 282205.4988 | Q23: =$C23*Q24 -> 273037.5268 | R23: =$C23*R24 -> 310350.7449 | S23: =$C23*S24 -> 53653.76959 | T23: 919247.54 | U23: R$
C24: =C23/C23 -> 1 | P24: ='Cronograma Queixada'!D38 -> 0.3069961969 | Q24: ='Cronograma Queixada'!E38 -> 0.2970228528 | R24: ='Cronograma Queixada'!F38 -> 0.3376138977 | S24: ='Cronograma Queixada'!G38 -> 0.05836705267 | T24: 1 | U24: %
B25: VALOR TOTAL: | C25: =SUMIF($U$11:$U$24,"R$",C$11:C$24) -> 5531151.58 | D25: =SUMIF($U$11:$U$24,"R$",D$11:D$24) -> 596579.2792 | E25: =SUMIF($U$11:$U$24,"R$",E$11:E$24) -> 525985.4583 | F25: =SUMIF($U$11:$U$24,"R$",F$11:F$24) -> 503102.3691 | G25: =SUMIF($U$11:$U$24,"R$",G$11:G$24) -> 151789.5734 | H25: =SUMIF($U$11:$U$24,"R$",H$11:H$24) -> 462930.7921 | I25: 410834.8091 | J25: 344801.4218 | K25: 114661.767 | L25: 206071.1365 | M25: 157107.0625 | N25: 190352.9805 | O25: 54343.18039 | P25: 673906.8414 | Q25: 418282.8318 | R25: 531284.8899 | S25: 189117.187 | T25: =SUMIF($U$11:$U$24,"R$",T$11:T$24) -> 5531151.58
B26: VALOR ACUMULADO: | D26: =D25 -> 596579.2792 | E26: =E25+D26 -> 1122564.738 | F26: =F25+E26 -> 1625667.107 | G26: =G25+F26 -> 1777456.68 | H26: =H25+G26 -> 2240387.472 | I26: 2651222.281 | J26: =J25+I26 -> 2996023.703 | K26: 3110685.47 | L26: =L25+K26 -> 3316756.607 | M26: 3473863.669 | N26: =N25+M26 -> 3664216.65 | O26: 3718559.83 | P26: =P25+O26 -> 4392466.671 | Q26: 4810749.503 | R26: =R25+Q26 -> 5342034.393 | S26: 5531151.58 | T26: =S26 -> 5531151.58 | X26: =IF(T26=Resumo!G23,"ok","verificar") -> ok
B27: FÍSICO PARCIAL: | D27: =SUMIF($U$11:$U$24,"R$",D$11:D$24)/$C$25 -> 0.10785806 | E27: =SUMIF($U$11:$U$24,"R$",E$11:E$24)/$C$25 -> 0.09509510826 | F27: =SUMIF($U$11:$U$24,"R$",F$11:F$24)/$C$25 -> 0.09095797897 | G27: =SUMIF($U$11:$U$24,"R$",G$11:G$24)/$C$25 -> 0.02744267105 | H27: 0.08369519175 | I27: 0.07427654136 | J27: 0.06233808943 | K27: 0.02073017984 | L27: 0.03725646162 | M27: 0.02840404213 | N27: 0.03441471053 | O27: 0.009824930597 | P27: 0.121838433 | Q27: 0.07562310049 | R27: 0.09605321463 | S27: =SUMIF($U$11:$U$24,"R$",S$11:S$24)/$C$25 -> 0.03419128625 | T27: =SUMIF($U$11:$U$24,"R$",T$11:T$24)/$C$25 -> 1
B28: AVANÇO FÍSICO: | D28: =D27 -> 0.10785806 | E28: =E27+D28 -> 0.2029531683 | F28: =F27+E28 -> 0.2939111473 | G28: =G27+F28 -> 0.3213538183 | H28: 0.4050490101 | I28: 0.4793255514 | J28: 0.5416636409 | K28: 0.5623938207 | L28: 0.5996502823 | M28: 0.6280543245 | N28: 0.662469035 | O28: 0.6722939656 | P28: 0.7941323986 | Q28: 0.8697554991 | R28: 0.9658087137 | S28: 1

Sheet Cronograma Várzea dos Ramos
A1: Ministério da Integração e do Desenvolvimento Regional
A2: Companhia de Desenvolvimento dos Vales do São Francisco e do Parnaíba
A4: CRONOGRAMA FÍSICO-FINANCEIRO NÃO DESONERADO
A5: =Resumo!A5 -> OBRA: | B5: =Resumo!B5 -> Execução de Manutenção e Recuperação nas Barragens de Várzea dos Ramos, Quixaba, Monte Alegre, São José da Tapera, Batatas, Riacho Pequeno e Queixada, localizadas no estado De Pernambuco.
A6: =Resumo!A6 -> LOCAL: | B6: =Resumo!B6 -> BARRAGENS DE PERNAMBUCO
A7: =Resumo!A7 -> DATA BASE: | B7: =Resumo!B7 -> 2025-06-01
A8: =Resumo!A8 -> PRAZO: | B8: ='Várzea dos Ramos'!B8 -> 120 dias
B9: ='Várzea dos Ramos'!B9 -> Várzea dos Ramos
A10: ITEM | B10: DESCRIÇÃO | C10: TOTAL POR ETAPA | D10: MESES | H10: TOTAL
D11: 1 | E11: 2 | F11: 3 | G11: 4
A12: 1 | B12: =VLOOKUP(A12,'Várzea dos Ramos'!A$10:I$1036,4) -> ADMINISTRAÇÃO DA OBRA | C12: =VLOOKUP(A12,'Várzea dos Ramos'!A$10:I$1036,9) -> 137201.96 | D12: =$C12*D13 -> 35872.25234 | E12: =$C12*E13 -> 38952.5404 | F12: =$C12*F13 -> 38900.36416 | G12: =$C12*G13 -> 23476.80309 | H12: =SUM(D12:G12) -> 137201.96 | I12: R$
C13: =C12/C12 -> 1 | D13: =SUMIF($I$14:$I$33,"R$",D$14:D$33)/$C$34 -> 0.2614558301 | E13: =SUMIF($I$14:$I$33,"R$",E$14:E$33)/$C$34+D36-D13 -> 0.2839065885 | F13: =SUMIF($I$14:$I$33,"R$",F$14:F$33)/$C$34+E36-E13 -> 0.2835263007 | G13: =1-SUM(D13:F13) -> 0.1711112807 | H13: =SUM(D13:G13) -> 1 | I13: %
A14: 2 | B14: =VLOOKUP(A14,'Várzea dos Ramos'!A$10:I$1036,4) -> SERVIÇOS PRELIMINARES | C14: =VLOOKUP(A14,'Várzea dos Ramos'!A$10:I$1036,9) -> 32243.02 | D14: =$C14*D15 -> 32243.02 | H14: =SUM(D14:G14) -> 32243.02 | I14: R$
C15: =C14/C14 -> 1 | D15: 1 | H15: =SUM(D15:G15) -> 1 | I15: %
A16: 3 | B16: =VLOOKUP(A16,'Várzea dos Ramos'!A$10:I$1036,4) -> CORTE DA VEGETAÇÃO E REMOÇÃO DAS RAIZES | C16: =VLOOKUP(A16,'Várzea dos Ramos'!A$10:I$1036,9) -> 237665.3 | D16: =$C16*D17 -> 237665.3 | H16: 237665.3 | I16: R$
C17: =C16/C16 -> 1 | D17: 1 | H17: =SUM(D17:G17) -> 1 | I17: %
A18: 4 | B18: =VLOOKUP(A18,'Várzea dos Ramos'!A$10:I$1036,4) -> RECUPERAÇÃO DO MACIÇO | C18: =VLOOKUP(A18,'Várzea dos Ramos'!A$10:I$1036,9) -> 48214.8 | E18: =$C18*E19 -> 48214.8 | H18: 48214.8 | I18: R$
C19: =C18/C18 -> 1 | E19: 1 | H19: =SUM(D19:G19) -> 1 | I19: %
A20: 5 | B20: =VLOOKUP(A20,'Várzea dos Ramos'!A$10:I$1036,4) -> REGULARIZAÇÃO E PAVIMENTAÇÃO DA CRISTA | C20: =VLOOKUP(A20,'Várzea dos Ramos'!A$10:I$1036,9) -> 182521.2 | E20: =$C20*E21 -> 91260.6 | F20: =$C20*F21 -> 91260.6 | H20: =SUM(D20:G20) -> 182521.2 | I20: R$
C21: =C20/C20 -> 1 | E21: 0.5 | F21: 0.5 | H21: =SUM(D21:G21) -> 1 | I21: %
A22: 6 | B22: =VLOOKUP(A22,'Várzea dos Ramos'!A$10:I$1036,4) -> MANUTENÇÃO NO TALUDE DE MONTANTE | C22: =VLOOKUP(A22,'Várzea dos Ramos'!A$10:I$1036,9) -> 236950.49 | E22: =$C22*E23 -> 118475.245 | F22: =$C22*F23 -> 118475.245 | H22: 236950.49 | I22: R$
C23: =C22/C22 -> 1 | E23: 0.5 | F23: 0.5 | H23: =SUM(D23:G23) -> 1 | I23: %
A24: 7 | B24: =VLOOKUP(A24,'Várzea dos Ramos'!A$10:I$1036,4) -> DRENAGEM SUPERFICIAL DO TALUDE DE JUSANTE | C24: =VLOOKUP(A24,'Várzea dos Ramos'!A$10:I$1036,9) -> 28167.1 | F24: =$C24*F25 -> 28167.1 | H24: 28167.1 | I24: R$
C25: =C24/C24 -> 1 | F25: 1 | H25: =SUM(D25:G25) -> 1 | I25: %
A26: 8 | B26: =VLOOKUP(A26,'Várzea dos Ramos'!A$10:I$1036,4) -> PROTEÇÃO SUPERFICIAL DO TALUDE DE JUSANTE | C26: =VLOOKUP(A26,'Várzea dos Ramos'!A$10:I$1036,9) -> 104890.5 | F26: =$C26*F27 -> 52445.25 | G26: =$C26*G27 -> 52445.25 | H26: 104890.5 | I26: R$
C27: =C26/C26 -> 1 | F27: 0.5 | G27: 0.5 | H27: =SUM(D27:G27) -> 1 | I27: %
A28: 9 | B28: =VLOOKUP(A28,'Várzea dos Ramos'!A$10:I$1036,4) -> SERVIÇOS COMPLEMENTARES | C28: =VLOOKUP(A28,'Várzea dos Ramos'!A$10:I$1036,9) -> 5498.28 | G28: =$C28*G29 -> 5498.28 | H28: 5498.28 | I28: R$
C29: =C28/C28 -> 1 | G29: 1 | H29: =SUM(D29:G29) -> 1 | I29: %
A30: 10 | B30: =VLOOKUP(A30,'Várzea dos Ramos'!A$10:I$1036,4) -> PROJETO "AS IS" | C30: =VLOOKUP(A30,'Várzea dos Ramos'!A$10:I$1036,9) -> 20014.83 | G30: =$C30*G31 -> 20014.83 | H30: =SUM(D30:G30) -> 20014.83 | I30: R$
C31: =C30/C30 -> 1 | G31: 1 | H31: =SUM(D31:G31) -> 1 | I31: %
A32: 11 | B32: =VLOOKUP(A32,'Várzea dos Ramos'!A$10:I$1036,4) -> FISCALIZAÇÃO E ACOMPANHAMENTO | C32: =VLOOKUP(A32,'Várzea dos Ramos'!A$10:I$1036,9) -> 3779.1 | D32: =$C32*D33 -> 1259.7 | E32: =$C32*E33 -> 629.85 | F32: =$C32*F33 -> 629.85 | G32: =$C32*G33 -> 1259.7 | H32: 3779.1 | I32: R$
C33: =C32/C32 -> 1 | D33: =2/6 -> 0.3333333333 | E33: =1/6 -> 0.1666666667 | F33: =1/6 -> 0.1666666667 | G33: =2/6 -> 0.3333333333 | H33: =SUM(D33:G33) -> 1 | I33: %
B34: VALOR TOTAL: | C34: =SUMIF($I$12:$I$33,"R$",C$12:C$33) -> 1037146.58 | D34: 307040.2723 | E34: 297533.0354 | F34: 329878.4092 | G34: 102694.8631 | H34: 1037146.58
B35: VALOR ACUMULADO: | D35: =D34 -> 307040.2723 | E35: =E34+D35 -> 604573.3077 | F35: =F34+E35 -> 934451.7169 | G35: =G34+F35 -> 1037146.58 | H35: =G35 -> 1037146.58 | L35: =IF(H35='Várzea dos Ramos'!I74,"ok","verifica") -> ok
B36: FÍSICO PARCIAL: | D36: =SUMIF($I$12:$I$33,"R$",D$12:D$33)/$C$34 -> 0.2960432771 | E36: =SUMIF($I$12:$I$33,"R$",E$12:E$33)/$C$34 -> 0.2868765526 | F36: =SUMIF($I$12:$I$33,"R$",F$12:F$33)/$C$34 -> 0.3180634401 | G36: =SUMIF($I$12:$I$33,"R$",G$12:G$33)/$C$34 -> 0.0990167302 | H36: =H34/$C$34 -> 1
B37: AVANÇO FÍSICO: | D37: =D36 -> 0.2960432771 | E37: =E36+D37 -> 0.5829198297 | F37: =F36+E37 -> 0.9009832698 | G37: =G36+F37 -> 1

Sheet Cronograma Quixaba
A1: Ministério da Integração e do Desenvolvimento Regional
A2: Companhia de Desenvolvimento dos Vales do São Francisco e do Parnaíba
A4: CRONOGRAMA FÍSICO-FINANCEIRO NÃO DESONERADO
A5: =Resumo!A5 -> OBRA: | B5: =Resumo!B5 -> Execução de Manutenção e Recuperação nas Barragens de Várzea dos Ramos, Quixaba, Monte Alegre, São José da Tapera, Batatas, Riacho Pequeno e Queixada, localizadas no estado De Pernambuco.
A6: =Resumo!A6 -> LOCAL: | B6: =Resumo!B6 -> BARRAGENS DE PERNAMBUCO
A7: =Resumo!A7 -> DATA BASE: | B7: =Resumo!B7 -> 2025-06-01
A8: =Resumo!A8 -> PRAZO: | B8: =Quixaba!B8 -> 120 dias
B9: =Quixaba!B9 -> Quixaba
A10: ITEM | B10: DESCRIÇÃO | C10: TOTAL POR ETAPA | D10: MESES | H10: TOTAL
D11: 1 | E11: 2 | F11: 3 | G11: 3
A12: 1 | B12: =VLOOKUP(A12,Quixaba!A$10:I$1048,4) -> ADMINISTRAÇÃO DA OBRA | C12: =VLOOKUP(A12,Quixaba!A$10:I$1048,9) -> 137201.96 | D12: =$C12*D13 -> 45270.3969 | E12: =$C12*E13 -> 42797.48289 | F12: =$C12*F13 -> 26697.49995 | G12: =$C12*G13 -> 22436.58026 | H12: =SUM(D12:G12) -> 137201.96 | I12: R$
C13: =C12/C12 -> 1 | D13: =SUMIF($I$14:$I$35,"R$",D$14:D$35)/$C$36 -> 0.3299544475 | E13: =SUMIF($I$14:$I$35,"R$",E$14:E$35)/$C$36+D38-D13 -> 0.3119305503 | F13: =SUMIF($I$14:$I$35,"R$",F$14:F$35)/$C$36+E38-E13 -> 0.1945854122 | G13: =1-SUM(D13:F13) -> 0.16352959 | H13: 1 | I13: %
A14: 2 | B14: =VLOOKUP(A14,Quixaba!A$10:I$1048,4) -> SERVIÇOS PRELIMINARES | C14: =VLOOKUP(A14,Quixaba!A$10:I$1048,9) -> 32243.02 | D14: =$C14*D15 -> 32243.02 | H14: 32243.02 | I14: R$
C15: =C14/C14 -> 1 | D15: 1 | H15: 1 | I15: %
A16: 3 | B16: =VLOOKUP(A16,Quixaba!A$10:I$1048,4) -> CORTE DA VEGETAÇÃO E REMOÇÃO DAS RAIZES | C16: =VLOOKUP(A16,Quixaba!A$10:I$1048,9) -> 210765.89 | D16: =$C16*D17 -> 210765.89 | H16: 210765.89 | I16: R$
C17: =C16/C16 -> 1 | D17: 1 | H17: 1 | I17: %
A18: 4 | B18: =VLOOKUP(A18,Quixaba!A$10:I$1048,4) -> RECUPERAÇÃO DO MACIÇO | C18: =VLOOKUP(A18,Quixaba!A$10:I$1048,9) -> 110018 | E18: =$C18*E19 -> 110018 | H18: 110018 | I18: R$
C19: =C18/C18 -> 1 | E19: 1 | H19: 1 | I19: %
A20: 5 | B20: =VLOOKUP(A20,Quixaba!A$10:I$1048,4) -> RESTAURAÇÃO DA CRISTA | C20: =VLOOKUP(A20,Quixaba!A$10:I$1048,9) -> 99525.94 | E20: =$C20*E21 -> 49762.97 | F20: =$C20*F21 -> 49762.97 | H20: 99525.94 | I20: R$
C21: =C20/C20 -> 1 | E21: 0.5 | F21: 0.5 | H21: 1 | I21: %
A22: 6 | B22: =VLOOKUP(A22,Quixaba!A$10:I$1048,4) -> MANUTENÇÃO NO TALUDE DE MONTANTE | C22: =VLOOKUP(A22,Quixaba!A$10:I$1048,9) -> 50488.24 | E22: =$C22*E23 -> 25244.12 | F22: =$C22*F23 -> 25244.12 | H22: =SUM(D22:G22) -> 50488.24 | I22: R$
C23: =C22/C22 -> 1 | E23: 0.5 | F23: 0.5 | H23: 1 | I23: %
A24: 7 | B24: =VLOOKUP(A24,Quixaba!A$10:I$1048,4) -> DRENAGEM SUPERFICIAL DO TALUDE DE JUSANTE | C24: =VLOOKUP(A24,Quixaba!A$10:I$1048,9) -> 18005.1 | F24: =$C24*F25 -> 18005.1 | H24: 18005.1 | I24: R$
C25: =C24/C24 -> 1 | F25: 1 | H25: 1 | I25: %
A26: 8 | B26: =VLOOKUP(A26,Quixaba!A$10:I$1048,4) -> PROTEÇÃO SUPERFICIAL DO TALUDE DE JUSANTE | C26: =VLOOKUP(A26,Quixaba!A$10:I$1048,9) -> 36039.3 | F26: =$C26*F27 -> 36039.3 | H26: 36039.3 | I26: R$
C27: =C26/C26 -> 1 | F27: 1 | H27: 1 | I27: %
A28: 9 | B28: =VLOOKUP(A28,Quixaba!A$10:I$1048,4) -> RESTAURAÇÃO DO MURO LATERAL | C28: =VLOOKUP(A28,Quixaba!A$10:I$1048,9) -> 16845.12 | F28: =$C28*F29 -> 16845.12 | H28: 16845.12 | I28: R$
C29: =C28/C28 -> 1 | F29: 1 | H29: 1 | I29: %
A30: 10 | B30: =VLOOKUP(A30,Quixaba!A$10:I$1048,4) -> SERVIÇOS COMPLEMENTARES | C30: =VLOOKUP(A30,Quixaba!A$10:I$1048,9) -> 6562.68 | G30: =$C30*G31 -> 6562.68 | H30: =SUM(D30:G30) -> 6562.68 | I30: R$
C31: 1 | G31: 1 | H31: 1 | I31: %
A32: 11 | B32: =VLOOKUP(A32,Quixaba!A$10:I$1048,4) -> PROJETO "AS IS" | C32: =VLOOKUP(A32,Quixaba!A$10:I$1048,9) -> 18835.75 | G32: =$C32*G33 -> 18835.75 | H32: 18835.75 | I32: R$
C33: =C32/C32 -> 1 | G33: 1 | H33: 1 | I33: %
A34: 12 | B34: =VLOOKUP(A34,Quixaba!A$10:I$1048,4) -> FISCALIZAÇÃO E ACOMPANHAMENTO | C34: =VLOOKUP(A34,Quixaba!A$10:I$1048,9) -> 3779.1 | D34: =$C34*D35 -> 1259.7 | E34: =$C34*E35 -> 629.85 | F34: =$C34*F35 -> 629.85 | G34: =$C34*G35 -> 1259.7 | H34: 3779.1 | I34: R$
C35: 1 | D35: =2/6 -> 0.3333333333 | E35: =1/6 -> 0.1666666667 | F35: =1/6 -> 0.1666666667 | G35: =2/6 -> 0.3333333333 | H35: 1 | I35: %
B36: VALOR TOTAL: | C36: =SUMIF($I$12:$I$35,"R$",C$12:C$35) -> 740310.1 | D36: 289539.0069 | E36: 228452.4229 | F36: 173223.9599 | G36: 49094.71026 | H36: 740310.1
B37: VALOR ACUMULADO: | D37: =D36 -> 289539.0069 | E37: =E36+D37 -> 517991.4298 | F37: =F36+E37 -> 691215.3897 | G37: 740310.1 | H37: =G37 -> 740310.1
B38: FÍSICO PARCIAL: | D38: =SUMIF($I$12:$I$35,"R$",D$12:D$35)/$C$36 -> 0.3911050341 | E38: =SUMIF($I$12:$I$35,"R$",E$12:E$35)/$C$36 -> 0.3085901744 | F38: =SUMIF($I$12:$I$35,"R$",F$12:F$35)/$C$36 -> 0.2339883786 | G38: =SUMIF($I$12:$I$35,"R$",G$12:G$35)/$C$36 -> 0.0663164129 | H38: =H36/$C$36 -> 1
B39: AVANÇO FÍSICO: | D39: =D38 -> 0.3911050341 | E39: =E38+D39 -> 0.6996952085 | F39: =F38+E39 -> 0.9336835871 | G39: =G38+F39 -> 1

Sheet Cronograma Monte Alegre
A1: Ministério da Integração e do Desenvolvimento Regional
A2: Companhia de Desenvolvimento dos Vales do São Francisco e do Parnaíba
A4: CRONOGRAMA FÍSICO-FINANCEIRO NÃO DESONERADO
A5: =Resumo!A5 -> OBRA: | B5: =Resumo!B5 -> Execução de Manutenção e Recuperação nas Barragens de Várzea dos Ramos, Quixaba, Monte Alegre, São José da Tapera, Batatas, Riacho Pequeno e Queixada, localizadas no estado De Pernambuco.
A6: =Resumo!A6 -> LOCAL: | B6: =Resumo!B6 -> BARRAGENS DE PERNAMBUCO
A7: =Resumo!A7 -> DATA BASE: | B7: =Resumo!B7 -> 2025-06-01
A8: =Resumo!A8 -> PRAZO: | B8: ='Monte Alegre'!B8 -> 120 dias
B9: ='Monte Alegre'!B9 -> Monte Alegre
A10: ITEM | B10: DESCRIÇÃO | C10: TOTAL POR ETAPA | D10: MESES | H10: TOTAL
D11: 1 | E11: 2 | F11: 3 | G11: 4
A12: 1 | B12: =VLOOKUP(A12,'Monte Alegre'!A$10:I$1038,4) -> ADMINISTRAÇÃO DA OBRA | C12: =VLOOKUP(A12,'Monte Alegre'!A$10:I$1038,9) -> 137201.96 | D12: =$C12*D13 -> 45433.80024 | E12: =$C12*E13 -> 34590.95017 | F12: =$C12*F13 -> 27388.29217 | G12: =$C12*G13 -> 29788.91743 | H12: =SUM(D12:G12) -> 137201.96 | I12: R$
C13: =C12/C12 -> 1 | D13: =SUMIF($I$14:$I$39,"R$",D$14:D$39)/$C$40 -> 0.3311454169 | E13: =SUMIF($I$14:$I$39,"R$",E$14:E$39)/$C$40+D42-D13 -> 0.2521170264 | F13: =SUMIF($I$14:$I$39,"R$",F$14:F$39)/$C$40+E42-E13 -> 0.199620269 | G13: =1-SUM(D13:F13) -> 0.2171172877 | H13: =SUM(D13:G13) -> 1 | I13: %
A14: 2 | B14: =VLOOKUP(A14,'Monte Alegre'!A$10:I$1038,4) -> SERVIÇOS PRELIMINARES | C14: =VLOOKUP(A14,'Monte Alegre'!A$10:I$1038,9) -> 32243.02 | D14: =$C14*D15 -> 32243.02 | H14: 32243.02 | I14: R$
C15: =C14/C14 -> 1 | D15: 1 | H15: =SUM(D15:G15) -> 1 | I15: %
A16: 3 | B16: =VLOOKUP(A16,'Monte Alegre'!A$10:I$1038,4) -> CORTE DA VEGETAÇÃO E REMOÇÃO DAS RAIZES | C16: =VLOOKUP(A16,'Monte Alegre'!A$10:I$1038,9) -> 179115.99 | D16: =$C16*D17 -> 179115.99 | H16: 179115.99 | I16: R$
C17: =C16/C16 -> 1 | D17: 1 | H17: =SUM(D17:G17) -> 1 | I17: %
A18: 4 | B18: =VLOOKUP(A18,'Monte Alegre'!A$10:I$1038,4) -> RECUPERAÇÃO DO MACIÇO | C18: =VLOOKUP(A18,'Monte Alegre'!A$10:I$1038,9) -> 75362 | E18: =$C18*E19 -> 75362 | H18: 75362 | I18: R$
C19: =C18/C18 -> 1 | E19: 1 | H19: =SUM(D19:G19) -> 1 | I19: %
A20: 5 | B20: =VLOOKUP(A20,'Monte Alegre'!A$10:I$1038,4) -> REGULARIZAÇÃO E PAVIMENTAÇÃO DA CRISTA | C20: =VLOOKUP(A20,'Monte Alegre'!A$10:I$1038,9) -> 80902.52 | E20: =$C20*E21 -> 40451.26 | F20: =$C20*F21 -> 40451.26 | H20: 80902.52 | I20: R$
C21: =C20/C20 -> 1 | E21: 0.5 | F21: 0.5 | H21: =SUM(D21:G21) -> 1 | I21: %
A22: 6 | B22: =VLOOKUP(A22,'Monte Alegre'!A$10:I$1038,4) -> MANUTENÇÃO NO TALUDE DE MONTANTE | C22: =VLOOKUP(A22,'Monte Alegre'!A$10:I$1038,9) -> 17785.63 | F22: =$C22*F23 -> 17785.63 | H22: 17785.63 | I22: R$
C23: =C22/C22 -> 1 | F23: 1 | H23: =SUM(D23:G23) -> 1 | I23: %
A24: 7 | B24: =VLOOKUP(A24,'Monte Alegre'!A$10:I$1038,4) -> DRENAGEM SUPERFICIAL DO TALUDE DE JUSANTE | C24: =VLOOKUP(A24,'Monte Alegre'!A$10:I$1038,9) -> 30615.53 | F24: =$C24*F25 -> 30615.53 | H24: =SUM(D24:G24) -> 30615.53 | I24: R$
C25: =C24/C24 -> 1 | F25: 1 | H25: =SUM(D25:G25) -> 1 | I25: %
A26: 8 | B26: =VLOOKUP(A26,'Monte Alegre'!A$10:I$1038,4) -> PROTEÇÃO SUPERFICIAL DO TALUDE DE JUSANTE | C26: =VLOOKUP(A26,'Monte Alegre'!A$10:I$1038,9) -> 37276.47 | F26: =$C26*F27 -> 37276.47 | H26: 37276.47 | I26: R$
C27: =C26/C26 -> 1 | F27: 1 | H27: =SUM(D27:G27) -> 1 | I27: %
A28: 9 | B28: =VLOOKUP(A28,'Monte Alegre'!A$10:I$1038,4) -> RESTAURAÇÃO DA SOLEIRA DO VERTEDOURO | C28: =VLOOKUP(A28,'Monte Alegre'!A$10:I$1038,9) -> 12254.4 | F28: =$C28*F29 -> 12254.4 | H28: 12254.4 | I28: R$
C29: =C28/C28 -> 1 | F29: 1 | H29: =SUM(D29:G29) -> 1 | I29: %
A30: 10 | B30: =VLOOKUP(A30,'Monte Alegre'!A$10:I$1038,4) -> RESTAURAÇÃO DO MURO LATERAL | C30: =VLOOKUP(A30,'Monte Alegre'!A$10:I$1038,9) -> 5519.1 | G30: =$C30*G31 -> 5519.1 | H30: =SUM(D30:G30) -> 5519.1 | I30: R$
C31: =C30/C30 -> 1 | G31: 1 | H31: =SUM(D31:G31) -> 1 | I31: %
A32: 11 | B32: =VLOOKUP(A32,'Monte Alegre'!A$10:I$1038,4) -> MANUTENÇÃO DOS EQUIPAMENTOS HIDROMECÂNICOS | C32: =VLOOKUP(A32,'Monte Alegre'!A$10:I$1038,9) -> 2241.04 | G32: =$C32*G33 -> 2241.04 | H32: =SUM(D32:G32) -> 2241.04 | I32: R$
C33: =C32/C32 -> 1 | G33: 1 | H33: =SUM(D33:G33) -> 1 | I33: %
A34: 12 | B34: =VLOOKUP(A34,'Monte Alegre'!A$10:I$1038,4) -> SERVIÇOS COMPLEMENTARES | C34: =VLOOKUP(A34,'Monte Alegre'!A$10:I$1038,9) -> 10820.28 | G34: =$C34*G35 -> 10820.28 | H34: 10820.28 | I34: R$
C35: =C34/C34 -> 1 | G35: 1 | H35: =SUM(D35:G35) -> 1 | I35: %
A36: 13 | B36: =VLOOKUP(A36,'Monte Alegre'!A$10:I$1038,4) -> PROJETO "AS IS" | C36: =VLOOKUP(A36,'Monte Alegre'!A$10:I$1038,9) -> 16953.48 | G36: =$C36*G37 -> 16953.48 | H36: 16953.48 | I36: R$
C37: =C36/C36 -> 1 | G37: 1 | H37: =SUM(D37:G37) -> 1 | I37: %
A38: 14 | B38: =VLOOKUP(A38,'Monte Alegre'!A$10:I$1038,4) -> FISCALIZAÇÃO E ACOMPANHAMENTO | C38: =VLOOKUP(A38,'Monte Alegre'!A$10:I$1038,9) -> 3779.1 | D38: =$C38*D39 -> 1259.7 | E38: =$C38*E39 -> 629.85 | F38: =$C38*F39 -> 629.85 | G38: =$C38*G39 -> 1259.7 | H38: 3779.1 | I38: R$
C39: 1 | D39: =2/6 -> 0.3333333333 | E39: =1/6 -> 0.1666666667 | F39: =1/6 -> 0.1666666667 | G39: =2/6 -> 0.3333333333 | H39: =SUM(D39:G39) -> 1 | I39: %
B40: VALOR TOTAL: | C40: =SUMIF($I$12:$I$39,"R$",C$12:C$39) -> 642070.52 | D40: =SUMIF($I$12:$I$39,"R$",D$12:D$39) -> 258052.5102 | E40: 151034.0602 | F40: 166401.4322 | G40: =SUMIF($I$12:$I$39,"R$",G$12:G$39) -> 66582.51743 | H40: =SUMIF($I$12:$I$39,"R$",H$12:H$39) -> 642070.52 | L40: =IF(H40='Monte Alegre'!I91,"ok","verificar") -> ok
B41: VALOR ACUMULADO: | D41: =D40 -> 258052.5102 | E41: =E40+D41 -> 409086.5704 | F41: =F40+E41 -> 575488.0026 | G41: 642070.52 | H41: =G41 -> 642070.52
B42: FÍSICO PARCIAL: | D42: =SUMIF($I$12:$I$39,"R$",D$12:D$39)/$C$40 -> 0.4019068034 | E42: =SUMIF($I$12:$I$39,"R$",E$12:E$39)/$C$40 -> 0.2352297068 | F42: 0.2591637943 | G42: =SUMIF($I$12:$I$39,"R$",G$12:G$39)/$C$40 -> 0.1036996955 | H42: =H40/C40 -> 1
B43: AVANÇO FÍSICO: | D43: =D42 -> 0.4019068034 | E43: =E42+D43 -> 0.6371365102 | F43: =F42+E43 -> 0.8963003045 | G43: =G42+F43 -> 1

Sheet Cronograma São José da Tapera
A1: Ministério da Integração e do Desenvolvimento Regional
A2: Companhia de Desenvolvimento dos Vales do São Francisco e do Parnaíba
A4: CRONOGRAMA FÍSICO-FINANCEIRO NÃO DESONERADO
A5: =Resumo!A5 -> OBRA: | B5: =Resumo!B5 -> Execução de Manutenção e Recuperação nas Barragens de Várzea dos Ramos, Quixaba, Monte Alegre, São José da Tapera, Batatas, Riacho Pequeno e Queixada, localizadas no estado De Pernambuco.
A6: =Resumo!A6 -> LOCAL: | B6: =Resumo!B6 -> BARRAGENS DE PERNAMBUCO
A7: =Resumo!A7 -> DATA BASE: | B7: =Resumo!B7 -> 2025-06-01
A8: =Resumo!A8 -> PRAZO: | B8: ='São José da Tapera'!B8 -> 120 dias
B9: ='São José da Tapera'!B9 -> São José da Tapera
A10: ITEM | B10: DESCRIÇÃO | C10: TOTAL POR ETAPA | D10: MESES | H10: TOTAL
D11: 1 | E11: 2 | F11: 3 | G11: 4
A12: 1 | B12: =VLOOKUP(A12,'São José da Tapera'!A$10:I$1026,4) -> ADMINISTRAÇÃO DA OBRA | C12: =VLOOKUP(A12,'São José da Tapera'!A$10:I$1026,9) -> 137201.96 | D12: =$C12*D13 -> 33934.15185 | E12: =$C12*E13 -> 48651.54391 | F12: =$C12*F13 -> 31986.18466 | G12: =$C12*G13 -> 22630.07958 | H12: =SUM(D12:G12) -> 137201.96 | I12: R$
C13: =C12/C12 -> 1 | D13: =SUMIF($I$14:$I$33,"R$",D$14:D$33)/$C$34 -> 0.247329935 | E13: =SUMIF($I$14:$I$33,"R$",E$14:E$33)/$C$34+D36-D13 -> 0.3545980241 | F13: =SUMIF($I$14:$I$33,"R$",F$14:F$33)/$C$34+E36-E13 -> 0.2331321263 | G13: =1-SUM(D13:F13) -> 0.1649399147 | H13: =SUM(D13:G13) -> 1 | I13: %
A14: 2 | B14: =VLOOKUP(A14,'São José da Tapera'!A$10:I$1026,4) -> SERVIÇOS PRELIMINARES | C14: =VLOOKUP(A14,'São José da Tapera'!A$10:I$1026,9) -> 32243.02 | D14: =$C14*D15 -> 32243.02 | H14: =SUM(D14:G14) -> 32243.02 | I14: R$
C15: =C14/C14 -> 1 | D15: 1 | H15: =SUM(D15:G15) -> 1 | I15: %
A16: 3 | B16: =VLOOKUP(A16,'São José da Tapera'!A$10:I$1026,4) -> CORTE DA VEGETAÇÃO E REMOÇÃO DAS RAIZES | C16: =VLOOKUP(A16,'São José da Tapera'!A$10:I$1026,9) -> 137441.41 | D16: =$C16*D17 -> 137441.41 | H16: 137441.41 | I16: R$
C17: =C16/C16 -> 1 | D17: 1 | H17: =SUM(D17:G17) -> 1 | I17: %
A18: 4 | B18: =VLOOKUP(A18,'São José da Tapera'!A$10:I$1026,4) -> RECUPERAÇÃO DO MACIÇO | C18: =VLOOKUP(A18,'São José da Tapera'!A$10:I$1026,9) -> 119259.6 | E18: =$C18*E19 -> 119259.6 | H18: 119259.6 | I18: R$
C19: =C18/C18 -> 1 | E19: 1 | H19: 1 | I19: %
A20: 5 | B20: =VLOOKUP(A20,'São José da Tapera'!A$10:I$1026,4) -> REGULARIZAÇÃO E PAVIMENTAÇÃO DA CRISTA | C20: =VLOOKUP(A20,'São José da Tapera'!A$10:I$1026,9) -> 122277.86 | E20: =$C20*E21 -> 61138.93 | F20: =$C20*F21 -> 61138.93 | H20: 122277.86 | I20: R$
C21: =C20/C20 -> 1 | E21: 0.5 | F21: 0.5 | H21: 1 | I21: %
A22: 6 | B22: =VLOOKUP(A22,'São José da Tapera'!A$10:I$1026,4) -> MANUTENÇÃO NO TALUDE DE MONTANTE | C22: =VLOOKUP(A22,'São José da Tapera'!A$10:I$1026,9) -> 60241.65 | E22: =$C22*E23 -> 30120.825 | F22: =$C22*F23 -> 30120.825 | H22: 60241.65 | I22: R$
C23: =C22/C22 -> 1 | E23: 0.5 | F23: 0.5 | H23: 1 | I23: %
A24: 7 | B24: =VLOOKUP(A24,'São José da Tapera'!A$10:I$1026,4) -> DRENAGEM SUPERFICIAL DO TALUDE DE JUSANTE | C24: =VLOOKUP(A24,'São José da Tapera'!A$10:I$1026,9) -> 28167.1 | F24: =$C24*F25 -> 28167.1 | H24: 28167.1 | I24: R$
C25: =C24/C24 -> 1 | F25: 1 | H25: 1 | I25: %
A26: 8 | B26: =VLOOKUP(A26,'São José da Tapera'!A$10:I$1026,4) -> PROTEÇÃO SUPERFICIAL DO TALUDE DE JUSANTE | C26: =VLOOKUP(A26,'São José da Tapera'!A$10:I$1026,9) -> 26357.1 | F26: =$C26*F27 -> 26357.1 | H26: =SUM(D26:G26) -> 26357.1 | I26: R$
C27: =C26/C26 -> 1 | F27: 1 | H27: 1 | I27: %
A28: 9 | B28: =VLOOKUP(A28,'São José da Tapera'!A$10:I$1026,4) -> SERVIÇOS COMPLEMENTARES | C28: =VLOOKUP(A28,'São José da Tapera'!A$10:I$1026,9) -> 8691.48 | G28: =$C28*G29 -> 8691.48 | H28: =SUM(D28:G28) -> 8691.48 | I28: R$
C29: =C28/C28 -> 1 | G29: 1 | H29: =SUM(D29:G29) -> 1 | I29: %
A30: 10 | B30: =VLOOKUP(A30,'São José da Tapera'!A$10:I$1026,4) -> PROJETO "AS IS" | C30: =VLOOKUP(A30,'São José da Tapera'!A$10:I$1026,9) -> 15497.99 | G30: =$C30*G31 -> 15497.99 | H30: =SUM(D30:G30) -> 15497.99 | I30: R$
C31: =C30/C30 -> 1 | G31: 1 | H31: 1 | I31: %
A32: 11 | B32: =VLOOKUP(A32,'São José da Tapera'!A$10:I$1026,4) -> FISCALIZAÇÃO E ACOMPANHAMENTO | C32: =VLOOKUP(A32,'São José da Tapera'!A$10:I$1026,9) -> 3779.1 | D32: =$C32*D33 -> 1259.7 | E32: =$C32*E33 -> 629.85 | F32: =$C32*F33 -> 629.85 | G32: =$C32*G33 -> 1259.7 | H32: 3779.1 | I32: R$
C33: 1 | D33: =2/6 -> 0.3333333333 | E33: =1/6 -> 0.1666666667 | F33: =1/6 -> 0.1666666667 | G33: =2/6 -> 0.3333333333 | H33: 1 | I33: %
B34: VALOR TOTAL: | C34: =SUMIF($I$12:$I$33,"R$",C$12:C$33) -> 691158.27 | D34: 204878.2818 | E34: 259800.7489 | F34: 178399.9897 | G34: 48079.24958 | H34: 691158.27
B35: VALOR ACUMULADO: | D35: =D34 -> 204878.2818 | E35: =E34+D35 -> 464679.0308 | F35: =F34+E35 -> 643079.0204 | G35: =G34+F35 -> 691158.27 | H35: =H34 -> 691158.27 | L35: =IF(H35='São José da Tapera'!I74,"ok","verificar") -> ok
B36: FÍSICO PARCIAL: | D36: =SUMIF($I$12:$I$33,"R$",D$12:D$33)/$C$34 -> 0.2964274476 | E36: =SUMIF($I$12:$I$33,"R$",E$12:E$33)/$C$34 -> 0.3758918329 | F36: =SUMIF($I$12:$I$33,"R$",F$12:F$33)/$C$34 -> 0.2581174203 | G36: =SUMIF($I$12:$I$33,"R$",G$12:G$33)/$C$34 -> 0.06956329927 | H36: =H34/C34 -> 1
B37: AVANÇO FÍSICO: | D37: =D36 -> 0.2964274476 | E37: =D37+E36 -> 0.6723192804 | F37: =E37+F36 -> 0.9304367007 | G37: 1

Sheet Cronograma Batatas
A1: Ministério da Integração e do Desenvolvimento Regional
A2: Companhia de Desenvolvimento dos Vales do São Francisco e do Parnaíba
A4: CRONOGRAMA FÍSICO-FINANCEIRO NÃO DESONERADO
A5: =Resumo!A5 -> OBRA: | B5: =Resumo!B5 -> Execução de Manutenção e Recuperação nas Barragens de Várzea dos Ramos, Quixaba, Monte Alegre, São José da Tapera, Batatas, Riacho Pequeno e Queixada, localizadas no estado De Pernambuco.
A6: =Resumo!A6 -> LOCAL: | B6: =Resumo!B6 -> BARRAGENS DE PERNAMBUCO
A7: =Resumo!A7 -> DATA BASE: | B7: =Resumo!B7 -> 2025-06-01
A8: =Resumo!A8 -> PRAZO: | B8: =Batatas!B8 -> 120 dias
B9: =Batatas!B9 -> Batatas
A10: ITEM | B10: DESCRIÇÃO | C10: TOTAL POR ETAPA | D10: MESES | H10: TOTAL
D11: 1 | E11: 2 | F11: 3 | G11: 4
A12: 1 | B12: =VLOOKUP(A12,Batatas!A$10:I$1036,4) -> ADMINISTRAÇÃO DA OBRA | C12: =VLOOKUP(A12,Batatas!A$10:I$1036,9) -> 137201.96 | D12: =$C12*D13 -> 37946.93654 | E12: =$C12*E13 -> 35918.18752 | F12: =$C12*F13 -> 34678.93555 | G12: =$C12*G13 -> 28657.90039 | H12: =SUM(D12:G12) -> 137201.96 | I12: R$
C13: =C12/C12 -> 1 | D13: =SUMIF($I$14:$I$39,"R$",D$14:D$39)/$C$40 -> 0.276577219 | E13: =SUMIF($I$14:$I$39,"R$",E$14:E$39)/$C$40+D42-D13 -> 0.2617906298 | F13: =SUMIF($I$14:$I$39,"R$",F$14:F$39)/$C$40+E42-E13 -> 0.2527583101 | G13: =1-SUM(D13:F13) -> 0.2088738411 | H13: 1 | I13: %
A14: 2 | B14: =VLOOKUP(A14,Batatas!A$10:I$1036,4) -> SERVIÇOS PRELIMINARES | C14: =VLOOKUP(A14,Batatas!A$10:I$1036,9) -> 32243.02 | D14: =$C14*D15 -> 32243.02 | H14: 32243.02 | I14: R$
C15: =C14/C14 -> 1 | D15: 1 | H15: 1 | I15: %
A16: 3 | B16: =VLOOKUP(A16,Batatas!A$10:I$1036,4) -> CORTE DA VEGETAÇÃO E REMOÇÃO DAS RAIZES | C16: =VLOOKUP(A16,Batatas!A$10:I$1036,9) -> 134621.48 | D16: =$C16*D17 -> 134621.48 | H16: 134621.48 | I16: R$
C17: =C16/C16 -> 1 | D17: 1 | H17: 1 | I17: %
A18: 4 | B18: =VLOOKUP(A18,Batatas!A$10:I$1036,4) -> RECUPERAÇÃO DO MACIÇO | C18: =VLOOKUP(A18,Batatas!A$10:I$1036,9) -> 50525.2 | E18: =$C18*E19 -> 50525.2 | H18: 50525.2 | I18: R$
C19: =C18/C18 -> 1 | E19: 1 | H19: 1 | I19: %
A20: 5 | B20: =VLOOKUP(A20,Batatas!A$10:I$1036,4) -> REGULARIZAÇÃO E PAVIMENTAÇÃO DA CRISTA | C20: =VLOOKUP(A20,Batatas!A$10:I$1036,9) -> 92448.06 | E20: =$C20*E21 -> 46224.03 | F20: =$C20*F21 -> 46224.03 | H20: 92448.06 | I20: R$
C21: =C20/C20 -> 1 | E21: 0.5 | F21: 0.5 | H21: 1 | I21: %
A22: 6 | B22: =VLOOKUP(A22,Batatas!A$10:I$1036,4) -> MANUTENÇÃO NO TALUDE DE MONTANTE | C22: =VLOOKUP(A22,Batatas!A$10:I$1036,9) -> 47619.59 | E22: =$C22*E23 -> 23809.795 | F22: =$C22*F23 -> 23809.795 | H22: 47619.59 | I22: R$
C23: =C22/C22 -> 1 | E23: 0.5 | F23: 0.5 | H23: 1 | I23: %
A24: 7 | B24: =VLOOKUP(A24,Batatas!A$10:I$1036,4) -> DRENAGEM SUPERFICIAL DO TALUDE DE JUSANTE | C24: =VLOOKUP(A24,Batatas!A$10:I$1036,9) -> 25643.75 | F24: =$C24*F25 -> 25643.75 | H24: 25643.75 | I24: R$
C25: =C24/C24 -> 1 | F25: 1 | H25: 1 | I25: %
A26: 8 | B26: =VLOOKUP(A26,Batatas!A$10:I$1036,4) -> PROTEÇÃO SUPERFICIAL DO TALUDE DE JUSANTE | C26: =VLOOKUP(A26,Batatas!A$10:I$1036,9) -> 28060.45 | F26: =$C26*F27 -> 28060.45 | H26: 28060.45 | I26: R$
C27: =C26/C26 -> 1 | F27: 1 | H27: 1 | I27: %
A28: 9 | B28: =VLOOKUP(A28,Batatas!A$10:I$1036,4) -> RESTAURAÇÃO DO MURO LATERAL | C28: =VLOOKUP(A28,Batatas!A$10:I$1036,9) -> 24886.45 | F28: =$C28*F29 -> 24886.45 | H28: 24886.45 | I28: R$
C29: =C28/C28 -> 1 | F29: 1 | H29: 1 | I29: %
A30: 10 | B30: =VLOOKUP(A30,Batatas!A$10:I$1036,4) -> RESTAURAÇÃO DA SOLEIRA DO VERTEDOURO | C30: =VLOOKUP(A30,Batatas!A$10:I$1036,9) -> 6419.72 | F30: =$C30*F31 -> 6419.72 | H30: =SUM(D30:G30) -> 6419.72 | I30: R$
C31: =C30/C30 -> 1 | F31: 1 | H31: 1 | I31: %
A32: 11 | B32: =VLOOKUP(A32,Batatas!A$10:I$1036,4) -> MANUTENÇÃO DOS EQUIPAMENTOS HIDROMECÂNICOS | C32: =VLOOKUP(A32,Batatas!A$10:I$1036,9) -> 2241.04 | G32: =$C32*G33 -> 2241.04 | H32: 2241.04 | I32: R$
C33: =C32/C32 -> 1 | G33: 1 | H33: 1 | I33: %
A34: 12 | B34: =VLOOKUP(A34,Batatas!A$10:I$1036,4) -> SERVIÇOS COMPLEMENTARES | C34: =VLOOKUP(A34,Batatas!A$10:I$1036,9) -> 6562.68 | G34: =$C34*G35 -> 6562.68 | H34: 6562.68 | I34: R$
C35: =C34/C34 -> 1 | G35: 1 | H35: 1 | I35: %
A36: 13 | B36: =VLOOKUP(A36,Batatas!A$10:I$1036,4) -> PROJETO "AS IS" | C36: =VLOOKUP(A36,Batatas!A$10:I$1036,9) -> 15621.86 | G36: =$C36*G37 -> 15621.86 | H36: 15621.86 | I36: R$
C37: 1 | G37: 1 | H37: 1 | I37: %
A38: 14 | B38: =VLOOKUP(A38,Batatas!A$10:I$1036,4) -> FISCALIZAÇÃO E ACOMPANHAMENTO | C38: =VLOOKUP(A38,Batatas!A$10:I$1036,9) -> 3779.1 | D38: =$C38*D39 -> 1259.7 | E38: =$C38*E39 -> 629.85 | F38: =$C38*F39 -> 629.85 | G38: =$C38*G39 -> 1259.7 | H38: 3779.1 | I38: R$
C39: 1 | D39: =2/6 -> 0.3333333333 | E39: =1/6 -> 0.1666666667 | F39: =1/6 -> 0.1666666667 | G39: =2/6 -> 0.3333333333 | H39: 1 | I39: %
B40: VALOR TOTAL: | C40: =SUMIF($I$12:$I$39,"R$",C$12:C$39) -> 607874.36 | D40: =SUMIF($I$12:$I$39,"R$",D$12:D$39) -> 206071.1365 | E40: 157107.0625 | F40: 190352.9805 | G40: =SUMIF($I$12:$I$39,"R$",G$12:G$39) -> 54343.18039 | H40: =SUMIF($I$12:$I$39,"R$",H$12:H$39) -> 607874.36
B41: VALOR ACUMULADO: | D41: =D40 -> 206071.1365 | E41: =E40+D41 -> 363178.1991 | F41: =F40+E41 -> 553531.1796 | G41: =G40+F41 -> 607874.36 | H41: =G41 -> 607874.36 | L41: =IF(H41=Batatas!I93,"ok","verificar") -> ok
B42: FÍSICO PARCIAL: | D42: =SUMIF($I$12:$I$39,"R$",D$12:D$39)/$C$40 -> 0.3390028435 | E42: =SUMIF($I$12:$I$39,"R$",E$12:E$39)/$C$40 -> 0.2584531819 | F42: 0.3131452699 | G42: 0.08939870468 | H42: =H40/$C$40 -> 1
B43: AVANÇO FÍSICO: | D43: =D42 -> 0.3390028435 | E43: =E42+D43 -> 0.5974560254 | F43: =F42+E43 -> 0.9106012953 | G43: =G42+F43 -> 1

Sheet Cronograma Riacho Pequeno
A1: Ministério da Integração e do Desenvolvimento Regional
A2: Companhia de Desenvolvimento dos Vales do São Francisco e do Parnaíba
A4: CRONOGRAMA FÍSICO-FINANCEIRO NÃO DESONERADO
A5: =Resumo!A5 -> OBRA: | B5: =Resumo!B5 -> Execução de Manutenção e Recuperação nas Barragens de Várzea dos Ramos, Quixaba, Monte Alegre, São José da Tapera, Batatas, Riacho Pequeno e Queixada, localizadas no estado De Pernambuco.
A6: =Resumo!A6 -> LOCAL: | B6: =Resumo!B6 -> BARRAGENS DE PERNAMBUCO
A7: =Resumo!A7 -> DATA BASE: | B7: =Resumo!B7 -> 2025-06-01
A8: =Resumo!A8 -> PRAZO: | B8: ='Riacho Pequeno'!B8 -> 120 dias
B9: ='Riacho Pequeno'!B9 -> Riacho Pequeno
A10: ITEM | B10: DESCRIÇÃO | C10: TOTAL POR ETAPA | D10: MESES | H10: TOTAL
D11: 1 | E11: 2 | F11: 3 | G11: 4
A12: 1 | B12: =VLOOKUP(A12,'Riacho Pequeno'!A$10:I$1044,4) -> ADMINISTRAÇÃO DA OBRA | C12: =VLOOKUP(A12,'Riacho Pequeno'!A$10:I$1044,9) -> 137201.96 | D12: =$C12*D13 -> 52149.23262 | E12: =$C12*E13 -> 30316.32953 | F12: =$C12*F13 -> 25922.39423 | G12: =$C12*G13 -> 28814.00362 | H12: =SUM(D12:G12) -> 137201.96 | I12: R$
C13: =C12/C12 -> 1 | D13: =SUMIF($I$14:$I$37,"R$",D$14:D$37)/$C$38 -> 0.3800910178 | E13: =SUMIF($I$14:$I$37,"R$",E$14:E$37)/$C$38+D40-D13 -> 0.2209613444 | F13: =SUMIF($I$14:$I$37,"R$",F$14:F$37)/$C$38+E40-E13 -> 0.1889360344 | G13: =1-SUM(D13:F13) -> 0.2100116035 | H13: =SUM(D13:G13) -> 1 | I13: %
A14: 2 | B14: =VLOOKUP(A14,'Riacho Pequeno'!A$10:I$1044,4) -> SERVIÇOS PRELIMINARES | C14: =VLOOKUP(A14,'Riacho Pequeno'!A$10:I$1044,9) -> 32243.02 | D14: =$C14*D15 -> 32243.02 | H14: 32243.02 | I14: R$
C15: =C14/C14 -> 1 | D15: 1 | H15: =SUM(D15:G15) -> 1 | I15: %
A16: 3 | B16: =VLOOKUP(A16,'Riacho Pequeno'!A$10:I$1044,4) -> CORTE DA VEGETAÇÃO E REMOÇÃO DAS RAIZES | C16: =VLOOKUP(A16,'Riacho Pequeno'!A$10:I$1044,9) -> 306049.39 | D16: =$C16*D17 -> 306049.39 | H16: 306049.39 | I16: R$
C17: =C16/C16 -> 1 | D17: 1 | H17: =SUM(D17:G17) -> 1 | I17: %
A18: 4 | B18: =VLOOKUP(A18,'Riacho Pequeno'!A$10:I$1044,4) -> RECUPERAÇÃO DO MACIÇO | C18: =VLOOKUP(A18,'Riacho Pequeno'!A$10:I$1044,9) -> 23378 | E18: =$C18*E19 -> 23378 | H18: 23378 | I18: R$
C19: =C18/C18 -> 1 | E19: 1 | H19: =SUM(D19:G19) -> 1 | I19: %
A20: 5 | B20: =VLOOKUP(A20,'Riacho Pequeno'!A$10:I$1044,4) -> REGULARIZAÇÃO E PAVIMENTAÇÃO DA CRISTA | C20: =VLOOKUP(A20,'Riacho Pequeno'!A$10:I$1044,9) -> 221246.9 | E20: =$C20*E21 -> 110623.45 | F20: =$C20*F21 -> 110623.45 | H20: 221246.9 | I20: R$
C21: =C20/C20 -> 1 | E21: 0.5 | F21: 0.5 | H21: =SUM(D21:G21) -> 1 | I21: %
A22: 6 | B22: =VLOOKUP(A22,'Riacho Pequeno'!A$10:I$1044,4) -> MANUTENÇÃO NO TALUDE DE MONTANTE | C22: =VLOOKUP(A22,'Riacho Pequeno'!A$10:I$1044,9) -> 21228.01 | E22: =$C22*E23 -> 10614.005 | F22: =$C22*F23 -> 10614.005 | H22: 21228.01 | I22: R$
C23: =C22/C22 -> 1 | E23: 0.5 | F23: 0.5 | H23: =SUM(D23:G23) -> 1 | I23: %
A24: 7 | B24: =VLOOKUP(A24,'Riacho Pequeno'!A$10:I$1044,4) -> DRENAGEM SUPERFICIAL DO TALUDE DE JUSANTE | C24: =VLOOKUP(A24,'Riacho Pequeno'!A$10:I$1044,9) -> 28167.1 | F24: =$C24*F25 -> 28167.1 | H24: 28167.1 | I24: R$
C25: =C24/C24 -> 1 | F25: 1 | H25: =SUM(D25:G25) -> 1 | I25: %
A26: 8 | B26: =VLOOKUP(A26,'Riacho Pequeno'!A$10:I$1044,4) -> PROTEÇÃO SUPERFICIAL DO TALUDE DE JUSANTE | C26: =VLOOKUP(A26,'Riacho Pequeno'!A$10:I$1044,9) -> 67237.5 | F26: =$C26*F27 -> 67237.5 | H26: 67237.5 | I26: R$
C27: =C26/C26 -> 1 | F27: 1 | H27: =SUM(D27:G27) -> 1 | I27: %
A28: 9 | B28: =VLOOKUP(A28,'Riacho Pequeno'!A$10:I$1044,4) -> CONTENÇÃO DO PROCESSO EROSIVO NO CANAL DE RESTITUIÇÃO | C28: =VLOOKUP(A28,'Riacho Pequeno'!A$10:I$1044,9) -> 3662.24 | F28: =$C28*F29 -> 3662.24 | H28: 3662.24 | I28: R$
C29: =C28/C28 -> 1 | F29: 1 | H29: =SUM(D29:G29) -> 1 | I29: %
A30: 10 | B30: =VLOOKUP(A30,'Riacho Pequeno'!A$10:I$1044,4) -> RESTAURAÇÃO DO MURO LATERAL | C30: =VLOOKUP(A30,'Riacho Pequeno'!A$10:I$1044,9) -> 19823.5 | G30: =$C30*G31 -> 19823.5 | H30: 19823.5 | I30: R$
C31: =C30/C30 -> 1 | G31: 1 | H31: =SUM(D31:G31) -> 1 | I31: %
A32: 11 | B32: =VLOOKUP(A32,'Riacho Pequeno'!A$10:I$1044,4) -> SERVIÇOS COMPLEMENTARES | C32: =VLOOKUP(A32,'Riacho Pequeno'!A$10:I$1044,9) -> 6562.68 | G32: =$C32*G33 -> 6562.68 | H32: =SUM(D32:G32) -> 6562.68 | I32: R$
C33: =C32/C32 -> 1 | G33: 1 | H33: =SUM(D33:G33) -> 1 | I33: %
A34: 12 | B34: =VLOOKUP(A34,'Riacho Pequeno'!A$10:I$1044,4) -> PROJETO "AS IS" | C34: =VLOOKUP(A34,'Riacho Pequeno'!A$10:I$1044,9) -> 22764.81 | G34: =$C34*G35 -> 22764.81 | H34: 22764.81 | I34: R$
C35: 1 | G35: 1 | H35: =SUM(D35:G35) -> 1 | I35: %
A36: 13 | B36: =VLOOKUP(A36,'Riacho Pequeno'!A$10:I$1044,4) -> FISCALIZAÇÃO E ACOMPANHAMENTO | C36: =VLOOKUP(A36,'Riacho Pequeno'!A$10:I$1044,9) -> 3779.1 | D36: =$C36*D37 -> 1259.7 | E36: =$C36*E37 -> 629.85 | F36: =$C36*F37 -> 629.85 | G36: =$C36*G37 -> 1259.7 | H36: 3779.1 | I36: R$
C37: 1 | D37: =2/6 -> 0.3333333333 | E37: =1/6 -> 0.1666666667 | F37: =1/6 -> 0.1666666667 | G37: =2/6 -> 0.3333333333 | H37: =SUM(D37:G37) -> 1 | I37: %
B38: VALOR TOTAL: | C38: =SUMIF($I$12:$I$37,"R$",C$12:C$37) -> 893344.21 | D38: 391701.3426 | E38: 175561.6345 | F38: 246856.5392 | G38: 79224.69362 | H38: 893344.21
B39: VALOR ACUMULADO: | D39: =D38 -> 391701.3426 | E39: =E38+D39 -> 567262.9771 | F39: =F38+E39 -> 814119.5164 | G39: 893344.21 | H39: =G39 -> 893344.21 | L39: =IF(H39='Riacho Pequeno'!I84,"OK","VERIFICA") -> OK
B40: FÍSICO PARCIAL: | D40: =SUMIF($I$12:$I$37,"R$",D$12:D$37)/$C$38 -> 0.4384663137 | E40: =SUMIF($I$14:$I$37,"R$",E$14:E$37)/$C$38 -> 0.1625860484 | F40: 0.2473113303 | G40: =1-SUM(D40:F40) -> 0.1516363076 | H40: =H38/$C$38 -> 1
B41: AVANÇO FÍSICO: | D41: =D40 -> 0.4384663137 | E41: =E40+D41 -> 0.6010523621 | F41: =F40+E41 -> 0.8483636924 | G41: 1

Sheet Cronograma Queixada
A1: Ministério da Integração e do Desenvolvimento Regional
A2: Companhia de Desenvolvimento dos Vales do São Francisco e do Parnaíba
A4: CRONOGRAMA FÍSICO-FINANCEIRO NÃO DESONERADO
A5: =Resumo!A5 -> OBRA: | B5: =Resumo!B5 -> Execução de Manutenção e Recuperação nas Barragens de Várzea dos Ramos, Quixaba, Monte Alegre, São José da Tapera, Batatas, Riacho Pequeno e Queixada, localizadas no estado De Pernambuco.
A6: =Resumo!A6 -> LOCAL: | B6: =Resumo!B6 -> BARRAGENS DE PERNAMBUCO
A7: =Resumo!A7 -> DATA BASE: | B7: =Resumo!B7 -> 2025-06-01
A8: =Resumo!A8 -> PRAZO: | B8: =Queixada!B8 -> 120 dias
B9: =Queixada!B9 -> Queixada
A10: ITEM | B10: DESCRIÇÃO | C10: TOTAL POR ETAPA | D10: MESES | H10: TOTAL
D11: 1 | E11: 2 | F11: 3 | G11: 4
A12: 1 | B12: =VLOOKUP(A12,Queixada!A$10:I$1038,4) -> ADMINISTRAÇÃO DA OBRA | C12: =VLOOKUP(A12,Queixada!A$10:I$1038,9) -> 137201.96 | D12: =$C12*D13 -> 36650.25877 | E12: =$C12*E13 -> 35459.60675 | F12: =$C12*F13 -> 40305.50489 | G12: =$C12*G13 -> 24786.58959 | H12: =SUM(D12:G12) -> 137201.96 | I12: R$
C13: =C12/C12 -> 1 | D13: =SUMIF($I$14:$I$35,"R$",D$14:D$35)/$C$36 -> 0.2671263499 | E13: =SUMIF($I$14:$I$35,"R$",E$14:E$35)/$C$36 -> 0.2584482521 | F13: 0.2937677048 | G13: =1-SUM(D13:F13) -> 0.1806576931 | H13: 1 | I13: %
A14: 2 | B14: =VLOOKUP(A14,Queixada!A$10:I$1038,4) -> SERVIÇOS PRELIMINARES | C14: =VLOOKUP(A14,Queixada!A$10:I$1038,9) -> 32243.02 | D14: =$C14*D15 -> 32243.02 | H14: 32243.02 | I14: R$
C15: =C14/C14 -> 1 | D15: 1 | H15: 1 | I15: %
A16: 3 | B16: =VLOOKUP(A16,Queixada!A$10:I$1038,4) -> CORTE DA VEGETAÇÃO E REMOÇÃO DAS RAIZES | C16: =VLOOKUP(A16,Queixada!A$10:I$1038,9) -> 212052.52 | D16: =$C16*D17 -> 212052.52 | H16: 212052.52 | I16: R$
C17: =C16/C16 -> 1 | D17: 1 | H17: 1 | I17: %
A18: 4 | B18: =VLOOKUP(A18,Queixada!A$10:I$1038,4) -> RECUPERAÇÃO DO MACIÇO | C18: =VLOOKUP(A18,Queixada!A$10:I$1038,9) -> 86914 | E18: =$C18*E19 -> 86914 | H18: 86914 | I18: R$
C19: =C18/C18 -> 1 | E19: 1 | H19: 1 | I19: %
A20: 5 | B20: =VLOOKUP(A20,Queixada!A$10:I$1038,4) -> REGULARIZAÇÃO E PAVIMENTAÇÃO DA CRISTA | C20: =VLOOKUP(A20,Queixada!A$10:I$1038,9) -> 152045.8 | E20: =$C20*E21 -> 76022.9 | F20: =$C20*F21 -> 76022.9 | H20: 152045.8 | I20: R$
C21: =C20/C20 -> 1 | E21: 0.5 | F21: 0.5 | H21: 1 | I21: %
A22: 6 | B22: =VLOOKUP(A22,Queixada!A$10:I$1038,4) -> MANUTENÇÃO NO TALUDE DE MONTANTE | C22: =VLOOKUP(A22,Queixada!A$10:I$1038,9) -> 148022.34 | E22: =$C22*E23 -> 74011.17 | F22: =$C22*F23 -> 74011.17 | H22: 148022.34 | I22: R$
C23: =C22/C22 -> 1 | E23: 0.5 | F23: 0.5 | H23: 1 | I23: %
A24: 7 | B24: =VLOOKUP(A24,Queixada!A$10:I$1038,4) -> DRENAGEM SUPERFICIAL DO TALUDE DE JUSANTE | C24: =VLOOKUP(A24,Queixada!A$10:I$1038,9) -> 18005.1 | F24: =$C24*F25 -> 18005.1 | H24: 18005.1 | I24: R$
C25: =C24/C24 -> 1 | F25: 1 | H25: 1 | I25: %
A26: 8 | B26: =VLOOKUP(A26,Queixada!A$10:I$1038,4) -> PROTEÇÃO SUPERFICIAL DO TALUDE DE JUSANTE | C26: =VLOOKUP(A26,Queixada!A$10:I$1038,9) -> 101376.22 | F26: =$C26*F27 -> 101376.22 | H26: =SUM(D26:G26) -> 101376.22 | I26: R$
C27: =C26/C26 -> 1 | F27: 1 | H27: 1 | I27: %
A28: 9 | B28: =VLOOKUP(A28,Queixada!A$10:I$1038,4) -> RESTAURAÇÃO DA SOLEIRA DO VERTEDOURO | C28: =VLOOKUP(A28,Queixada!A$10:I$1038,9) -> 1335.73 | G28: =$C28*G29 -> 1335.73 | H28: 1335.73 | I28: R$
C29: =C28/C28 -> 1 | G29: 1 | H29: 1 | I29: %
A30: 10 | B30: =VLOOKUP(A30,Queixada!A$10:I$1038,4) -> SERVIÇOS COMPLEMENTARES | C30: =VLOOKUP(A30,Queixada!A$10:I$1038,9) -> 7627.08 | G30: =$C30*G31 -> 7627.08 | H30: 7627.08 | I30: R$
C31: =C30/C30 -> 1 | G31: 1 | H31: 1 | I31: %
A32: 11 | B32: =VLOOKUP(A32,Queixada!A$10:I$1038,4) -> PROJETO "AS IS" | C32: =VLOOKUP(A32,Queixada!A$10:I$1038,9) -> 18644.67 | G32: =$C32*G33 -> 18644.67 | H32: =SUM(D32:G32) -> 18644.67 | I32: R$
C33: =C32/C32 -> 1 | G33: 1 | H33: 1 | I33: %
A34: 12 | B34: =VLOOKUP(A34,Queixada!A$10:I$1038,4) -> FISCALIZAÇÃO E ACOMPANHAMENTO | C34: =VLOOKUP(A34,Queixada!A$10:I$1038,9) -> 3779.1 | D34: =$C34*D35 -> 1259.7 | E34: =$C34*E35 -> 629.85 | F34: =$C34*F35 -> 629.85 | G34: =$C34*G35 -> 1259.7 | H34: 3779.1 | I34: R$
C35: 1 | D35: =2/6 -> 0.3333333333 | E35: =1/6 -> 0.1666666667 | F35: =1/6 -> 0.1666666667 | G35: =2/6 -> 0.3333333333 | H35: 1 | I35: %
B36: VALOR TOTAL: | C36: =SUMIF($I$12:$I$35,"R$",C$12:C$35) -> 919247.54 | D36: 282205.4988 | E36: 273037.5268 | F36: 310350.7449 | G36: 53653.76959 | H36: 919247.54
B37: VALOR ACUMULADO: | D37: =D36 -> 282205.4988 | E37: =E36+D37 -> 555243.0255 | F37: =F36+E37 -> 865593.7704 | G37: =G36+F37 -> 919247.54 | H37: =H36 -> 919247.54 | L37: =IF(H37=Queixada!I80,"ok","verificar") -> ok
B38: FÍSICO PARCIAL: | D38: =SUMIF($I$12:$I$35,"R$",D$12:D$35)/$C$36 -> 0.3069961969 | E38: =SUMIF($I$12:$I$35,"R$",E$12:E$35)/$C$36 -> 0.2970228528 | F38: 0.3376138977 | G38: 0.05836705267 | H38: =H36/$C$36 -> 1
B39: AVANÇO FÍSICO: | D39: =D38 -> 0.3069961969 | E39: =E38+D39 -> 0.6040190497 | F39: =F38+E39 -> 0.9416329473 | G39: 1

Sheet CPU HOSPEDAGEM
B2: Engenharia Consultiva da Codevasf
B3: CPU - HOSPEDAGEM EQUIPE DE CAMPO (4 PESSOAS/MÊS) | D3: Código/Referencia
B4: ALUGUEL | C4: 3074.56 | D4: F020003334/EMBASA insumo
B5: Aquisição de Mobiliário | C5: =41.81*C16 -> 167.24 | D5: B8954/DNIT
B6: Material de limpeza e diarista | C6: =129.46+(123*8) -> 1113.46 | D6: 10563/ORSE - E200300131/EMBASA
B7: manutenção da casa alugada - Serviços Gerais/Vigia | C7: 3043.76 | D7: 41096/SINAPI
B8: Energia | C8: 180 | D8: 10555/ORSE
B9: Água | C9: 394.99 | D9: 10554/ORSE
B10: telefone/Internet | C10: =154.99+89 -> 243.99 | D10: 10557/10558/ORSE
B11: IPTU (mês) | C11: =(C4*0.5)/12 -> 128.1066667
B13: Custo Mensal: | C13: =SUM(C4:C12) -> 8346.106667
B14: Custo Mensal por pessoa: | C14: =C13/C16 -> 2086.526667
B15: Custo diário por pessoa: | C15: =C14/22 -> 94.84212121
B16: número de pessoas: | C16: 4
B17: Alimentação: | C17: 100.59 | D17: Tabela Diária Codevasf 2025
B19: Diária Total (alimentação + hospedagem): | C19: =C15+C17 -> 195.4321212

Sheet CPU-VEICULO_PickUp
A1: =CPU!F23 -> 2.44
A5: Composição de Preços de Locação de Veículo tipo pick-up
B6: Data de atualização: | C6: 2025-01-22 | E6: CV | F6: Média | G6: Mediana | K6: CV | L6: Média | M6: Mediana | V6: CV | W6: Média | X6: Mediana
A7: CODEVASF | E7: =_xlfn.STDEV.S(E10:H10)/AVERAGE(E10:H10) -> 0.09461804749 | F7: =AVERAGE(E10:H10) -> 200477 | G7: =MEDIAN(E10:H10) -> 205565.5 | K7: =_xlfn.STDEV.S(L9:S9)/AVERAGE(L9:S9) -> 0.2049193683 | L7: =AVERAGE(L9:S9) -> 34.54857143 | M7: =MEDIAN(L9:S9) -> 30.91 | V7: =_xlfn.STDEV.S(W9:AD9)/AVERAGE(W9:AD9) -> 0.1241023561 | W7: =AVERAGE(W9:AD9) -> 499.0190625 | X7: =MEDIAN(W9:AD9) -> 499.45
A8: OBS: Preço sem BDI e sem motorista BDI= | E8: Preço FIPE | J8: PRODUTO | K8: MENOR (MÉDIA, MEDIANA) | L8: COT. 1 | M8: COT. 2 | N8: COT. 3 | O8: COT. 4 | P8: COT. 5 | Q8: COT. 6 | R8: COT. 7 | S8: COT. 8 | U8: PRODUTO | V8: MENOR (MÉDIA, MEDIANA) | W8: COT. 1 | X8: COT. 2 | Y8: COT. 3 | Z8: COT. 4 | AA8: COT. 5 | AB8: COT. 6 | AC8: COT. 7 | AD8: COT. 8
A9: Veículo tipo pick-up, cabine dupla - 2.0 16V 4x4 diesel Aut. | E9: Toro Ultra 2.0 16V 4x4 TB Diesel Aut. | F9: Toro Freedom 2.0 16V 4x4 TB Diesel Aut. | G9: Toro Volcano 2.0 16V 4x4 TB Diesel Aut. | H9: Toro Ranch 2.0 16V 4x4 TB Diesel Aut. | J9: LUBRIFICANTE 5W30 | K9: =SMALL(L7:M7,1) -> 30.91 | L9: 33.33 | M9: 26.9 | N9: 30.9 | O9: 30.9 | P9: 30.91 | Q9: 46 | R9: 42.9 | U9: Pneu 225/65 R17 | V9: =SMALL(W7:X7,1) -> 499.0190625 | W9: 499 | X9: 479.9 | Y9: 565.25 | Z9: 393.38 | AA9: 449.9 | AB9: =2059.44/4 -> 514.86 | AC9: =2359.85/4 -> 589.9625 | AD9: 499.9
B10: Custo Mensal (R$): | C10: =C51 -> 11254.64844 | E10: 215525 | F10: 175252 | G10: 196485 | H10: 214646
B11: Custo Diária (R$): | C11: =C10/22 -> 511.5749292
B12: Custo Horário (R$): | C12: =C10/176 -> 63.94686614
A13: A | B13: Depreciação mensal do equipamento
A14: A1 | B14: Preço de Aquisição | C14: =SMALL(F7:G7,1) -> 200477
A15: A2 | B15: Tempo previsto de vida útil (meses) | C15: 36
A16: A3 | B16: Previsão de recup. Na venda do bem usado | C16: 0.7 | D16: Foram analisados os preços na tabela FIPE
A17: A4 | B17: Custo mensal [A1-(A3xA1)]/A2 | C17: =(C14-(C16*C14))/C15 -> 1670.641667
A18: B | B18: Juros pelo Capital empregado
A19: B1 | B19: Taxa mensal de Juros * | C19: =POWER(1+C56,1/12)-1 -> 0.01153145236
A20: B2 | B20: Juros s/depreciação/aluguel (B1xA4) | C20: =C19*C17 -> 19.26492479
A21: C | B21: Conservação e manutenção ** | C21: 0.75
A22: C1 | B22: Taxa de gastos s/a deprec. Inc. seguros (%) | C22: =C21 -> 0.75 | AF22: PREÇO DO DIESEL | AG22: 5.77
A23: C2 | B23: Incidência mensal (C1xA4) | C23: =C22*C17 -> 1252.98125 | AF23: https://precos.petrobras.com.br/w/diesel/pe
A24: D | B24: Combustível
A25: D1 | B25: Média mensal de quilômetro por veículo | C25: ='Memorial de cálculo'!H5*22*2 -> 12848 | D25: *Foi considerado a distância média da SR para as barragens de ida e volta para cada barragem
A26: D2 | B26: Preço do litro de combustível | C26: =AG22 -> 5.77
A27: D3 | B27: Quilômetros rodados com um litro combustivel | C27: 10 | E27: =C25/22 -> 584
A28: D4 | B28: Combustivel (D1/D3)*D2 | C28: =(C25/C27)*C26 -> 7413.296
A29: E | B29: Lubrificantes
A30: E1 | B30: Quilometragem do Contrato (D1*12) | C30: =C25*36 -> 462528
A31: E2 | B31: Franquia por troca de óleo (km) | C31: 10000
A32: E3 | B32: Preço do litro de óleo | C32: =K9 -> 30.91
A33: E4 | B33: Quantidade de litros de óleo por troca | C33: 5
A34: E5 | B34: Quantidade de dias do Contrato | C34: =365*3 -> 1095
A35: E6 | B35: Lubrificantes E = (E1*E3*E4*30)/E2*E5 | C35: =(C30*C32*C33*30)/(C31*C34) -> 195.84576
A36: F | B36: Pneus
A37: F1 | B37: Quilometragem do Contrato | C37: =C30 -> 462528
A38: F2 | B38: Vida do Pneu em quilômetros | C38: 45000
A39: F3 | B39: Quantidade de pneus | C39: 5
A40: F4 | B40: Preço do Pneu | C40: =V9 -> 499.0190625
A41: F5 | B41: Quantidade de dias do contrato | C41: =C34 -> 1095
A42: F6 | B42: Pneus = (F1*F3*F4*30)/(F2*F5) | C42: =(C37*C39*C40*30)/(C38*C41) -> 702.61884
A43: G | B43: Motorista
A44: G1 | B44: Salário com encargos sociais | C44: 0
A45: H | B45: Custo Mensal
B46: Sem Motorista (A4+B2+C2+D4+E6+F6) | C46: =C17+C20+C23+C28+C35+C42 -> 11254.64844
B47: Com Motorista (A4+B2+C2+D4+E6+F6+G1) | C47: =C17+C20+C23+C28+C35+C42+C44 -> 11254.64844
A48: I | B48: Custo Direto p/ km Rodado
B49: Sem Motorista | C49: =C46/C25 -> 0.8759844677
B50: Com Motorista | C50: =C47/C25 -> 0.8759844677
A51: J | B51: Preço cobrado sem BDI | C51: =C46*(1+C8) -> 11254.64844
A52: J1 | B52: Sem Motorista | C52: =C51 -> 11254.64844
A53: J2 | B53: Com Motorista | C53: =C47 -> 11254.64844 | I53: https://www.google.com/search?q=lubrificante+5w30+1l&sa=X&sca_esv=c77f5342bf7e367a&tbm=shop&ei=e0uKZ-DcDNKp5OUPkOKj6QY&ved=0ahUKEwighoOy3_yKAxXSFLkGHRDxKG0Q4dUDCAg&uact=5&oq=lubrificante+5w30+1l&gs_lp=Egtwcm9kdWN0cy1jYyIUbHVicmlmaWNhbnRlIDV3MzAgMWxIgQ9Q4AlY8Q1wAHgAkAEAmAFroAGgA6oBAzEuM7gBA8gBAPgBAZgCAqAC0gHCAgUQABiABMICBhAAGAcYHsICBhAAGAgYHsICBhAAGBYYHpgDAIgGAZIHAzEuMaAHxQU&sclient=products-cc | T53: https://www.google.com/search?q=pneu+225%2F65+R17&sa=X&biw=1600&bih=757&tbm=shop&sxsrf=AJOqlzWsb-d4PS1_OUOEhKmRc2RbtSg3RQ%3A1677092596279&ei=9Gb2Y9K5ENTa5OUPvLykGA&ved=0ahUKEwjSg9Pj6Kn9AhVULbkGHTweCQMQ4dUDCAg&uact=5&oq=pneu+225%2F65+R17&gs_lcp=Cgtwcm9kdWN0cy1jYxADMgsIABCABBCxAxCDATIFCAAQgAQyBwgAEIAEEAoyBwgAEIAEEAoyBwgAEIAEEAoyBwgAEIAEEAoyBwgAEIAEEAoyBQgAEIAEMgcIABCABBAKMgcIABCABBAKOgQIIxAnOgQIABBDSgQIQRgAUABYoTJgqUBoAHAAeACAAdIFiAGUKZIBDTAuMi42LjIuMi4yLjGYAQCgAQHAAQE&sclient=products-cc
B55: OBSERVAÇÕES:
A56: * | B56: Calculado com base na taxa SELIC JANEIRO/2025: | C56: 0.1475
B57: Taxa de Juros Selic — Português (Brasil) (www.gov.br)
A58: ** | B58: Conservação e manutenção - é calculado com o uso de um coeficiente multiplicador "k", conforme tabela abaixo, sobre a
B59: depreciação mensal do equipamento (Item A da planilha de composição de preços). Os valores de K são fornecidos por
B60: fabricantes.
B61: Metodologia conforme a bibliografia "Como Preparar Orçamentos de Obras", 3 edição, Aldo Dórea Mattos, 2019.

Sheet Cotação
A4: EMPRESA | F4: ORÇADO POR | G4: DESCRIÇÃO / OBSERVAÇÃO | H4: UNID | I4: QUANT | J4: LINK OU LOCAL DO ARQUIVO | K4: VALOR
A5: DATA | B5: EMPRESA / CNPJ | C5: RESPONSÁVEL | D5: ENDEREÇO | E5: CONTATO | K5: MAT | L5: MDO | M5: TRANSPORTE | N5: TOTAL
A6: 2025-06-16 | B6: Gravametal | C6: Preço na loja online | D6: Rua Uniflor, 1012 - Emiliano Perneta Pinhais - Paraná - CEP: 83324-227 | E6: ☎ (41) 3403-0144 ✆ (41) 99672-9692 ✉ gravametal@gmail.com | F6: Murilo | G6: Régua Linimétrica/Fluviométrica - 2000 x 100 x 2,0 mm | H6: un | I6: 1 | J6: https://www.gravametal.com.br/product-page/r%C3%A9gua-linim%C3%A9trica-2000-x-100-x-3-mm?srsltid=AfmBOoo7bONDKYSpPQ8nKCIIxyP45caOsr1LvasuLTpW3yNgStvCP9wzHZA | K6: =1199/10 -> 119.9 | N6: =SUM(K6:M6) -> 119.9
A7: 2025-04-09 | B7: Dualbase | C7: Consulta via email | D7: Av. Gentil Reinaldo Cordioli, 157 - CEP 88133-500 - Palhoça/SC | E7: Tel: (48) 3342 5202 adriano@dualbase.com.br | F7: Murilo | G7: Régua linimétrica em alumínio 2 X 70 X 1000MM | H7: un | I7: 1 | J7: www.dualbase.com.br | K7: 165.9 | N7: =SUM(K7:M7) -> 165.9
A8: 2025-06-16 | B8: Mercado Livre | C8: Preço na loja online | D8: - | E8: - | F8: - | G8: Régua Fluviométrica-linimétrica/alumínio 2x100x1000 Mm | H8: un | I8: 1 | J8: https://produto.mercadolivre.com.br/MLB-4758946120-regua-fluviometrica-linimetricaaluminio-2x100x1000-mm-_JM?matt_tool=18956390&utm_source=google_shopping&utm_medium=organic | K8: 157.2 | N8: =SUM(K8:M8) -> 157.2
A9: 2025-06-16 | B9: Mercado Livre | C9: Preço na loja online | D9: - | E9: - | F9: - | G9: Régua Pvc Linimétrica - Fluviométrica Dim. 2x70x1000 Mm | H9: un | I9: 1 | J9: https://produto.mercadolivre.com.br/MLB-3500423191-regua-pvc-linimetrica-fluviometrica-dim-2x70x1000-mm-_JM?matt_tool=18956390&utm_source=google_shopping&utm_medium=organic | K9: 111.96 | N9: =SUM(K9:M9) -> 111.96
M11: Média | N11: =AVERAGE(N6:N9) -> 138.74
J12: CV= | K12: =(STDEVA(N6:N9))/AVERAGE(N6:N9) -> 0.1929801216 | M12: Mediana | N12: =MEDIAN(N6:N9) -> 138.55
M13: Menor | N13: =SMALL(N11:N12,1) -> 138.55

Sheet Encargos Sociais
A1: Ministério da Integração e do Desenvolvimento Regional
A2: Companhia de Desenvolvimento dos Vales do São Francisco e do Parnaíba
A4: COMPOSIÇÃO DE ENCARGOS SOCIAIS SOBRE A MÃO DE OBRA
A5: ='Várzea dos Ramos'!A5 -> OBRA: | B5: =Resumo!B5 -> Execução de Manutenção e Recuperação nas Barragens de Várzea dos Ramos, Quixaba, Monte Alegre, São José da Tapera, Batatas, Riacho Pequeno e Queixada, localizadas no estado De Pernambuco.
A6: ='Várzea dos Ramos'!A6 -> LOCAL: | B6: =Resumo!B6 -> BARRAGENS DE PERNAMBUCO
A7: ='Várzea dos Ramos'!A7 -> DATA BASE: | B7: =Resumo!B7 -> 2025-06-01
A8: ='Várzea dos Ramos'!A8 -> PRAZO: | B8: =Resumo!B8 -> 480 dias
A10: PERNAMBUCO
A11: Encargos Sociais – Pernambuco VIGÊNCIA A PARTIR DE 01/2025
A12: ENCARGOS SOCIAIS SOBRE A MÃO DE OBRA
A13: CÓDIGO | B13: DESCRIÇÃO | C13: COM DESONERAÇÃO | E13: SEM DESONERAÇÃO
C14: HORISTA % | D14: MENSALISTA % | E14: HORISTA % | F14: MENSALISTA %
A15: GRUPO A
A16: A1 | B16: INSS | C16: 0.05 | D16: 0.05 | E16: 0.2 | F16: 0.2
A17: A2 | B17: SESI | C17: 0.015 | D17: 0.015 | E17: 0.015 | F17: 0.015
A18: A3 | B18: SENAI | C18: 0.01 | D18: 0.01 | E18: 0.01 | F18: 0.01
A19: A4 | B19: INCRA | C19: 0.002 | D19: 0.002 | E19: 0.002 | F19: 0.002
A20: A5 | B20: SEBRAE | C20: 0.006 | D20: 0.006 | E20: 0.006 | F20: 0.006
A21: A6 | B21: Salário Educação | C21: 0.025 | D21: 0.025 | E21: 0.025 | F21: 0.025
A22: A7 | B22: Seguro Contra Acidentes de Trabalho | C22: 0.03 | D22: 0.03 | E22: 0.03 | F22: 0.03
A23: A8 | B23: FGTS | C23: 0.08 | D23: 0.08 | E23: 0.08 | F23: 0.08
A24: A9 | B24: SECONCI | C24: 0 | D24: 0 | E24: 0 | F24: 0
A25: A | B25: Total | C25: =SUM(C16:C24) -> 0.218 | D25: =SUM(D16:D24) -> 0.218 | E25: =SUM(E16:E24) -> 0.368 | F25: =SUM(F16:F24) -> 0.368
A26: GRUPO B
A27: B1 | B27: Repouso Semanal Remunerado | C27: 0.1801 | D27: Não incide | E27: 0.1801 | F27: Não incide
A28: B2 | B28: Feriados | C28: 0.0432 | D28: Não incide | E28: 0.0432 | F28: Não incide
A29: B3 | B29: Auxílio - Enfermidade | C29: 0.0086 | D29: 0.0065 | E29: 0.0086 | F29: 0.0065
A30: B4 | B30: 13º Salário | C30: 0.1097 | D30: 0.0833 | E30: 0.1097 | F30: 0.0833
A31: B5 | B31: Licença Paternidade | C31: 0.0007 | D31: 0.0005 | E31: 0.0007 | F31: 0.0005
A32: B6 | B32: Faltas Justificadas | C32: 0.0073 | D32: 0.0056 | E32: 0.0073 | F32: 0.0056
A33: B7 | B33: Dias de Chuvas | C33: 0.0196 | D33: Não incide | E33: 0.0196 | F33: Não incide
A34: B8 | B34: Auxílio Acidente de Trabalho | C34: 0.001 | D34: 0.0007 | E34: 0.001 | F34: 0.0007
A35: B9 | B35: Férias Gozadas | C35: 0.0995 | D35: 0.0756 | E35: 0.0995 | F35: 0.0756
A36: B10 | B36: Salário Maternidade | C36: 0.0003 | D36: 0.0003 | E36: 0.0003 | F36: 0.0003
A37: B | B37: Total | C37: =SUM(C27:C36) -> 0.47 | D37: =SUM(D27:D36) -> 0.1725 | E37: =SUM(E27:E36) -> 0.47 | F37: =SUM(F27:F36) -> 0.1725
A38: GRUPO C
A39: C1 | B39: Aviso Prévio Indenizado | C39: 0.0477 | D39: 0.0363 | E39: 0.0477 | F39: 0.0363
A40: C2 | B40: Aviso Prévio Trabalhado | C40: 0.0011 | D40: 0.0009 | E40: 0.0011 | F40: 0.0009
A41: C3 | B41: Férias Indenizadas | C41: 0.0398 | D41: 0.0303 | E41: 0.0398 | F41: 0.0303
A42: C4 | B42: Depósito Rescisão Sem Justa Causa | C42: 0.0306 | D42: 0.0233 | E42: 0.0306 | F42: 0.0233
A43: C5 | B43: Indenização Adicional | C43: 0.004 | D43: 0.0031 | E43: 0.004 | F43: 0.0031
A44: C | B44: Total | C44: =SUM(C39:C43) -> 0.1232 | D44: =SUM(D39:D43) -> 0.0939 | E44: =SUM(E39:E43) -> 0.1232 | F44: =SUM(F39:F43) -> 0.0939
A45: GRUPO D
A46: D1 | B46: Reincidência de Grupo A sobre Grupo B | C46: 0.097 | D46: 0.0334 | E46: 0.173 | F46: 0.0635
A47: D2 | B47: Reincidência de Grupo A sobre Aviso Prévio Trabalhado e Reincidência do FGTS sobre Aviso Prévio Indenizado | C47: 0.0041 | D47: 0.0031 | E47: 0.0042 | F47: 0.0032
A48: D | B48: Total | C48: =SUM(C46:C47) -> 0.1011 | D48: =SUM(D46:D47) -> 0.0365 | E48: =SUM(E46:E47) -> 0.1772 | F48: =SUM(F46:F47) -> 0.0667
A49: TOTAL(A+B+C+D) | C49: =C25+C37+C44+C48 -> 0.9123 | D49: =D25+D37+D44+D48 -> 0.5209 | E49: =E25+E37+E44+E48 -> 1.1384 | F49: =F25+F37+F44+F48 -> 0.7011
A50: Fonte: Informação Dias de Chuva – INMET

Sheet Memorial de cálculo
A1: Ministério da Integração e do Desenvolvimento Regional
A2: Companhia de desenvolvimento dos Vales do São Francisco e do Parnaíba | I2: Quantitativos por Barragem
A4: MEMORIAL DE CÁLCULO | I4: Várzea dos Ramos | J4: Quixaba | K4: Monte Alegre | L4: São José da Tapera | M4: Batatas | N4: Riacho Pequeno | O4: Queixada | P4: MÉDIA
A5: OBRA: | B5: =Resumo!B5 -> Execução de Manutenção e Recuperação nas Barragens de Várzea dos Ramos, Quixaba, Monte Alegre, São José da Tapera, Batatas, Riacho Pequeno e Queixada, localizadas no estado De Pernambuco. | D5: DESLOCAMENTO - Petrolina para Barragem (km): | H5: =P5 -> 292 | I5: 257 | J5: 235 | K5: 311 | L5: 269 | M5: 500 | N5: 235 | O5: 237 | P5: =AVERAGE(I5:O5) -> 292
A6: LOCAL: | B6: =Resumo!B6 -> BARRAGENS DE PERNAMBUCO
A7: DATA BASE: | B7: =Resumo!B7 -> 2025-06-01 | D7: VIA URBANA PAVIMENTADA - Petrolina para Barragem (km) | H7: =P7 -> 281.1571429 | I7: =I5-I8 -> 257 | J7: =J5-J8 -> 224 | K7: 304 | L7: 266.7 | M7: =M5-M8 -> 494 | N7: 205.4 | O7: 217 | P7: =AVERAGE(I7:O7) -> 281.1571429
A8: PRAZO: | B8: =Resumo!B8 -> 480 dias | D8: REVESTIMENTO PRIMÁRIO - Petrolina para Barragem (km) | H8: =P8 -> 10.84285714 | I8: 0 | J8: 11 | K8: 7 | L8: 2.3 | M8: 6 | N8: 29.6 | O8: 20 | P8: =AVERAGE(I8:O8) -> 10.84285714
A9: ITEM | B9: DESCRIÇÃO | C9: UNID. | D9: PARÂMETRO 1 | E9: PARÂMETRO 2 | F9: PARÂMETRO 3 | G9: PARÂMETRO 4 | H9: TOTAL
A11: =CPU!B10 -> CPU.01 | B11: =VLOOKUP(A11,CPU!$B$10:$G$5163,2,0) -> Administração Local | C11: =VLOOKUP(A11,CPU!$B$10:$G$5163,3,0) -> mês | D11: QUANT.PESSOAS | E11: HORAS DIÁRIA | F11: DIAS TRABALHADOS NO MÊS | G11: MESES | H11: 3
B12: =CPU!C15 -> Engenheiro Civil De Obra Pleno Com Encargos Complementares | C12: h | D12: 1 | E12: 1.5 | F12: =4*5 -> 20 | H12: =D12*E12*F12 -> 30
B13: =CPU!C16 -> Encarregado Geral De Obras Com Encargos Complementares | C13: mês | D13: 1 | G13: 0.8 | H13: =D13*G13 -> 0.8
B14: =CPU!C17 -> VIGIA - AN | C14: h | D14: 4 | E14: 12 | F14: 15 | H14: =D14*E14*F14 -> 720
B15: A escala de trabalho 12x36 para vigias noturnos consiste em trabalhar 12 horas seguidas e folgar 36 horas
A17: =CPU!B19 -> CPU.02 | B17: =VLOOKUP(A17,CPU!$B$10:$G$5163,2,0) -> Mobilização e desmobilização de instalação do canteiro | C17: =VLOOKUP(A17,CPU!$B$10:$G$5163,3,0) -> un | H17: 1
A18: 100946 | B18: Transporte Com Caminhão Carroceria 9T, Em Via Urbana Em Revestimento Primário (Unidade: Txkm). Af_07/2020 | C18: TXKM | H18: =$C$20*$D$20*$E$20 -> 108.4285714
C19: T | D19: km | E19: N. viagens
C20: 5 | D20: =H8 -> 10.84285714 | E20: 2
A21: 100947 | B21: Transporte Com Caminhão Carroceria 9T, Em Via Urbana Pavimentada, Dmt Até 30Km (Unidade: Txkm). Af_07/2020 | C21: TXKM | H21: =$C$23*$D$23*$E$23 -> 300
C22: T | D22: km | E22: N. viagens
C23: 5 | D23: 30 | E23: 2
A24: 100948 | B24: Transporte Com Caminhão Carroceria 9T, Em Via Urbana Pavimentada, Adicional Para Dmt Excedente A 30 Km (Unidade: Txkm). Af_07/2020 | C24: TXKM | H24: =$C$26*$D$26*$E$26 -> 2511.571429
C25: T | D25: km | E25: N. viagens
C26: 5 | D26: =H5-D23-D20 -> 251.1571429 | E26: 2
A28: =CPU!B29 -> CPU.03 | B28: =VLOOKUP(A28,CPU!$B$10:$G$5163,2,0) -> Execução de canteiro de obras, inclusive, limpeza, refeitório, sanitários e central de formas | C28: =VLOOKUP(A28,CPU!$B$10:$G$5163,3,0) -> m2 | H28: =SUM(H29:H31) -> 28.5
B29: Área do Refeitório Em Canteiro De Obra | C29: m2 | D29: 1 | E29: 3 | F29: 2.5 | H29: =D29*E29*F29 -> 7.5
B30: Área do Sanitário Em Canteiro De Obra | C30: m2 | D30: 1 | E30: 4.5 | F30: 2 | H30: =D30*E30*F30 -> 9
B31: Área da Central de Fôrmas Em Canteiro De Obra | C31: m2 | D31: 1 | E31: 4 | F31: 3 | H31: =D31*E31*F31 -> 12
B32: Mao de obra | C32: m2 | D32: QUANT.PESSOAS | E32: RENDIMENTO (H/M2) | F32: m2 | G32: HORAS | H32: DIAS | I32: DIAS | J32: DIAS | K32: DIAS | L32: DIAS | M32: DIAS | N32: DIAS | O32: DIAS
B33: Carpinteiro | C33: h | D33: 2 | E33: =1.1155/D33 -> 0.55775 | F33: 1 | G33: =F33*(E33) -> 0.55775 | H33: =G33/8 -> 0.06971875 | I33: =$H$28*$E$33/8 -> 1.986984375 | J33: =$H$28*$E$33/8 -> 1.986984375 | K33: =$H$28*$E$33/8 -> 1.986984375 | L33: 1.986984375 | M33: =$H$28*$E$33/8 -> 1.986984375 | N33: =$H$28*$E$33/8 -> 1.986984375 | O33: =$H$28*$E$33/8 -> 1.986984375
A35: =CPU!B40 -> CPU.04 | B35: =VLOOKUP(A35,CPU!$B$10:$G$5163,2,0) -> Limpeza de vegetação | C35: =VLOOKUP(A35,CPU!$B$10:$G$5163,3,0) -> m2 | I35: ='Várzea dos Ramos'!F26 -> 21924.7 | J35: =Quixaba!F26 -> 19182.66 | K35: ='Monte Alegre'!F26 -> 14805.3 | L35: ='São José da Tapera'!F26 -> 11420.43 | M35: =Batatas!F26 -> 11708.51 | N35: ='Riacho Pequeno'!F26 -> 28320.02 | O35: =Queixada!F26 -> 18738.28
B36: Mao de obra | C36: m2 | D36: QUANT.PESSOAS | E36: RENDIMENTO (H/M2) | F36: m2 | G36: HORAS | H36: DIAS | I36: DIAS | J36: DIAS | K36: DIAS | L36: DIAS | M36: DIAS | N36: DIAS | O36: DIAS
B37: Servente | C37: h | D37: 4 | E37: =20/1000/D37 -> 0.005 | F37: 1 | G37: =F37*(E37) -> 0.005 | H37: =G37/8 -> 0.000625 | I37: =I35*$E$37/8 -> 13.7029375 | J37: =J35*$E$37/8 -> 11.9891625 | K37: =K35*$E$37/8 -> 9.2533125 | L37: 7.13776875 | M37: =M35*$E$37/8 -> 7.31781875 | N37: 17.7000125 | O37: 11.711425
B38: Rendimento 400 m² por dia por servente
A39: =CPU!B50 -> CPU.05 | B39: =VLOOKUP(A39,CPU!$B$10:$G$5163,2,0) -> Corte de tronco e remoção de raiz | C39: =VLOOKUP(A39,CPU!$B$10:$G$5163,3,0) -> un | I39: ='Várzea dos Ramos'!F27 -> 40 | J39: =Quixaba!F27 -> 40 | K39: ='Monte Alegre'!F27 -> 60 | L39: ='São José da Tapera'!F27 -> 45 | M39: =Batatas!F27 -> 35 | N39: ='Riacho Pequeno'!F27 -> 50 | O39: =Queixada!F27 -> 50
B40: Mão de obra | D40: QUANT.PESSOAS | E40: RENDIMENTO (H/un) | F40: un | G40: HORAS | H40: DIAS | I40: DIAS | J40: DIAS | K40: DIAS | L40: DIAS | M40: DIAS | N40: DIAS | O40: DIAS
B41: Servente | C41: h | D41: 2 | E41: =2.1685/D41 -> 1.08425 | F41: 1 | G41: =F41*(E41) -> 1.08425 | H41: =G41/8 -> 0.13553125 | I41: =I39*$E$41/8 -> 5.42125 | J41: =J39*$E$41/8 -> 5.42125 | K41: 8.131875 | L41: 6.09890625 | M41: =M39*$E$41/8 -> 4.74359375 | N41: 6.7765625 | O41: 6.7765625
B42: Jardineiro | C42: h | D42: 1 | E42: =1.1535/D42 -> 1.1535 | F42: 1 | G42: =F42*(E42) -> 1.1535 | H42: =G42/8 -> 0.1441875 | I42: =I39*$E$42/8 -> 5.7675 | J42: =J39*$E$42/8 -> 5.7675 | K42: 8.65125 | L42: 6.4884375 | M42: =M39*$E$42/8 -> 5.0465625 | N42: 7.209375 | O42: 7.209375
A44: CPU.07 | B44: =VLOOKUP(A44,CPU!$B$10:$G$5163,2,0) -> Enrocamento c/ pedra de mão c/ fornecimento e assentamento | C44: =VLOOKUP(A44,CPU!$B$10:$G$5163,3,0) -> m3 | I44: ='Várzea dos Ramos'!F45 -> 413 | J44: =Quixaba!F47 -> 88 | K44: ='Monte Alegre'!F45 -> 31 | L44: ='São José da Tapera'!F45 -> 105 | M44: =Batatas!F46 -> 83 | N44: ='Riacho Pequeno'!F45 -> 37 | O44: =Queixada!F45 -> 258
B45: Mao de obra | D45: QUANT.PESSOAS | E45: RENDIMENTO (H/M3) | F45: m3 | G45: HORAS | H45: DIAS | I45: DIAS | J45: DIAS | K45: DIAS | L45: DIAS | M45: DIAS | N45: DIAS | O45: DIAS
B46: Pedreiro | D46: 1 | E46: =0.2/D46 -> 0.2 | F46: 1 | G46: =F46*(E46) -> 0.2 | H46: =G46/8 -> 0.025 | I46: =I44*$E$46/8 -> 10.325 | J46: 2.2 | K46: 0.775 | L46: 2.625 | M46: 2.075 | N46: 0.925 | O46: 6.45
B47: Servente | D47: 1 | E47: =0.2/D47 -> 0.2 | F47: 1 | G47: =F47*(E47) -> 0.2 | H47: =G47/8 -> 0.025 | I47: =I44*$E$47/8 -> 10.325 | J47: 2.2 | K47: 0.775 | L47: 2.625 | M47: 2.075 | N47: 0.925 | O47: 6.45
A49: =CPU!B79 -> CPU.08 | B49: =VLOOKUP(A49,CPU!$B$10:$G$5163,2,0) -> Canaleta meia cana de concreto (D=30cm) - Fornecimento e instalação | C49: =VLOOKUP(A49,CPU!$B$10:$G$5163,3,0) -> m | I49: ='Várzea dos Ramos'!F49 -> 140 | J49: =Quixaba!F51 -> 90 | K49: ='Monte Alegre'!F49 -> 152 | L49: ='São José da Tapera'!F49 -> 140 | M49: =Batatas!F50 -> 125 | N49: ='Riacho Pequeno'!F49 -> 140 | O49: =Queixada!F49 -> 90
B50: Mao de obra | D50: QUANT.PESSOAS | E50: RENDIMENTO (H/m) | F50: m | G50: HORAS | H50: DIAS | I50: DIAS | J50: DIAS | K50: DIAS | L50: DIAS | M50: DIAS | N50: DIAS | O50: DIAS
B51: Pedreiro | D51: 1 | E51: =0.2812/D51 -> 0.2812 | F51: 1 | G51: =F51*(E51) -> 0.2812 | H51: =G51/8 -> 0.03515 | I51: =I49*$E$51/8 -> 4.921 | J51: =J49*$E$51/8 -> 3.1635 | K51: 5.3428 | L51: 4.921 | M51: =M49*$E$51/8 -> 4.39375 | N51: 4.921 | O51: 3.1635
B52: Servente | D52: 1 | E52: =0.2812/D52 -> 0.2812 | F52: 1 | G52: =F52*(E52) -> 0.2812 | H52: =G52/8 -> 0.03515 | I52: =I49*$E$52/8 -> 4.921 | J52: =J49*$E$52/8 -> 3.1635 | K52: 5.3428 | L52: 4.921 | M52: =M49*$E$52/8 -> 4.39375 | N52: 4.921 | O52: 3.1635
A54: =CPU!B94 -> CPU.09 | B54: =VLOOKUP(A54,CPU!$B$10:$G$5163,2,0) -> Entrada para descida d'água | C54: =VLOOKUP(A54,CPU!$B$10:$G$5163,3,0) -> un | I54: ='Várzea dos Ramos'!F51 -> 10 | J54: =Quixaba!F53 -> 6 | K54: ='Monte Alegre'!F51 -> 11 | L54: ='São José da Tapera'!F51 -> 10 | M54: =Batatas!F52 -> 11 | N54: ='Riacho Pequeno'!F51 -> 10 | O54: =Queixada!F51 -> 6
B55: Mao de obra | D55: QUANT.PESSOAS | E55: RENDIMENTO (H/m3) | F55: m3 | G55: HORAS | H55: DIAS | I55: DIAS | J55: DIAS | K55: DIAS | L55: DIAS | M55: DIAS | N55: DIAS | O55: DIAS
B56: Servente | D56: 1 | E56: =2.5333/D56 -> 2.5333 | F56: 0.44 | G56: =F56*(E56) -> 1.114652 | H56: =G56/8 -> 0.1393315 | I56: =I54*$E$56/8 -> 3.166625 | J56: =J54*$E$56/8 -> 1.899975 | K56: 3.4832875 | L56: 3.166625 | M56: =M54*$E$56/8 -> 3.4832875 | N56: 3.166625 | O56: 1.899975
B57: Operador de betoneira | D57: 1 | E57: =1.6046/D57 -> 1.6046 | F57: 0.44 | G57: =F57*(E57) -> 0.706024 | H57: =G57/8 -> 0.088253 | I57: =I54*$E$57/8 -> 2.00575 | J57: =J54*$E$57/8 -> 1.20345 | K57: 2.206325 | L57: 2.00575 | M57: =M54*$E$57/8 -> 2.206325 | N57: 2.00575 | O57: 1.20345
B58: Mao de obra | D58: QUANT.PESSOAS | E58: RENDIMENTO (H/m2) | F58: m2 | G58: HORAS | H58: DIAS | I58: DIAS | J58: DIAS | K58: DIAS | L58: DIAS | M58: DIAS | N58: DIAS | O58: DIAS
B59: Ajudante de carpinteiro | D59: 1 | E59: =0.005/D59 -> 0.005 | F59: 4.34 | G59: =F59*(E59) -> 0.0217 | H59: =G59/8 -> 0.0027125 | I59: =I54*$E$59/8 -> 0.00625 | J59: 0.00375 | K59: 0.006875 | L59: 0.00625 | M59: 0.006875 | N59: 0.00625 | O59: 0.00375
B60: Carpinteiro | D60: 1 | E60: =0.005/D60 -> 0.005 | F60: 4.34 | G60: =F60*(E60) -> 0.0217 | H60: =G60/8 -> 0.0027125 | I60: =I54*$E$60/8 -> 0.00625 | J60: 0.00375 | K60: 0.006875 | L60: 0.00625 | M60: 0.006875 | N60: 0.00625 | O60: 0.00375
A62: =CPU!B104 -> CPU.10 | B62: =VLOOKUP(A62,CPU!$B$10:$G$5163,2,0) -> Plantio de vegetação para proteção de talude com hidrossemeadura, inclusive adubação e transporte | C62: =VLOOKUP(A62,CPU!$B$10:$G$5163,3,0) -> m2 | I62: ='Várzea dos Ramos'!F55 -> 5850 | J62: =Quixaba!F57 -> 2010 | K62: ='Monte Alegre'!F55 -> 2079 | L62: ='São José da Tapera'!F55 -> 1470 | M62: =Batatas!F56 -> 1565 | N62: ='Riacho Pequeno'!F55 -> 3750 | O62: =Queixada!F55 -> 5654
B63: Mao de obra | D63: QUANT.PESSOAS | E63: RENDIMENTO (H/m2) | F63: m2 | G63: HORAS | H63: DIAS | I63: DIAS | J63: DIAS | K63: DIAS | L63: DIAS | M63: DIAS | N63: DIAS | O63: DIAS
B64: Servente | D64: 1 | E64: =(8/415)/D64 -> 0.01927710843 | F64: 1 | G64: =F64*(E64) -> 0.01927710843 | H64: =G64/8 -> 0.002409638554 | I64: =I62*$E$64/8 -> 14.09638554 | J64: =J62*$E$64/8 -> 4.843373494 | K64: =K62*$E$64/8 -> 5.009638554 | L64: 3.542168675 | M64: =M62*$E$64/8 -> 3.771084337 | N64: =N62*$E$64/8 -> 9.036144578 | O64: =O62*$E$64/8 -> 13.62409639
A66: =CPU!B116 -> CPU.11 | B66: =VLOOKUP(A66,CPU!$B$10:$G$5163,2,0) -> Apicoamento da superfície | C66: =VLOOKUP(A66,CPU!$B$10:$G$5163,3,0) -> m2 | K66: ='Monte Alegre'!F64 -> 22.5 | M66: =Batatas!F61 -> 53 | O66: =Queixada!F60 -> 22.5
B67: Mao de obra | D67: QUANT.PESSOAS | E67: RENDIMENTO (H/m2) | F67: m2 | G67: HORAS | H67: DIAS | I67: DIAS | J67: DIAS | K67: DIAS | L67: DIAS | M67: DIAS | N67: DIAS | O67: DIAS
B68: PEDREIRO | D68: 1 | E68: =0.1151/D68 -> 0.1151 | F68: 1 | G68: =F68*(E68) -> 0.1151 | H68: =G68/8 -> 0.0143875 | I68: =I66*$E$68/8 -> 0 | J68: =J66*$E$68/8 -> 0 | K68: =K66*$E$68/8 -> 0.32371875 | L68: 0 | M68: =M66*$E$68/8 -> 0.7625375 | N68: 0 | O68: 0.32371875
B69: SERVENTE | D69: 3 | E69: =0.3872/D69 -> 0.1290666667 | F69: 1 | G69: =F69*(E69) -> 0.1290666667 | H69: =G69/8 -> 0.01613333333 | I69: =I66*$E$69/8 -> 0 | J69: =J66*$E$69/8 -> 0 | K69: 0.363 | L69: 0 | M69: =M66*$E$69/8 -> 0.8550666667 | N69: 0 | O69: 0.363
A71: =CPU!B128 -> CPU.12 | B71: =VLOOKUP(A71,CPU!$B$10:$G$5163,2,0) -> Enrocamento ARCO tipo rachão reciclado cinza classe A jogado com fornecimento | C71: =VLOOKUP(A71,CPU!$B$10:$G$5163,3,0) -> m3 | N71: ='Riacho Pequeno'!F59 -> 8
B72: Mao de obra | D72: QUANT.PESSOAS | E72: RENDIMENTO (H/m3) | F72: m3 | G72: HORAS | H72: DIAS | I72: DIAS | J72: DIAS | K72: DIAS | L72: DIAS | M72: DIAS | N72: DIAS | O72: DIAS
B73: Pedreiro | D73: 1 | E73: =0.01/D73 -> 0.01 | F73: 1 | G73: =F73*(E73) -> 0.01 | H73: =G73/8 -> 0.00125 | I73: =I71*$E$73/8 -> 0 | J73: =J71*$E$73/8 -> 0 | K73: 0 | L73: 0 | M73: =M71*$E$73/8 -> 0 | N73: 0.01 | O73: 0
B74: Servente | D74: 1 | E74: =0.01/D74 -> 0.01 | F74: 1 | G74: =F74*(E74) -> 0.01 | H74: =G74/8 -> 0.00125 | I74: =I71*$E$74/8 -> 0 | J74: =J71*$E$74/8 -> 0 | K74: 0 | L74: 0 | M74: =M71*$E$74/8 -> 0 | N74: 0.01 | O74: 0
A76: =CPU!B143 -> CPU.13 | B76: =VLOOKUP(A76,CPU!$B$10:$G$5163,2,0) -> Recomposição das erosões, inclusive, regularização da superfície e reaterro | C76: =VLOOKUP(A76,CPU!$B$10:$G$5163,3,0) -> m3 | I76: ='Várzea dos Ramos'!F31 -> 83 | J76: =Quixaba!F31 -> 190 | K76: ='Monte Alegre'!F31 -> 130 | L76: ='São José da Tapera'!F31 -> 206 | M76: ='São José da Tapera'!F31 -> 206 | N76: ='Riacho Pequeno'!F31 -> 40 | O76: =Queixada!F31 -> 150 | P76: =AVERAGE(I76:O76) -> 143.5714286
B77: Mao de obra | D77: QUANT.PESSOAS | E77: RENDIMENTO (H/M3) | F77: m3 | G77: HORAS | H77: DIAS | I77: DIAS | J77: DIAS | K77: DIAS | L77: DIAS | M77: DIAS | N77: DIAS | O77: DIAS
B78: Servente | D78: 1 | E78: =(0.012+0.0356689)/D78 -> 0.0476689 | F78: 1 | G78: =F78*(E78) -> 0.0476689 | H78: =G78/8 -> 0.0059586125 | I78: =I76*$E$78/8 -> 0.4945648375 | J78: =J76*$E$78/8 -> 1.132136375 | K78: =K76*$E$78/8 -> 0.774619625 | L78: =L76*$E$78/8 -> 1.227474175 | M78: =M76*$E$78/8 -> 1.227474175 | N78: 0.2383445 | O78: 0.893791875
B79: Motorista | D79: 1 | E79: =(0.0228+0.0153+0.004257)/D79 -> 0.042357 | F79: 1 | G79: =F79*(E79) -> 0.042357 | H79: =G79/8 -> 0.005294625 | I79: =I76*$E$79/8 -> 0.439453875 | J79: =J76*$E$79/8 -> 1.00597875 | K79: =K76*$E$79/8 -> 0.68830125 | L79: =L76*$E$79/8 -> 1.09069275 | M79: =M76*$E$79/8 -> 1.09069275 | N79: 0.211785 | O79: 0.79419375
B80: Operador de máquina | D80: 1 | E80: =(0.0096+0.0083+0.0045112+0.0104312)/D80 -> 0.0328424 | F80: 1 | G80: =F80*(E80) -> 0.0328424 | H80: =G80/8 -> 0.0041053 | I80: =I76*$E$80/8 -> 0.3407399 | J80: =J76*$E$80/8 -> 0.780007 | K80: =K76*$E$80/8 -> 0.533689 | L80: =L76*$E$80/8 -> 0.8456918 | M80: =M76*$E$80/8 -> 0.8456918 | N80: 0.164212 | O80: 0.615795
B81: rolo compactador + motoniveladora
A82: =CPU!B161 -> CPU.14 | B82: =VLOOKUP(A82,CPU!$B$10:$G$5163,2,0) -> Regularização e compactação da crista | C82: =VLOOKUP(A82,CPU!$B$10:$G$5163,3,0) -> m2 | I82: ='Várzea dos Ramos'!F37 -> 1366 | J82: =Quixaba!F37 -> 300 | K82: ='Monte Alegre'!F37 -> 1034 | L82: ='São José da Tapera'!F37 -> 1066 | M82: =Batatas!F38 -> 883 | N82: ='Riacho Pequeno'!F37 -> 2005 | O82: =Queixada!F37 -> 1080
B83: Mao de obra | C83: m2 | D83: QUANT.PESSOAS | E83: RENDIMENTO (H/M2) | F83: m2 | G83: HORAS | H83: DIAS | I83: DIAS | J83: DIAS | K83: DIAS | L83: DIAS | M83: DIAS | N83: DIAS | O83: DIAS
B84: Servente | C84: h | D84: 1 | E84: =0.0086152/D84 -> 0.0086152 | F84: 1 | G84: =F84*(E84) -> 0.0086152 | H84: =G84/8 -> 0.0010769 | I84: =I82*$E$84/8 -> 1.4710454 | J84: =J82*$E$84/8 -> 0.32307 | K84: =K82*$E$84/8 -> 1.1135146 | L84: 1.1479754 | M84: =M82*$E$84/8 -> 0.9509027 | N84: 2.1591845 | O84: 1.163052
A86: =CPU!B170 -> CPU.15 | B86: =VLOOKUP(A86,CPU!$B$10:$G$5163,2,0) -> Execução de Revestimento com BGTC | C86: =VLOOKUP(A86,CPU!$B$10:$G$5163,3,0) -> m3 | I86: ='Várzea dos Ramos'!F41 -> 137 | J86: =Quixaba!F41 -> 360 | K86: ='Monte Alegre'!F41 -> 104 | L86: ='São José da Tapera'!F41 -> 107 | M86: =Batatas!F42 -> 88 | N86: ='Riacho Pequeno'!F41 -> 201 | O86: =Queixada!F41 -> 108
B87: Mao de obra | C87: m3 | D87: QUANT.PESSOAS | E87: RENDIMENTO (H/M3) | F87: m3 | G87: HORAS | H87: DIAS | I87: DIAS | J87: DIAS | K87: DIAS | L87: DIAS | M87: DIAS | N87: DIAS | O87: DIAS
B88: Servente | C88: h | D88: 1 | E88: =0.0365494/D88 -> 0.0365494 | F88: 1 | G88: =F88*(E88) -> 0.0365494 | H88: =G88/8 -> 0.004568675 | I88: =I86*$E$88/8 -> 0.625908475 | J88: 1.644723 | K88: 0.4751422 | L88: 0.488848225 | M88: 0.4020434 | N88: 0.918303675 | O88: 0.4934169
A90: =CPU!B183 -> CPU.16 | B90: =VLOOKUP(A90,CPU!$B$10:$G$5163,2,0) -> Restauração com uso de concreto | C90: =VLOOKUP(A90,CPU!$B$10:$G$5163,3,0) -> m3 | J90: =Quixaba!F62 -> 6 | K90: ='Monte Alegre'!F66 -> 0.5 | M90: =Batatas!F62 -> 8 | O90: =Queixada!F61 -> 0.7
B91: Mao de obra | C91: m3 | D91: QUANT.PESSOAS | E91: RENDIMENTO (H/M3) | F91: m3 | G91: HORAS | H91: DIAS | I91: DIAS | J91: DIAS | K91: DIAS | L91: DIAS | M91: DIAS | N91: DIAS | O91: DIAS
B92: Servente | C92: h | D92: 1 | E92: =6.2067/D92 -> 6.2067 | F92: 1 | G92: =F92*(E92) -> 6.2067 | H92: =G92/8 -> 0.7758375 | I92: =I90*$E$92/8 -> 0 | J92: =J90*$E$92/8 -> 4.655025 | K92: 0.38791875 | L92: 0 | M92: =M90*$E$92/8 -> 6.2067 | N92: 0 | O92: 0.54308625
A94: =CPU!B196 -> CPU.18 | B94: =VLOOKUP(A94,CPU!$B$10:$G$5163,2,0) -> Régua Linimétrica Padrão “ANA”, Aço Carbono - 2 X 70 X 1000 mm (Fornecimento e Instalação) | C94: =VLOOKUP(A94,CPU!$B$10:$G$5163,3,0) -> un | I94: ='Várzea dos Ramos'!F61 -> 6 | J94: =Quixaba!F68 -> 8 | K94: ='Monte Alegre'!F78 -> 16 | L94: ='São José da Tapera'!F61 -> 12 | M94: =Batatas!F80 -> 8 | N94: ='Riacho Pequeno'!F71 -> 8 | O94: =Queixada!F67 -> 10
B95: Mao de obra | D95: QUANT.PESSOAS | E95: RENDIMENTO (H/UN) | F95: un | G95: HORAS | H95: DIAS
B96: Topógrafo | D96: 1 | E96: =0.8/D96 -> 0.8 | F96: 1 | G96: =F96*(E96) -> 0.8 | H96: =G96/8 -> 0.1 | I96: =I94*$E$96/8 -> 0.6 | J96: =J94*$E$96/8 -> 0.8 | K96: 1.6 | L96: 1.2 | M96: =M94*$E$96/8 -> 0.8 | N96: 0.8 | O96: 1
B97: Servente | D97: 1 | E97: =1.6/D97 -> 1.6 | F97: 1 | G97: =F97*(E97) -> 1.6 | H97: =G97/8 -> 0.2 | I97: =I94*$E$97/8 -> 1.2 | J97: =J94*$E$97/8 -> 1.6 | K97: 3.2 | L97: 2.4 | M97: =M94*$E$97/8 -> 1.6 | N97: 1.6 | O97: 2
A99: =CPU!B209 -> CPU.19 | B99: =VLOOKUP(A99,CPU!$B$10:$G$5163,2,0) -> Demolição de guias e sarjetas | C99: =VLOOKUP(A99,CPU!$B$10:$G$5163,3,0) -> m
B100: Mao de obra | C100: m | D100: QUANT.PESSOAS | E100: RENDIMENTO (H/M) | F100: m | G100: HORAS | H100: DIAS | I100: DIAS | J100: DIAS | K100: DIAS | L100: DIAS | M100: DIAS | N100: DIAS | O100: DIAS
B101: Pedreiro | C101: h | D101: 1 | E101: =0.1759/D101 -> 0.1759 | F101: 1 | G101: =F101*(E101) -> 0.1759 | H101: =G101/8 -> 0.0219875 | I101: =I99*$E$101/8 -> 0 | J101: =J99*$E$101/8 -> 0 | K101: 0 | L101: 0 | M101: =M99*$E$101/8 -> 0 | N101: 0 | O101: 0
B102: Servente | C102: h | D102: 1 | E102: =0.0772/D102 -> 0.0772 | F102: 1 | G102: =F102*(E102) -> 0.0772 | H102: =G102/8 -> 0.00965 | I102: =I99*$E$102/8 -> 0 | J102: =J99*$E$102/8 -> 0 | K102: 0 | L102: 0 | M102: =M99*$E$102/8 -> 0 | N102: 0 | O102: 0
A104: =CPU!B218 -> CPU.20 | B104: =VLOOKUP(A104,CPU!$B$10:$G$5163,2,0) -> Guia (meio-fio) e sarjeta e conjudados de concreto, moldada In Loco, 45cm base (15 cm Base da Guia +30 cm Base da Sarjeta) x 22 cm Altura | C104: =VLOOKUP(A104,CPU!$B$10:$G$5163,3,0) -> m | I104: ='Várzea dos Ramos'!F39 -> 842 | K104: ='Monte Alegre'!F39 -> 100 | M104: =Batatas!F40 -> 226 | O104: =Queixada!F39 -> 740
B105: Mao de obra | C105: m | D105: QUANT.PESSOAS | E105: RENDIMENTO (H/M) | F105: m | G105: HORAS | H105: DIAS | I105: DIAS | J105: DIAS | K105: DIAS | L105: DIAS | M105: DIAS | N105: DIAS | O105: DIAS
B106: Ajudante | C106: h | D106: 1 | E106: =0.1093/D106 -> 0.1093 | F106: 1 | G106: =F106*(E106) -> 0.1093 | H106: =G106/8 -> 0.0136625 | I106: =I104*$E$106/8 -> 11.503825 | J106: =J104*$E$106/8 -> 0 | K106: 1.36625 | L106: 0 | M106: =M104*$E$106/8 -> 3.087725 | N106: 0 | O106: 10.11025
B107: Pedreiro | C107: h | D107: 2 | E107: =0.2265/D107 -> 0.11325 | F107: 1 | G107: =F107*(E107) -> 0.11325 | H107: =G107/8 -> 0.01415625 | I107: =I104*$E$107/8 -> 11.9195625 | J107: =J104*$E$107/8 -> 0 | K107: =K104*$E$107/8 -> 1.415625 | L107: 0 | M107: =M104*$E$107/8 -> 3.1993125 | N107: 0 | O107: 10.475625
B108: Servente | C108: h | D108: 3 | E108: =0.453/D108 -> 0.151 | F108: 1 | G108: =F108*(E108) -> 0.151 | H108: =G108/8 -> 0.018875 | I108: =I104*$E$108/8 -> 15.89275 | J108: =J104*$E$108/8 -> 0 | K108: 1.8875 | L108: 0 | M108: =M104*$E$108/8 -> 4.26575 | N108: 0 | O108: 13.9675
A110: =CPU!B228 -> CPU.22 | B110: =VLOOKUP(A110,CPU!$B$10:$G$5163,2,0) -> Tratamento de fissuras com injeção de adesivo estrutural à base de resina epóxi de baixa viscosidade - fornecimento e aplicação mecanizada | C110: =VLOOKUP(A110,CPU!$B$10:$G$5163,3,0) -> kg | O110: =Queixada!F60 -> 22.5
B111: Mao de obra | D111: QUANT.PESSOAS | E111: RENDIMENTO (H/kg) | F111: kg | G111: HORAS | H111: DIAS
B112: Servente | D112: 1 | E112: =3/D112 -> 3 | F112: 1 | G112: =F112*(E112) -> 3 | H112: =G112/8 -> 0.375 | I112: =I110*$E$112/8 -> 0 | J112: 0 | K112: 0 | L112: 0 | M112: 0 | N112: 0 | O112: 8.4375
A114: =CPU!B237 -> CPU.23 | B114: =VLOOKUP(A114,CPU!$B$10:$G$5163,2,0) -> Emboço ou massa única em argamassa | C114: =VLOOKUP(A114,CPU!$B$10:$G$5163,3,0) -> m2 | K114: ='Monte Alegre'!F59 -> 90 | M114: =Batatas!F68 -> 35 | O114: =Queixada!F61 -> 0.7
B115: Mao de obra | D115: QUANT.PESSOAS | E115: RENDIMENTO (H/m2) | F115: m2 | G115: HORAS | H115: DIAS
B116: Servente | D116: 2 | E116: =0.545/D116 -> 0.2725 | F116: 1 | G116: =F116*(E116) -> 0.2725 | H116: =G116/8 -> 0.0340625 | I116: =I114*$E$116/8 -> 0 | J116: =J114*$E$116/8 -> 0 | K116: 3.065625 | L116: 0 | M116: =M114*$E$116/8 -> 1.1921875 | N116: =N114*$E$116/8 -> 0 | O116: =O114*$E$116/8 -> 0.02384375
B117: Pedreiro | D117: 2 | E117: =0.545/D117 -> 0.2725 | F117: 1 | G117: =F117*(E117) -> 0.2725 | H117: =G117/8 -> 0.0340625 | I117: =I114*$E$117/8 -> 0 | J117: =J114*$E$117/8 -> 0 | K117: 3.065625 | L117: 0 | M117: =M114*$E$117/8 -> 1.1921875 | N117: =N114*$E$117/8 -> 0 | O117: =O114*$E$117/8 -> 0.02384375
A119: =CPU!B246 -> CPU.24 | B119: =VLOOKUP(A119,CPU!$B$10:$G$5163,2,0) -> Limpeza da superfície | C119: =VLOOKUP(A119,CPU!$B$10:$G$5163,3,0) -> m2 | J119: =Quixaba!F61 -> 30 | K119: ='Monte Alegre'!F63 -> 22.5 | M119: =Batatas!F66 -> 35 | O119: =Queixada!F59 -> 22.5
B120: Mao de obra | D120: QUANT.PESSOAS | E120: RENDIMENTO (H/m2) | F120: m2 | G120: HORAS | H120: DIAS
B121: Servente | D121: 1 | E121: =0.089/D121 -> 0.089 | F121: 1 | G121: =F121*(E121) -> 0.089 | H121: =G121/8 -> 0.011125 | I121: =I119*$E$121/8 -> 0 | J121: =J119*$E$121/8 -> 0.33375 | K121: =K119*$E$121/8 -> 0.2503125 | L121: =L119*$E$121/8 -> 0 | M121: =M119*$E$121/8 -> 0.389375 | N121: 0 | O121: 0.2503125
A123: =CPU!B255 -> CPU.25 | B123: =VLOOKUP(A123,CPU!$B$10:$G$5163,2,0) -> Projeto geométrico | C123: =VLOOKUP(A123,CPU!$B$10:$G$5163,3,0) -> un | I123: ='Várzea dos Ramos'!F66 -> 1 | J123: =Quixaba!F73 -> 1 | K123: ='Monte Alegre'!F83 -> 1 | L123: ='São José da Tapera'!F66 -> 1 | M123: =Batatas!F85 -> 1 | N123: ='Riacho Pequeno'!F76 -> 1 | O123: =Queixada!F72 -> 1
B124: Mao de obra | D124: QUANT.PESSOAS | E124: RENDIMENTO (H/un) | F124: un | G124: HORAS | H124: DIAS
B125: Engenheiro Civil De Obra Junior Com Encargos Complementares | D125: 1 | E125: =CPU!E260/D125 -> 30 | F125: 1 | G125: =F125*(E125) -> 30 | H125: =G125/8 -> 3.75 | I125: =I123*$E$125/8 -> 3.75 | J125: =J123*$E$125/8 -> 3.75 | K125: 3.75 | L125: 3.75 | M125: =M123*$E$125/8 -> 3.75 | N125: 3.75 | O125: 3.75
B126: Engenheiro Civil De Obra Senior Com Encargos Complementares | D126: 1 | E126: =CPU!E261/D126 -> 20 | F126: 1 | G126: =F126*(E126) -> 20 | H126: =G126/8 -> 2.5 | I126: =I123*$E$126/8 -> 2.5 | J126: =J123*$E$126/8 -> 2.5 | K126: 2.5 | L126: 2.5 | M126: =M123*$E$126/8 -> 2.5 | N126: 2.5 | O126: 2.5
B127: Desenhista Projetista Com Encargos Complementares | D127: 1 | E127: =CPU!E262/D127 -> 60 | F127: 1 | G127: =F127*(E127) -> 60 | H127: =G127/8 -> 7.5 | I127: =I123*$E$127/8 -> 7.5 | J127: =J123*$E$127/8 -> 7.5 | K127: 7.5 | L127: 7.5 | M127: =M123*$E$127/8 -> 7.5 | N127: 7.5 | O127: 7.5
A129: =CPU!B264 -> CPU.26 | B129: =VLOOKUP(A129,CPU!$B$10:$G$5163,2,0) -> Injeção de nata de cimento em buracos | C129: =VLOOKUP(A129,CPU!$B$10:$G$5163,3,0) -> m3 | I129: ='Várzea dos Ramos'!F33 -> 0.2 | J129: ='Várzea dos Ramos'!F33 -> 0.2 | K129: ='Monte Alegre'!F33 -> 0.2 | L129: ='São José da Tapera'!F33 -> 0.2 | M129: =Batatas!F33 -> 0.2 | N129: ='Riacho Pequeno'!F33 -> 0.2 | O129: =Queixada!F33 -> 0.2
B130: Mao de obra | D130: QUANT.PESSOAS | E130: RENDIMENTO (H/m3) | F130: m3 | G130: HORAS | H130: DIAS
B131: Servente | D131: 1 | E131: =1/D131 -> 1 | F131: 1 | G131: =F131*(E131) -> 1 | H131: =G131/8 -> 0.125 | I131: =I129*$E$131/8 -> 0.025 | J131: =J129*$E$131/8 -> 0.025 | K131: 0.025 | L131: 0.025 | M131: =M129*$E$131/8 -> 0.025 | N131: 0.025 | O131: 0.025

Sheet Comp_Sinapi PE_Sem-Desoneracao
A1: SINAPI - Sistema Nacional de Pesquisa de Custos e Índices da Construção Civil
A2: RELATÓRIO DE CUSTOS DE COMPOSIÇÕES - ENCARGOS SOCIAIS SEM DESONERAÇÃO
A3: Mês de Referência: | B3: 05/2025 | D3: Encargos sociais sobre a mão de obra:
A4: Data de emissão: | B4: 10/06/2025 | D4: (SEM DESONERAÇÃO) | E4: PE
D5: Localidade | E5: RECIFE
A6: Observação: | B6: %AS (porcentagem Atribuído São Paulo) corresponde a porcentagem do custo total da | D6: Horista | E6: 1.1384
B7: composição que foi obtida utilizando preços de insumos de São Paulo por indisponibilidade | D7: Mensalista | E7: 0.7011
B8: dos preços de insumos necessários à composição no estado em questão. Custo zerado (hífen)
B9: indica que pelo menos um dos itens da composição não tem custo/preço. | E9: PE
A10: Grupo | B10: Código da Composição | C10: Descrição | D10: Unidade | E10: Custo (R$) | F10: %AS
A11: Acessibilidade | B11: 104658 | C11: PISO PODOTÁTIL DE ALERTA OU DIRECIONAL, DE CONCRETO, ASSENTADO SOBRE ARGAMASSA. AF_03/2024 | D11: M2 | E11: 154.21 | F11: 0
A12: Acessibilidade | B12: 105002 | C12: RAMPA DE ACESSIBILIDADE EM CONCRETO MOLDADO IN LOCO, EM CALÇADA NOVA COM LARGURA MAIOR OU IGUAL À 3,00 M, FCK 25MPA, COM PISO PODOTÁTIL. AF_03/2024 | D12: UN | E12: 730.16 | F12: 0
A13: Acessibilidade | B13: 105004 | C13: RAMPA DE ACESSIBILIDADE EM CONCRETO MOLDADO IN LOCO, EM CALÇADA NOVA COM LARGURA MENOR À 3,00 M, FCK 25MPA, COM PISO PODOTÁTIL. AF_03/2024 | D13: M2 | E13: 123.95 | F13: 0
A14: Acessibilidade | B14: 105003 | C14: RAMPA DE ACESSIBILIDADE EM CONCRETO MOLDADO IN LOCO, EM CALÇADA PRÉ EXISTENTE COM LARGURA MAIOR OU IGUAL À 3,00 M, FCK 25MPA, COM PISO PODOTÁTIL. AF_03/2024 | D14: UN | E14: 1172.88 | F14: 0.0628
A15: Acessibilidade | B15: 105005 | C15: RAMPA DE ACESSIBILIDADE EM CONCRETO MOLDADO IN LOCO, EM CALÇADA PRÉ EXISTENTE COM LARGURA MENOR À 3,00 M, FCK 25MPA, COM PISO PODOTÁTIL. AF_03/2024 | D15: M2 | E15: 205.92 | F15: 0.0661
A16: Acessibilidade | B16: 105006 | C16: RAMPA DE ACESSIBILIDADE EM CONCRETO PRÉ MOLDADO, EM CALÇADA NOVA COM LARGURA MAIOR OU IGUAL À 3,00 M, FCK 25MPA, COM PISO PODOTÁTIL. AF_03/2024 | D16: UN | E16: 0
A17: Acessibilidade | B17: 104999 | C17: RAMPA DE ACESSIBILIDADE EM CONCRETO PRÉ MOLDADO, EM CALÇADA PRÉ EXISTENTE COM LARGURA MAIOR OU IGUAL À 3,00 M, FCK 25MPA, COM PISO PODOTÁTIL. AF_03/2024 | D17: UN | E17: 0
A18: Acessibilidade | B18: 105000 | C18: RAMPA DE ACESSIBILIDADE PARA ACESSO A EDIFICAÇÕES COM INCLINAÇÃO DE 8,33% EM CONCRETO MOLDADO IN LOCO, COM LARGURA DE 1,20M, FCK 25MPA, NÃO ARMADA, COM JUNTA A CADA 2M COM CORTE À SECO. AF_03/2024 | D18: M | E18: 1334.55 | F18: 0
A19: Acessibilidade | B19: 105001 | C19: RAMPA DE ACESSIBILIDADE PARA ACESSO A EDIFICAÇÕES COM INCLINAÇÃO DE 8,33% EM CONCRETO MOLDADO IN LOCO, COM LARGURA DE 1,50M, FCK 25MPA, NÃO ARMADA, COM JUNTA A CADA 2M COM CORTE À SECO. AF_03/2024 | D19: M | E19: 1366.13 | F19: 0
A20: Alvenaria Estrutural - Blocos Cerâmicos | B20: 89306 | C20: ALVENARIA ESTRUTURAL DE BLOCOS CERÂMICOS 14X19X29, (ESPESSURA DE 14 CM), UTILIZANDO COLHER DE PEDREIRO E ARGAMASSA DE ASSENTAMENTO COM PREPARO EM BETONEIRA. AF_03/2023 | D20: M2 | E20: 91.69 | F20: 0
A21: Alvenaria Estrutural - Blocos Cerâmicos | B21: 89307 | C21: ALVENARIA ESTRUTURAL DE BLOCOS CERÂMICOS 14X19X29, (ESPESSURA DE 14 CM), UTILIZANDO COLHER DE PEDREIRO E ARGAMASSA DE ASSENTAMENTO COM PREPARO MANUAL. AF_03/2023 | D21: M2 | E21: 94.48 | F21: 0
A22: Alvenaria Estrutural - Blocos Cerâmicos | B22: 89290 | C22: ALVENARIA ESTRUTURAL DE BLOCOS CERÂMICOS 14X19X29, (ESPESSURA DE 14 CM), UTILIZANDO PALHETA E ARGAMASSA DE ASSENTAMENTO COM PREPARO EM BETONEIRA. AF_03/2023 | D22: M2 | E22: 74.18 | F22: 0
A23: Alvenaria Estrutural - Blocos Cerâmicos | B23: 89291 | C23: ALVENARIA ESTRUTURAL DE BLOCOS CERÂMICOS 14X19X29, (ESPESSURA DE 14 CM), UTILIZANDO PALHETA E ARGAMASSA DE ASSENTAMENTO COM PREPARO MANUAL. AF_03/2023 | D23: M2 | E23: 76.27 | F23: 0
A24: Alvenaria Estrutural - Blocos Cerâmicos | B24: 89298 | C24: ALVENARIA ESTRUTURAL DE BLOCOS CERÂMICOS 14X19X39, (ESPESSURA DE 14 CM), UTILIZANDO COLHER DE PEDREIRO E ARGAMASSA DE ASSENTAMENTO COM PREPARO EM BETONEIRA. AF_03/2023 | D24: M2 | E24: 77.69 | F24: 0
A25: Alvenaria Estrutural - Blocos Cerâmicos | B25: 89299 | C25: ALVENARIA ESTRUTURAL DE BLOCOS CERÂMICOS 14X19X39, (ESPESSURA DE 14 CM), UTILIZANDO COLHER DE PEDREIRO E ARGAMASSA DE ASSENTAMENTO COM PREPARO MANUAL. AF_03/2023 | D25: M2 | E25: 80.2 | F25: 0
A26: Alvenaria Estrutural - Blocos Cerâmicos | B26: 89282 | C26: ALVENARIA ESTRUTURAL DE BLOCOS CERÂMICOS 14X19X39, (ESPESSURA DE 14 CM), UTILIZANDO PALHETA E ARGAMASSA DE ASSENTAMENTO COM PREPARO EM BETONEIRA. AF_03/2023 | D26: M2 | E26: 65.32 | F26: 0
A27: Alvenaria Estrutural - Blocos Cerâmicos | B27: 89283 | C27: ALVENARIA ESTRUTURAL DE BLOCOS CERÂMICOS 14X19X39, (ESPESSURA DE 14 CM), UTILIZANDO PALHETA E ARGAMASSA DE ASSENTAMENTO COM PREPARO MANUAL. AF_03/2023 | D27: M2 | E27: 67.2 | F27: 0
A28: Alvenaria Estrutural - Blocos de Concreto | B28: 89480 | C28: ALVENARIA DE BLOCOS DE CONCRETO ESTRUTURAL 14X19X29 CM (ESPESSURA 14 CM), FBK = 14 MPA, UTILIZANDO COLHER DE PEDREIRO. AF_10/2022 | D28: M2 | E28: 158.38 | F28: 0
A29: Alvenaria Estrutural - Blocos de Concreto | B29: 89464 | C29: ALVENARIA DE BLOCOS DE CONCRETO ESTRUTURAL 14X19X29 CM (ESPESSURA 14 CM), FBK = 14,0 MPA, UTILIZANDO PALHETA. AF_10/2022 | D29: M2 | E29: 136.81 | F29: 0
A30: Alvenaria Estrutural - Blocos de Concreto | B30: 89478 | C30: ALVENARIA DE BLOCOS DE CONCRETO ESTRUTURAL 14X19X29 CM (ESPESSURA 14 CM), FBK = 4,5 MPA, UTILIZANDO COLHER DE PEDREIRO. AF_10/2022 | D30: M2 | E30: 138.08 | F30: 0
A31: Alvenaria Estrutural - Blocos de Concreto | B31: 89462 | C31: ALVENARIA DE BLOCOS DE CONCRETO ESTRUTURAL 14X19X29 CM (ESPESSURA 14 CM), FBK = 4,5 MPA, UTILIZANDO PALHETA. AF_10/2022 | D31: M2 | E31: 117.25 | F31: 0
A32: Alvenaria Estrutural - Blocos de Concreto | B32: 104444 | C32: ALVENARIA DE BLOCOS DE CONCRETO ESTRUTURAL 14X19X29 CM (ESPESSURA 14 CM), FBK = 8 MPA, UTILIZANDO COLHER DE PEDREIRO. AF_10/2022 | D32: M2 | E32: 0
A33: Alvenaria Estrutural - Blocos de Concreto | B33: 104442 | C33: ALVENARIA DE BLOCOS DE CONCRETO ESTRUTURAL 14X19X29 CM (ESPESSURA 14 CM), FBK = 8 MPA, UTILIZANDO PALHETA. AF_10/2022 | D33: M2 | E33: 0
A34: Alvenaria Estrutural - Blocos de Concreto | B34: 89472 | C34: ALVENARIA DE BLOCOS DE CONCRETO ESTRUTURAL 14X19X39 CM (ESPESSURA 14 CM), FBK = 14 MPA, UTILIZANDO COLHER DE PEDREIRO. AF_10/2022 | D34: M2 | E34: 120.1 | F34: 0
A35: Alvenaria Estrutural - Blocos de Concreto | B35: 89455 | C35: ALVENARIA DE BLOCOS DE CONCRETO ESTRUTURAL 14X19X39 CM (ESPESSURA 14 CM), FBK = 14 MPA, UTILIZANDO PALHETA. AF_10/2022 | D35: M2 | E35: 106.49 | F35: 0
A36: Alvenaria Estrutural - Blocos de Concreto | B36: 89470 | C36: ALVENARIA DE BLOCOS DE CONCRETO ESTRUTURAL 14X19X39 CM (ESPESSURA 14 CM), FBK = 4,5 MPA, UTILIZANDO COLHER DE PEDREIRO. AF_10/2022 | D36: M2 | E36: 101.59 | F36: 0
A37: Alvenaria Estrutural - Blocos de Concreto | B37: 89453 | C37: ALVENARIA DE BLOCOS DE CONCRETO ESTRUTURAL 14X19X39 CM (ESPESSURA 14 CM), FBK = 4,5 MPA, UTILIZANDO PALHETA. AF_10/2022 | D37: M2 | E37: 88.79 | F37: 0
A38: Alvenaria Estrutural - Blocos de Concreto | B38: 104443 | C38: ALVENARIA DE BLOCOS DE CONCRETO ESTRUTURAL 14X19X39 CM (ESPESSURA 14 CM), FBK = 8 MPA, UTILIZANDO COLHER DE PEDREIRO. AF_10/2022 | D38: M2 | E38: 0
A39: Alvenaria Estrutural - Blocos de Concreto | B39: 104441 | C39: ALVENARIA DE BLOCOS DE CONCRETO ESTRUTURAL 14X19X39 CM (ESPESSURA 14 CM), FBK = 8 MPA, UTILIZANDO PALHETA. AF_10/2022 | D39: M2 | E39: 0
A40: Alvenaria de Vedação | B40: 103354 | C40: ALVENARIA DE VEDAÇÃO DE BLOCOS CERÂMICOS FURADOS NA HORIZONTAL DE 11,5X14X24 CM (ESPESSURA 11,5 CM) E ARGAMASSA DE ASSENTAMENTO COM PREPARO EM BETONEIRA. AF_12/2021 | D40: M2 | E40: 87.04 | F40: 0.0071
A41: Alvenaria de Vedação | B41: 103355 | C41: ALVENARIA DE VEDAÇÃO DE BLOCOS CERÂMICOS FURADOS NA HORIZONTAL DE 11,5X14X24 CM (ESPESSURA 11,5 CM) E ARGAMASSA DE ASSENTAMENTO COM PREPARO MANUAL. AF_12/2021 | D41: M2 | E41: 88.62 | F41: 0.007
A42: Alvenaria de Vedação | B42: 103330 | C42: ALVENARIA DE VEDAÇÃO DE BLOCOS CERÂMICOS FURADOS NA HORIZONTAL DE 11,5X19X19 CM (ESPESSURA 11,5 CM) E ARGAMASSA DE ASSENTAMENTO COM PREPARO EM BETONEIRA. AF_12/2021 | D42: M2 | E42: 79.75 | F42: 0.0055
A43: Alvenaria de Vedação | B43: 103331 | C43: ALVENARIA DE VEDAÇÃO DE BLOCOS CERÂMICOS FURADOS NA HORIZONTAL DE 11,5X19X19 CM (ESPESSURA 11,5 CM) E ARGAMASSA DE ASSENTAMENTO COM PREPARO MANUAL. AF_12/2021 | D43: M2 | E43: 81.24 | F43: 0.0054
A44: Alvenaria de Vedação | B44: 103358 | C44: ALVENARIA DE VEDAÇÃO DE BLOCOS CERÂMICOS FURADOS NA HORIZONTAL DE 11,5X19X29 CM (ESPESSURA 11,5 CM) E ARGAMASSA DE ASSENTAMENTO COM PREPARO EM BETONEIRA. AF_12/2021 | D44: M2 | E44: 66.94 | F44: 0.0066
A45: Alvenaria de Vedação | B45: 103359 | C45: ALVENARIA DE VEDAÇÃO DE BLOCOS CERÂMICOS FURADOS NA HORIZONTAL DE 11,5X19X29 CM (ESPESSURA 11,5 CM) E ARGAMASSA DE ASSENTAMENTO COM PREPARO MANUAL. AF_12/2021 | D45: M2 | E45: 68.2 | F45: 0.0065
A46: Alvenaria de Vedação | B46: 103366 | C46: ALVENARIA DE VEDAÇÃO DE BLOCOS CERÂMICOS FURADOS NA HORIZONTAL DE 11,5X19X39 CM (ESPESSURA 11,5 CM) E ARGAMASSA DE ASSENTAMENTO COM PREPARO EM BETONEIRA. AF_12/2021 | D46: M2 | E46: 57.58 | F46: 0.0076
A47: Alvenaria de Vedação | B47: 103367 | C47: ALVENARIA DE VEDAÇÃO DE BLOCOS CERÂMICOS FURADOS NA HORIZONTAL DE 11,5X19X39 CM (ESPESSURA 11,5 CM) E ARGAMASSA DE ASSENTAMENTO COM PREPARO MANUAL. AF_12/2021 | D47: M2 | E47: 58.72 | F47: 0.0075
A48: Alvenaria de Vedação | B48: 103360 | C48: ALVENARIA DE VEDAÇÃO DE BLOCOS CERÂMICOS FURADOS NA HORIZONTAL DE 14X19X29 CM (ESPESSURA 14 CM) E ARGAMASSA DE ASSENTAMENTO COM PREPARO EM BETONEIRA. AF_12/2021 | D48: M2 | E48: 78.53 | F48: 0.0056
A49: Alvenaria de Vedação | B49: 103361 | C49: ALVENARIA DE VEDAÇÃO DE BLOCOS CERÂMICOS FURADOS NA HORIZONTAL DE 14X19X29 CM (ESPESSURA 14 CM) E ARGAMASSA DE ASSENTAMENTO COM PREPARO MANUAL. AF_12/2021 | D49: M2 | E49: 80.13 | F49: 0.0055
A50: Alvenaria de Vedação | B50: 103368 | C50: ALVENARIA DE VEDAÇÃO DE BLOCOS CERÂMICOS FURADOS NA HORIZONTAL DE 14X19X39 CM (ESPESSURA 14 CM) E ARGAMASSA DE ASSENTAMENTO COM PREPARO EM BETONEIRA. AF_12/2021 | D50: M2 | E50: 65.72 | F50: 0.0067
A51: Alvenaria de Vedação | B51: 103369 | C51: ALVENARIA DE VEDAÇÃO DE BLOCOS CERÂMICOS FURADOS NA HORIZONTAL DE 14X19X39 CM (ESPESSURA 14 CM) E ARGAMASSA DE ASSENTAMENTO COM PREPARO MANUAL. AF_12/2021 | D51: M2 | E51: 67.16 | F51: 0.0066
A52: Alvenaria de Vedação | B52: 103334 | C52: ALVENARIA DE VEDAÇÃO DE BLOCOS CERÂMICOS FURADOS NA HORIZONTAL DE 14X9X19 CM (ESPESSURA 14 CM, BLOCO DEITADO) E ARGAMASSA DE ASSENTAMENTO COM PREPARO EM BETONEIRA. AF_12/2021 | D52: M2 | E52: 142.67 | F52: 0.006
A53: Alvenaria de Vedação | B53: 103335 | C53: ALVENARIA DE VEDAÇÃO DE BLOCOS CERÂMICOS FURADOS NA HORIZONTAL DE 14X9X19 CM (ESPESSURA 14 CM, BLOCO DEITADO) E ARGAMASSA DE ASSENTAMENTO COM PREPARO MANUAL. AF_12/2021 | D53: M2 | E53: 145.45 | F53: 0.0059
A54: Alvenaria de Vedação | B54: 103362 | C54: ALVENARIA DE VEDAÇÃO DE BLOCOS CERÂMICOS FURADOS NA HORIZONTAL DE 19X19X29 CM (ESPESSURA 19 CM) E ARGAMASSA DE ASSENTAMENTO COM PREPARO EM BETONEIRA. AF_12/2021 | D54: M2 | E54: 94.29 | F54: 0.0047
A55: Alvenaria de Vedação | B55: 103363 | C55: ALVENARIA DE VEDAÇÃO DE BLOCOS CERÂMICOS FURADOS NA HORIZONTAL DE 19X19X29 CM (ESPESSURA 19 CM) E ARGAMASSA DE ASSENTAMENTO COM PREPARO MANUAL. AF_12/2021 | D55: M2 | E55: 96.09 | F55: 0.0046
A56: Alvenaria de Vedação | B56: 103370 | C56: ALVENARIA DE VEDAÇÃO DE BLOCOS CERÂMICOS FURADOS NA HORIZONTAL DE 19X19X39 CM (ESPESSURA 19 CM) E ARGAMASSA DE ASSENTAMENTO COM PREPARO EM BETONEIRA. AF_12/2021 | D56: M2 | E56: 81.89 | F56: 0.0054
A57: Alvenaria de Vedação | B57: 103371 | C57: ALVENARIA DE VEDAÇÃO DE BLOCOS CERÂMICOS FURADOS NA HORIZONTAL DE 19X19X39 CM (ESPESSURA 19 CM) E ARGAMASSA DE ASSENTAMENTO COM PREPARO MANUAL. AF_12/2021 | D57: M2 | E57: 83.52 | F57: 0.0053
A58: Alvenaria de Vedação | B58: 103332 | C58: ALVENARIA DE VEDAÇÃO DE BLOCOS CERÂMICOS FURADOS NA HORIZONTAL DE 9X14X19 CM (ESPESSURA 9 CM) E ARGAMASSA DE ASSENTAMENTO COM PREPARO EM BETONEIRA. AF_12/2021 | D58: M2 | E58: 120.38 | F58: 0.0025
A59: Alvenaria de Vedação | B59: 103333 | C59: ALVENARIA DE VEDAÇÃO DE BLOCOS CERÂMICOS FURADOS NA HORIZONTAL DE 9X14X19 CM (ESPESSURA 9 CM) E ARGAMASSA DE ASSENTAMENTO COM PREPARO MANUAL. AF_12/2021 | D59: M2 | E59: 121.98 | F59: 0.0025
A60: Alvenaria de Vedação | B60: 103352 | C60: ALVENARIA DE VEDAÇÃO DE BLOCOS CERÂMICOS FURADOS NA HORIZONTAL DE 9X14X24 CM (ESPESSURA 9 CM) E ARGAMASSA DE ASSENTAMENTO COM PREPARO EM BETONEIRA. AF_12/2021 | D60: M2 | E60: 102.54 | F60: 0.0029
A61: Alvenaria de Vedação | B61: 103353 | C61: ALVENARIA DE VEDAÇÃO DE BLOCOS CERÂMICOS FURADOS NA HORIZONTAL DE 9X14X24 CM (ESPESSURA 9 CM) E ARGAMASSA DE ASSENTAMENTO COM PREPARO MANUAL. AF_12/2021 | D61: M2 | E61: 104.01 | F61: 0.0029
A62: Alvenaria de Vedação | B62: 103328 | C62: ALVENARIA DE VEDAÇÃO DE BLOCOS CERÂMICOS FURADOS NA HORIZONTAL DE 9X19X19 CM (ESPESSURA 9 CM) E ARGAMASSA DE ASSENTAMENTO COM PREPARO EM BETONEIRA. AF_12/2021 | D62: M2 | E62: 93.39 | F62: 0.0024
A63: Alvenaria de Vedação | B63: 103329 | C63: ALVENARIA DE VEDAÇÃO DE BLOCOS CERÂMICOS FURADOS NA HORIZONTAL DE 9X19X19 CM (ESPESSURA 9 CM) E ARGAMASSA DE ASSENTAMENTO COM PREPARO MANUAL. AF_12/2021 | D63: M2 | E63: 94.77 | F63: 0.0023
A64: Alvenaria de Vedação | B64: 103356 | C64: ALVENARIA DE VEDAÇÃO DE BLOCOS CERÂMICOS FURADOS NA HORIZONTAL DE 9X19X29 CM (ESPESSURA 9 CM) E ARGAMASSA DE ASSENTAMENTO COM PREPARO EM BETONEIRA. AF_12/2021 | D64: M2 | E64: 57.88 | F64: 0.0038
A65: Alvenaria de Vedação | B65: 103357 | C65: ALVENARIA DE VEDAÇÃO DE BLOCOS CERÂMICOS FURADOS NA HORIZONTAL DE 9X19X29 CM (ESPESSURA 9 CM) E ARGAMASSA DE ASSENTAMENTO COM PREPARO MANUAL. AF_12/2021 | D65: M2 | E65: 59.05 | F65: 0.0037
A66: Alvenaria de Vedação | B66: 103364 | C66: ALVENARIA DE VEDAÇÃO DE BLOCOS CERÂMICOS FURADOS NA HORIZONTAL DE 9X19X39 CM (ESPESSURA 9 CM) E ARGAMASSA DE ASSENTAMENTO COM PREPARO EM BETONEIRA. AF_12/2021 | D66: M2 | E66: 47.93 | F66: 0.0092
A67: Alvenaria de Vedação | B67: 103365 | C67: ALVENARIA DE VEDAÇÃO DE BLOCOS CERÂMICOS FURADOS NA HORIZONTAL DE 9X19X39 CM (ESPESSURA 9 CM) E ARGAMASSA DE ASSENTAMENTO COM PREPARO MANUAL. AF_12/2021 | D67: M2 | E67: 48.75 | F67: 0.0045
A68: Alvenaria de Vedação | B68: 103350 | C68: ALVENARIA DE VEDAÇÃO DE BLOCOS CERÂMICOS FURADOS NA HORIZONTAL DE 9X9X19 CM (ESPESSURA 9 CM) E ARGAMASSA DE ASSENTAMENTO COM PREPARO EM BETONEIRA. AF_12/2021 | D68: M2 | E68: 172.57 | F68: 0.0025
A69: Alvenaria de Vedação | B69: 103351 | C69: ALVENARIA DE VEDAÇÃO DE BLOCOS CERÂMICOS FURADOS NA HORIZONTAL DE 9X9X19 CM (ESPESSURA 9 CM) E ARGAMASSA DE ASSENTAMENTO COM PREPARO MANUAL. AF_12/2021 | D69: M2 | E69: 174.6 | F69: 0.0025
A70: Alvenaria de Vedação | B70: 103344 | C70: ALVENARIA DE VEDAÇÃO DE BLOCOS CERÂMICOS FURADOS NA VERTICAL DE 11,5X19X29 CM (ESPESSURA 11,5 CM) E ARGAMASSA DE ASSENTAMENTO COM PREPARO EM BETONEIRA. AF_12/2021 | D70: M2 | E70: 77.82 | F70: 0.0057
A71: Alvenaria de Vedação | B71: 103345 | C71: ALVENARIA DE VEDAÇÃO DE BLOCOS CERÂMICOS FURADOS NA VERTICAL DE 11,5X19X29 CM (ESPESSURA 11,5 CM) E ARGAMASSA DE ASSENTAMENTO COM PREPARO MANUAL. AF_12/2021 | D71: M2 | E71: 79.68 | F71: 0.0055
A72: Alvenaria de Vedação | B72: 103348 | C72: ALVENARIA DE VEDAÇÃO DE BLOCOS CERÂMICOS FURADOS NA VERTICAL DE 11,5X19X39 CM (ESPESSURA 11,5 CM) E ARGAMASSA DE ASSENTAMENTO COM PREPARO EM BETONEIRA. AF_12/2021 | D72: M2 | E72: 65.05 | F72: 0.0068
A73: Alvenaria de Vedação | B73: 103349 | C73: ALVENARIA DE VEDAÇÃO DE BLOCOS CERÂMICOS FURADOS NA VERTICAL DE 11,5X19X39 CM (ESPESSURA 11,5 CM) E ARGAMASSA DE ASSENTAMENTO COM PREPARO MANUAL. AF_12/2021 | D73: M2 | E73: 66.74 | F73: 0.0066
A74: Alvenaria de Vedação | B74: 103346 | C74: ALVENARIA DE VEDAÇÃO DE BLOCOS CERÂMICOS FURADOS NA VERTICAL DE 14X19X29 CM (ESPESSURA 14 CM) E ARGAMASSA DE ASSENTAMENTO COM PREPARO EM BETONEIRA. AF_12/2021 | D74: M2 | E74: 86.88 | F74: 0.0051
A75: Alvenaria de Vedação | B75: 103347 | C75: ALVENARIA DE VEDAÇÃO DE BLOCOS CERÂMICOS FURADOS NA VERTICAL DE 14X19X29 CM (ESPESSURA 14 CM) E ARGAMASSA DE ASSENTAMENTO COM PREPARO MANUAL. AF_12/2021 | D75: M2 | E75: 88.85 | F75: 0.005
A76: Alvenaria de Vedação | B76: 103324 | C76: ALVENARIA DE VEDAÇÃO DE BLOCOS CERÂMICOS FURADOS NA VERTICAL DE 14X19X39 CM (ESPESSURA 14 CM) E ARGAMASSA DE ASSENTAMENTO COM PREPARO EM BETONEIRA. AF_12/2021 | D76: M2 | E76: 73.85 | F76: 0.006
A77: Alvenaria de Vedação | B77: 103325 | C77: ALVENARIA DE VEDAÇÃO DE BLOCOS CERÂMICOS FURADOS NA VERTICAL DE 14X19X39 CM (ESPESSURA 14 CM) E ARGAMASSA DE ASSENTAMENTO COM PREPARO MANUAL. AF_12/2021 | D77: M2 | E77: 75.65 | F77: 0.0058
A78: Alvenaria de Vedação | B78: 103326 | C78: ALVENARIA DE VEDAÇÃO DE BLOCOS CERÂMICOS FURADOS NA VERTICAL DE 19X19X39 CM (ESPESSURA 19 CM) E ARGAMASSA DE ASSENTAMENTO COM PREPARO EM BETONEIRA. AF_12/2021 | D78: M2 | E78: 86.85 | F78: 0.0051
A79: Alvenaria de Vedação | B79: 103327 | C79: ALVENARIA DE VEDAÇÃO DE BLOCOS CERÂMICOS FURADOS NA VERTICAL DE 19X19X39 CM (ESPESSURA 19 CM) E ARGAMASSA DE ASSENTAMENTO COM PREPARO MANUAL. AF_12/2021 | D79: M2 | E79: 88.94 | F79: 0.0049
A80: Alvenaria de Vedação | B80: 103322 | C80: ALVENARIA DE VEDAÇÃO DE BLOCOS CERÂMICOS FURADOS NA VERTICAL DE 9X19X39 CM (ESPESSURA 9 CM) E ARGAMASSA DE ASSENTAMENTO COM PREPARO EM BETONEIRA. AF_12/2021 | D80: M2 | E80: 54.94 | F80: 0.004
A81: Alvenaria de Vedação | B81: 103323 | C81: ALVENARIA DE VEDAÇÃO DE BLOCOS CERÂMICOS FURADOS NA VERTICAL DE 9X19X39 CM (ESPESSURA 9 CM) E ARGAMASSA DE ASSENTAMENTO COM PREPARO MANUAL. AF_12/2021 | D81: M2 | E81: 56.52 | F81: 0.0039
A82: Alvenaria de Vedação | B82: 103338 | C82: ALVENARIA DE VEDAÇÃO DE BLOCOS VAZADOS DE CONCRETO APARENTE DE 14X19X39 CM (ESPESSURA 14 CM) E ARGAMASSA DE ASSENTAMENTO COM PREPARO EM BETONEIRA. AF_12/2021 | D82: M2 | E82: 115.92 | F82: 0.0038
A83: Alvenaria de Vedação | B83: 103339 | C83: ALVENARIA DE VEDAÇÃO DE BLOCOS VAZADOS DE CONCRETO APARENTE DE 14X19X39 CM (ESPESSURA 14 CM) E ARGAMASSA DE ASSENTAMENTO COM PREPARO MANUAL. AF_12/2021 | D83: M2 | E83: 117.47 | F83: 0.0037
A84: Alvenaria de Vedação | B84: 103340 | C84: ALVENARIA DE VEDAÇÃO DE BLOCOS VAZADOS DE CONCRETO APARENTE DE 19X19X39 CM (ESPESSURA 19 CM) E ARGAMASSA DE ASSENTAMENTO COM PREPARO EM BETONEIRA. AF_12/2021 | D84: M2 | E84: 139.98 | F84: 0.0031
A85: Alvenaria de Vedação | B85: 103341 | C85: ALVENARIA DE VEDAÇÃO DE BLOCOS VAZADOS DE CONCRETO APARENTE DE 19X19X39 CM (ESPESSURA 19 CM) E ARGAMASSA DE ASSENTAMENTO COM PREPARO MANUAL. AF_12/2021 | D85: M2 | E85: 141.92 | F85: 0.0031
A86: Alvenaria de Vedação | B86: 103336 | C86: ALVENARIA DE VEDAÇÃO DE BLOCOS VAZADOS DE CONCRETO APARENTE DE 9X19X39 CM (ESPESSURA 9 CM) E ARGAMASSA DE ASSENTAMENTO COM PREPARO EM BETONEIRA. AF_12/2021 | D86: M2 | E86: 88.26 | F86: 0.0025
A87: Alvenaria de Vedação | B87: 103337 | C87: ALVENARIA DE VEDAÇÃO DE BLOCOS VAZADOS DE CONCRETO APARENTE DE 9X19X39 CM (ESPESSURA 9 CM) E ARGAMASSA DE ASSENTAMENTO COM PREPARO MANUAL. AF_12/2021 | D87: M2 | E87: 89.58 | F87: 0.0025
A88: Alvenaria de Vedação | B88: 103342 | C88: ALVENARIA DE VEDAÇÃO DE BLOCOS VAZADOS DE CONCRETO DE 14X19X29 CM (ESPESSURA 14 CM) E ARGAMASSA DE ASSENTAMENTO COM PREPARO EM BETONEIRA. AF_12/2021 | D88: M2 | E88: 118.34 | F88: 0.0037
A89: Alvenaria de Vedação | B89: 103343 | C89: ALVENARIA DE VEDAÇÃO DE BLOCOS VAZADOS DE CONCRETO DE 14X19X29 CM (ESPESSURA 14 CM) E ARGAMASSA DE ASSENTAMENTO COM PREPARO MANUAL. AF_12/2021 | D89: M2 | E89: 120.06 | F89: 0.0037
A90: Alvenaria de Vedação | B90: 103318 | C90: ALVENARIA DE VEDAÇÃO DE BLOCOS VAZADOS DE CONCRETO DE 14X19X39 CM (ESPESSURA 14 CM) E ARGAMASSA DE ASSENTAMENTO COM PREPARO EM BETONEIRA. AF_12/2021 | D90: M2 | E90: 101.45 | F90: 0.0043
A91: Alvenaria de Vedação | B91: 103319 | C91: ALVENARIA DE VEDAÇÃO DE BLOCOS VAZADOS DE CONCRETO DE 14X19X39 CM (ESPESSURA 14 CM) E ARGAMASSA DE ASSENTAMENTO COM PREPARO MANUAL. AF_12/2021 | D91: M2 | E91: 103 | F91: 0.0043
A92: Alvenaria de Vedação | B92: 103320 | C92: ALVENARIA DE VEDAÇÃO DE BLOCOS VAZADOS DE CONCRETO DE 19X19X39 CM (ESPESSURA 19 CM) E ARGAMASSA DE ASSENTAMENTO COM PREPARO EM BETONEIRA. AF_12/2021 | D92: M2 | E92: 121.81 | F92: 0.0036
A93: Alvenaria de Vedação | B93: 103321 | C93: ALVENARIA DE VEDAÇÃO DE BLOCOS VAZADOS DE CONCRETO DE 19X19X39 CM (ESPESSURA 19 CM) E ARGAMASSA DE ASSENTAMENTO COM PREPARO MANUAL. AF_12/2021 | D93: M2 | E93: 123.75 | F93: 0.0036
A94: Alvenaria de Vedação | B94: 103316 | C94: ALVENARIA DE VEDAÇÃO DE BLOCOS VAZADOS DE CONCRETO DE 9X19X39 CM (ESPESSURA 9 CM) E ARGAMASSA DE ASSENTAMENTO COM PREPARO EM BETONEIRA. AF_12/2021 | D94: M2 | E94: 78.24 | F94: 0.0028
A95: Alvenaria de Vedação | B95: 103317 | C95: ALVENARIA DE VEDAÇÃO DE BLOCOS VAZADOS DE CONCRETO DE 9X19X39 CM (ESPESSURA 9 CM) E ARGAMASSA DE ASSENTAMENTO COM PREPARO MANUAL. AF_12/2021 | D95: M2 | E95: 79.56 | F95: 0.0028
A96: Alvenarias Diversas | B96: 101166 | C96: ALVENARIA DE EMBASAMENTO COM BLOCO ESTRUTURAL DE CERÂMICA, DE 14X19X29CM E ARGAMASSA DE ASSENTAMENTO COM PREPARO EM BETONEIRA. AF_05/2020 | D96: M3 | E96: 636.35 | F96: 0
A97: Alvenarias Diversas | B97: 101165 | C97: ALVENARIA DE EMBASAMENTO COM BLOCO ESTRUTURAL DE CONCRETO, DE 14X19X29CM E ARGAMASSA DE ASSENTAMENTO COM PREPARO EM BETONEIRA. AF_05/2020 | D97: M3 | E97: 1013.86 | F97: 0
A98: Alvenarias Diversas | B98: 101163 | C98: ALVENARIA DE VEDAÇÃO COM BLOCO DE VIDRO VAZADO, TIPO VENEZIANA, DE 6X20X20CM E ARGAMASSA DE ASSENTAMENTO COM PREPARO EM BETONEIRA. AF_05/2020 | D98: M2 | E98: 684.21 | F98: 0.7266
A99: Alvenarias Diversas | B99: 101164 | C99: ALVENARIA DE VEDAÇÃO COM BLOCO DE VIDRO, TIPO CANELADO, DE 8X19X19CM E ARGAMASSA DE ASSENTAMENTO COM PREPARO EM BETONEIRA. AF_05/2020 | D99: M2 | E99: 695.03 | F99: 0.7238
A100: Alvenarias Diversas | B100: 101162 | C100: ALVENARIA DE VEDAÇÃO COM ELEMENTO VAZADO DE CERÂMICA (COBOGÓ) DE 7X20X20CM E ARGAMASSA DE ASSENTAMENTO COM PREPARO EM BETONEIRA. AF_05/2020 | D100: M2 | E100: 147.73 | F100: 0
A101: Alvenarias Diversas | B101: 101161 | C101: ALVENARIA DE VEDAÇÃO COM ELEMENTO VAZADO DE CONCRETO (COBOGÓ) DE 7X50X50CM E ARGAMASSA DE ASSENTAMENTO COM PREPARO EM BETONEIRA. AF_05/2020 | D101: M2 | E101: 229.31 | F101: 0
A102: Alvenarias Diversas | B102: 101160 | C102: ALVENARIA DE VEDAÇÃO DE BLOCO DE SOLO-CIMENTO (TIJOLO ECOLÓGICO) DE 7X15X30CM (ESPESSURA 15CM). AF_05/2020 | D102: M2 | E102: 0
A103: Alvenarias Diversas | B103: 101159 | C103: ALVENARIA DE VEDAÇÃO DE BLOCOS CERÂMICOS MACIÇOS DE 5X10X20CM (ESPESSURA 10CM) E ARGAMASSA DE ASSENTAMENTO COM PREPARO EM BETONEIRA. AF_05/2020 | D103: M2 | E103: 133.19 | F103: 0
A104: Alvenarias Diversas | B104: 101154 | C104: ALVENARIA DE VEDAÇÃO DE BLOCOS DE CONCRETO CELULAR DE 10X30X60CM (ESPESSURA 10CM) E ARGAMASSA DE ASSENTAMENTO COM PREPARO EM BETONEIRA. AF_05/2020 | D104: M2 | E104: 141.66 | F104: 0.6759
A105: Alvenarias Diversas | B105: 101155 | C105: ALVENARIA DE VEDAÇÃO DE BLOCOS DE CONCRETO CELULAR DE 15X30X60CM (ESPESSURA 15CM) E ARGAMASSA DE ASSENTAMENTO COM PREPARO EM BETONEIRA. AF_05/2020 | D105: M2 | E105: 198.56 | F105: 0.7083
A106: Alvenarias Diversas | B106: 101156 | C106: ALVENARIA DE VEDAÇÃO DE BLOCOS DE CONCRETO CELULAR DE 20X30X60CM (ESPESSURA 20CM) E ARGAMASSA DE ASSENTAMENTO COM PREPARO EM BETONEIRA. AF_05/2020 | D106: M2 | E106: 290.92 | F106: 0.7406
A107: Alvenarias Diversas | B107: 101158 | C107: ALVENARIA DE VEDAÇÃO DE BLOCOS DE GESSO DE 10X50X66CM (ESPESSURA 10CM). AF_05/2020 | D107: M2 | E107: 77.86 | F107: 0
A108: Alvenarias Diversas | B108: 101157 | C108: ALVENARIA DE VEDAÇÃO DE BLOCOS DE GESSO DE 7X50X66CM (ESPESSURA 7CM). AF_05/2020 | D108: M2 | E108: 59.94 | F108: 0
A109: Argamassas | B109: 87382 | C109: ARGAMASSA INDUSTRIALIZADA MULTIUSO PARA REVESTIMENTOS E ASSENTAMENTO DA ALVENARIA, PREPARO COM MISTURADOR DE EIXO HORIZONTAL DE 160 KG. AF_08/2019 | D109: M3 | E109: 2315.96 | F109: 0
A110: Argamassas | B110: 87383 | C110: ARGAMASSA INDUSTRIALIZADA MULTIUSO PARA REVESTIMENTOS E ASSENTAMENTO DA ALVENARIA, PREPARO COM MISTURADOR DE EIXO HORIZONTAL DE 300 KG. AF_08/2019 | D110: M3 | E110: 2316.32 | F110: 0
A111: Argamassas | B111: 87384 | C111: ARGAMASSA INDUSTRIALIZADA MULTIUSO PARA REVESTIMENTOS E ASSENTAMENTO DA ALVENARIA, PREPARO COM MISTURADOR DE EIXO HORIZONTAL DE 600 KG. AF_08/2019 | D111: M3 | E111: 2312.18 | F111: 0
A112: Argamassas | B112: 87398 | C112: ARGAMASSA INDUSTRIALIZADA MULTIUSO PARA REVESTIMENTOS E ASSENTAMENTO DA ALVENARIA, PREPARO MANUAL. AF_08/2019 | D112: M3 | E112: 2571.16 | F112: 0
A113: Argamassas | B113: 87395 | C113: ARGAMASSA INDUSTRIALIZADA PARA CHAPISCO COLANTE, PREPARO COM MISTURADOR DE EIXO HORIZONTAL DE 160 KG. AF_08/2019 | D113: M3 | E113: 4520.59 | F113: 0
A114: Argamassas | B114: 87396 | C114: ARGAMASSA INDUSTRIALIZADA PARA CHAPISCO COLANTE, PREPARO COM MISTURADOR DE EIXO HORIZONTAL DE 300 KG. AF_08/2019 | D114: M3 | E114: 4554.39 | F114: 0
A115: Argamassas | B115: 87397 | C115: ARGAMASSA INDUSTRIALIZADA PARA CHAPISCO COLANTE, PREPARO COM MISTURADOR DE EIXO HORIZONTAL DE 600 KG. AF_08/2019 | D115: M3 | E115: 4590.45 | F115: 0
A116: Argamassas | B116: 87402 | C116: ARGAMASSA INDUSTRIALIZADA PARA CHAPISCO COLANTE, PREPARO MANUAL. AF_08/2019 | D116: M3 | E116: 4848.78 | F116: 0
A117: Argamassas | B117: 87391 | C117: ARGAMASSA INDUSTRIALIZADA PARA CHAPISCO ROLADO, PREPARO COM MISTURADOR DE EIXO HORIZONTAL DE 160 KG. AF_08/2019 | D117: M3 | E117: 7198.9 | F117: 0
A118: Argamassas | B118: 87393 | C118: ARGAMASSA INDUSTRIALIZADA PARA CHAPISCO ROLADO, PREPARO COM MISTURADOR DE EIXO HORIZONTAL DE 300 KG. AF_08/2019 | D118: M3 | E118: 7268.68 | F118: 0
A119: Argamassas | B119: 87394 | C119: ARGAMASSA INDUSTRIALIZADA PARA CHAPISCO ROLADO, PREPARO COM MISTURADOR DE EIXO HORIZONTAL DE 600 KG. AF_08/2019 | D119: M3 | E119: 7339.09 | F119: 0
A120: Argamassas | B120: 87401 | C120: ARGAMASSA INDUSTRIALIZADA PARA CHAPISCO ROLADO, PREPARO MANUAL. AF_08/2019 | D120: M3 | E120: 7581.93 | F120: 0
A121: Argamassas | B121: 87407 | C121: ARGAMASSA INDUSTRIALIZADA PARA REVESTIMENTOS, MISTURA E PROJEÇÃO DE 1,5 M³/H DE ARGAMASSA. AF_08/2019 | D121: M3 | E121: 2359.06 | F121: 0
A122: Argamassas | B122: 87408 | C122: ARGAMASSA INDUSTRIALIZADA PARA REVESTIMENTOS, MISTURA E PROJEÇÃO DE 2 M³/H DE ARGAMASSA. AF_08/2019 | D122: M3 | E122: 2348.67 | F122: 0
A123: Argamassas | B123: 87404 | C123: ARGAMASSA PARA REVESTIMENTO DECORATIVO MONOCAMADA (MONOCAPA), MISTURA E PROJEÇÃO DE 1,5 M3/H DE ARGAMASSA. AF_08/2019 | D123: M3 | E123: 6723.25 | F123: 0
A124: Argamassas | B124: 87405 | C124: ARGAMASSA PARA REVESTIMENTO DECORATIVO MONOCAMADA (MONOCAPA), MISTURA E PROJEÇÃO DE 2 M3/H DE ARGAMASSA. AF_08/2019 | D124: M3 | E124: 6747.15 | F124: 0
A125: Argamassas | B125: 87388 | C125: ARGAMASSA PARA REVESTIMENTO DECORATIVO MONOCAMADA (MONOCAPA), PREPARO COM MISTURADOR DE EIXO HORIZONTAL DE 160 KG. AF_08/2019 | D125: M3 | E125: 6485.53 | F125: 0
A126: Argamassas | B126: 87389 | C126: ARGAMASSA PARA REVESTIMENTO DECORATIVO MONOCAMADA (MONOCAPA), PREPARO COM MISTURADOR DE EIXO HORIZONTAL DE 300 KG. AF_08/2019 | D126: M3 | E126: 6515.88 | F126: 0
A127: Argamassas | B127: 87390 | C127: ARGAMASSA PARA REVESTIMENTO DECORATIVO MONOCAMADA (MONOCAPA), PREPARO COM MISTURADOR DE EIXO HORIZONTAL DE 600 KG. AF_08/2019 | D127: M3 | E127: 6554.64 | F127: 0
A128: Argamassas | B128: 87385 | C128: ARGAMASSA PRONTA PARA CONTRAPISO, PREPARO COM MISTURADOR DE EIXO HORIZONTAL DE 160 KG. AF_08/2019 | D128: M3 | E128: 2697.94 | F128: 0
A129: Argamassas | B129: 87386 | C129: ARGAMASSA PRONTA PARA CONTRAPISO, PREPARO COM MISTURADOR DE EIXO HORIZONTAL DE 300 KG. AF_08/2019 | D129: M3 | E129: 2693.82 | F129: 0
A130: Argamassas | B130: 87387 | C130: ARGAMASSA PRONTA PARA CONTRAPISO, PREPARO COM MISTURADOR DE EIXO HORIZONTAL DE 600 KG. AF_08/2019 | D130: M3 | E130: 2693.19 | F130: 0
A131: Argamassas | B131: 87399 | C131: ARGAMASSA PRONTA PARA CONTRAPISO, PREPARO MANUAL. AF_08/2019 | D131: M3 | E131: 2959.2 | F131: 0
A132: Argamassas | B132: 88627 | C132: ARGAMASSA TRAÇO 1:0,5:4,5 (EM VOLUME DE CIMENTO, CAL E AREIA MÉDIA ÚMIDA) PARA ASSENTAMENTO DE ALVENARIA, PREPARO MANUAL. AF_08/2019 | D132: M3 | E132: 730.37 | F132: 0
A133: Argamassas | B133: 100463 | C133: ARGAMASSA TRAÇO 1:0,5:4,5 (EM VOLUME DE CIMENTO, CAL E AREIA MÉDIA ÚMIDA), PREPARO MECÂNICO COM BETONEIRA 250 L. AF_08/2019 | D133: M3 | E133: 0
A134: Argamassas | B134: 88626 | C134: ARGAMASSA TRAÇO 1:0,5:4,5 (EM VOLUME DE CIMENTO, CAL E AREIA MÉDIA ÚMIDA), PREPARO MECÂNICO COM BETONEIRA 400 L. AF_08/2019 | D134: M3 | E134: 609.62 | F134: 0
A135: Argamassas | B135: 100488 | C135: ARGAMASSA TRAÇO 1:0,5:4,5 (EM VOLUME DE CIMENTO, CAL E AREIA MÉDIA ÚMIDA), PREPARO MECÂNICO COM BETONEIRA 600 L. AF_08/2019 | D135: M3 | E135: 602.85 | F135: 0
A136: Argamassas | B136: 100464 | C136: ARGAMASSA TRAÇO 1:0,5:4,5 (EM VOLUME DE CIMENTO, CAL E AREIA MÉDIA ÚMIDA), PREPARO MECÂNICO COM MISTURADOR DE EIXO HORIZONTAL DE 160 KG. AF_08/2019 | D136: M3 | E136: 634.73 | F136: 0
A137: Argamassas | B137: 100465 | C137: ARGAMASSA TRAÇO 1:0,5:4,5 (EM VOLUME DE CIMENTO, CAL E AREIA MÉDIA ÚMIDA), PREPARO MECÂNICO COM MISTURADOR DE EIXO HORIZONTAL DE 300 KG. AF_08/2019 | D137: M3 | E137: 595.91 | F137: 0
A138: Argamassas | B138: 100466 | C138: ARGAMASSA TRAÇO 1:0,5:4,5 (EM VOLUME DE CIMENTO, CAL E AREIA MÉDIA ÚMIDA), PREPARO MECÂNICO COM MISTURADOR DE EIXO HORIZONTAL DE 600 KG. AF_08/2019 | D138: M3 | E138: 577.94 | F138: 0
A139: Argamassas | B139: 87368 | C139: ARGAMASSA TRAÇO 1:1,5:7,5 (EM VOLUME DE CIMENTO, CAL E AREIA MÉDIA ÚMIDA) PARA EMBOÇO/MASSA ÚNICA/ASSENTAMENTO DE ALVENARIA DE VEDAÇÃO, PREPARO MANUAL. AF_08/2019 | D139: M3 | E139: 815.37 | F139: 0
A140: Argamassas | B140: 100450 | C140: ARGAMASSA TRAÇO 1:1,5:7,5 (EM VOLUME DE CIMENTO, CAL E AREIA MÉDIA ÚMIDA) PARA EMBOÇO/MASSA ÚNICA/ASSENTAMENTO DE ALVENARIA DE VEDAÇÃO, PREPARO MECÂNICO COM BETONEIRA 250 L. AF_08/2019 | D140: M3 | E140: 0
A141: Argamassas | B141: 87289 | C141: ARGAMASSA TRAÇO 1:1,5:7,5 (EM VOLUME DE CIMENTO, CAL E AREIA MÉDIA ÚMIDA) PARA EMBOÇO/MASSA ÚNICA/ASSENTAMENTO DE ALVENARIA DE VEDAÇÃO, PREPARO MECÂNICO COM BETONEIRA 400 L. AF_08/2019 | D141: M3 | E141: 666.01 | F141: 0
